Workbook

Sheet DATA QUERY
B2: BRN School Report Data, 2006-2007 to 2015-2016
B4: Directions: Choose your options from the drop down menus below. Then, click on the Tables and Graphs tabs at the bottom of the page to view the results of the data query. The tables and graphs will change according to your selections. If an error appears when you attempt to use the drop down menus, refer to the note below regarding your security settings.
B7: You can print the data tables and graphs that result from your query by clicking on the Excel print icon at the top of your screen.
B9: Region: | H9: County:
B10: Degree Offered:
B11: Public/Private:
B15: Region | C15: Counties
B16: Bay Area | C16: Alameda, Contra Costa, Marin, Napa, San Francisco, San Mateo, Santa Clara, Santa Cruz, Solano, Sonoma
B17: Central Coast | C17: Monterey, San Benito, San Luis Obispo, Santa Barbara
B18: Central Sierra* | C18: Alpine, Amador, Calaveras, Inyo, Mariposa, Mono, Tuolumne
B19: Greater Sacramento | C19: El Dorado, Placer, Sacramento, Sutter, Yolo, Yuba
B20: Northern California | C20: Del Norte, Humboldt, Lake, Lassen, Mendocino, Modoc, Nevada, Plumas, Sierra, Siskiyou, Trinity
B21: Northern Sacramento Valley | C21: Butte, Colusa, Glenn, Shasta, Tehama
B22: San Joaquin Valley | C22: Fresno, Kern, Kings, Madera, Merced, San Joaquin, Stanislaus, Tulare
B23: Southern Border | C23: Imperial, San Diego
B24: LA Area | C24: Los Angeles, Ventura
B25: Inland Empire | C25: Orange, Riverside, San Bernardino
B26: *No nursing programs are in this region.
B28: Notes:
B29: * Data included in these reports are from the Board of Registered Nursing (BRN) Annual School Surveys, 2006-2007 to 2015-2016.
B30: * Data were last updated on 6/15/17.
B32: * Avoid changing the worksheets as they contain many formulas, links and custom formats. Modifying the worksheets may compromise the accuracy of the data query.
B35: *Security Settings -- To properly use this document, you must enable macros in Excel. To enable Macros, go up to the application menu and select Tools, Macro, Security. Select Medium and click OK. Save this document and close Excel. Reopen this document and select Enable Macros when prompted. More explicit instructions for changing your security settings are available on the BRN website.

Sheet TABLES
A2: Nursing Program Data
A4: Number of Nursing Programs | M4: Nursing Program Offerings
B5: Academic Year | M5: Program Offered | P5: Academic Year
B6: 2006-2007 | C6: 2007-2008 | D6: 2008-2009 | E6: 2009-2010 | F6: 2010-2011 | G6: 2011-2012 | H6: 2012-2013 | I6: 2013-2014 | J6: 2014-2015 | K6: 2015-2016 | P6: 2006-2007 | Q6: 2007-2008 | R6: 2008-2009 | S6: 2009-2010 | T6: 2010-2011 | U6: 2011-2012 | V6: 2012-2013 | W6: 2013-2014 | X6: 2014-2015 | Y6: 2015-2016
A7: Total # Programs | B7: =SUM(B8:B10) -> 13 | C7: =SUM(C8:C10) -> 13 | D7: =SUM(D8:D10) -> 13 | E7: 13 | F7: 13 | G7: 13 | H7: 13 | I7: 13 | J7: 13 | K7: =SUM(K8:K10) -> 13 | M7: Accelerated Program | P7: =IF(PIVOT!B55=0,"",PIVOT!B55) -> 5 | Q7: =IF(PIVOT!C55=0,"",PIVOT!C55) -> 6 | R7: =IF(PIVOT!D55=0,0,IF(E$7=1,"",PIVOT!D55)) -> 6 | S7: =IF(PIVOT!E55=0,0,IF(F$7=1,"",PIVOT!E55)) -> 5 | T7: =IF(PIVOT!F55=0,0,IF(G$7=1,"",PIVOT!F55)) -> 6 | U7: =IF(PIVOT!G55=0,0,IF(H$7=1,"",PIVOT!G55)) -> 3 | V7: =IF(PIVOT!H55=0,0,IF(I$7=1,"",PIVOT!H55)) -> 3 | W7: =IF(PIVOT!I55=0,0,IF(J$7=1,"",PIVOT!I55)) -> 3
A8: AD Programs | B8: =IF(PIVOT!B13=0,"",PIVOT!B13) -> 8 | C8: =IF(PIVOT!C13=0,"",PIVOT!C13) -> 8 | D8: =IF(PIVOT!D13=0,"",PIVOT!D13) -> 7 | E8: =IF(PIVOT!E13=0,"",PIVOT!E13) -> 7 | F8: =IF(PIVOT!F13=0,"",PIVOT!F13) -> 7 | G8: =IF(PIVOT!G106=0,"",PIVOT!G106) -> 7 | H8: =IF(PIVOT!H106=0,"",PIVOT!H106) -> 7 | I8: =IF(PIVOT!I106=0,"",PIVOT!I106) -> 7 | J8: =IF(PIVOT!J106=0,"",PIVOT!J106) -> 7 | K8: =IF(PIVOT!K106=0,"",PIVOT!K106) -> 7 | M8: Weekend Program | P8: =IF(PIVOT!B56=0,"",PIVOT!B56) -> 3 | Q8: =IF(PIVOT!C56=0,"",PIVOT!C56) -> 3 | R8: =IF(PIVOT!D56=0,0,IF(E$7=1,"",PIVOT!D56)) -> 3 | S8: =IF(PIVOT!E56=0,0,IF(F$7=1,"",PIVOT!E56)) -> 2 | T8: =IF(PIVOT!F56=0,0,IF(G$7=1,"",PIVOT!F56)) -> 1 | U8: =IF(PIVOT!G56=0,0,IF(H$7=1,"",PIVOT!G56)) -> 1 | V8: =IF(PIVOT!H56=0,0,IF(I$7=1,"",PIVOT!H56)) -> 2 | W8: =IF(PIVOT!I56=0,0,IF(J$7=1,"",PIVOT!I56)) -> 2
A9: BSN Programs | B9: =IF(PIVOT!B14=0,"",PIVOT!B14) -> 4 | C9: =IF(PIVOT!C14=0,"",PIVOT!C14) -> 4 | D9: =IF(PIVOT!D14=0,"",PIVOT!D14) -> 4 | E9: =IF(PIVOT!E14=0,"",PIVOT!E14) -> 4 | F9: =IF(PIVOT!F14=0,"",PIVOT!F14) -> 4 | G9: =IF(PIVOT!G107=0,"",PIVOT!G107) -> 4 | H9: =IF(PIVOT!H107=0,"",PIVOT!H107) -> 5 | I9: =IF(PIVOT!I107=0,"",PIVOT!I107) -> 4 | J9: =IF(PIVOT!J107=0,"",PIVOT!J107) -> 4 | K9: =IF(PIVOT!K107=0,"",PIVOT!K107) -> 5 | M9: Part-time Program | P9: =IF(PIVOT!B57=0,"",PIVOT!B57) ->  | Q9: =IF(PIVOT!C57=0,"",PIVOT!C57) -> 2 | R9: =IF(PIVOT!D57=0,0,IF(E$7=1,"",PIVOT!D57)) -> 0 | S9: =IF(PIVOT!E57=0,0,IF(F$7=1,"",PIVOT!E57)) -> 0 | T9: =IF(PIVOT!F57=0,0,IF(G$7=1,"",PIVOT!F57)) -> 0 | U9: =IF(PIVOT!G57=0,0,IF(H$7=1,"",PIVOT!G57)) -> 0 | V9: =IF(PIVOT!H57=0,0,IF(I$7=1,"",PIVOT!H57)) -> 0 | W9: =IF(PIVOT!I57=0,0,IF(J$7=1,"",PIVOT!I57)) -> 0
A10: ELM Programs | B10: =IF(PIVOT!B15=0,"",PIVOT!B15) -> 1 | C10: =IF(PIVOT!C15=0,"",PIVOT!C15) -> 1 | D10: =IF(PIVOT!D15=0,"",PIVOT!D15) -> 2 | E10: =IF(PIVOT!E15=0,"",PIVOT!E15) -> 2 | F10: =IF(PIVOT!F15=0,"",PIVOT!F15) -> 2 | G10: =IF(PIVOT!G108=0,"",PIVOT!G108) -> 2 | H10: =IF(PIVOT!H108=0,"",PIVOT!H108) -> 1 | I10: =IF(PIVOT!I108=0,"",PIVOT!I108) -> 2 | J10: =IF(PIVOT!J108=0,"",PIVOT!J108) -> 2 | K10: =IF(PIVOT!K108=0,"",PIVOT!K108) -> 1 | M10: Extended Campus | P10: =IF(PIVOT!B58=0,"",PIVOT!B58) ->  | Q10: =IF(PIVOT!C58=0,"",PIVOT!C58) -> 2 | R10: =IF(PIVOT!D58=0,0,IF(E$7=1,"",PIVOT!D58)) -> 1 | S10: =IF(PIVOT!E58=0,0,IF(F$7=1,"",PIVOT!E58)) -> 1 | T10: =IF(PIVOT!F58=0,0,IF(G$7=1,"",PIVOT!F58)) -> 2 | U10: =IF(PIVOT!G58=0,0,IF(H$7=1,"",PIVOT!G58)) -> 2 | V10: =IF(PIVOT!H58=0,0,IF(I$7=1,"",PIVOT!H58)) -> 1 | W10: =IF(PIVOT!I58=0,0,IF(J$7=1,"",PIVOT!I58)) -> 0
A11: Public Programs | B11: =IF(PIVOT!B16=0,"",IF(PIVOT!$B$8="Public",PIVOT!B16,IF(PIVOT!$B$8="(All)",PIVOT!B16,""))) -> 8 | C11: =IF(PIVOT!C16=0,"",IF(PIVOT!$B$8="Public",PIVOT!C16,IF(PIVOT!$B$8="(All)",PIVOT!C16,""))) -> 8 | D11: =IF(PIVOT!D16=0,"",IF(PIVOT!$B$8="Public",PIVOT!D16,IF(PIVOT!$B$8="(All)",PIVOT!D16,""))) -> 8 | E11: =IF(PIVOT!E16=0,"",IF(PIVOT!$B$8="Public",PIVOT!E16,IF(PIVOT!$B$8="(All)",PIVOT!E16,""))) -> 8 | F11: =IF(PIVOT!F16=0,"",IF(PIVOT!$B$8="Public",PIVOT!F16,IF(PIVOT!$B$8="(All)",PIVOT!F16,""))) -> 8 | G11: =IF(PIVOT!G109=0,"",IF(PIVOT!$B$8="Public",PIVOT!G109,IF(PIVOT!$B$8="(All)",PIVOT!G109,""))) -> 8 | H11: =IF(PIVOT!H109=0,"",IF(PIVOT!$B$8="Public",PIVOT!H109,IF(PIVOT!$B$8="(All)",PIVOT!H109,""))) -> 8 | I11: =IF(PIVOT!I109=0,"",IF(PIVOT!$B$8="Public",PIVOT!I109,IF(PIVOT!$B$8="(All)",PIVOT!I109,""))) -> 8 | J11: =IF(PIVOT!J109=0,"",IF(PIVOT!$B$8="Public",PIVOT!J109,IF(PIVOT!$B$8="(All)",PIVOT!J109,""))) -> 8 | K11: =IF(PIVOT!K109=0,"",IF(PIVOT!$B$8="Public",PIVOT!K109,IF(PIVOT!$B$8="(All)",PIVOT!K109,""))) -> 8 | M11: *Data represent the number of nursing programs that offer the program options listed.
A12: Private Programs | B12: =IF(B11="",B7,IF(PIVOT!$B$8="Public","",(B7-B11))) -> 5 | C12: =IF(C11="",C7,IF(PIVOT!$B$8="Public","",(C7-C11))) -> 5 | D12: =IF(D11="",D7,IF(PIVOT!$B$8="Public","",(D7-D11))) -> 5 | E12: =IF(E11="",E7,IF(PIVOT!$B$8="Public","",(E7-E11))) -> 5 | F12: =IF(F11="",F7,IF(PIVOT!$B$8="Public","",(F7-F11))) -> 5 | G12: =IF(G11="",G7,IF(PIVOT!$B$8="Public","",(G7-G11))) -> 5 | H12: =IF(H11="",H7,IF(PIVOT!$B$8="Public","",(H7-H11))) -> 5 | I12: =IF(I11="",I7,IF(PIVOT!$B$8="Public","",(I7-I11))) -> 5 | J12: =IF(J11="",J7,IF(PIVOT!$B$8="Public","",(J7-J11))) -> 5 | K12: =IF(K11="",K7,IF(PIVOT!$B$8="Public","",(K7-K11))) -> 5 | M12: **Blank cells indicated that the applicable information was not requested in the given year.
A13: Total # Schools | B13: =IF(PIVOT!M53="","",IF(B7<PIVOT!M53,B7,PIVOT!M53)) -> 12 | C13: =IF(PIVOT!N53="","",IF(C7<PIVOT!N53,C7,PIVOT!N53)) -> 12 | D13: =IF(PIVOT!O53="","",IF(D7<PIVOT!O53,D7,PIVOT!O53)) -> 13 | E13: =IF(PIVOT!P53="","",IF(E7<PIVOT!P53,E7,PIVOT!P53)) -> 13 | F13: =IF(PIVOT!Q53="","",IF(F7<PIVOT!Q53,F7,PIVOT!Q53)) -> 13 | G13: =IF(PIVOT!R53="","",IF(G7<PIVOT!R53,G7,PIVOT!R53)) -> 13 | H13: =IF(PIVOT!S53="","",IF(H7<PIVOT!S53,H7,PIVOT!S53)) -> 13 | I13: =IF(PIVOT!T53="","",IF(I7<PIVOT!T53,I7,PIVOT!T53)) -> 13 | J13: =IF(PIVOT!U53="","",IF(J7<PIVOT!U53,J7,PIVOT!U53)) -> 13 | K13: =IF(PIVOT!V53="","",IF(K7<PIVOT!V53,K7,PIVOT!V53)) -> 13
A14: Student Admission Applications† | M14: Availability and Utilization of Admission Spaces†
B15: Academic Year | P15: Academic Year
B16: 2006-2007 | C16: 2007-2008 | D16: 2008-2009 | E16: 2009-2010 | F16: 2010-2011 | G16: 2011-2012 | H16: 2012-2013 | I16: 2013-2014 | J16: 2014-2015 | K16: 2015-2016 | P16: 2006-2007 | Q16: 2007-2008 | R16: 2008-2009 | S16: 2009-2010 | T16: 2010-2011 | U16: 2011-2012 | V16: 2012-2013 | W16: 2013-2014 | X16: 2014-2015 | Y16: 2015-2016
A17: Qualified Applications | B17: =IF(B7="","",PIVOT!B17) -> 2637 | C17: =IF(C7="","",PIVOT!C17) -> 2378 | D17: =IF(D7="","",PIVOT!D17) -> 2802 | E17: =IF(E7="","",PIVOT!E17) -> 2751 | F17: =IF(F7="","",PIVOT!F17) -> 2117 | G17: =IF(G7="","",PIVOT!G17) -> 2887 | H17: =IF(H7="","",PIVOT!H17) -> 2555 | I17: =IF(I7="","",PIVOT!I17) -> 2501 | J17: =IF(J7="","",PIVOT!J17) -> 2264 | K17: =PIVOT!K17 -> 2390 | M17: Spaces Available | P17: =IF(PIVOT!B18=0,"",PIVOT!B18) -> 1173 | Q17: =IF(PIVOT!C18=0,"",PIVOT!C18) -> 1176 | R17: =IF(PIVOT!D18=0,"",PIVOT!D18) -> 1140 | S17: =IF(PIVOT!E18=0,"",PIVOT!E18) -> 1212 | T17: =IF(PIVOT!F18=0,"",PIVOT!F18) -> 1351 | U17: =IF(PIVOT!G18=0,"",PIVOT!G18) -> 1148 | V17: =IF(PIVOT!H18=0,"",PIVOT!H18) -> 1099 | W17: =IF(PIVOT!I18=0,"",PIVOT!I18) -> 1203 | X17: =IF(PIVOT!J18=0,"",PIVOT!J18) -> 1175 | Y17: =IF(PIVOT!K18=0,"",PIVOT!K18) -> 1157
A18: AD | B18: =IF(B8="","",PIVOT!B59) -> 1433 | C18: =IF(C8="","",PIVOT!C59) -> 1377 | D18: =IF(D8="","",PIVOT!D59) -> 1677 | E18: =IF(E8="","",PIVOT!E59) -> 1448 | F18: =IF(F8="","",PIVOT!F59) -> 1240 | G18: =IF(G8="","",PIVOT!G59) -> 1467 | H18: =IF(H8="","",PIVOT!H59) -> 1238 | I18: =IF(I8="","",PIVOT!I59) -> 1380 | J18: =IF(J8="","",PIVOT!J59) -> 1128 | K18: =IF(K8="","",PIVOT!K59) -> 1360 | M18: New Student Enrollments | P18: =IF(PIVOT!B19=0,"",PIVOT!B19) -> 1211 | Q18: =IF(PIVOT!C19=0,"",PIVOT!C19) -> 1241 | R18: =IF(PIVOT!D19=0,"",PIVOT!D19) -> 1276 | S18: =IF(PIVOT!E19=0,"",PIVOT!E19) -> 1484 | T18: =IF(PIVOT!F19=0,"",PIVOT!F19) -> 1523 | U18: =IF(PIVOT!G19=0,"",PIVOT!G19) -> 1223 | V18: =IF(PIVOT!H19=0,"",PIVOT!H19) -> 1033 | W18: =IF(PIVOT!I19=0,"",PIVOT!I19) -> 1303 | X18: =IF(PIVOT!J19=0,"",PIVOT!J19) -> 1383 | Y18: =IF(PIVOT!K19=0,"",PIVOT!K19) -> 1354
A19: BSN | B19: =IF(B9="","",PIVOT!B60) -> 1104 | C19: =IF(C9="","",PIVOT!C60) -> 901 | D19: =IF(D9="","",PIVOT!D60) -> 1011 | E19: =IF(E9="","",PIVOT!E60) -> 1203 | F19: =IF(F9="","",PIVOT!F60) -> 745 | G19: =IF(G9="","",PIVOT!G60) -> 1188 | H19: =IF(H9="","",PIVOT!H60) -> 1088 | I19: =IF(I9="","",PIVOT!I60) -> 820 | J19: =IF(J9="","",PIVOT!J60) -> 1004 | K19: =IF(K9="","",PIVOT!K60) -> 930 | M19: % Spaces Filled | P19: =IF(P17="","",(P18/P17)) -> 1.032395567 | Q19: =IF(Q17="","",(Q18/Q17)) -> 1.055272109 | R19: =IF(R17="","",(R18/R17)) -> 1.119298246 | S19: 1.224422442 | T19: 1.127313101 | U19: 1.06533101 | V19: 0.9399454049 | W19: 1.08312552 | X19: 1.177021277 | Y19: 1.170267934
A20: ELM | B20: =IF(B10="","",PIVOT!B61) -> 100 | C20: =IF(C10="","",PIVOT!C61) -> 100 | D20: =IF(D10="","",PIVOT!D61) -> 114 | E20: =IF(E10="","",PIVOT!E61) -> 100 | F20: =IF(F10="","",PIVOT!F61) -> 132 | G20: =IF(G10="","",PIVOT!G61) -> 232 | H20: =IF(H10="","",PIVOT!H61) -> 229 | I20: =IF(I10="","",PIVOT!I61) -> 301 | J20: =IF(J10="","",PIVOT!J61) -> 132 | K20: =IF(K10="","",PIVOT!K61) -> 100 | M20: *NA=not applicable
A21: *NA=not applicable **Since these data represent applications rather than individuals, an increase in qualified applications may not represent equal growth in the number of individuals applying to nursing school. | M21: †2011-2012 and 2012-2013 data may be influenced by the allocation of satellite campus data to another region.
A22: Applications Received for Admission† | M22: Barriers to Program Expansion
B23: Academic Year | P23: Academic Year
B24: 2006-2007 | C24: 2007-2008 | D24: 2008-2009 | E24: 2009-2010 | F24: 2010-2011 | G24: 2011-2012 | H24: 2012-2013 | I24: 2013-2014 | J24: 2014-2015 | K24: 2015-2016 | P24: 2006-2007 | Q24: 2007-2008 | R24: 2008-2009 | S24: 2009-2010 | T24: 2010-2011 | U24: 2011-2012 | V24: 2012-2013 | W24: 2013-2014 | X24: 2014-2015 | Y24: 2015-2016
A25: Qualified Applications | B25: =IF(PIVOT!B17=0,"",PIVOT!B17) -> 2637 | C25: =IF(PIVOT!C17=0,"",PIVOT!C17) -> 2378 | D25: =IF(PIVOT!D17=0,"",PIVOT!D17) -> 2802 | E25: =IF(PIVOT!E17=0,"",PIVOT!E17) -> 2751 | F25: =IF(PIVOT!F17=0,"",PIVOT!F17) -> 2117 | G25: =IF(PIVOT!G17=0,"",PIVOT!G17) -> 2887 | H25: =IF(PIVOT!H17=0,"",PIVOT!H17) -> 2555 | I25: =IF(PIVOT!I17=0,"",PIVOT!I17) -> 2501 | J25: =IF(PIVOT!J17=0,"",PIVOT!J17) -> 2264 | K25: =PIVOT!K17 -> 2390 | M25: Faculty | P25: =IF(PIVOT!M38="","",PIVOT!M38) -> 8 | Q25: =IF(PIVOT!N38="","",PIVOT!N38) -> 7 | R25: =IF(PIVOT!O38="","",PIVOT!O38) -> 7 | S25: =IF(PIVOT!P38="","",PIVOT!P38) -> 8 | T25: =IF(PIVOT!Q38="","",PIVOT!Q38) -> 7 | U25: =IF(PIVOT!R38="","",PIVOT!R38) -> 7 | V25: =IF(PIVOT!S38="","",PIVOT!S38) -> 7 | W25: =IF(PIVOT!T38="","",PIVOT!T38) -> 9 | X25: =IF(PIVOT!U38="","",PIVOT!U38) -> 10 | Y25: =IF(PIVOT!V38="","",PIVOT!V38) -> 7
A26: Enrolled | B26: =IF(B25="","",PIVOT!B19) -> 1211 | C26: =IF(C25="","",PIVOT!C19) -> 1241 | D26: =IF(D25="","",PIVOT!D19) -> 1276 | E26: =IF(E25="","",PIVOT!E19) -> 1484 | F26: =IF(F25="","",PIVOT!F19) -> 1523 | G26: =IF(G25="","",PIVOT!G19) -> 1223 | H26: =IF(H25="","",PIVOT!H19) -> 1033 | I26: =IF(I25="","",PIVOT!I19) -> 1303 | J26: =IF(J25="","",PIVOT!J19) -> 1383 | K26: =IF(K25="","",PIVOT!K19) -> 1354 | M26: Physical Space | P26: =IF(PIVOT!M39="","",PIVOT!M39) -> 6 | Q26: =IF(PIVOT!N39="","",PIVOT!N39) -> 7 | R26: =IF(PIVOT!O39="","",PIVOT!O39) -> 5 | S26: =IF(PIVOT!P39="","",PIVOT!P39) -> 5 | T26: =IF(PIVOT!Q39="","",PIVOT!Q39) -> 3 | U26: =IF(PIVOT!R39="","",PIVOT!R39) -> 5 | V26: =IF(PIVOT!S39="","",PIVOT!S39) -> 5 | W26: =IF(PIVOT!T39="","",PIVOT!T39) -> 6 | X26: =IF(PIVOT!U39="","",PIVOT!U39) -> 6 | Y26: =IF(PIVOT!V39="","",PIVOT!V39) -> 5
A27: Not Accepted | B27: =IF(B25="","",(B25-B26)) -> 1426 | C27: =IF(C25="","",(C25-C26)) -> 1137 | D27: 1526 | E27: 1267 | F27: 594 | G27: 1664 | H27: 1522 | I27: 1198 | J27: 881 | K27: 1036 | M27: Funding | P27: =IF(PIVOT!M40="","",PIVOT!M40) -> 5 | Q27: =IF(PIVOT!N40="","",PIVOT!N40) -> 5 | R27: =IF(PIVOT!O40="","",PIVOT!O40) -> 8 | S27: =IF(PIVOT!P40="","",PIVOT!P40) -> 8 | T27: =IF(PIVOT!Q40="","",PIVOT!Q40) -> 9 | U27: =IF(PIVOT!R40="","",PIVOT!R40) -> 7 | V27: =IF(PIVOT!S40="","",PIVOT!S40) -> 6 | W27: =IF(PIVOT!T40="","",PIVOT!T40) -> 6 | X27: =IF(PIVOT!U40="","",PIVOT!U40) -> 7 | Y27: =IF(PIVOT!V40="","",PIVOT!V40) -> 4
A28: % Qualified Applications Not Accepted | B28: =IF(B27="","",IF(B27<0,"*NA",B27/B25)) -> 0.540766022 | C28: =IF(C27="","",IF(C27<0,"*NA",C27/C25)) -> 0.4781328848 | D28: 0.5446109921 | E28: 0.4605597964 | F28: 0.2805857345 | G28: 0.5763768618 | H28: 0.5956947162 | I28: =IF(I27="","",IF(I27<0,"*NA",I27/I25)) -> 0.4790083966 | J28: =IF(J27="","",IF(J27<0,"*NA",J27/J25)) -> 0.3891342756 | K28: =IF(K27="","",IF(K27<0,"*NA",K27/K25)) -> 0.4334728033 | M28: Clinical Sites | P28: =IF(PIVOT!M41="","",PIVOT!M41) -> 8 | Q28: =IF(PIVOT!N41="","",PIVOT!N41) -> 10 | R28: =IF(PIVOT!O41="","",PIVOT!O41) -> 10 | S28: =IF(PIVOT!P41="","",PIVOT!P41) -> 11 | T28: =IF(PIVOT!Q41="","",PIVOT!Q41) -> 11 | U28: =IF(PIVOT!R41="","",PIVOT!R41) -> 12 | V28: =IF(PIVOT!S41="","",PIVOT!S41) -> 10 | W28: =IF(PIVOT!T41="","",PIVOT!T41) -> 13 | X28: =IF(PIVOT!U41="","",PIVOT!U41) -> 12 | Y28: =IF(PIVOT!V41="","",PIVOT!V41) -> 10
A29: *NA=not applicable **Since these data represent applications rather than individuals, an increase in qualified applications may not represent equal growth in the number of individuals applying to nursing school. | M29: *Data represent the number of schools that reported the resource as a barrier to program expansion. **Blank cells indicated that the applicable information was not requested in the given year.
A36: Data Profile Characteristics | G36: School……………. | H36: =PIVOT!$B$4 -> (All) | N36: County... | O36: =PIVOT!$B$5 -> (All)
A37: Region….………… | B37: =PIVOT!$B$6 -> Southern Border | G37: Degree Offered….. | H37: =PIVOT!$B$7 -> (All) | P37: Public/Private Programs…. | Q37: =PIVOT!$B$8 -> (All)
A38: 1 - Data were reported by school, not by degree program.; 2- Since some nursing schools admit students in more than one program, the number of programs may be greater than the number of schools.
A39: † 2011-2012 and 2012-2013 data may be influenced by the allocation of satellite campus data to another region.
A42: Current and Projected New Student Enrollment† | M42: Student Census Data†
B43: Academic Year | P43: Year
A44: New Student Enrollment | B44: 2006-2007 | C44: 2007-2008 | D44: 2008-2009 | E44: 2009-2010 | F44: 2010-2011 | G44: 2011-2012 | H44: 2012-2013 | I44: 2013-2014 | J44: 2014-2015 | K44: 2015-2016 | M44: Program | P44: 2007 | Q44: 2008 | R44: 2009 | S44: 2010 | T44: 2011 | U44: 2012 | V44: 2013 | W44: 2014 | X44: 2015 | Y44: 2016
A45: Current Enrollment | B45: =IF(PIVOT!B19=0,"",PIVOT!B19) -> 1211 | C45: =IF(PIVOT!C19=0,"",PIVOT!C19) -> 1241 | D45: =IF(PIVOT!D19=0,"",PIVOT!D19) -> 1276 | E45: =IF(PIVOT!E19=0,"",PIVOT!E19) -> 1484 | F45: =IF(PIVOT!F19=0,"",PIVOT!F19) -> 1523 | G45: =IF(PIVOT!G19=0,"",PIVOT!G19) -> 1223 | H45: =IF(PIVOT!H19=0,"",PIVOT!H19) -> 1033 | I45: =IF(PIVOT!I19=0,"",PIVOT!I19) -> 1303 | J45: =IF(PIVOT!J19=0,"",PIVOT!J19) -> 1383 | K45: =IF(PIVOT!K19=0,"",PIVOT!K19) -> 1354 | M45: AD | P45: =IF(PIVOT!B70="","",PIVOT!B70) -> 1104 | Q45: =IF(PIVOT!C70="","",PIVOT!C70) -> 1208 | R45: =IF(PIVOT!D70="","",PIVOT!D70) -> 1063 | S45: =IF(PIVOT!E70="","",PIVOT!E70) -> 1027 | T45: =IF(PIVOT!F70="","",PIVOT!F70) -> 1021 | U45: =IF(PIVOT!G70="","",PIVOT!G70) -> 1049 | V45: =IF(PIVOT!H70="","",PIVOT!H70) -> 949 | W45: =IF(PIVOT!I70="","",PIVOT!I70) -> 982 | X45: =IF(PIVOT!J70="","",PIVOT!J70) -> 964 | Y45: =PIVOT!K70 -> 823
A46: Next Year | B46: =IF(PIVOT!B68=0,"",PIVOT!B68) -> 1219 | C46: =IF(PIVOT!C68=0,"",PIVOT!C68) -> 1182 | D46: =IF(PIVOT!D68=0,"",PIVOT!D68) -> 1665 | E46: =IF(PIVOT!E68=0,"",PIVOT!E68) -> 1768 | F46: =IF(PIVOT!F68=0,"",PIVOT!F68) -> 1237 | G46: =IF(PIVOT!G68=0,"",PIVOT!G68) -> 1271 | H46: =IF(PIVOT!H68=0,"",PIVOT!H68) -> 1276 | I46: =IF(PIVOT!I68=0,"",PIVOT!I68) -> 1276 | J46: =IF(PIVOT!J68=0,"",PIVOT!J68) -> 1350 | K46: =PIVOT!K68 -> 1405 | M46: BSN | P46: =IF(PIVOT!B71="","",PIVOT!B71) -> 1052 | Q46: =IF(PIVOT!C71="","",PIVOT!C71) -> 1062 | R46: =IF(PIVOT!D71="","",PIVOT!D71) -> 1301 | S46: =IF(PIVOT!E71="","",PIVOT!E71) -> 1469 | T46: =IF(PIVOT!F71="","",PIVOT!F71) -> 1084 | U46: =IF(PIVOT!G71="","",PIVOT!G71) -> 1158 | V46: =IF(PIVOT!H71="","",PIVOT!H71) -> 1296 | W46: =IF(PIVOT!I71="","",PIVOT!I71) -> 1159 | X46: =IF(PIVOT!J71="","",PIVOT!J71) -> 1756 | Y46: =PIVOT!K71 -> 1540
A47: In Two Years | B47: =IF(PIVOT!B69=0,"",PIVOT!B69) -> 1289 | C47: =IF(PIVOT!C69=0,"",PIVOT!C69) -> 1155 | D47: =IF(PIVOT!D69=0,"",PIVOT!D69) -> 1631 | E47: =IF(PIVOT!E69=0,"",PIVOT!E69) -> 1778 | F47: =IF(PIVOT!F69=0,"",PIVOT!F69) -> 1243 | G47: =IF(PIVOT!G69=0,"",PIVOT!G69) -> 1276 | H47: =IF(PIVOT!H69=0,"",PIVOT!H69) -> 1259 | I47: =IF(PIVOT!I69=0,"",PIVOT!I69) -> 1322 | J47: =IF(PIVOT!J69=0,"",PIVOT!J69) -> 1345 | K47: =PIVOT!K69 -> 1405 | M47: ELM | P47: =IF(PIVOT!B72="","",PIVOT!B72) -> 43 | Q47: =IF(PIVOT!C72="","",PIVOT!C72) -> 85 | R47: =IF(PIVOT!D72="","",PIVOT!D72) -> 143 | S47: =IF(PIVOT!E72="","",PIVOT!E72) -> 206 | T47: =IF(PIVOT!F72="","",PIVOT!F72) -> 183 | U47: =IF(PIVOT!G72="","",PIVOT!G72) -> 211 | V47: =IF(PIVOT!H72="","",PIVOT!H72) -> 184 | W47: =IF(PIVOT!I72="","",PIVOT!I72) -> 237 | X47: =IF(PIVOT!J72="","",PIVOT!J72) -> 95 | Y47: =PIVOT!K72 -> 112
M48: Total Nursing Students | P48: =IF(PIVOT!B53=0,"",PIVOT!B53) -> 2199 | Q48: =IF(PIVOT!C53=0,"",PIVOT!C53) -> 2355 | R48: =IF(PIVOT!D53=0,"",PIVOT!D53) -> 2507 | S48: =IF(PIVOT!E53=0,"",PIVOT!E53) -> 2702 | T48: =IF(PIVOT!F53=0,"",PIVOT!F53) -> 2288 | U48: =IF(PIVOT!G53=0,"",PIVOT!G53) -> 2418 | V48: =IF(PIVOT!H53=0,"",PIVOT!H53) -> 2429 | W48: =IF(PIVOT!I53=0,"",PIVOT!I53) -> 2378 | X48: =IF(PIVOT!J53=0,"",PIVOT!J53) -> 2815 | Y48: =PIVOT!K53 -> 2475
A49: Student Completions†
B50: Academic Year
B51: 2006-2007 | C51: 2007-2008 | D51: 2008-2009 | E51: 2009-2010 | F51: 2010-2011 | G51: 2011-2012 | H51: 2012-2013 | I51: 2013-2014 | J51: 2014-2015 | K51: 2015-2016 | M51: First Time NCLEX Pass Rates*
A52: Student Completions | B52: =IF(B7="","",PIVOT!B48) -> 788 | C52: =IF(C7="","",PIVOT!C48) -> 864 | D52: =IF(D7="","",PIVOT!D48) -> 1062 | E52: =IF(E7="","",PIVOT!E48) -> 1243 | F52: =IF(F7="","",PIVOT!F48) -> 1125 | G52: =IF(G7="","",PIVOT!G48) -> 1093 | H52: =IF(H7="","",PIVOT!H48) -> 1049 | I52: =IF(I7="","",PIVOT!I48) -> 1047 | J52: =IF(J7="","",PIVOT!J48) -> 1181 | K52: =IF(K7="","",PIVOT!K48) -> 1250 | M52: Program | P52: Academic Year
A53: AD | B53: =IF(B8="","",PIVOT!B99) -> 503 | C53: =IF(C8="","",PIVOT!C99) -> 576 | D53: =IF(D8="","",PIVOT!D99) -> 573 | E53: =IF(E8="","",PIVOT!E99) -> 549 | F53: =IF(F8="","",PIVOT!F99) -> 468 | G53: =IF(G8="","",PIVOT!G99) -> 442 | H53: =IF(H8="","",PIVOT!H99) -> 493 | I53: =IF(I8="","",PIVOT!I99) -> 508 | J53: =IF(J8="","",PIVOT!J99) -> 500 | K53: =PIVOT!K99 -> 493 | P53: 2006-2007 | Q53: 2007-2008 | R53: 2008-2009 | S53: 2009-2010 | T53: 2010-2011 | U53: 2011-2012 | V53: 2012-2013 | W53: 2013-2014 | X53: 2014-2015 | Y53: 2015-2016
A54: BSN | B54: =IF(B9="","",PIVOT!B100) -> 250 | C54: =IF(C9="","",PIVOT!C100) -> 288 | D54: =IF(D9="","",PIVOT!D100) -> 447 | E54: =IF(E9="","",PIVOT!E100) -> 641 | F54: =IF(F9="","",PIVOT!F100) -> 557 | G54: =IF(G9="","",PIVOT!G100) -> 477 | H54: =IF(H9="","",PIVOT!H100) -> 458 | I54: =IF(I9="","",PIVOT!I100) -> 441 | J54: =IF(J9="","",PIVOT!J100) -> 605 | K54: =IF(K9="","",PIVOT!K100) -> 715 | M54: AD | P54: =IF(B8="","",IF(B53=0,"",PIVOT!B65)) -> 0.8698994175 | Q54: =IF(C8="","",IF(C53=0,"",PIVOT!C65)) -> 0.8040245421 | R54: =IF(D8="","",IF(D53=0,"",PIVOT!D65)) -> 0.8451730419 | S54: =IF(E8="","",IF(E53=0,"",PIVOT!E65)) -> 0.8860103627 | T54: =IF(F8="","",IF(F53=0,"",PIVOT!F65)) -> 0.8430232558 | U54: =IF(G8="","",IF(G53=0,"",PIVOT!G65)) -> 0.9239373602 | V54: =IF(H8="","",IF(H53=0,"",PIVOT!H65)) -> 0.88 | W54: =IF(I8="","",IF(I53=0,"",PIVOT!I65)) -> 0.8255608511 | X54: =IF(J8="","",IF(J53=0,"",PIVOT!J65)) -> 0.8752941176 | Y54: =IF(K8="","",IF(K53=0,"",PIVOT!K65)) -> 0.8583877996
A55: ELM | B55: =IF(B10="","",PIVOT!B101) -> 35 | C55: =IF(C10="","",PIVOT!C101) -> 0 | D55: =IF(D10="","",PIVOT!D101) -> 42 | E55: =IF(E10="","",PIVOT!E101) -> 53 | F55: =IF(F10="","",PIVOT!F101) -> 100 | G55: =IF(G10="","",PIVOT!G101) -> 174 | H55: =IF(H10="","",PIVOT!H101) -> 98 | I55: =IF(I10="","",PIVOT!I101) -> 98 | J55: =IF(J10="","",PIVOT!J101) -> 76 | K55: =IF(K10="","",PIVOT!K101) -> 42 | M55: BSN | P55: =IF(B9="","",IF(B54=0,"",PIVOT!B66)) -> 0.9302313953 | Q55: =IF(C9="","",IF(C54=0,"",PIVOT!C66)) -> 0.8864388013 | R55: =IF(D9="","",IF(D54=0,"",PIVOT!D66)) -> 0.9093851133 | S55: =IF(E9="","",IF(E54=0,"",PIVOT!E66)) -> 0.8607843137 | T55: =IF(F9="","",IF(F54=0,"",PIVOT!F66)) -> 0.8736 | U55: =IF(G9="","",IF(G54=0,"",PIVOT!G66)) -> 0.8945736434 | V55: =IF(H9="","",IF(H54=0,"",PIVOT!H66)) -> 0.9147909968 | W55: =IF(I9="","",IF(I54=0,"",PIVOT!I66)) -> 0.9278626186 | X55: =IF(J9="","",IF(J54=0,"",PIVOT!J66)) -> 0.9434276206 | Y55: =IF(K9="","",IF(K54=0,"",PIVOT!K66)) -> 0.9269005848
M56: ELM | P56: =IF(B10="","",IF(B55=0,"",PIVOT!B67)) -> 0.9487 | Q56: =IF(C10="","",IF(C55=0,"",PIVOT!C67)) ->  | R56: =IF(D10="","",IF(D55=0,"",PIVOT!D67)) -> 0.9230769231 | S56: =IF(E10="","",IF(E55=0,"",PIVOT!E67)) -> 0.625 | T56: =IF(F10="","",IF(F55=0,"",PIVOT!F67)) -> 0.8292682927 | U56: =IF(G10="","",IF(G55=0,"",PIVOT!G67)) -> 0.801980198 | V56: =IF(H10="","",IF(H55=0,"",PIVOT!H67)) -> 0.84375 | W56: =IF(I10="","",IF(I55=0,"",PIVOT!I67)) -> 0.719992 | X56: =IF(J10="","",IF(J55=0,"",PIVOT!J67)) -> 0.9166666667 | Y56: =IF(K10="","",IF(K55=0,"",PIVOT!K67)) -> 0
A57: Student Cohort Completion and Retention Data† | M57: *NCLEX pass rates for students who took the exam for the first time in the past five years.
B58: Academic Year | M58: Faculty Data1†
B59: 2006-2007 | C59: 2007-2008 | D59: 2008-2009 | E59: 2009-2010 | F59: 2010-2011 | G59: 2011-2012 | H59: 2012-2013 | I59: 2013-2014 | J59: 2014-2015 | K59: 2015-2016 | P59: Year
A60: Students Scheduled to Complete the Program | B60: =IF(B7="","",PIVOT!B102) -> 820 | C60: =IF(C7="","",PIVOT!C102) -> 926 | D60: =IF(D7="","",PIVOT!D102) -> 1186 | E60: =IF(E7="","",PIVOT!E102) -> 1291 | F60: =IF(F7="","",PIVOT!F102) -> 1065 | G60: =IF(G7="","",PIVOT!G102) -> 1159 | H60: =IF(H7="","",PIVOT!H102) -> 928 | I60: =IF(I7="","",PIVOT!I102) -> 1153 | J60: =IF(J7="","",PIVOT!J102) -> 1207 | K60: =IF(K7="","",PIVOT!K102) -> 1159 | P60: 2007 | Q60: 2008 | R60: 2009 | S60: 2010 | T60: 2011 | U60: 2012 | V60: 2013 | W60: 2014 | X60: 2015 | Y60: 2016
A61: Completed On Time | B61: =IF(B60="","",IF(B60=0,"",PIVOT!B50)) -> 649 | C61: =IF(C60="","",IF(C60=0,"",PIVOT!C50)) -> 712 | D61: =IF(D60="","",IF(D60=0,"",PIVOT!D50)) -> 914 | E61: =IF(E60="","",IF(E60=0,"",PIVOT!E50)) -> 1015 | F61: =IF(F60="","",IF(F60=0,"",PIVOT!F50)) -> 902 | G61: =IF(G60="","",IF(G60=0,"",PIVOT!G50)) -> 989 | H61: =IF(H60="","",IF(H60=0,"",PIVOT!H50)) -> 684 | I61: =IF(I60="","",IF(I60=0,"",PIVOT!I50)) -> 955 | J61: =IF(J60="","",IF(J60=0,"",PIVOT!J50)) -> 1063 | K61: =IF(K60="","",IF(K60=0,"",PIVOT!K50)) -> 867 | M61: Total Faculty | P61: =IF(PIVOT!M30="","",PIVOT!M30) -> 349 | Q61: =IF(PIVOT!N30="","",PIVOT!N30) -> 402 | R61: =IF(PIVOT!O30="","",PIVOT!O30) -> 445 | S61: =IF(PIVOT!P30="","",PIVOT!P30) -> 482 | T61: =IF(PIVOT!Q30="","",PIVOT!Q30) -> 492 | U61: =IF(PIVOT!R30="","",PIVOT!R30) -> 454 | V61: =IF(PIVOT!S30="","",PIVOT!S30) -> 415 | W61: =IF(PIVOT!T30="","",PIVOT!T30) -> 427 | X61: =IF(PIVOT!U30="","",PIVOT!U30) -> 539 | Y61: =IF(PIVOT!V30="","",PIVOT!V30) -> 522
A62: Still Enrolled | B62: =IF(B60="","",IF(B60=0,"",PIVOT!B51)) -> 64 | C62: =IF(C60="","",IF(C60=0,"",PIVOT!C51)) -> 61 | D62: =IF(D60="","",IF(D60=0,"",PIVOT!D51)) -> 100 | E62: =IF(E60="","",IF(E60=0,"",PIVOT!E51)) -> 114 | F62: =IF(F60="","",IF(F60=0,"",PIVOT!F51)) -> 53 | G62: =IF(G60="","",IF(G60=0,"",PIVOT!G51)) -> 49 | H62: =IF(H60="","",IF(H60=0,"",PIVOT!H51)) -> 104 | I62: =IF(I60="","",IF(I60=0,"",PIVOT!I51)) -> 19 | J62: =IF(J60="","",IF(J60=0,"",PIVOT!J51)) -> 38 | K62: =IF(K60="","",IF(K60=0,"",PIVOT!K51)) -> 185 | M62: Full-time | P62: =IF(PIVOT!M26="","",PIVOT!M26) -> 124 | Q62: =IF(PIVOT!N26="","",PIVOT!N26) -> 134 | R62: =IF(PIVOT!O26="","",PIVOT!O26) -> 136 | S62: =IF(PIVOT!P26="","",PIVOT!P26) -> 143 | T62: =IF(PIVOT!Q26="","",PIVOT!Q26) -> 148 | U62: =IF(PIVOT!R26="","",PIVOT!R26) -> 139 | V62: =IF(PIVOT!S26="","",PIVOT!S26) -> 157 | W62: =IF(PIVOT!T26="","",PIVOT!T26) -> 131 | X62: =IF(PIVOT!U26="","",PIVOT!U26) -> 168 | Y62: =IF(PIVOT!V26="","",PIVOT!V26) -> 166
A63: Attrition | B63: =IF(B60="","",IF(B60=0,"",PIVOT!B52)) -> 107 | C63: =IF(C60="","",IF(C60=0,"",PIVOT!C52)) -> 153 | D63: =IF(D60="","",IF(D60=0,"",PIVOT!D52)) -> 172 | E63: =IF(E60="","",IF(E60=0,"",PIVOT!E52)) -> 162 | F63: =IF(F60="","",IF(F60=0,"",PIVOT!F52)) -> 110 | G63: =IF(G60="","",IF(G60=0,"",PIVOT!G52)) -> 121 | H63: =IF(H60="","",IF(H60=0,"",PIVOT!H52)) -> 140 | I63: =IF(I60="","",IF(I60=0,"",PIVOT!I52)) -> 179 | J63: =IF(J60="","",IF(J60=0,"",PIVOT!J52)) -> 106 | K63: =IF(K60="","",IF(K60=0,"",PIVOT!K52)) -> 107 | M63: Part-time | P63: =IF(PIVOT!M27="","",PIVOT!M27) -> 225 | Q63: =IF(PIVOT!N27="","",PIVOT!N27) -> 268 | R63: =IF(PIVOT!O27="","",PIVOT!O27) -> 309 | S63: =IF(PIVOT!P27="","",PIVOT!P27) -> 339 | T63: =IF(PIVOT!Q27="","",PIVOT!Q27) -> 344 | U63: =IF(PIVOT!R27="","",PIVOT!R27) -> 315 | V63: =IF(PIVOT!S27="","",PIVOT!S27) -> 258 | W63: =IF(PIVOT!T27="","",PIVOT!T27) -> 280 | X63: =IF(PIVOT!U27="","",PIVOT!U27) -> 327 | Y63: =IF(PIVOT!V27="","",PIVOT!V27) -> 377
A64: Retention Rate* | B64: =IF(PIVOT!B102="","",IF(B60="","",IF(B60=0,"",((B61)/SUM(B61:B63))))) -> 0.7914634146 | C64: =IF(PIVOT!C102="","",IF(C60="","",IF(C60=0,"",((C61)/SUM(C61:C63))))) -> 0.7688984881 | D64: =IF(PIVOT!D102="","",IF(D60="","",IF(D60=0,"",((D61)/SUM(D61:D63))))) -> 0.7706576728 | E64: =IF(PIVOT!E102="","",IF(E60="","",IF(E60=0,"",((E61)/SUM(E61:E63))))) -> 0.7862122386 | F64: =IF(PIVOT!F102="","",IF(F60="","",IF(F60=0,"",((F61)/SUM(F61:F63))))) -> 0.8469483568 | G64: =IF(PIVOT!G102="","",IF(G60="","",IF(G60=0,"",((G61)/SUM(G61:G63))))) -> 0.8533218292 | H64: =IF(PIVOT!H102="","",IF(H60="","",IF(H60=0,"",((H61)/SUM(H61:H63))))) -> 0.7370689655 | I64: =IF(PIVOT!I102="","",IF(I60="","",IF(I60=0,"",((I61)/SUM(I61:I63))))) -> 0.8282740676 | J64: =IF(PIVOT!J102="","",IF(J60="","",IF(J60=0,"",((J61)/SUM(J61:J63))))) -> 0.8806959403 | K64: =IF(PIVOT!K102="","",IF(K60="","",IF(K60=0,"",((K61)/SUM(K61:K63))))) -> 0.7480586713 | M64: Vacancy Rate** | P64: =IF(P61="","",P65/(P61+P65)) -> 0.05675675676 | Q64: 0.03365384615 | R64: 0.02197802198 | S64: 0.02231237323 | T64: 0.0390625 | U64: 0.04421052632 | V64: 0.02582159624 | W64: =IF(W61="","",W65/(W61+W65)) -> 0.108559499 | X64: =IF(X61="","",X65/(X61+X65)) -> 0.06097560976 | Y64: =IF(Y61="","",Y65/(Y61+Y65)) -> 0.1182432432
A65: Attrition Rate | B65: =IF(PIVOT!B102="","",IF(B60="","",IF(B60=0,"",B63/SUM(B61:B63)))) -> 0.1304878049 | C65: =IF(PIVOT!C102="","",IF(C60="","",IF(C60=0,"",C63/SUM(C61:C63)))) -> 0.1652267819 | D65: =IF(PIVOT!D102="","",IF(D60="","",IF(D60=0,"",D63/SUM(D61:D63)))) -> 0.1450252951 | E65: =IF(PIVOT!E102="","",IF(E60="","",IF(E60=0,"",E63/SUM(E61:E63)))) -> 0.1254841208 | F65: =IF(PIVOT!F102="","",IF(F60="","",IF(F60=0,"",F63/SUM(F61:F63)))) -> 0.103286385 | G65: =IF(PIVOT!G102="","",IF(G60="","",IF(G60=0,"",G63/SUM(G61:G63)))) -> 0.1044003451 | H65: =IF(PIVOT!H102="","",IF(H60="","",IF(H60=0,"",H63/SUM(H61:H63)))) -> 0.150862069 | I65: =IF(PIVOT!I102="","",IF(I60="","",IF(I60=0,"",I63/SUM(I61:I63)))) -> 0.1552471813 | J65: =IF(PIVOT!J102="","",IF(J60="","",IF(J60=0,"",J63/SUM(J61:J63)))) -> 0.08782104391 | K65: =IF(PIVOT!K102="","",IF(K60="","",IF(K60=0,"",K63/SUM(K61:K63)))) -> 0.09232096635 | M65: Vacancies | P65: =IF(P61="","",PIVOT!M28) -> 21 | Q65: =IF(Q61="","",PIVOT!N28) -> 14 | R65: =IF(R61="","",PIVOT!O28) -> 10 | S65: =IF(S61="","",PIVOT!P28) -> 11 | T65: =IF(T61="","",PIVOT!Q28) -> 20 | U65: =IF(U61="","",PIVOT!R28) -> 21 | V65: =IF(V61="","",PIVOT!S28) -> 11 | W65: =IF(W61="","",PIVOT!T28) -> 52 | X65: =IF(X61="","",PIVOT!U28) -> 35 | Y65: =IF(Y61="","",PIVOT!V28) -> 70
A66: *Retention rate = (students who completed the program on-time) / (enrollment) | M66: In 2006, 2007, 2013, 2014, 2015 and 2016 the sum of full- and part-time faculty did not equal the total faculty reported.
M67: **Vacancy rate = number of vacancies/(total faculty + number of vacancies)
A68: Factors Impacting Attrition1
B69: Academic Year | M69: Faculty Education1†
A70: Factors | B70: 2006-2007 | C70: 2007-2008 | D70: 2008-2009 | E70: 2009-2010 | F70: 2010-2011 | G70: 2011-2012 | H70: 2012-2013 | I70: 2013-2014 | J70: 2014-2015 | K70: 2015-2016 | P70: Year
A71: Academic | B71: =IF(PIVOT!M33="","",PIVOT!M33) -> 1.5 | C71: =IF(PIVOT!N33="","",PIVOT!N33) -> 1.583333333 | D71: =IF(PIVOT!O33="","",PIVOT!O33) -> 1.636363636 | E71: =IF(PIVOT!P33="","",PIVOT!P33) -> 1.384615385 | F71: =IF(PIVOT!Q33="","",PIVOT!Q33) -> 1.615384615 | G71: =IF(PIVOT!R33="","",PIVOT!R33) -> 1.5 | H71: =IF(PIVOT!S33="","",PIVOT!S33) -> 1.384615385 | I71: =IF(PIVOT!T33="","",PIVOT!T33) -> 1.636363636 | J71: =IF(PIVOT!U33="","",PIVOT!U33) -> 1.538461538 | K71: =IF(PIVOT!V33="","",PIVOT!V33) -> 1.727272727 | M71: Highest Degree Held | P71: 2007 | Q71: 2008 | R71: 2009 | S71: 2010 | T71: 2011 | U71: 2012 | V71: 2013 | W71: 2014 | X71: 2015 | Y71: 2016
A72: Family or Work | B72: =IF(PIVOT!M32="","",PIVOT!M32) -> 2 | C72: =IF(PIVOT!N32="","",PIVOT!N32) -> 2.333333333 | D72: =IF(PIVOT!O32="","",PIVOT!O32) -> 2.666666667 | E72: =IF(PIVOT!P32="","",PIVOT!P32) -> 2.230769231 | F72: =IF(PIVOT!Q32="","",PIVOT!Q32) -> 1.692307692 | G72: =IF(PIVOT!R32="","",PIVOT!R32) -> 2.090909091 | H72: =IF(PIVOT!S32="","",PIVOT!S32) -> 2.083333333 | I72: =IF(PIVOT!T32="","",PIVOT!T32) -> 2.5 | J72: =IF(PIVOT!U32="","",PIVOT!U32) -> 1.923076923 | K72: =IF(PIVOT!V32="","",PIVOT!V32) -> 2 | M72: Associate's degree | T72: =IF(F$7="","",IF(PIVOT!Q48="","",PIVOT!Q48)) -> 7 | U72: =IF(G$7="","",IF(PIVOT!R48="","",PIVOT!R48)) -> 3 | V72: =IF(H$7="","",IF(PIVOT!S48="","",PIVOT!S48)) -> 2 | W72: =IF(I$7="","",IF(PIVOT!T48="","",PIVOT!T48)) -> 1 | X72: =IF(J$7="","",IF(PIVOT!U48="","",PIVOT!U48)) -> 17 | Y72: =IF(PIVOT!V48="","",PIVOT!V48) -> 2
A73: Financial Need | B73: =IF(PIVOT!M31="","",PIVOT!M31) -> 2.583333333 | C73: =IF(PIVOT!N31="","",PIVOT!N31) -> 2.75 | D73: =IF(PIVOT!O31="","",PIVOT!O31) -> 2.909090909 | E73: =IF(PIVOT!P31="","",PIVOT!P31) -> 2.923076923 | F73: =IF(PIVOT!Q31="","",PIVOT!Q31) -> 2.769230769 | G73: =IF(PIVOT!R31="","",PIVOT!R31) -> 4 | H73: =IF(PIVOT!S31="","",PIVOT!S31) -> 3.333333333 | I73: =IF(PIVOT!T31="","",PIVOT!T31) -> 2.666666667 | J73: =IF(PIVOT!U31="","",PIVOT!U31) -> 2.833333333 | K73: =IF(PIVOT!V31="","",PIVOT!V31) -> 3.363636364 | M73: Bachelor's degree | T73: =IF(F$7="","",IF(PIVOT!Q49="","",PIVOT!Q49)) -> 103 | U73: =IF(G$7="","",IF(PIVOT!R49="","",PIVOT!R49)) -> 81 | V73: =IF(H$7="","",IF(PIVOT!S49="","",PIVOT!S49)) -> 73 | W73: =IF(I$7="","",IF(PIVOT!T49="","",PIVOT!T49)) -> 75 | X73: =IF(J$7="","",IF(PIVOT!U49="","",PIVOT!U49)) -> 102 | Y73: =IF(PIVOT!V49="","",PIVOT!V49) -> 157
A74: Clinical Failure | B74: =IF(PIVOT!M36="","",PIVOT!M36) -> 2.083333333 | C74: =IF(PIVOT!N36="","",PIVOT!N36) -> 2.666666667 | D74: =IF(PIVOT!O36="","",PIVOT!O36) -> 3.076923077 | E74: =IF(PIVOT!P36="","",PIVOT!P36) -> 2.923076923 | F74: =IF(PIVOT!Q36="","",PIVOT!Q36) -> 3.153846154 | G74: =IF(PIVOT!R36="","",PIVOT!R36) -> 3.4 | H74: =IF(PIVOT!S36="","",PIVOT!S36) -> 3.666666667 | I74: =IF(PIVOT!T36="","",PIVOT!T36) -> 3.5 | J74: =IF(PIVOT!U36="","",PIVOT!U36) -> 3.454545455 | K74: =IF(PIVOT!V36="","",PIVOT!V36) -> 4 | M74: Master's degree | T74: =IF(F$7="","",IF(PIVOT!Q50="","",PIVOT!Q50)) -> 303 | U74: =IF(G$7="","",IF(PIVOT!R50="","",PIVOT!R50)) -> 284 | V74: =IF(H$7="","",IF(PIVOT!S50="","",PIVOT!S50)) -> 269 | W74: =IF(I$7="","",IF(PIVOT!T50="","",PIVOT!T50)) -> 254 | X74: =IF(J$7="","",IF(PIVOT!U50="","",PIVOT!U50)) -> 272 | Y74: =IF(PIVOT!V50="","",PIVOT!V50) -> 275
A75: Changed Major | B75: =IF(PIVOT!M34="","",PIVOT!M34) -> 2.75 | C75: =IF(PIVOT!N34="","",PIVOT!N34) -> 4.333333333 | D75: =IF(PIVOT!O34="","",PIVOT!O34) -> 4.8 | E75: =IF(PIVOT!P34="","",PIVOT!P34) -> 3.846153846 | F75: =IF(PIVOT!Q34="","",PIVOT!Q34) -> 3.384615385 | G75: =IF(PIVOT!R34="","",PIVOT!R34) -> 3.5 | H75: =IF(PIVOT!S34="","",PIVOT!S34) -> 4 | I75: =IF(PIVOT!T34="","",PIVOT!T34) -> 3.222222222 | J75: =IF(PIVOT!U34="","",PIVOT!U34) -> 3.1 | K75: =IF(PIVOT!V34="","",PIVOT!V34) -> 3.9 | M75: Doctoral degree | T75: =IF(F$7="","",IF(PIVOT!Q51="","",PIVOT!Q51)) -> 76 | U75: =IF(G$7="","",IF(PIVOT!R51="","",PIVOT!R51)) -> 64 | V75: =IF(H$7="","",IF(PIVOT!S51="","",PIVOT!S51)) -> 61 | W75: =IF(I$7="","",IF(PIVOT!T51="","",PIVOT!T51)) -> 79 | X75: =IF(J$7="","",IF(PIVOT!U51="","",PIVOT!U51)) -> 101 | Y75: =IF(PIVOT!V51="","",PIVOT!V51) -> 109
A76: Transfer Student | B76: =IF(PIVOT!M35="","",PIVOT!M35) -> 2.333333333 | C76: =IF(PIVOT!N35="","",PIVOT!N35) -> 4.333333333 | D76: =IF(PIVOT!O35="","",PIVOT!O35) -> 6.111111111 | E76: =IF(PIVOT!P35="","",PIVOT!P35) -> 4.538461538 | F76: =IF(PIVOT!Q35="","",PIVOT!Q35) -> 4.153846154 | G76: =IF(PIVOT!R35="","",PIVOT!R35) -> 4.5 | H76: =IF(PIVOT!S35="","",PIVOT!S35) -> 4.125 | I76: =IF(PIVOT!T35="","",PIVOT!T35) -> 4.166666667 | J76: =IF(PIVOT!U35="","",PIVOT!U35) -> 4.5 | K76: =IF(PIVOT!V35="","",PIVOT!V35) -> 5.75 | M76: Total | T76: =IF(F$7="","",IF(T61="","",SUM(T72:T75))) -> 489 | U76: 432 | V76: 405 | W76: 409 | X76: 492 | Y76: 543
A77: *The lower the value, the greater the impact on attrition. | M77: *Blank cells indicated that the applicable information was not requested in the given year.
A78: Data Profile Characteristics | G78: School……………. | H78: =PIVOT!$B$4 -> (All) | N78: County... | O78: =PIVOT!$B$5 -> (All)
A79: Region….………… | B79: =PIVOT!$B$6 -> Southern Border | G79: Degree Offered….. | H79: =PIVOT!$B$7 -> (All) | P79: Public/Private Programs…. | Q79: =PIVOT!$B$8 -> (All)
A80: 1 - Data were reported by school, not by degree program; † 2011-2012 and 2012-2013 data may be influenced by the allocation of satellite campus data to another region.
A81: Newly Enrolled Nursing Students
A83: Distribution of Students by Ethnicity, Gender and Age2†
B85: Raw Data | M85: Percentages (excludes unknowns)
B86: Academic Year | M86: Academic Year
A87: Ethnicity | B87: 2006-2007 | C87: 2007-2008 | D87: 2008-2009 | E87: 2009-2010 | F87: 2010-2011 | G87: 2011-2012 | H87: 2012-2013 | I87: 2013-2014 | J87: 2014-2015 | K87: 2015-2016 | M87: 2006-2007 | N87: 2007-2008 | O87: 2008-2009 | P87: 2009-2010 | Q87: 2010-2011 | R87: 2011-2012 | S87: 2012-2013 | T87: 2013-2014 | U87: 2014-2015 | V87: 2015-2016
A88: Native American | B88: =IF(PIVOT!B28=0,"",PIVOT!B28) -> 13 | C88: =IF(PIVOT!C28=0,"",PIVOT!C28) -> 6 | D88: =IF(PIVOT!D28=0,"",PIVOT!D28) -> 11 | E88: =IF(PIVOT!E28=0,"",PIVOT!E28) -> 9 | F88: =IF(PIVOT!F28=0,"",PIVOT!F28) -> 8 | G88: =IF(PIVOT!G28=0,"",PIVOT!G28) -> 7 | H88: =IF(PIVOT!H28=0,"",PIVOT!H28) -> 15 | I88: =IF(PIVOT!I28=0,"",PIVOT!I28) -> 3 | J88: =IF(PIVOT!J28=0,"",PIVOT!J28) -> 6 | K88: =IF(PIVOT!K28=0,"",PIVOT!K28) -> 4 | M88: =IF(B88="","",B88/SUM(B$88:B$94)) -> 0.01169064748 | N88: 0.005145797599 | O88: 0.009174311927 | P88: 0.006569343066 | Q88: 0.005797101449 | R88: 0.006227758007 | S88: 0.01541623844 | T88: 0.002394253791 | U88: 0.004552352049 | V88: 0.003074558032
A89: Asian | B89: =IF(PIVOT!B29=0,"",PIVOT!B29) -> 100 | C89: =IF(PIVOT!C29=0,"",PIVOT!C29) -> 123 | D89: =IF(PIVOT!D29=0,"",PIVOT!D29) -> 152 | E89: =IF(PIVOT!E29=0,"",PIVOT!E29) -> 199 | F89: =IF(PIVOT!F29=0,"",PIVOT!F29) -> 161 | G89: =IF(PIVOT!G29=0,"",PIVOT!G29) -> 214 | H89: =IF(PIVOT!H29=0,"",PIVOT!H29) -> 165 | I89: =IF(PIVOT!I29=0,"",PIVOT!I29) -> 158 | J89: =IF(PIVOT!J29=0,"",PIVOT!J29) -> 168 | K89: =IF(PIVOT!K29=0,"",PIVOT!K29) -> 146 | M89: =IF(B89="","",B89/SUM(B$88:B$94)) -> 0.08992805755 | N89: =IF(C89="","",C89/SUM(C$88:C$94)) -> 0.1054888508 | O89: 0.1267723103 | P89: 0.1452554745 | Q89: 0.1166666667 | R89: 0.1903914591 | S89: 0.1695786228 | T89: 0.1260973663 | U89: 0.1274658574 | V89: 0.1122213682
A90: African American | B90: =IF(PIVOT!B30=0,"",PIVOT!B30) -> 64 | C90: =IF(PIVOT!C30=0,"",PIVOT!C30) -> 50 | D90: =IF(PIVOT!D30=0,"",PIVOT!D30) -> 51 | E90: =IF(PIVOT!E30=0,"",PIVOT!E30) -> 68 | F90: =IF(PIVOT!F30=0,"",PIVOT!F30) -> 65 | G90: =IF(PIVOT!G30=0,"",PIVOT!G30) -> 38 | H90: =IF(PIVOT!H30=0,"",PIVOT!H30) -> 45 | I90: =IF(PIVOT!I30=0,"",PIVOT!I30) -> 59 | J90: =IF(PIVOT!J30=0,"",PIVOT!J30) -> 45 | K90: =IF(PIVOT!K30=0,"",PIVOT!K30) -> 55 | M90: 0.05755395683 | N90: 0.04288164666 | O90: 0.04253544621 | P90: 0.0496350365 | Q90: 0.04710144928 | R90: 0.03380782918 | S90: 0.04624871531 | T90: 0.04708699122 | U90: 0.03414264036 | V90: 0.04227517294
A91: Filipino | B91: =IF(PIVOT!B31=0,"",PIVOT!B31) -> 246 | C91: =IF(PIVOT!C31=0,"",PIVOT!C31) -> 240 | D91: =IF(PIVOT!D31=0,"",PIVOT!D31) -> 234 | E91: =IF(PIVOT!E31=0,"",PIVOT!E31) -> 214 | F91: =IF(PIVOT!F31=0,"",PIVOT!F31) -> 232 | G91: =IF(PIVOT!G31=0,"",PIVOT!G31) -> 137 | H91: =IF(PIVOT!H31=0,"",PIVOT!H31) -> 102 | I91: =IF(PIVOT!I31=0,"",PIVOT!I31) -> 140 | J91: =IF(PIVOT!J31=0,"",PIVOT!J31) -> 112 | K91: =IF(PIVOT!K31=0,"",PIVOT!K31) -> 196 | M91: 0.2212230216 | N91: 0.2058319039 | O91: 0.1951626355 | P91: 0.1562043796 | Q91: 0.168115942 | R91: 0.121886121 | S91: 0.1048304214 | T91: 0.1117318436 | U91: 0.08497723824 | V91: 0.1506533436
A92: Hispanic | B92: =IF(PIVOT!B32=0,"",PIVOT!B32) -> 206 | C92: =IF(PIVOT!C32=0,"",PIVOT!C32) -> 211 | D92: =IF(PIVOT!D32=0,"",PIVOT!D32) -> 198 | E92: =IF(PIVOT!E32=0,"",PIVOT!E32) -> 250 | F92: =IF(PIVOT!F32=0,"",PIVOT!F32) -> 249 | G92: =IF(PIVOT!G32=0,"",PIVOT!G32) -> 158 | H92: =IF(PIVOT!H32=0,"",PIVOT!H32) -> 159 | I92: =IF(PIVOT!I32=0,"",PIVOT!I32) -> 242 | J92: =IF(PIVOT!J32=0,"",PIVOT!J32) -> 262 | K92: =IF(PIVOT!K32=0,"",PIVOT!K32) -> 247 | M92: 0.1852517986 | N92: 0.1809605489 | O92: 0.1651376147 | P92: 0.1824817518 | Q92: 0.1804347826 | R92: 0.140569395 | S92: 0.1634121274 | T92: 0.1931364725 | U92: 0.1987860395 | V92: 0.1898539585
A93: White | B93: =IF(PIVOT!B33=0,"",PIVOT!B33) -> 483 | C93: =IF(PIVOT!C33=0,"",PIVOT!C33) -> 536 | D93: =IF(PIVOT!D33=0,"",PIVOT!D33) -> 553 | E93: =IF(PIVOT!E33=0,"",PIVOT!E33) -> 630 | F93: =IF(PIVOT!F33=0,"",PIVOT!F33) -> 665 | G93: =IF(PIVOT!G33=0,"",PIVOT!G33) -> 570 | H93: =IF(PIVOT!H33=0,"",PIVOT!H33) -> 487 | I93: =IF(PIVOT!I33=0,"",PIVOT!I33) -> 593 | J93: =IF(PIVOT!J33=0,"",PIVOT!J33) -> 615 | K93: =IF(PIVOT!K33=0,"",PIVOT!K33) -> 572 | M93: =IF(B93="","",B93/SUM(B$88:B$94)) -> 0.434352518 | N93: 0.4596912521 | O93: 0.4612176814 | P93: 0.4598540146 | Q93: 0.481884058 | R93: 0.5071174377 | S93: 0.5005138746 | T93: 0.473264166 | U93: 0.466616085 | V93: 0.4396617986
A94: Other race | I94: =IF(PIVOT!I19="","",PIVOT!I34) -> 58 | J94: =IF(PIVOT!J19="","",PIVOT!J34) -> 110 | K94: =IF(PIVOT!K19="","",PIVOT!K34) -> 81 | T94: 0.04628890662 | U94: 0.08345978756 | V94: 0.06225980015
A95: Unknown race | B95: =IF(PIVOT!B19-(SUM(B88:B94))<0.01,"",PIVOT!B19-(SUM(B88:B94))) -> 99 | C95: =IF(PIVOT!C19-(SUM(C88:C94))<0.01,"",PIVOT!C19-(SUM(C88:C94))) -> 75 | D95: =IF(PIVOT!D19-(SUM(D88:D94))<0.01,"",PIVOT!D19-(SUM(D88:D94))) -> 77 | E95: =IF(PIVOT!E19-(SUM(E88:E94))<0.01,"",PIVOT!E19-(SUM(E88:E94))) -> 114 | F95: =IF(PIVOT!F19-(SUM(F88:F94))<0.01,"",PIVOT!F19-(SUM(F88:F94))) -> 143 | G95: =IF(PIVOT!G19-(SUM(G88:G94))<0.01,"",PIVOT!G19-(SUM(G88:G94))) -> 99 | H95: =IF(PIVOT!H19-(SUM(H88:H94))<0.01,"",PIVOT!H19-(SUM(H88:H94))) -> 60 | I95: =IF(PIVOT!I19-(SUM(I88:I94))<0.01,"",PIVOT!I19-(SUM(I88:I94))) -> 50 | J95: =IF(PIVOT!J19-(SUM(J88:J94))<0.01,"",PIVOT!J19-(SUM(J88:J94))) -> 65 | K95: =IF(PIVOT!K19-(SUM(K88:K94))<0.01,"",PIVOT!K19-(SUM(K88:K94))) -> 53
A96: TOTAL | B96: =IF(SUM(B88:B95)=0,"",SUM(B88:B95)) -> 1211 | C96: =IF(SUM(C88:C95)=0,"",SUM(C88:C95)) -> 1241 | D96: =IF(SUM(D88:D95)=0,"",SUM(D88:D95)) -> 1276 | E96: 1484 | F96: =IF(SUM(F88:F95)=0,"",SUM(F88:F95)) -> 1523 | G96: 1223 | H96: 1033 | I96: =IF(SUM(I88:I95)=0,"",SUM(I88:I95)) -> 1303 | J96: =IF(SUM(J88:J95)=0,"",SUM(J88:J95)) -> 1383 | K96: =IF(SUM(K88:K95)=0,"",SUM(K88:K95)) -> 1354 | M96: =IF(SUM(M88:M94)=0,"",SUM(M88:M94)) -> 1 | N96: =IF(SUM(N88:N95)=0,"",SUM(N88:N95)) -> 1 | O96: =IF(SUM(O88:O95)=0,"",SUM(O88:O95)) -> 1 | P96: =IF(SUM(P88:P95)=0,"",SUM(P88:P95)) -> 1 | Q96: 1 | R96: =IF(SUM(R88:R95)=0,"",SUM(R88:R95)) -> 1 | S96: =IF(SUM(S88:S95)=0,"",SUM(S88:S95)) -> 1 | T96: 1 | U96: 1 | V96: 1
A97: Ethnic Minorities* | B97: =IF(B96="","",SUM(B88:B92)+B94) -> 629 | C97: =IF(C96="","",SUM(C88:C92)+C94) -> 630 | D97: 646 | E97: 740 | F97: 715 | G97: 554 | H97: 486 | I97: 660 | J97: =IF(J96="","",SUM(J88:J92)+J94) -> 703 | K97: =IF(K96="","",SUM(K88:K92)+K94) -> 729 | M97: =IF(B96="","",IF(B97="","",B97/SUM(B88:B94))) -> 0.565647482 | N97: 0.5403087479 | O97: 0.5387823186 | P97: 0.5401459854 | Q97: 0.518115942 | R97: 0.4928825623 | S97: 0.4994861254 | T97: 0.526735834 | U97: 0.533383915 | V97: 0.5603382014
A98: Gender
A99: Female | B99: =IF(PIVOT!B35=0,"",PIVOT!B35) -> 1012 | C99: =IF(PIVOT!C35=0,"",PIVOT!C35) -> 986 | D99: =IF(PIVOT!D35=0,"",PIVOT!D35) -> 1066 | E99: =IF(PIVOT!E35=0,"",PIVOT!E35) -> 1177 | F99: =IF(PIVOT!F35=0,"",PIVOT!F35) -> 1198 | G99: =IF(PIVOT!G35=0,"",PIVOT!G35) -> 951 | H99: =IF(PIVOT!H35=0,"",PIVOT!H35) -> 797 | I99: =IF(PIVOT!I35=0,"",PIVOT!I35) -> 1049 | J99: =IF(PIVOT!J35=0,"",PIVOT!J35) -> 1113 | K99: =IF(PIVOT!K35=0,"",PIVOT!K35) -> 1096 | M99: =IF(B99="","",B99/SUM(B$99:B$100)) -> 0.8356729975 | N99: 0.8029315961 | O99: 0.8354231975 | P99: 0.7979661017 | Q99: 0.7876397107 | R99: 0.7944862155 | S99: 0.7722868217 | T99: 0.8050652341 | U99: 0.8047722343 | V99: 0.8094534712
A100: Male | B100: =IF(PIVOT!B36=0,"",PIVOT!B36) -> 199 | C100: =IF(PIVOT!C36=0,"",PIVOT!C36) -> 242 | D100: =IF(PIVOT!D36=0,"",PIVOT!D36) -> 210 | E100: =IF(PIVOT!E36=0,"",PIVOT!E36) -> 298 | F100: =IF(PIVOT!F36=0,"",PIVOT!F36) -> 323 | G100: =IF(PIVOT!G36=0,"",PIVOT!G36) -> 246 | H100: =IF(PIVOT!H36=0,"",PIVOT!H36) -> 235 | I100: =IF(PIVOT!I36=0,"",PIVOT!I36) -> 254 | J100: =IF(PIVOT!J36=0,"",PIVOT!J36) -> 270 | K100: =IF(PIVOT!K36=0,"",PIVOT!K36) -> 258 | M100: 0.1643270025 | N100: 0.1970684039 | O100: 0.1645768025 | P100: 0.2020338983 | Q100: 0.2123602893 | R100: 0.2055137845 | S100: 0.2277131783 | T100: 0.1949347659 | U100: 0.1952277657 | V100: 0.1905465288
A101: Unknown gender | B101: =IF((PIVOT!B19-SUM(B99:B100))<0.01,"",PIVOT!B19-(SUM(B99:B100))) ->  | C101: =IF((PIVOT!C19-SUM(C99:C100))<0.01,"",PIVOT!C19-(SUM(C99:C100))) -> 13 | D101: =IF((PIVOT!D19-SUM(D99:D100))<0.01,"",PIVOT!D19-(SUM(D99:D100))) ->  | E101: =IF((PIVOT!E19-SUM(E99:E100))<0.01,"",PIVOT!E19-(SUM(E99:E100))) -> 9 | F101: =IF((PIVOT!F19-SUM(F99:F100))<0.01,"",PIVOT!F19-(SUM(F99:F100))) -> 2 | G101: =IF((PIVOT!G19-SUM(G99:G100))<0.01,"",PIVOT!G19-(SUM(G99:G100))) -> 26 | H101: =IF((PIVOT!H19-SUM(H99:H100))<0.01,"",PIVOT!H19-(SUM(H99:H100))) -> 1 | I101: =IF((PIVOT!I19-SUM(I99:I100))<0.01,"",PIVOT!I19-(SUM(I99:I100))) ->  | J101: =IF((PIVOT!J19-SUM(J99:J100))<0.01,"",PIVOT!J19-(SUM(J99:J100))) ->  | K101: =IF((PIVOT!K19-SUM(K99:K100))<0.01,"",PIVOT!K19-(SUM(K99:K100))) -> 
A102: TOTAL | B102: =IF(SUM(B99:B101)=0,"",SUM(B99:B101)) -> 1211 | C102: 1241 | D102: 1276 | E102: 1484 | F102: 1523 | G102: 1223 | H102: 1033 | I102: 1303 | J102: =IF(SUM(J99:J101)=0,"",SUM(J99:J101)) -> 1383 | K102: =IF(SUM(K99:K101)=0,"",SUM(K99:K101)) -> 1354 | M102: =IF(B102="","",SUM(M99:M100)) -> 1 | N102: 1 | O102: 1 | P102: 1 | Q102: 1 | R102: 1 | S102: 1 | T102: 1 | U102: 1 | V102: 1
A103: Age
A104: Age 18-25 | B104: =IF(PIVOT!B73=0,"",PIVOT!B73) ->  | C104: =IF(PIVOT!C73=0,"",PIVOT!C73) ->  | D104: =IF(PIVOT!D73=0,"",PIVOT!D73) ->  | E104: =IF(PIVOT!E73=0,"",PIVOT!E73) ->  | F104: =IF(PIVOT!F73=0,"",PIVOT!F73) ->  | G104: =IF(PIVOT!G73=0,"",PIVOT!G73) ->  | H104: =IF(PIVOT!H73=0,"",PIVOT!H73) ->  | I104: =IF(PIVOT!I73=0,"",PIVOT!I73) ->  | J104: =IF(PIVOT!J73=0,"",PIVOT!J73) ->  | K104: =IF(PIVOT!K73=0,"",PIVOT!K73) ->  | M104: =IF(B104="","",B104/(SUM(B$104:B$108)+SUM(B$110:B$115))) ->  | P104: =IF(E104="","",E104/(SUM(E$104:E$108)+SUM(E$110:E$115))) ->  | S104: =IF(H104="","",H104/(SUM(H$104:H$108)+SUM(H$110:H$115))) -> 
A105: Age 26-35 | B105: =IF(PIVOT!B74=0,"",PIVOT!B74) ->  | C105: =IF(PIVOT!C74=0,"",PIVOT!C74) ->  | D105: =IF(PIVOT!D74=0,"",PIVOT!D74) ->  | E105: =IF(PIVOT!E74=0,"",PIVOT!E74) ->  | F105: =IF(PIVOT!F74=0,"",PIVOT!F74) ->  | G105: =IF(PIVOT!G74=0,"",PIVOT!G74) ->  | H105: =IF(PIVOT!H74=0,"",PIVOT!H74) ->  | I105: =IF(PIVOT!I74=0,"",PIVOT!I74) ->  | J105: =IF(PIVOT!J74=0,"",PIVOT!J74) ->  | K105: =IF(PIVOT!K74=0,"",PIVOT!K74) -> 
A106: Age 36-45 | B106: =IF(PIVOT!B75=0,"",PIVOT!B75) ->  | C106: =IF(PIVOT!C75=0,"",PIVOT!C75) ->  | D106: =IF(PIVOT!D75=0,"",PIVOT!D75) ->  | E106: =IF(PIVOT!E75=0,"",PIVOT!E75) ->  | F106: =IF(PIVOT!F75=0,"",PIVOT!F75) ->  | G106: =IF(PIVOT!G75=0,"",PIVOT!G75) ->  | H106: =IF(PIVOT!H75=0,"",PIVOT!H75) ->  | I106: =IF(PIVOT!I75=0,"",PIVOT!I75) ->  | J106: =IF(PIVOT!J75=0,"",PIVOT!J75) ->  | K106: =IF(PIVOT!K75=0,"",PIVOT!K75) -> 
A107: Age 46-55 | B107: =IF(PIVOT!B76=0,"",PIVOT!B76) ->  | C107: =IF(PIVOT!C76=0,"",PIVOT!C76) ->  | D107: =IF(PIVOT!D76=0,"",PIVOT!D76) ->  | E107: =IF(PIVOT!E76=0,"",PIVOT!E76) ->  | F107: =IF(PIVOT!F76=0,"",PIVOT!F76) ->  | G107: =IF(PIVOT!G76=0,"",PIVOT!G76) ->  | H107: =IF(PIVOT!H76=0,"",PIVOT!H76) ->  | I107: =IF(PIVOT!I76=0,"",PIVOT!I76) ->  | J107: =IF(PIVOT!J76=0,"",PIVOT!J76) ->  | K107: =IF(PIVOT!K76=0,"",PIVOT!K76) -> 
A108: Age 56+ | B108: =IF(PIVOT!B77=0,"",PIVOT!B77) ->  | C108: =IF(PIVOT!C77=0,"",PIVOT!C77) ->  | D108: =IF(PIVOT!D77=0,"",PIVOT!D77) ->  | E108: =IF(PIVOT!E77=0,"",PIVOT!E77) ->  | F108: =IF(PIVOT!F77=0,"",PIVOT!F77) ->  | G108: =IF(PIVOT!G77=0,"",PIVOT!G77) ->  | H108: =IF(PIVOT!H77=0,"",PIVOT!H77) ->  | I108: =IF(PIVOT!I77=0,"",PIVOT!I77) ->  | J108: =IF(PIVOT!J77=0,"",PIVOT!J77) ->  | K108: =IF(PIVOT!K77=0,"",PIVOT!K77) -> 
A109: Unknown age | G109: =IF(PIVOT!G78=0,"",PIVOT!G78) ->  | H109: =IF(PIVOT!H78=0,"",PIVOT!H78) ->  | I109: =IF(PIVOT!I78=0,"",PIVOT!I78) ->  | J109: =IF(PIVOT!J78=0,"",PIVOT!J78) ->  | K109: =IF(PIVOT!K78=0,"",PIVOT!K78) ->  | P109: =IF(E109="","",E109/SUM(E$104:E$116)) -> 
A110: Age 18-25*** | B110: =IF(PIVOT!B79=0,"",PIVOT!B79) -> 522 | C110: =IF(PIVOT!C79=0,"",PIVOT!C79) -> 527 | D110: =IF(PIVOT!D79=0,"",PIVOT!D79) -> 564 | E110: =IF(PIVOT!E79=0,"",PIVOT!E79) -> 551 | F110: =IF(PIVOT!F79=0,"",PIVOT!F79) -> 599 | G110: =IF(PIVOT!G79=0,"",PIVOT!G79) -> 381 | H110: =IF(PIVOT!H79=0,"",PIVOT!H79) -> 486 | I110: =IF(PIVOT!I79=0,"",PIVOT!I79) -> 594 | J110: =IF(PIVOT!J79=0,"",PIVOT!J79) -> 830 | K110: =IF(PIVOT!K79=0,"",PIVOT!K79) -> 593 | M110: =IF(B110="","",B110/(SUM(B$104:B$108)+SUM(B$110:B$115))) -> 0.4314049587 | N110: 0.4288039056 | O110: 0.451561249 | P110: =IF(E110="","",E110/(SUM(E$104:E$108)+SUM(E$110:E$115))) -> 0.3733062331 | Q110: =IF(F110="","",F110/(SUM(F$104:F$108)+SUM(F$110:F$115))) -> 0.3945981555 | R110: 0.3492208983 | S110: =IF(H110="","",H110/(SUM(H$104:H$108)+SUM(H$110:H$115))) -> 0.4704743466 | T110: =IF(I110="","",I110/(SUM(I$104:I$108)+SUM(I$110:I$115))) -> 0.4590417311 | U110: 0.577592206 | V110: 0.4558032283
A111: Age 26-30*** | B111: =IF(PIVOT!B80=0,"",PIVOT!B80) -> 282 | C111: =IF(PIVOT!C80=0,"",PIVOT!C80) -> 276 | D111: =IF(PIVOT!D80=0,"",PIVOT!D80) -> 327 | E111: =IF(PIVOT!E80=0,"",PIVOT!E80) -> 382 | F111: =IF(PIVOT!F80=0,"",PIVOT!F80) -> 424 | G111: =IF(PIVOT!G80=0,"",PIVOT!G80) -> 343 | H111: =IF(PIVOT!H80=0,"",PIVOT!H80) -> 230 | I111: =IF(PIVOT!I80=0,"",PIVOT!I80) -> 315 | J111: =IF(PIVOT!J80=0,"",PIVOT!J80) -> 327 | K111: =IF(PIVOT!K80=0,"",PIVOT!K80) -> 302 | M111: 0.2330578512 | N111: 0.2245728234 | O111: 0.2618094476 | P111: 0.2588075881 | Q111: 0.279314888 | R111: 0.3143904675 | S111: 0.2226524685 | T111: 0.243431221 | U111: 0.2275574113 | V111: 0.2321291314
A112: Age 31-40*** | B112: =IF(PIVOT!B81=0,"",PIVOT!B81) -> 241 | C112: =IF(PIVOT!C81=0,"",PIVOT!C81) -> 268 | D112: =IF(PIVOT!D81=0,"",PIVOT!D81) -> 242 | E112: =IF(PIVOT!E81=0,"",PIVOT!E81) -> 358 | F112: =IF(PIVOT!F81=0,"",PIVOT!F81) -> 337 | G112: =IF(PIVOT!G81=0,"",PIVOT!G81) -> 253 | H112: =IF(PIVOT!H81=0,"",PIVOT!H81) -> 228 | I112: =IF(PIVOT!I81=0,"",PIVOT!I81) -> 249 | J112: =IF(PIVOT!J81=0,"",PIVOT!J81) -> 203 | K112: =IF(PIVOT!K81=0,"",PIVOT!K81) -> 277 | M112: 0.1991735537 | N112: 0.2180634662 | O112: 0.193755004 | P112: 0.2425474255 | Q112: 0.222002635 | R112: 0.2318973419 | S112: 0.2207163601 | T112: 0.1924265842 | U112: 0.1412665275 | V112: 0.2129131437
A113: Age 41-50*** | B113: =IF(PIVOT!B82=0,"",PIVOT!B82) -> 131 | C113: =IF(PIVOT!C82=0,"",PIVOT!C82) -> 129 | D113: =IF(PIVOT!D82=0,"",PIVOT!D82) -> 90 | E113: =IF(PIVOT!E82=0,"",PIVOT!E82) -> 146 | F113: =IF(PIVOT!F82=0,"",PIVOT!F82) -> 113 | G113: =IF(PIVOT!G82=0,"",PIVOT!G82) -> 97 | H113: =IF(PIVOT!H82=0,"",PIVOT!H82) -> 68 | I113: =IF(PIVOT!I82=0,"",PIVOT!I82) -> 112 | J113: =IF(PIVOT!J82=0,"",PIVOT!J82) -> 52 | K113: =IF(PIVOT!K82=0,"",PIVOT!K82) -> 75 | M113: 0.1082644628 | N113: 0.1049633849 | O113: 0.07205764612 | P113: 0.09891598916 | Q113: 0.0744400527 | R113: 0.08890925756 | S113: 0.06582768635 | T113: 0.08655332303 | U113: 0.03618649965 | V113: 0.05764796311
A114: Age 51-60*** | B114: =IF(PIVOT!B83=0,"",PIVOT!B83) -> 24 | C114: =IF(PIVOT!C83=0,"",PIVOT!C83) -> 29 | D114: =IF(PIVOT!D83=0,"",PIVOT!D83) -> 26 | E114: =IF(PIVOT!E83=0,"",PIVOT!E83) -> 38 | F114: =IF(PIVOT!F83=0,"",PIVOT!F83) -> 43 | G114: =IF(PIVOT!G83=0,"",PIVOT!G83) -> 16 | H114: =IF(PIVOT!H83=0,"",PIVOT!H83) -> 20 | I114: =IF(PIVOT!I83=0,"",PIVOT!I83) -> 23 | J114: =IF(PIVOT!J83=0,"",PIVOT!J83) -> 25 | K114: =IF(PIVOT!K83=0,"",PIVOT!K83) -> 53 | M114: 0.01983471074 | N114: 0.02359641985 | O114: 0.02081665332 | P114: 0.02574525745 | Q114: 0.02832674572 | R114: 0.01466544455 | S114: 0.01936108422 | T114: 0.01777434312 | U114: 0.0173973556 | V114: 0.04073789393
A115: Age 61+*** | B115: =IF(PIVOT!B84=0,"",PIVOT!B84) -> 10 | C115: =IF(PIVOT!C84=0,"",PIVOT!C84) ->  | D115: =IF(PIVOT!D84=0,"",PIVOT!D84) ->  | E115: =IF(PIVOT!E84=0,"",PIVOT!E84) -> 1 | F115: =IF(PIVOT!F84=0,"",PIVOT!F84) -> 2 | G115: =IF(PIVOT!G84=0,"",PIVOT!G84) -> 1 | H115: =IF(PIVOT!H84=0,"",PIVOT!H84) -> 1 | I115: =IF(PIVOT!I84=0,"",PIVOT!I84) -> 1 | J115: =IF(PIVOT!J84=0,"",PIVOT!J84) ->  | K115: =IF(PIVOT!K84=0,"",PIVOT!K84) -> 1 | M115: 0.00826446281 | P115: 0.0006775067751 | Q115: 0.001317523057 | R115: 0.0009165902841 | S115: 0.000968054211 | T115: 0.000772797527 | V115: 0.0007686395081
A116: Unknown age | B116: =IF(PIVOT!B85=0,"",PIVOT!B85) -> 1 | C116: =IF(PIVOT!C85=0,"",PIVOT!C85) -> 12 | D116: =IF(PIVOT!D85=0,"",PIVOT!D85) -> 27 | E116: =IF((PIVOT!E19-SUM(E110:E115))<0.01,"",PIVOT!E19-(SUM(E110:E115))) -> 8 | F116: =IF((PIVOT!F19-SUM(F110:F115))<0.01,"",PIVOT!F19-(SUM(F110:F115))) -> 5 | G116: =IF((PIVOT!G19-SUM(G110:G115))<0.01,"",PIVOT!G19-(SUM(G110:G115))) -> 132 | H116: =IF((PIVOT!H19-SUM(H110:H115))<0.01,"",PIVOT!H19-(SUM(H110:H115))) ->  | I116: =IF((PIVOT!I19-SUM(I110:I115))<0.01,"",PIVOT!I19-(SUM(I110:I115))) -> 9 | J116: =IF((PIVOT!J19-SUM(J110:J115))<0.01,"",PIVOT!J19-(SUM(J110:J115))) ->  | K116: =IF((PIVOT!K19-SUM(K110:K115))<0.01,"",PIVOT!K19-(SUM(K110:K115))) -> 53 | M116: =IF(B116="","",B116/SUM(B$104:B$116)) -> 0.0008257638315 | N116: =IF(C116="","",C116/SUM(C$104:C$116)) -> 0.009669621273 | O116: =IF(D116="","",D116/SUM(D$104:D$116)) -> 0.02115987461
A117: TOTAL | B117: =IF(SUM(B104:B116)=0,"",SUM(B104:B116)) -> 1211 | C117: 1241 | D117: 1276 | E117: 1484 | F117: 1523 | G117: 1223 | H117: 1033 | I117: 1303 | J117: =IF(SUM(J104:J116)=0,"",SUM(J104:J116)) -> 1437 | K117: =IF(SUM(K104:K116)=0,"",SUM(K104:K116)) -> 1354 | M117: =IF(B117="","",SUM(M104:M115)) -> 1 | N117: 1 | O117: 1 | P117: 1 | Q117: =IF(F117="","",SUM(Q104:Q115)) -> 1 | R117: 1 | S117: 1 | T117: 1 | U117: 1 | V117: 1
A118: 2 - Some schools reported more students in the demographic breakdowns than in the total. Therefore, some of the totals in this table may be greater than the total number of newly enrolled students reported.
A119: † 2011-2012 and 2012-2013 data may be influenced by the allocation of satellite campus data to another region.
A120: *Ethnic minorities include Native American, Asian, African American, Filipino, Hispanic, and other.
A121: **Blank cells indicated that the applicable information was not requested in the given year.
A123: Data Profile Characteristics | G123: School……………. | H123: =PIVOT!$B$4 -> (All) | N123: County... | O123: =PIVOT!$B$5 -> (All)
A124: Region….………… | B124: =PIVOT!$B$6 -> Southern Border | G124: Degree Offered….. | H124: =PIVOT!$B$7 -> (All) | P124: Public/Private Programs…. | Q124: =PIVOT!$B$8 -> (All)
A125: Students who Completed a Nursing Program
A127: Distribution of Students by Ethnicity, Gender and Age2†
B129: Raw Data | M129: Percentages (excludes unknowns)
B130: Academic Year | M130: Academic Year
A131: Ethnicity | B131: 2006-2007 | C131: 2007-2008 | D131: 2008-2009 | E131: 2009-2010 | F131: 2010-2011 | G131: 2011-2012 | H131: 2012-2013 | I131: 2013-2014 | J131: 2014-2015 | K131: 2015-2016 | M131: 2006-2007 | N131: 2007-2008 | O131: 2008-2009 | P131: 2009-2010 | Q131: 2010-2011 | R131: 2011-2012 | S131: 2012-2013 | T131: 2013-2014 | U131: 2014-2015 | V131: 2015-2016
A132: Native American | B132: =IF(PIVOT!B38=0,"",PIVOT!B38) -> 7 | C132: =IF(PIVOT!C38=0,"",PIVOT!C38) -> 7 | D132: =IF(PIVOT!D38=0,"",PIVOT!D38) -> 9 | E132: =IF(PIVOT!E38=0,"",PIVOT!E38) -> 13 | F132: =IF(PIVOT!F38=0,"",PIVOT!F38) -> 7 | G132: =IF(PIVOT!G38=0,"",PIVOT!G38) -> 1 | H132: =IF(PIVOT!H38=0,"",PIVOT!H38) -> 1 | I132: =IF(PIVOT!I38=0,"",PIVOT!I38) -> 7 | J132: =IF(PIVOT!J38=0,"",PIVOT!J38) -> 10 | K132: =IF(PIVOT!K38=0,"",PIVOT!K38) -> 3 | M132: =IF(B132="","",B132/SUM(B$132:B$138)) -> 0.009383378016 | N132: =IF(C132="","",C132/SUM(C$132:C$138)) -> 0.008474576271 | O132: 0.008964143426 | P132: 0.01177536232 | Q132: 0.006822612086 | R132: 0.001007049345 | S132: 0.001027749229 | T132: 0.007056451613 | U132: 0.008833922261 | V132: =IF(K132="","",K132/SUM(K$132:K$138)) -> 0.002444987775
A133: Asian | B133: =IF(PIVOT!B39=0,"",PIVOT!B39) -> 51 | C133: =IF(PIVOT!C39=0,"",PIVOT!C39) -> 69 | D133: =IF(PIVOT!D39=0,"",PIVOT!D39) -> 112 | E133: =IF(PIVOT!E39=0,"",PIVOT!E39) -> 130 | F133: =IF(PIVOT!F39=0,"",PIVOT!F39) -> 94 | G133: =IF(PIVOT!G39=0,"",PIVOT!G39) -> 233 | H133: =IF(PIVOT!H39=0,"",PIVOT!H39) -> 153 | I133: =IF(PIVOT!I39=0,"",PIVOT!I39) -> 154 | J133: =IF(PIVOT!J39=0,"",PIVOT!J39) -> 177 | K133: =IF(PIVOT!K39=0,"",PIVOT!K39) -> 137 | M133: 0.06836461126 | N133: 0.08353510896 | O133: 0.1115537849 | P133: 0.1177536232 | Q133: 0.09161793372 | R133: 0.2346424975 | S133: 0.1572456321 | T133: 0.1552419355 | U133: 0.156360424 | V133: 0.1116544417
A134: African American | B134: =IF(PIVOT!B40=0,"",PIVOT!B40) -> 37 | C134: =IF(PIVOT!C40=0,"",PIVOT!C40) -> 41 | D134: =IF(PIVOT!D40=0,"",PIVOT!D40) -> 36 | E134: =IF(PIVOT!E40=0,"",PIVOT!E40) -> 45 | F134: =IF(PIVOT!F40=0,"",PIVOT!F40) -> 41 | G134: =IF(PIVOT!G40=0,"",PIVOT!G40) -> 55 | H134: =IF(PIVOT!H40=0,"",PIVOT!H40) -> 42 | I134: =IF(PIVOT!I40=0,"",PIVOT!I40) -> 32 | J134: =IF(PIVOT!J40=0,"",PIVOT!J40) -> 77 | K134: =IF(PIVOT!K40=0,"",PIVOT!K40) -> 57 | M134: 0.04959785523 | N134: 0.04963680387 | O134: 0.03585657371 | P134: 0.04076086957 | Q134: 0.03996101365 | R134: 0.055387714 | S134: 0.04316546763 | T134: 0.03225806452 | U134: 0.06802120141 | V134: 0.04645476773
A135: Filipino | B135: =IF(PIVOT!B41=0,"",PIVOT!B41) -> 150 | C135: =IF(PIVOT!C41=0,"",PIVOT!C41) -> 169 | D135: =IF(PIVOT!D41=0,"",PIVOT!D41) -> 194 | E135: =IF(PIVOT!E41=0,"",PIVOT!E41) -> 198 | F135: =IF(PIVOT!F41=0,"",PIVOT!F41) -> 193 | G135: =IF(PIVOT!G41=0,"",PIVOT!G41) -> 115 | H135: =IF(PIVOT!H41=0,"",PIVOT!H41) -> 86 | I135: =IF(PIVOT!I41=0,"",PIVOT!I41) -> 118 | J135: =IF(PIVOT!J41=0,"",PIVOT!J41) -> 71 | K135: =IF(PIVOT!K41=0,"",PIVOT!K41) -> 125 | M135: 0.2010723861 | N135: 0.2046004843 | O135: 0.1932270916 | P135: =IF(E135="","",E135/SUM(E$132:E$138)) -> 0.1793478261 | Q135: 0.1881091618 | R135: 0.1158106747 | S135: 0.08838643371 | T135: 0.1189516129 | U135: 0.06272084806 | V135: 0.1018744906
A136: Hispanic | B136: =IF(PIVOT!B42=0,"",PIVOT!B42) -> 142 | C136: =IF(PIVOT!C42=0,"",PIVOT!C42) -> 132 | D136: =IF(PIVOT!D42=0,"",PIVOT!D42) -> 196 | E136: =IF(PIVOT!E42=0,"",PIVOT!E42) -> 195 | F136: =IF(PIVOT!F42=0,"",PIVOT!F42) -> 174 | G136: =IF(PIVOT!G42=0,"",PIVOT!G42) -> 145 | H136: =IF(PIVOT!H42=0,"",PIVOT!H42) -> 166 | I136: =IF(PIVOT!I42=0,"",PIVOT!I42) -> 159 | J136: =IF(PIVOT!J42=0,"",PIVOT!J42) -> 166 | K136: =IF(PIVOT!K42=0,"",PIVOT!K42) -> 269 | M136: 0.1903485255 | N136: 0.1598062954 | O136: 0.1952191235 | P136: 0.1766304348 | Q136: 0.1695906433 | R136: 0.1460221551 | S136: 0.170606372 | T136: 0.1602822581 | U136: 0.1466431095 | V136: 0.2192339038
A137: White | B137: =IF(PIVOT!B43=0,"",PIVOT!B43) -> 359 | C137: =IF(PIVOT!C43=0,"",PIVOT!C43) -> 408 | D137: =IF(PIVOT!D43=0,"",PIVOT!D43) -> 457 | E137: =IF(PIVOT!E43=0,"",PIVOT!E43) -> 523 | F137: =IF(PIVOT!F43=0,"",PIVOT!F43) -> 517 | G137: =IF(PIVOT!G43=0,"",PIVOT!G43) -> 444 | H137: =IF(PIVOT!H43=0,"",PIVOT!H43) -> 525 | I137: =IF(PIVOT!I43=0,"",PIVOT!I43) -> 500 | J137: =IF(PIVOT!J43=0,"",PIVOT!J43) -> 572 | K137: =IF(PIVOT!K43=0,"",PIVOT!K43) -> 576 | M137: 0.481233244 | N137: 0.4939467312 | O137: 0.4551792829 | P137: 0.4737318841 | Q137: 0.5038986355 | R137: 0.4471299094 | S137: 0.5395683453 | T137: 0.5040322581 | U137: 0.5053003534 | V137: 0.4694376528
A138: Other race | I138: =IF(PIVOT!I48="","",IF(PIVOT!I48=0,0,PIVOT!I44)) -> 22 | J138: =IF(PIVOT!J48="","",IF(PIVOT!J48=0,0,PIVOT!J44)) -> 59 | K138: =IF(PIVOT!K48="","",IF(PIVOT!K48=0,0,PIVOT!K44)) -> 60 | M138: =IF(B138="","",B138/SUM(B$132:B$138)) ->  | T138: 0.02217741935 | U138: 0.05212014134 | V138: 0.0488997555
A139: Unknown race | B139: =IF(PIVOT!B48-(SUM(B132:B138))<0.01,"",PIVOT!B48-(SUM(B132:B138))) -> 42 | C139: =IF(PIVOT!C48-(SUM(C132:C138))<0.01,"",PIVOT!C48-(SUM(C132:C138))) -> 38 | D139: =IF(PIVOT!D48-(SUM(D132:D138))<0.01,"",PIVOT!D48-(SUM(D132:D138))) -> 58 | E139: =IF(PIVOT!E48-(SUM(E132:E138))<0.01,"",PIVOT!E48-(SUM(E132:E138))) -> 139 | F139: =IF(PIVOT!F48-(SUM(F132:F138))<0.01,"",PIVOT!F48-(SUM(F132:F138))) -> 99 | G139: =IF(PIVOT!G48-(SUM(G132:G138))<0.01,"",PIVOT!G48-(SUM(G132:G138))) -> 100 | H139: =IF(PIVOT!H48-(SUM(H132:H138))<0.01,"",PIVOT!H48-(SUM(H132:H138))) -> 76 | I139: =IF(PIVOT!I48-(SUM(I132:I138))<0.01,"",PIVOT!I48-(SUM(I132:I138))) -> 55 | J139: =IF(PIVOT!J48-(SUM(J132:J138))<0.01,"",PIVOT!J48-(SUM(J132:J138))) -> 49 | K139: =IF(PIVOT!K48-(SUM(K132:K138))<0.01,"",PIVOT!K48-(SUM(K132:K138))) -> 23
A140: TOTAL | B140: =IF(SUM(B132:B139)=0,"",SUM(B132:B139)) -> 788 | C140: 864 | D140: 1062 | E140: 1243 | F140: 1125 | G140: 1093 | H140: 1049 | I140: 1047 | J140: 1181 | K140: 1250 | M140: =IF(B140="","",SUM(M132:M138)) -> 1 | N140: 1 | O140: 1 | P140: 1 | Q140: 1 | R140: 1 | S140: 1 | T140: 1 | U140: 1 | V140: 1
A141: Ethnic Minorities* | B141: =IF(B140="","",SUM(B132:B136)+B138) -> 387 | C141: 418 | D141: 547 | E141: 581 | F141: 509 | G141: 549 | H141: 448 | I141: 492 | J141: 560 | K141: 651 | M141: =IF(B140="","",B141/SUM(B132:B138)) -> 0.518766756 | N141: =IF(C140="","",C141/SUM(C132:C138)) -> 0.5060532688 | O141: 0.5448207171 | P141: 0.5262681159 | Q141: 0.4961013645 | R141: 0.5528700906 | S141: 0.4604316547 | T141: =IF(I140="","",I141/SUM(I132:I138)) -> 0.4959677419 | U141: =IF(J140="","",J141/SUM(J132:J138)) -> 0.4946996466 | V141: =IF(K140="","",K141/SUM(K132:K138)) -> 0.5305623472
A142: Gender
A143: Female | B143: =IF(PIVOT!B45=0,"",PIVOT!B45) -> 673 | C143: =IF(PIVOT!C45=0,"",PIVOT!C45) -> 727 | D143: =IF(PIVOT!D45=0,"",PIVOT!D45) -> 898 | E143: =IF(PIVOT!E45=0,"",PIVOT!E45) -> 1024 | F143: =IF(PIVOT!F45=0,"",PIVOT!F45) -> 939 | G143: =IF(PIVOT!G45=0,"",PIVOT!G45) -> 885 | H143: =IF(PIVOT!H45=0,"",PIVOT!H45) -> 863 | I143: =IF(PIVOT!I45=0,"",PIVOT!I45) -> 859 | J143: =IF(PIVOT!J45=0,"",PIVOT!J45) -> 941 | K143: =IF(PIVOT!K45=0,"",PIVOT!K45) -> 1006 | M143: =IF(B143="","",B143/SUM(B$143:B$144)) -> 0.8540609137 | N143: 0.8414351852 | O143: 0.8455743879 | P143: 0.829821718 | Q143: 0.8497737557 | R143: 0.8111824015 | S143: =IF(H143="","",H143/SUM(H$143:H$144)) -> 0.8242597899 | T143: =IF(I143="","",I143/SUM(I$143:I$144)) -> 0.8204393505 | U143: =IF(J143="","",J143/SUM(J$143:J$144)) -> 0.7967823878 | V143: =IF(K143="","",K143/SUM(K$143:K$144)) -> 0.7984126984
A144: Male | B144: =IF(PIVOT!B46=0,"",PIVOT!B46) -> 115 | C144: =IF(PIVOT!C46=0,"",PIVOT!C46) -> 137 | D144: =IF(PIVOT!D46=0,"",PIVOT!D46) -> 164 | E144: =IF(PIVOT!E46=0,"",PIVOT!E46) -> 210 | F144: =IF(PIVOT!F46=0,"",PIVOT!F46) -> 166 | G144: =IF(PIVOT!G46=0,"",PIVOT!G46) -> 206 | H144: =IF(PIVOT!H46=0,"",PIVOT!H46) -> 184 | I144: =IF(PIVOT!I46=0,"",PIVOT!I46) -> 188 | J144: =IF(PIVOT!J46=0,"",PIVOT!J46) -> 240 | K144: =IF(PIVOT!K46=0,"",PIVOT!K46) -> 254 | M144: 0.1459390863 | N144: 0.1585648148 | O144: 0.1544256121 | P144: 0.170178282 | Q144: 0.1502262443 | R144: 0.1888175985 | S144: 0.1757402101 | T144: 0.1795606495 | U144: 0.2032176122 | V144: 0.2015873016
A145: Unknown gender | B145: =IF((PIVOT!B48-SUM(B143:B144))<0.01,"",PIVOT!B48-(SUM(B143:B144))) ->  | C145: =IF((PIVOT!C48-SUM(C143:C144))<0.01,"",PIVOT!C48-(SUM(C143:C144))) ->  | D145: =IF((PIVOT!D48-SUM(D143:D144))<0.01,"",PIVOT!D48-(SUM(D143:D144))) ->  | E145: =IF((PIVOT!E48-SUM(E143:E144))<0.01,"",PIVOT!E48-(SUM(E143:E144))) -> 9 | F145: =IF((PIVOT!F48-SUM(F143:F144))<0.01,"",PIVOT!F48-(SUM(F143:F144))) -> 20 | G145: =IF((PIVOT!G48-SUM(G143:G144))<0.01,"",PIVOT!G48-(SUM(G143:G144))) -> 2 | H145: =IF((PIVOT!H48-SUM(H143:H144))<0.01,"",PIVOT!H48-(SUM(H143:H144))) -> 2 | I145: =IF((PIVOT!I48-SUM(I143:I144))<0.01,"",PIVOT!I48-(SUM(I143:I144))) ->  | J145: =IF((PIVOT!J48-SUM(J143:J144))<0.01,"",PIVOT!J48-(SUM(J143:J144))) ->  | K145: =IF((PIVOT!K48-SUM(K143:K144))<0.01,"",PIVOT!K48-(SUM(K143:K144))) -> 
A146: TOTAL | B146: =IF(SUM(B143:B145)=0,"",SUM(B143:B145)) -> 788 | C146: 864 | D146: 1062 | E146: =IF(SUM(E143:E145)=0,"",SUM(E143:E145)) -> 1243 | F146: =IF(SUM(F143:F145)=0,"",SUM(F143:F145)) -> 1125 | G146: 1093 | H146: 1049 | I146: =IF(SUM(I143:I145)=0,"",SUM(I143:I145)) -> 1047 | J146: =IF(SUM(J143:J145)=0,"",SUM(J143:J145)) -> 1181 | K146: =IF(SUM(K143:K145)=0,"",SUM(K143:K145)) -> 1260 | M146: =IF(B146="","",SUM(M143:M144)) -> 1 | N146: 1 | O146: 1 | P146: 1 | Q146: 1 | R146: 1 | S146: 1 | T146: 1 | U146: 1 | V146: 1
A147: Age
A148: Age 18-25 | B148: =IF(PIVOT!B86=0,"",PIVOT!B86) ->  | C148: =IF(PIVOT!C86=0,"",PIVOT!C86) ->  | D148: =IF(PIVOT!D86=0,"",PIVOT!D86) ->  | E148: =IF(PIVOT!E86=0,"",PIVOT!E86) ->  | F148: =IF(PIVOT!F86=0,"",PIVOT!F86) ->  | G148: =IF(PIVOT!G86=0,"",PIVOT!G86) ->  | H148: =IF(PIVOT!H86=0,"",PIVOT!H86) ->  | I148: =IF(PIVOT!I86=0,"",PIVOT!I86) ->  | J148: =IF(PIVOT!J86=0,"",PIVOT!J86) ->  | K148: =IF(PIVOT!K86=0,"",PIVOT!K86) ->  | M148: =IF(B148="","",B148/SUM(B$148:B$152)) ->  | N148: =IF(C148="","",C148/SUM(C$148:C$152)) ->  | O148: =IF(D148="","",D148/SUM(D$148:D$160)) ->  | R148: =IF(G148="","",G148/SUM(G$148:G$160)) -> 
A149: Age 26-35 | B149: =IF(PIVOT!B87=0,"",PIVOT!B87) ->  | C149: =IF(PIVOT!C87=0,"",PIVOT!C87) ->  | D149: =IF(PIVOT!D87=0,"",PIVOT!D87) ->  | E149: =IF(PIVOT!E87=0,"",PIVOT!E87) ->  | F149: =IF(PIVOT!F87=0,"",PIVOT!F87) ->  | G149: =IF(PIVOT!G87=0,"",PIVOT!G87) ->  | H149: =IF(PIVOT!H87=0,"",PIVOT!H87) ->  | I149: =IF(PIVOT!I87=0,"",PIVOT!I87) ->  | J149: =IF(PIVOT!J87=0,"",PIVOT!J87) ->  | K149: =IF(PIVOT!K87=0,"",PIVOT!K87) ->  | M149: =IF(B149="","",B149/SUM(B$148:B$152)) -> 
A150: Age 36-45 | B150: =IF(PIVOT!B88=0,"",PIVOT!B88) ->  | C150: =IF(PIVOT!C88=0,"",PIVOT!C88) ->  | D150: =IF(PIVOT!D88=0,"",PIVOT!D88) ->  | E150: =IF(PIVOT!E88=0,"",PIVOT!E88) ->  | F150: =IF(PIVOT!F88=0,"",PIVOT!F88) ->  | G150: =IF(PIVOT!G88=0,"",PIVOT!G88) ->  | H150: =IF(PIVOT!H88=0,"",PIVOT!H88) ->  | I150: =IF(PIVOT!I88=0,"",PIVOT!I88) ->  | J150: =IF(PIVOT!J88=0,"",PIVOT!J88) ->  | K150: =IF(PIVOT!K88=0,"",PIVOT!K88) -> 
A151: Age 46-55 | B151: =IF(PIVOT!B89=0,"",PIVOT!B89) ->  | C151: =IF(PIVOT!C89=0,"",PIVOT!C89) ->  | D151: =IF(PIVOT!D89=0,"",PIVOT!D89) ->  | E151: =IF(PIVOT!E89=0,"",PIVOT!E89) ->  | F151: =IF(PIVOT!F89=0,"",PIVOT!F89) ->  | G151: =IF(PIVOT!G89=0,"",PIVOT!G89) ->  | H151: =IF(PIVOT!H89=0,"",PIVOT!H89) ->  | I151: =IF(PIVOT!I89=0,"",PIVOT!I89) ->  | J151: =IF(PIVOT!J89=0,"",PIVOT!J89) ->  | K151: =IF(PIVOT!K89=0,"",PIVOT!K89) ->  | N151: =IF(C151="","",C151/SUM(C$148:C$152)) -> 
A152: Age 56+ | B152: =IF(PIVOT!B90=0,"",PIVOT!B90) ->  | C152: =IF(PIVOT!C90=0,"",PIVOT!C90) ->  | D152: =IF(PIVOT!D90=0,"",PIVOT!D90) ->  | E152: =IF(PIVOT!E90=0,"",PIVOT!E90) ->  | F152: =IF(PIVOT!F90=0,"",PIVOT!F90) ->  | G152: =IF(PIVOT!G90=0,"",PIVOT!G90) ->  | H152: =IF(PIVOT!H90=0,"",PIVOT!H90) ->  | I152: =IF(PIVOT!I90=0,"",PIVOT!I90) ->  | J152: =IF(PIVOT!J90=0,"",PIVOT!J90) ->  | K152: =IF(PIVOT!K90=0,"",PIVOT!K90) -> 
A153: Unknown age | M153: =IF(B153="","",B153/SUM(B$148:B$153)) ->  | N153: =IF(C153="","",C153/SUM(C$148:C$153)) -> 
A154: Age 18-25*** | B154: =IF(PIVOT!B92=0,"",PIVOT!B92) -> 261 | C154: =IF(PIVOT!C92=0,"",PIVOT!C92) -> 314 | D154: =IF(PIVOT!D92=0,"",PIVOT!D92) -> 403 | E154: =IF(PIVOT!E92=0,"",PIVOT!E92) -> 502 | F154: =IF(PIVOT!F92=0,"",PIVOT!F92) -> 456 | G154: =IF(PIVOT!G92=0,"",PIVOT!G92) -> 321 | H154: =IF(PIVOT!H92=0,"",PIVOT!H92) -> 331 | I154: =IF(PIVOT!I92=0,"",PIVOT!I92) -> 361 | J154: =IF(PIVOT!J92=0,"",PIVOT!J92) -> 430 | K154: =IF(PIVOT!K92=0,"",PIVOT!K92) -> 494 | M154: =IF(B154="","",B154/SUM(B$148:B$160)) -> 0.3312182741 | N154: 0.3634259259 | O154: =IF(D154="","",D154/(SUM(D$148:D$159)-D$153)) -> 0.3860153257 | P154: =IF(E154="","",E154/(SUM(E$148:E$159)-E$153)) -> 0.4048387097 | Q154: 0.4126696833 | R154: =IF(G154="","",G154/(SUM(G$148:G$159)-G$153)) -> 0.3213213213 | S154: =IF(H154="","",H154/(SUM(H$148:H$159)-H$153)) -> 0.3158396947 | T154: =IF(I154="","",I154/(SUM(I$148:I$159)-I$153)) -> 0.3528836755 | U154: 0.3748910201 | V154: 0.4092792046
A155: Age 26-30*** | B155: =IF(PIVOT!B93=0,"",PIVOT!B93) -> 214 | C155: =IF(PIVOT!C93=0,"",PIVOT!C93) -> 227 | D155: =IF(PIVOT!D93=0,"",PIVOT!D93) -> 274 | E155: =IF(PIVOT!E93=0,"",PIVOT!E93) -> 346 | F155: =IF(PIVOT!F93=0,"",PIVOT!F93) -> 274 | G155: =IF(PIVOT!G93=0,"",PIVOT!G93) -> 302 | H155: =IF(PIVOT!H93=0,"",PIVOT!H93) -> 316 | I155: =IF(PIVOT!I93=0,"",PIVOT!I93) -> 313 | J155: =IF(PIVOT!J93=0,"",PIVOT!J93) -> 302 | K155: =IF(PIVOT!K93=0,"",PIVOT!K93) -> 357 | M155: 0.2715736041 | N155: 0.2627314815 | O155: 0.2624521073 | P155: 0.2790322581 | Q155: 0.2479638009 | R155: 0.3023023023 | S155: 0.3015267176 | T155: 0.3059628543 | U155: 0.2632955536 | V155: 0.2957746479
A156: Age 31-40*** | B156: =IF(PIVOT!B94=0,"",PIVOT!B94) -> 223 | C156: =IF(PIVOT!C94=0,"",PIVOT!C94) -> 200 | D156: =IF(PIVOT!D94=0,"",PIVOT!D94) -> 245 | E156: =IF(PIVOT!E94=0,"",PIVOT!E94) -> 258 | F156: =IF(PIVOT!F94=0,"",PIVOT!F94) -> 258 | G156: =IF(PIVOT!G94=0,"",PIVOT!G94) -> 244 | H156: =IF(PIVOT!H94=0,"",PIVOT!H94) -> 295 | I156: =IF(PIVOT!I94=0,"",PIVOT!I94) -> 234 | J156: =IF(PIVOT!J94=0,"",PIVOT!J94) -> 294 | K156: =IF(PIVOT!K94=0,"",PIVOT!K94) -> 257 | M156: 0.2829949239 | N156: 0.2314814815 | O156: 0.2346743295 | P156: 0.2080645161 | Q156: 0.2334841629 | R156: 0.2442442442 | S156: 0.2814885496 | T156: 0.2287390029 | U156: 0.256320837 | V156: 0.2129246065
A157: Age 41-50*** | B157: =IF(PIVOT!B95=0,"",PIVOT!B95) -> 74 | C157: =IF(PIVOT!C95=0,"",PIVOT!C95) -> 100 | D157: =IF(PIVOT!D95=0,"",PIVOT!D95) -> 98 | E157: =IF(PIVOT!E95=0,"",PIVOT!E95) -> 112 | F157: =IF(PIVOT!F95=0,"",PIVOT!F95) -> 93 | G157: =IF(PIVOT!G95=0,"",PIVOT!G95) -> 111 | H157: =IF(PIVOT!H95=0,"",PIVOT!H95) -> 87 | I157: =IF(PIVOT!I95=0,"",PIVOT!I95) -> 84 | J157: =IF(PIVOT!J95=0,"",PIVOT!J95) -> 103 | K157: =IF(PIVOT!K95=0,"",PIVOT!K95) -> 71 | M157: 0.09390862944 | N157: 0.1157407407 | O157: 0.0938697318 | P157: 0.09032258065 | Q157: 0.08416289593 | R157: 0.1111111111 | S157: 0.08301526718 | T157: 0.08211143695 | U157: 0.0897994769 | V157: 0.05882352941
A158: Age 51-60*** | B158: =IF(PIVOT!B96=0,"",PIVOT!B96) -> 14 | C158: =IF(PIVOT!C96=0,"",PIVOT!C96) -> 22 | D158: =IF(PIVOT!D96=0,"",PIVOT!D96) -> 24 | E158: =IF(PIVOT!E96=0,"",PIVOT!E96) -> 21 | F158: =IF(PIVOT!F96=0,"",PIVOT!F96) -> 19 | G158: =IF(PIVOT!G96=0,"",PIVOT!G96) -> 21 | H158: =IF(PIVOT!H96=0,"",PIVOT!H96) -> 19 | I158: =IF(PIVOT!I96=0,"",PIVOT!I96) -> 30 | J158: =IF(PIVOT!J96=0,"",PIVOT!J96) -> 18 | K158: =IF(PIVOT!K96=0,"",PIVOT!K96) -> 27 | M158: 0.01776649746 | N158: 0.02546296296 | O158: 0.02298850575 | P158: 0.01693548387 | Q158: 0.01719457014 | R158: 0.02102102102 | S158: 0.01812977099 | T158: 0.0293255132 | U158: 0.01569311247 | V158: 0.02236951118
A159: Age 61+*** | B159: =IF(PIVOT!B97=0,"",PIVOT!B97) -> 2 | C159: =IF(PIVOT!C97=0,"",PIVOT!C97) -> 1 | D159: =IF(PIVOT!D97=0,"",PIVOT!D97) ->  | E159: =IF(PIVOT!E97=0,"",PIVOT!E97) -> 1 | F159: =IF(PIVOT!F97=0,"",PIVOT!F97) -> 5 | G159: =IF(PIVOT!G97=0,"",PIVOT!G97) ->  | H159: =IF(PIVOT!H97=0,"",PIVOT!H97) ->  | I159: =IF(PIVOT!I97=0,"",PIVOT!I97) -> 1 | J159: =IF(PIVOT!J97=0,"",PIVOT!J97) ->  | K159: =IF(PIVOT!K97=0,"",PIVOT!K97) -> 1 | M159: 0.002538071066 | N159: 0.001157407407 | P159: 0.0008064516129 | Q159: 0.004524886878 | T159: 0.0009775171065 | V159: 0.0008285004143
A160: Unknown age | B160: =IF(PIVOT!B98=0,"",PIVOT!B98) ->  | C160: =IF(PIVOT!C98=0,"",PIVOT!C98) ->  | D160: =IF(PIVOT!D48-(SUM(D154:D159))<0.01,"",PIVOT!D48-(SUM(D154:D159))) -> 18 | E160: =IF(PIVOT!E48-(SUM(E154:E159))<0.01,"",PIVOT!E48-(SUM(E154:E159))) -> 3 | F160: =IF(PIVOT!F48-(SUM(F154:F159))<0.01,"",PIVOT!F48-(SUM(F154:F159))) -> 20 | G160: =IF(PIVOT!G48-(SUM(G154:G159))<0.01,"",PIVOT!G48-(SUM(G154:G159))) -> 94 | H160: =IF(PIVOT!H48-(SUM(H154:H159))<0.01,"",PIVOT!H48-(SUM(H154:H159))) -> 1 | I160: =IF(PIVOT!I48-(SUM(I154:I159))<0.01,"",PIVOT!I48-(SUM(I154:I159))) -> 24 | J160: =IF(PIVOT!J48-(SUM(J154:J159))<0.01,"",PIVOT!J48-(SUM(J154:J159))) -> 34 | K160: =IF(PIVOT!K48-(SUM(K154:K159))<0.01,"",PIVOT!K48-(SUM(K154:K159))) -> 43
A161: TOTAL | B161: =IF(SUM(B148:B160)=0,"",SUM(B148:B160)) -> 788 | C161: 864 | D161: 1062 | E161: 1243 | F161: 1125 | G161: 1093 | H161: 1049 | I161: =IF(SUM(I148:I160)=0,"",SUM(I148:I160)) -> 1047 | J161: =IF(SUM(J148:J160)=0,"",SUM(J148:J160)) -> 1181 | K161: =IF(SUM(K148:K160)=0,"",SUM(K148:K160)) -> 1250 | M161: =IF(B161="","",SUM(M148:M159)) -> 1 | N161: =IF(C161="","",SUM(N148:N159)) -> 1 | O161: 1 | P161: 1 | Q161: 1 | R161: 1 | S161: 1 | T161: 1 | U161: 1 | V161: 1
A162: 2 - Some schools reported more students in the demographic breakdowns than in the total. Therefore, some of the totals in this table may be greater than the total number of newly enrolled students reported.; † 2011-2012 and 2012-2013 data may be influenced by the allocation of satellite campus data to another region.
A163: *Ethnic minorities include Native American, Asian, African American, Filipino, Hispanic, and other.
A164: **Blank cells indicated that the applicable information was not requested in the given year.
A165: ***These age ranges were adopted for the 2004-2005 survey.
A167: Data Profile Characteristics | G167: School……………. | H167: =PIVOT!$B$4 -> (All) | N167: County... | O167: =PIVOT!$B$5 -> (All)
A168: Region….………… | B168: =PIVOT!$B$6 -> Southern Border | G168: Degree Offered….. | H168: =PIVOT!$B$7 -> (All) | P168: Public/Private Programs…. | Q168: =PIVOT!$B$8 -> (All)
A170: Faculty Demographics1
A172: Distribution of Faculty by Ethnicity, Gender and Age2†
B174: Raw Data | M174: Percentages (excludes unknowns)
B175: Year | M175: Year
A176: Ethnicity | B176: 2007 | C176: 2008 | D176: 2009 | E176: 2010 | F176: 2011 | G176: 2012 | H176: 2013 | I176: 2014 | J176: 2015 | K176: 2016 | M176: 2007 | N176: 2008 | O176: 2009 | P176: 2010 | Q176: 2011 | R176: 2012 | S176: 2013 | T176: 2014 | U176: 2015 | V176: 2016
A177: Native American | B177: =IF(PIVOT!M11=0,"",PIVOT!M11) ->  | C177: =IF(PIVOT!N11=0,"",PIVOT!N11) -> 1 | D177: =IF(PIVOT!O11=0,"",PIVOT!O11) -> 2 | E177: =IF(PIVOT!P11=0,"",PIVOT!P11) ->  | F177: =IF(PIVOT!Q11=0,"",PIVOT!Q11) ->  | G177: =IF(PIVOT!R11=0,"",PIVOT!R11) ->  | H177: =IF(PIVOT!S11=0,"",PIVOT!S11) -> 1 | I177: =IF(PIVOT!T11=0,"",PIVOT!T11) -> 2 | J177: =IF(PIVOT!U11=0,"",PIVOT!U11) -> 3 | K177: =IF(PIVOT!V11=0,"",PIVOT!V11) -> 4 | M177: =IF(B177="","",B177/SUM(B$177:B$183)) ->  | N177: =IF(C177="","",C177/SUM(C$177:C$183)) -> 0.002506265664 | O177: 0.004587155963 | S177: 0.002538071066 | T177: 0.004761904762 | U177: 0.005597014925 | V177: 0.007736943907
A178: Asian | B178: =IF(PIVOT!M12=0,"",PIVOT!M12) -> 14 | C178: =IF(PIVOT!N12=0,"",PIVOT!N12) -> 26 | D178: =IF(PIVOT!O12=0,"",PIVOT!O12) -> 38 | E178: =IF(PIVOT!P12=0,"",PIVOT!P12) -> 55 | F178: =IF(PIVOT!Q12=0,"",PIVOT!Q12) -> 31 | G178: =IF(PIVOT!R12=0,"",PIVOT!R12) -> 30 | H178: =IF(PIVOT!S12=0,"",PIVOT!S12) -> 18 | I178: =IF(PIVOT!T12=0,"",PIVOT!T12) -> 35 | J178: =IF(PIVOT!U12=0,"",PIVOT!U12) -> 29 | K178: =IF(PIVOT!V12=0,"",PIVOT!V12) -> 41 | M178: =IF(B178="","",B178/SUM(B$177:B$183)) -> 0.04069767442 | N178: 0.06516290727 | O178: 0.0871559633 | P178: 0.1157894737 | Q178: 0.06609808102 | R178: 0.07425742574 | S178: 0.04568527919 | T178: 0.08333333333 | U178: 0.05410447761 | V178: 0.07930367505
A179: African American | B179: =IF(PIVOT!M13=0,"",PIVOT!M13) -> 15 | C179: =IF(PIVOT!N13=0,"",PIVOT!N13) -> 17 | D179: =IF(PIVOT!O13=0,"",PIVOT!O13) -> 20 | E179: =IF(PIVOT!P13=0,"",PIVOT!P13) -> 19 | F179: =IF(PIVOT!Q13=0,"",PIVOT!Q13) -> 31 | G179: =IF(PIVOT!R13=0,"",PIVOT!R13) -> 16 | H179: =IF(PIVOT!S13=0,"",PIVOT!S13) -> 14 | I179: =IF(PIVOT!T13=0,"",PIVOT!T13) -> 28 | J179: =IF(PIVOT!U13=0,"",PIVOT!U13) -> 26 | K179: =IF(PIVOT!V13=0,"",PIVOT!V13) -> 39 | M179: 0.04360465116 | N179: 0.04260651629 | O179: 0.04587155963 | P179: 0.04 | Q179: 0.06609808102 | R179: 0.0396039604 | S179: 0.03553299492 | T179: 0.06666666667 | U179: 0.04850746269 | V179: 0.07543520309
A180: Filipino | B180: =IF(PIVOT!M14=0,"",PIVOT!M14) -> 30 | C180: =IF(PIVOT!N14=0,"",PIVOT!N14) -> 27 | D180: =IF(PIVOT!O14=0,"",PIVOT!O14) -> 22 | E180: =IF(PIVOT!P14=0,"",PIVOT!P14) -> 29 | F180: =IF(PIVOT!Q14=0,"",PIVOT!Q14) -> 42 | G180: =IF(PIVOT!R14=0,"",PIVOT!R14) -> 39 | H180: =IF(PIVOT!S14=0,"",PIVOT!S14) -> 46 | I180: =IF(PIVOT!T14=0,"",PIVOT!T14) -> 42 | J180: =IF(PIVOT!U14=0,"",PIVOT!U14) -> 48 | K180: =IF(PIVOT!V14=0,"",PIVOT!V14) -> 52 | M180: 0.08720930233 | N180: 0.06766917293 | O180: =IF(D180="","",D180/SUM(D$177:D$183)) -> 0.0504587156 | P180: 0.06105263158 | Q180: 0.08955223881 | R180: 0.09653465347 | S180: 0.116751269 | T180: 0.1 | U180: 0.08955223881 | V180: 0.1005802708
A181: Hispanic | B181: =IF(PIVOT!M15=0,"",PIVOT!M15) -> 18 | C181: =IF(PIVOT!N15=0,"",PIVOT!N15) -> 24 | D181: =IF(PIVOT!O15=0,"",PIVOT!O15) -> 33 | E181: =IF(PIVOT!P15=0,"",PIVOT!P15) -> 31 | F181: =IF(PIVOT!Q15=0,"",PIVOT!Q15) -> 36 | G181: =IF(PIVOT!R15=0,"",PIVOT!R15) -> 28 | H181: =IF(PIVOT!S15=0,"",PIVOT!S15) -> 30 | I181: =IF(PIVOT!T15=0,"",PIVOT!T15) -> 39 | J181: =IF(PIVOT!U15=0,"",PIVOT!U15) -> 45 | K181: =IF(PIVOT!V15=0,"",PIVOT!V15) -> 57 | M181: 0.0523255814 | N181: 0.06015037594 | O181: 0.07568807339 | P181: 0.06526315789 | Q181: 0.07675906183 | R181: 0.06930693069 | S181: 0.07614213198 | T181: 0.09285714286 | U181: 0.08395522388 | V181: 0.1102514507
A182: White | B182: =IF(PIVOT!M16=0,"",PIVOT!M16) -> 267 | C182: =IF(PIVOT!N16=0,"",PIVOT!N16) -> 304 | D182: =IF(PIVOT!O16=0,"",PIVOT!O16) -> 321 | E182: =IF(PIVOT!P16=0,"",PIVOT!P16) -> 341 | F182: =IF(PIVOT!Q16=0,"",PIVOT!Q16) -> 329 | G182: =IF(PIVOT!R16=0,"",PIVOT!R16) -> 291 | H182: =IF(PIVOT!S16=0,"",PIVOT!S16) -> 285 | I182: =IF(PIVOT!T16=0,"",PIVOT!T16) -> 253 | J182: =IF(PIVOT!U16=0,"",PIVOT!U16) -> 363 | K182: =IF(PIVOT!V16=0,"",PIVOT!V16) -> 310 | M182: 0.7761627907 | N182: =IF(C182="","",C182/SUM(C$177:C$183)) -> 0.7619047619 | O182: 0.7362385321 | P182: 0.7178947368 | Q182: 0.7014925373 | R182: 0.7202970297 | S182: 0.7233502538 | T182: 0.6023809524 | U182: 0.677238806 | V182: 0.5996131528
A183: Other race | I183: =IF(I7="","",PIVOT!T17) -> 21 | J183: =IF(J7="","",PIVOT!U17) -> 22 | K183: =IF(PIVOT!V17="","",PIVOT!V17) -> 14 | T183: =IF(I183="","",I183/SUM(I$177:I$183)) -> 0.05 | U183: =IF(J183="","",J183/SUM(J$177:J$183)) -> 0.04104477612 | V183: =IF(K183="","",K183/SUM(K$177:K$183)) -> 0.02707930368
A184: Unknown race | B184: =IF(B$7="","",IF(PIVOT!M30-SUM(B177:B183)<0.01,"",PIVOT!M30-SUM(B177:B183))) -> 5 | C184: =IF(C$7="","",IF(PIVOT!N30-SUM(C177:C183)<0.01,"",PIVOT!N30-SUM(C177:C183))) -> 3 | D184: =IF(D$7="","",IF(PIVOT!O30-SUM(D177:D183)<0.01,"",PIVOT!O30-SUM(D177:D183))) -> 9 | E184: =IF(E$7="","",IF(PIVOT!P30-SUM(E177:E183)<0.01,"",PIVOT!P30-SUM(E177:E183))) -> 7 | F184: =IF(F$7="","",IF(PIVOT!Q30-SUM(F177:F183)<0.01,"",PIVOT!Q30-SUM(F177:F183))) -> 23 | G184: =IF(G$7="","",IF(PIVOT!R30-SUM(G177:G183)<0.01,"",PIVOT!R30-SUM(G177:G183))) -> 50 | H184: =IF(H$7="","",IF(PIVOT!S30-SUM(H177:H183)<0.01,"",PIVOT!S30-SUM(H177:H183))) -> 21 | I184: =IF(I$7="","",IF(PIVOT!T30-SUM(I177:I183)<0.01,"",PIVOT!T30-SUM(I177:I183))) -> 7 | J184: =IF(J$7="","",IF(PIVOT!U30-SUM(J177:J183)<0.01,"",PIVOT!U30-SUM(J177:J183))) -> 3 | K184: =IF(K$7="","",IF(PIVOT!V30-SUM(K177:K183)<0.01,"",PIVOT!V30-SUM(K177:K183))) -> 5
A185: TOTAL | B185: =IF(SUM(B177:B184)=0,"",SUM(B177:B184)) -> 349 | C185: =IF(SUM(C177:C184)=0,"",SUM(C177:C184)) -> 402 | D185: 445 | E185: 482 | F185: 492 | G185: 454 | H185: 415 | I185: =IF(SUM(I177:I184)=0,"",SUM(I177:I184)) -> 427 | J185: =IF(SUM(J177:J184)=0,"",SUM(J177:J184)) -> 539 | K185: =IF(SUM(K177:K184)=0,"",SUM(K177:K184)) -> 522 | M185: =IF(B185="","",SUM(M177:M183)) -> 1 | N185: 1 | O185: 1 | P185: 1 | Q185: 1 | R185: 1 | S185: 1 | T185: 1 | U185: 1 | V185: 1
A186: Ethnic Minorities* | B186: =IF(B185="","",SUM(B177:B181)+B183) -> 77 | C186: =IF(C185="","",SUM(C177:C181)+C183) -> 95 | D186: 115 | E186: 134 | F186: 140 | G186: 113 | H186: =IF(H185="","",SUM(H177:H181)+H183) -> 109 | I186: =IF(I185="","",SUM(I177:I181)+I183) -> 167 | J186: =IF(J185="","",SUM(J177:J181)+J183) -> 173 | K186: =IF(K185="","",SUM(K177:K181)+K183) -> 207 | M186: =IF(B185="","",B186/SUM(B177:B183)) -> 0.2238372093 | N186: =IF(C185="","",C186/SUM(C177:C183)) -> 0.2380952381 | O186: =IF(D185="","",D186/SUM(D177:D183)) -> 0.2637614679 | P186: 0.2821052632 | Q186: 0.2985074627 | R186: 0.2797029703 | S186: 0.2766497462 | T186: =IF(I185="","",I186/SUM(I177:I183)) -> 0.3976190476 | U186: =IF(J185="","",J186/SUM(J177:J183)) -> 0.322761194 | V186: =IF(K185="","",K186/SUM(K177:K183)) -> 0.4003868472
A187: Gender
A188: Female | B188: =IF(PIVOT!M18=0,"",PIVOT!M18) -> 319 | C188: =IF(PIVOT!N18=0,"",PIVOT!N18) -> 359 | D188: =IF(PIVOT!O18=0,"",PIVOT!O18) -> 401 | E188: =IF(PIVOT!P18=0,"",PIVOT!P18) -> 426 | F188: =IF(PIVOT!Q18=0,"",PIVOT!Q18) -> 439 | G188: =IF(PIVOT!R18=0,"",PIVOT!R18) -> 402 | H188: =IF(PIVOT!S18=0,"",PIVOT!S18) -> 364 | I188: =IF(PIVOT!T18=0,"",PIVOT!T18) -> 383 | J188: =IF(PIVOT!U18=0,"",PIVOT!U18) -> 486 | K188: =IF(PIVOT!V18=0,"",PIVOT!V18) -> 457 | M188: =IF(B188="","",B188/SUM(B$188:B$189)) -> 0.9140401146 | N188: 0.8930348259 | O188: 0.9011235955 | P188: 0.8838174274 | Q188: =IF(F188="","",F188/SUM(F$188:F$189)) -> 0.8922764228 | R188: 0.889380531 | S188: 0.8943488943 | T188: 0.8969555035 | U188: 0.9016697588 | V188: 0.8754789272
A189: Male | B189: =IF(PIVOT!M19=0,"",PIVOT!M19) -> 30 | C189: =IF(PIVOT!N19=0,"",PIVOT!N19) -> 43 | D189: =IF(PIVOT!O19=0,"",PIVOT!O19) -> 44 | E189: =IF(PIVOT!P19=0,"",PIVOT!P19) -> 56 | F189: =IF(PIVOT!Q19=0,"",PIVOT!Q19) -> 53 | G189: =IF(PIVOT!R19=0,"",PIVOT!R19) -> 50 | H189: =IF(PIVOT!S19=0,"",PIVOT!S19) -> 43 | I189: =IF(PIVOT!T19=0,"",PIVOT!T19) -> 44 | J189: =IF(PIVOT!U19=0,"",PIVOT!U19) -> 53 | K189: =IF(PIVOT!V19=0,"",PIVOT!V19) -> 65 | M189: 0.08595988539 | N189: 0.1069651741 | O189: 0.09887640449 | P189: 0.1161825726 | Q189: =IF(F189="","",F189/SUM(F$188:F$189)) -> 0.1077235772 | R189: 0.110619469 | S189: 0.1056511057 | T189: =IF(I189="","",I189/SUM(I$188:I$189)) -> 0.1030444965 | U189: =IF(J189="","",J189/SUM(J$188:J$189)) -> 0.09833024119 | V189: =IF(K189="","",K189/SUM(K$188:K$189)) -> 0.1245210728
A190: Unknown gender | B190: =IF((PIVOT!M30-SUM(B188:B189))<0.01,"",(PIVOT!M30-SUM(B188:B189))) ->  | C190: =IF((PIVOT!N30-SUM(C188:C189))<0.01,"",(PIVOT!N30-SUM(C188:C189))) ->  | D190: =IF((PIVOT!O30-SUM(D188:D189))<0.01,"",(PIVOT!O30-SUM(D188:D189))) ->  | E190: =IF((PIVOT!P30-SUM(E188:E189))<0.01,"",(PIVOT!P30-SUM(E188:E189))) ->  | F190: =IF((PIVOT!Q30-SUM(F188:F189))<0.01,"",(PIVOT!Q30-SUM(F188:F189))) ->  | G190: =IF((PIVOT!R30-SUM(G188:G189))<0.01,"",(PIVOT!R30-SUM(G188:G189))) -> 2 | H190: =IF((PIVOT!S30-SUM(H188:H189))<0.01,"",(PIVOT!S30-SUM(H188:H189))) -> 8 | I190: =IF((PIVOT!T30-SUM(I188:I189))<0.01,"",(PIVOT!T30-SUM(I188:I189))) ->  | J190: =IF((PIVOT!U30-SUM(J188:J189))<0.01,"",(PIVOT!U30-SUM(J188:J189))) ->  | K190: =IF((PIVOT!V30-SUM(K188:K189))<0.01,"",(PIVOT!V30-SUM(K188:K189))) -> 
A191: TOTAL | B191: =IF(SUM(B188:B190)=0,"",SUM(B188:B190)) -> 349 | C191: 402 | D191: 445 | E191: 482 | F191: 492 | G191: 454 | H191: 415 | I191: 427 | J191: 539 | K191: 522 | M191: =IF(B191="","",SUM(M188:M189)) -> 1 | N191: 1 | O191: 1 | P191: 1 | Q191: 1 | R191: 1 | S191: 1 | T191: 1 | U191: 1 | V191: 1
A192: Age
A193: Age <30 | B193: =IF(PIVOT!M20=0,"",PIVOT!M20) -> 15 | C193: =IF(PIVOT!N20=0,"",PIVOT!N20) -> 21 | D193: =IF(PIVOT!O20=0,"",PIVOT!O20) -> 20 | E193: =IF(PIVOT!P20=0,"",PIVOT!P20) -> 27 | F193: =IF(PIVOT!Q20=0,"",PIVOT!Q20) -> 17 | G193: =IF(PIVOT!R20=0,"",PIVOT!R20) -> 21 | H193: =IF(PIVOT!S20=0,"",PIVOT!S20) -> 26 | I193: =IF(PIVOT!T20=0,"",PIVOT!T20) -> 17 | J193: =IF(PIVOT!U20=0,"",PIVOT!U20) -> 14 | K193: =IF(PIVOT!V20=0,"",PIVOT!V20) -> 27 | M193: =IF(B193="","",B193/SUM(B$193:B$197)) -> 0.04464285714 | N193: =IF(C193="","",C193/SUM(C$193:C$197)) -> 0.0537084399 | O193: =IF(D193="","",D193/SUM(D$193:D$197)) -> 0.04494382022 | P193: =IF(E193="","",E193/SUM(E$193:E$197)) -> 0.05613305613 | Q193: 0.03476482618 | R193: 0.05865921788 | S193: 0.06419753086 | T193: 0.0524691358 | U193: 0.02681992337 | V193: 0.05172413793
A194: Age 30-39 | B194: =IF(PIVOT!M21=0,"",PIVOT!M21) -> 67 | C194: =IF(PIVOT!N21=0,"",PIVOT!N21) -> 93 | D194: =IF(PIVOT!O21=0,"",PIVOT!O21) -> 101 | E194: =IF(PIVOT!P21=0,"",PIVOT!P21) -> 114 | F194: =IF(PIVOT!Q21=0,"",PIVOT!Q21) -> 85 | G194: =IF(PIVOT!R21=0,"",PIVOT!R21) -> 84 | H194: =IF(PIVOT!S21=0,"",PIVOT!S21) -> 83 | I194: =IF(PIVOT!T21=0,"",PIVOT!T21) -> 72 | J194: =IF(PIVOT!U21=0,"",PIVOT!U21) -> 89 | K194: =IF(PIVOT!V21=0,"",PIVOT!V21) -> 121 | M194: =IF(B194="","",B194/SUM(B$193:B$197)) -> 0.1994047619 | N194: 0.2378516624 | O194: 0.2269662921 | P194: 0.237006237 | Q194: 0.1738241309 | R194: 0.2346368715 | S194: 0.2049382716 | T194: 0.2222222222 | U194: 0.1704980843 | V194: 0.2318007663
A195: Age 40-49 | B195: =IF(PIVOT!M22=0,"",PIVOT!M22) -> 116 | C195: =IF(PIVOT!N22=0,"",PIVOT!N22) -> 102 | D195: =IF(PIVOT!O22=0,"",PIVOT!O22) -> 153 | E195: =IF(PIVOT!P22=0,"",PIVOT!P22) -> 144 | F195: =IF(PIVOT!Q22=0,"",PIVOT!Q22) -> 124 | G195: =IF(PIVOT!R22=0,"",PIVOT!R22) -> 110 | H195: =IF(PIVOT!S22=0,"",PIVOT!S22) -> 99 | I195: =IF(PIVOT!T22=0,"",PIVOT!T22) -> 108 | J195: =IF(PIVOT!U22=0,"",PIVOT!U22) -> 135 | K195: =IF(PIVOT!V22=0,"",PIVOT!V22) -> 119 | M195: =IF(B195="","",B195/SUM(B$193:B$197)) -> 0.3452380952 | N195: 0.2608695652 | O195: 0.3438202247 | P195: 0.2993762994 | Q195: 0.2535787321 | R195: 0.3072625698 | S195: 0.2444444444 | T195: 0.3333333333 | U195: 0.2586206897 | V195: 0.2279693487
A196: Age 50-59 | B196: =IF(PIVOT!M23=0,"",PIVOT!M23) -> 112 | C196: =IF(PIVOT!N23=0,"",PIVOT!N23) -> 146 | D196: =IF(PIVOT!O23=0,"",PIVOT!O23) -> 129 | E196: =IF(PIVOT!P23=0,"",PIVOT!P23) -> 142 | F196: =IF(PIVOT!Q23=0,"",PIVOT!Q23) -> 147 | G196: =IF(PIVOT!R23=0,"",PIVOT!R23) -> 65 | H196: =IF(PIVOT!S23=0,"",PIVOT!S23) -> 130 | I196: =IF(PIVOT!T23=0,"",PIVOT!T23) -> 65 | J196: =IF(PIVOT!U23=0,"",PIVOT!U23) -> 206 | K196: =IF(PIVOT!V23=0,"",PIVOT!V23) -> 150 | M196: =IF(B196="","",B196/SUM(B$193:B$197)) -> 0.3333333333 | N196: 0.3734015345 | O196: 0.2898876404 | P196: 0.2952182952 | Q196: 0.3006134969 | R196: 0.1815642458 | S196: 0.3209876543 | T196: 0.200617284 | U196: 0.3946360153 | V196: 0.2873563218
A197: Age 60+ | B197: =IF(PIVOT!M24=0,"",PIVOT!M24) -> 26 | C197: =IF(PIVOT!N24=0,"",PIVOT!N24) -> 29 | D197: =IF(PIVOT!O24=0,"",PIVOT!O24) -> 42 | E197: =IF(PIVOT!P24=0,"",PIVOT!P24) -> 54 | F197: =IF(PIVOT!Q24=0,"",PIVOT!Q24) -> 116 | G197: =IF(PIVOT!R24=0,"",PIVOT!R24) -> 78 | H197: =IF(PIVOT!S24=0,"",PIVOT!S24) -> 67 | I197: =IF(PIVOT!T24=0,"",PIVOT!T24) -> 62 | J197: =IF(PIVOT!U24=0,"",PIVOT!U24) -> 78 | K197: =IF(PIVOT!V24=0,"",PIVOT!V24) -> 105 | M197: =IF(B197="","",B197/SUM(B$193:B$197)) -> 0.07738095238 | N197: 0.07416879795 | O197: 0.09438202247 | P197: 0.1122661123 | Q197: 0.2372188139 | R197: 0.217877095 | S197: 0.1654320988 | T197: =IF(I197="","",I197/SUM(I$193:I$197)) -> 0.1913580247 | U197: =IF(J197="","",J197/SUM(J$193:J$197)) -> 0.1494252874 | V197: =IF(K197="","",K197/SUM(K$193:K$197)) -> 0.2011494253
A198: Unknown age | B198: =IF(PIVOT!M30-SUM(B193:B197)<0.01,"",PIVOT!M30-SUM(B193:B197)) -> 13 | C198: =IF(PIVOT!N30-SUM(C193:C197)<0.01,"",PIVOT!N30-SUM(C193:C197)) -> 11 | D198: =IF(PIVOT!O30-SUM(D193:D197)<0.01,"",PIVOT!O30-SUM(D193:D197)) ->  | E198: =IF(PIVOT!P30-SUM(E193:E197)<0.01,"",PIVOT!P30-SUM(E193:E197)) -> 1 | F198: =IF(PIVOT!Q30-SUM(F193:F197)<0.01,"",PIVOT!Q30-SUM(F193:F197)) -> 3 | G198: =IF(PIVOT!R30-SUM(G193:G197)<0.01,"",PIVOT!R30-SUM(G193:G197)) -> 96 | H198: =IF(PIVOT!S30-SUM(H193:H197)<0.01,"",PIVOT!S30-SUM(H193:H197)) -> 10 | I198: =IF(PIVOT!T30-SUM(I193:I197)<0.01,"",PIVOT!T30-SUM(I193:I197)) -> 103 | J198: =IF(PIVOT!U30-SUM(J193:J197)<0.01,"",PIVOT!U30-SUM(J193:J197)) -> 17 | K198: =IF(PIVOT!V30-SUM(K193:K197)<0.01,"",PIVOT!V30-SUM(K193:K197)) -> 
A199: TOTAL | B199: =IF(SUM(B193:B198)=0,"",SUM(B193:B198)) -> 349 | C199: 402 | D199: 445 | E199: 482 | F199: 492 | G199: 454 | H199: 415 | I199: 427 | J199: 539 | K199: 522 | M199: =IF(B199="","",SUM(M193:M197)) -> 1 | N199: 1 | O199: 1 | P199: 1 | Q199: 1 | R199: 1 | S199: 1 | T199: 1 | U199: 1 | V199: 1
A200: 1 - Data were reported by school, not by degree program.
A201: 2 - Some schools reported more faculty in the demographic breakdowns than in the total. Therefore, some of the totals in this table may be greater than the total number of faculty reported.
A202: † 2011-2012 and 2012-2013 data may be influenced by the allocation of satellite campus data to another region.
A203: *Ethnic minorities include Native American, Asian, African American, Filipino, Hispanic, and other.
A214: Data Profile Characteristics | G214: School……………. | H214: =PIVOT!$B$4 -> (All) | N214: County... | O214: =PIVOT!$B$5 -> (All)
A215: Region….………… | B215: =PIVOT!$B$6 -> Southern Border | G215: Degree Offered….. | H215: =PIVOT!$C$159 -> (All) | P215: Public/Private Programs…. | Q215: =PIVOT!$B$8 -> (All)
A216: *NA=not applicable; data were reported by school, not by degree program.
A218: Clinical Training1 2
A220: Average Hours Spent in Clinical Training
A222: Raw Data | M222: Percentages
A223: Year | M223: Year
B224: Direct Patient Care | D224: Indirect / Skills Labs | F224: Simulation | H224: TOTAL average clinical hours by content area | O224: Direct Patient Care | Q224: Indirect / Skills Labs | S224: Simulation | U224: % of total average clinical hours by content area
A225: Content Area | B225: 2015 | C225: 2016 | D225: 2015 | E225: 2016 | F225: 2015 | G225: 2016 | H225: 2015 | I225: 2016 | M225: Content Area | O225: 2015 | P225: 2016 | Q225: 2015 | R225: 2016 | S225: 2015 | T225: 2016 | U225: 2015 | V225: 2016
A226: Medical/ Surgical | B226: =IF(PIVOT!J110="", "", PIVOT!J110) -> 243.6666667 | C226: =IF(PIVOT!K110="", "", PIVOT!K110) -> 207.1818182 | D226: =IF(PIVOT!J111="", "", PIVOT!J111) -> 16.58333333 | E226: =IF(PIVOT!K111="", "", PIVOT!K111) -> 37.8 | F226: =IF(PIVOT!J112="", "", PIVOT!J112) -> 26.625 | G226: =IF(PIVOT!K112="", "", PIVOT!K112) -> 26 | H226: =IF(PIVOT!J139="","",PIVOT!J139) -> 286.875 | I226: =IF(PIVOT!K139=0,"",PIVOT!K139) -> 267.5454545 | M226: Medical/ Surgical | O226: =IF($B$234="","",B226/$H$234) -> 0.2599457705 | P226: =IF($C$234="","",C226/$I$234) -> 0.2398568647 | Q226: =IF($D$234="","",D226/$H$234) -> 0.01769124772 | R226: =IF($E$234="","",E226/$I$234) -> 0.04376151134 | S226: =IF($F$234="","",F226/$H$234) -> 0.02840378717 | T226: =IF($G$234="","",G226/$I$234) -> 0.03010051045 | U226: =IF($H$234="","",H226/$H$234) -> 0.3060408054 | V226: =IF($I$234="","",I226/$I$234) -> 0.3097405673
A227: Fundamentals | B227: =IF(PIVOT!J113="", "", PIVOT!J113) -> 91.70833333 | C227: =IF(PIVOT!K113="", "", PIVOT!K113) -> 88.63636364 | D227: =IF(PIVOT!J114="", "", PIVOT!J114) -> 31.70833333 | E227: =IF(PIVOT!K114="", "", PIVOT!K114) -> 45.09090909 | F227: =IF(PIVOT!J115="", "", PIVOT!J115) -> 6.666666667 | G227: =IF(PIVOT!K115="", "", PIVOT!K115) -> 6.818181818 | H227: =IF(PIVOT!J138="","", PIVOT!J138) -> 130.0833333 | I227: =IF(PIVOT!K138="","", PIVOT!K138) -> 140.5454545 | M227: Fundamentals | O227: =IF($B$234="","",B227/$H$234) -> 0.09783526692 | P227: =IF($C$234="","",C227/$I$234) -> 0.1026153765 | Q227: =IF($D$234="","",D227/$H$234) -> 0.03382673245 | R227: =IF($E$234="","",E227/$I$234) -> 0.05220228385 | S227: =IF($F$234="","",F227/$H$234) -> 0.007112059386 | T227: =IF($G$234="","",G227/$I$234) -> 0.007893490501 | U227: =IF($H$234="","",H227/$H$234) -> 0.1387740588 | V227: =IF($I$234="","",I227/$I$234) -> 0.1627111509
A228: Obstetrics | B228: =IF(PIVOT!J116="", "", PIVOT!J116) -> 75.20833333 | C228: =IF(PIVOT!K116="", "", PIVOT!K116) -> 66.54545455 | D228: =IF(PIVOT!J117="", "", PIVOT!J117) -> 11.16666667 | E228: =IF(PIVOT!K117="", "", PIVOT!K117) -> 12.81818182 | F228: =IF(PIVOT!J118="", "", PIVOT!J118) -> 7.458333333 | G228: =IF(PIVOT!K118="", "", PIVOT!K118) -> 11.27272727 | H228: =IF(PIVOT!J140="","", PIVOT!J140) -> 93.83333333 | I228: =IF(PIVOT!K140="","", PIVOT!K140) -> 90.63636364 | M228: Obstetrics | O228: 0.08023291994 | P228: 0.07704046729 | Q228: 0.01191269947 | R228: 0.01483976214 | S228: 0.007956616438 | T228: 0.01305057096 | U228: 0.1001022359 | V228: 0.1049308004
A229: Pediatrics | B229: =IF(PIVOT!J119="", "", PIVOT!J119) -> 76.04166667 | C229: =IF(PIVOT!K119="", "", PIVOT!K119) -> 67.72727273 | D229: =IF(PIVOT!J120="", "", PIVOT!J120) -> 11 | E229: =IF(PIVOT!K120="", "", PIVOT!K120) -> 11.63636364 | F229: =IF(PIVOT!J121="", "", PIVOT!J121) -> 6.458333333 | G229: =IF(PIVOT!K121="", "", PIVOT!K121) -> 9.454545455 | H229: =IF(PIVOT!J141="","", PIVOT!J141) -> 93.5 | I229: =IF(PIVOT!K141="","", PIVOT!K141) -> 88.81818182 | M229: Pediatrics | O229: 0.08112192737 | P229: 0.07840867231 | Q229: 0.01173489799 | R229: 0.01347155712 | S229: =IF($F$229="","",F229/$H$234) -> 0.00688980753 | T229: 0.01094564016 | U229: 0.09974663288 | V229: 0.1028258696
A230: Geriatrics | B230: =IF(PIVOT!J122="", "", PIVOT!J122) -> 110.0833333 | C230: =IF(PIVOT!K122="", "", PIVOT!K122) -> 98.5 | D230: =IF(PIVOT!J123="", "", PIVOT!J123) -> 0 | E230: =IF(PIVOT!K123="", "", PIVOT!K123) -> 7.727272727 | F230: =IF(PIVOT!J124="", "", PIVOT!J124) -> 3.833333333 | G230: =IF(PIVOT!K124="", "", PIVOT!K124) -> 6.272727273 | H230: =IF(PIVOT!J142="","", PIVOT!J142) -> 113.9166667 | I230: =IF(PIVOT!K142="","", PIVOT!K142) -> 112.5 | M230: Geriatrics | O230: 0.1174378806 | P230: 0.1140346261 | Q230: 0 | R230: 0.008945955902 | S230: 0.004089434147 | T230: 0.007262011261 | U230: 0.1215273148 | V230: 0.1302425933
A231: Psychiatry/ Mental Health | B231: =IF(PIVOT!J125="", "", PIVOT!J125) -> 77.58333333 | C231: =IF(PIVOT!K125="", "", PIVOT!K125) -> 70.81818182 | D231: =IF(PIVOT!J126="", "", PIVOT!J126) -> 9 | E231: =IF(PIVOT!K126="", "", PIVOT!K126) -> 9.545454545 | F231: =IF(PIVOT!J127="", "", PIVOT!J127) -> 6.833333333 | G231: =IF(PIVOT!K127="", "", PIVOT!K127) -> 3.090909091 | H231: =IF(PIVOT!J143="","", PIVOT!J143) -> 93.41666667 | I231: =IF(PIVOT!K143="","", PIVOT!K143) -> 83.45454545 | M231: Psychiatry/ Mental Health | O231: 0.0827665911 | P231: 0.08198705468 | Q231: 0.009601280171 | R231: 0.0110508867 | S231: 0.00728986087 | T231: 0.003578382361 | U231: 0.09965773214 | V231: 0.09661632374
A232: Leadership/ Management | B232: =IF(PIVOT!J128="", "", PIVOT!J128) -> 79.41666667 | C232: =IF(PIVOT!K128="", "", PIVOT!K128) -> 70 | D232: =IF(PIVOT!J129="", "", PIVOT!J129) -> 0.6666666667 | E232: =IF(PIVOT!K129="", "", PIVOT!K129) -> 0 | F232: =IF(PIVOT!J130="", "", PIVOT!J130) -> 2.166666667 | G232: =IF(PIVOT!K130="", "", PIVOT!K130) -> 0.5454545455 | H232: =IF(PIVOT!J144="","", PIVOT!J144) -> 82.25 | I232: =IF(PIVOT!K144="","", PIVOT!K144) -> 70.54545455 | M232: Leadership/ Management | O232: 0.08472240743 | P232: 0.08103983582 | Q232: 0.0007112059386 | R232: 0 | S232: 0.0023114193 | T232: 0.0006314792401 | U232: 0.08774503267 | V232: 0.08167131506
... 6 more rows

Sheet GRAPHS
A2: Nursing Program Data
A40: Data Profile Characteristics | F40: School……………. | G40: =PIVOT!$B$4 -> (All) | K40: County……….... | L40: =PIVOT!$B$5 -> (All)
A41: Region….………… | B41: =PIVOT!$B$6 -> Southern Border | F41: Degree Offered….. | G41: =PIVOT!$B$7 -> (All) | L41: Public/Private Programs…. | M41: =PIVOT!$B$8 -> (All)
A42: † 2011-2012 and 2012-2013 data may be influenced by the allocation of satellite campus data to another region.
A44: Nursing Program Data (continued)
A82: Data Profile Characteristics | F82: School……………. | G82: =PIVOT!$B$4 -> (All) | K82: County……….... | L82: =PIVOT!$B$5 -> (All)
A83: Region….………… | B83: =PIVOT!$B$6 -> Southern Border | F83: Degree Offered….. | G83: =PIVOT!$B$7 -> (All) | L83: Public/Private Programs…. | M83: =PIVOT!$B$8 -> (All)
A84: † 2011-2012 and 2012-2013 data may be influenced by the allocation of satellite campus data to another region.
A87: Newly Enrolled Nursing Students
A124: Data Profile Characteristics | F124: School……………. | G124: =PIVOT!$B$4 -> (All) | K124: County……….... | L124: =PIVOT!$B$5 -> (All)
A125: Region….………… | B125: =PIVOT!$B$6 -> Southern Border | F125: Degree Offered….. | G125: =PIVOT!$B$7 -> (All) | L125: Public/Private Programs…. | M125: =PIVOT!$B$8 -> (All)
A126: **Percentages only include students for whom gender was reported. Missing values were excluded.
A127: †2011-2012 and 2012-2013 data may be influenced by the allocation of satellite campus data to another region.
A129: Students who Completed a Nursing Program
A166: Data Profile Characteristics | F166: School……………. | G166: =PIVOT!$B$4 -> (All) | K166: County……….... | L166: =PIVOT!$B$5 -> (All)
A167: Region….………… | B167: =PIVOT!$B$6 -> Southern Border | F167: Degree Offered….. | G167: =PIVOT!$B$7 -> (All) | L167: Public/Private Programs…. | M167: =PIVOT!$B$8 -> (All)
A168: **Percentages only include students for whom gender was reported. Missing values were excluded.; 2011-2012 and 2012-2013 data may be influenced by the allocation of satellite campus data to another region.
A170: Faculty Demographics
A206: Data Profile Characteristics | F206: School……………. | G206: =PIVOT!$B$4 -> (All) | K206: County……….... | L206: =PIVOT!$B$5 -> (All)
A207: Region….………… | B207: =PIVOT!$B$6 -> Southern Border | L207: Public/Private Programs…. | M207: =PIVOT!$B$8 -> (All)
A208: *NA=not applicable; data were reported by school, not by degree program.
A209: **Percentages only include students for whom gender was reported. Missing values were excluded.; 2011-2012 and 2012-2013 data may be influenced by the allocation of satellite campus data to another region.

Sheet PIVOT (hidden)
A1: PIVOT TABLES
A2: Program Data | L2: School Data
A4: School | B4: (All) | L4: School | M4: (All)
A5: County | B5: (All) | L5: County | M5: (All) | X5: School | Y5: 1 | Z5: =INDEX(X6:X147,Y5) -> (All) | AB5: County | AC5: 1 | AD5: =INDEX($AB$6:$AB$42,$AC$5) -> (All)
A6: Region | B6: Southern Border | L6: Region | M6: Southern Border | X6: (All) | AB6: (All)
A7: Degree Offered | B7: (All) | L7: Public/Private | M7: (All) | X7: Allan Hancock College | AB7: Alameda
A8: Public/Private | B8: (All) | X8: American Career College | AB8: Butte
X9: American River College | AB9: Contra Costa
B10: Year | M10: 2006-2007 | N10: 2007-2008 | O10: 2008-2009 | P10: 2009-2010 | Q10: 2010-2011 | R10: 2011-2012 | S10: 2012-2013 | T10: 2013-2014 | U10: 2014-2015 | V10: 2015-2016 | X10: American University of Health Sciences | AB10: Fresno
A11: Data | B11: 2006-2007 | C11: 2007-2008 | D11: 2008-2009 | E11: 2009-2010 | F11: 2010-2011 | G11: 2011-2012 | H11: 2012-2013 | I11: 2013-2014 | J11: 2014-2015 | K11: 2015-2016 | L11: Sum of FacAmInd | M11: 0 | N11: 1 | O11: 2 | P11: 0 | Q11: 0 | R11: 0 | S11: 1 | T11: 2 | U11: 3 | V11: 4 | X11: Antelope Valley College | AB11: Humboldt
A12: Count of School | B12: 13 | C12: 13 | D12: 13 | E12: 13 | F12: 13 | G12: 14 | H12: 14 | I12: 15 | J12: 13 | K12: 13 | L12: Sum of FacAsian | M12: 14 | N12: 26 | O12: 38 | P12: 55 | Q12: 31 | R12: 30 | S12: 18 | T12: 35 | U12: 29 | V12: 41 | X12: Azusa Pacific University | AB12: Imperial
A13: Sum of AD | B13: 8 | C13: 8 | D13: 7 | E13: 7 | F13: 7 | G13: 7 | H13: 7 | I13: 7 | J13: 7 | K13: 7 | L13: Sum of FacAfAm | M13: 15 | N13: 17 | O13: 20 | P13: 19 | Q13: 31 | R13: 16 | S13: 14 | T13: 28 | U13: 26 | V13: 39 | X13: Bakersfield College | AB13: Kern
A14: Sum of BSN | B14: 4 | C14: 4 | D14: 4 | E14: 4 | F14: 4 | G14: 4 | H14: 5 | I14: 5 | J14: 4 | K14: 5 | L14: Sum of FacFilipino | M14: 30 | N14: 27 | O14: 22 | P14: 29 | Q14: 42 | R14: 39 | S14: 46 | T14: 42 | U14: 48 | V14: 52 | X14: Biola University | AB14: Kings
A15: Sum of ELM | B15: 1 | C15: 1 | D15: 2 | E15: 2 | F15: 2 | G15: 3 | H15: 2 | I15: 3 | J15: 2 | K15: 1 | L15: Sum of FacHisp | M15: 18 | N15: 24 | O15: 33 | P15: 31 | Q15: 36 | R15: 28 | S15: 30 | T15: 39 | U15: 45 | V15: 57 | X15: Brightwood College | AB15: Los Angeles
A16: Sum of Public | B16: 8 | C16: 8 | D16: 8 | E16: 8 | F16: 8 | G16: 8 | H16: 8 | I16: 8 | J16: 8 | K16: 8 | L16: Sum of FacWhite | M16: 267 | N16: 304 | O16: 321 | P16: 341 | Q16: 329 | R16: 291 | S16: 285 | T16: 253 | U16: 363 | V16: 310 | X16: Butte Community College | AB16: Madera
A17: Sum of Qualified Applicants | B17: 2637 | C17: 2378 | D17: 2802 | E17: 2751 | F17: 2117 | G17: 2887 | H17: 2555 | I17: 2501 | J17: 2264 | K17: 2390 | L17: Sum of FacOthRace | N17: 3 | O17: 6 | P17: 3 | Q17: 7 | R17: 8 | S17: 7 | T17: 21 | U17: 22 | V17: 14 | X17: Cabrillo Community College | AB17: Marin
A18: Sum of Slots Available | B18: 1173 | C18: 1176 | D18: 1140 | E18: 1212 | F18: 1351 | G18: 1148 | H18: 1099 | I18: 1203 | J18: 1175 | K18: 1157 | L18: Sum of FacFemale | M18: 319 | N18: 359 | O18: 401 | P18: 426 | Q18: 439 | R18: 402 | S18: 364 | T18: 383 | U18: 486 | V18: 457 | X18: California Baptist University | AB18: Mendocino
A19: Sum of SlotsFilled | B19: 1211 | C19: 1241 | D19: 1276 | E19: 1484 | F19: 1523 | G19: 1223 | H19: 1033 | I19: 1303 | J19: 1383 | K19: 1354 | L19: Sum of FacMale | M19: 30 | N19: 43 | O19: 44 | P19: 56 | Q19: 53 | R19: 50 | S19: 43 | T19: 44 | U19: 53 | V19: 65 | X19: Carrington College | AB19: Merced
A20: Sum of RestrictAdm | L20: Sum of Fac30m | M20: 15 | N20: 21 | O20: 20 | P20: 27 | Q20: 17 | R20: 21 | S20: 26 | T20: 17 | U20: 14 | V20: 27 | X20: Cerritos College | AB20: Monterey
A21: Sum of ResAdmFaculty | L21: Sum of fac3039 | M21: 67 | N21: 93 | O21: 101 | P21: 114 | Q21: 85 | R21: 84 | S21: 83 | T21: 72 | U21: 89 | V21: 121 | X21: Chabot College | AB21: Napa
A22: Sum of ResAdmSpace | L22: Sum of fac4049 | M22: 116 | N22: 102 | O22: 153 | P22: 144 | Q22: 124 | R22: 110 | S22: 99 | T22: 108 | U22: 135 | V22: 119 | X22: Chaffey College | AB22: Orange
A23: Sum of ResAdmFund | L23: Sum of fac5059 | M23: 112 | N23: 146 | O23: 129 | P23: 142 | Q23: 147 | R23: 65 | S23: 130 | T23: 65 | U23: 206 | V23: 150 | X23: Chamberlain College | AB23: Placer
A24: Sum of ResAdmClin | L24: Sum of fac60p | M24: 26 | N24: 29 | O24: 42 | P24: 54 | Q24: 116 | R24: 78 | S24: 67 | T24: 62 | U24: 78 | V24: 105 | X24: Charles R. Drew University of Medicine and Science | AB24: Riverside
A25: Sum of ResAdmQualApp | L25: Sum of facothage | M25: 13 | N25: 11 | O25: 0 | P25: 1 | Q25: 3 | R25: 36 | T25: 4 | U25: 17 | V25: 0 | X25: Citrus College | AB25: Sacramento
A26: Sum of ResAdmEquip | L26: Sum of facft | M26: 124 | N26: 134 | O26: 136 | P26: 143 | Q26: 148 | R26: 139 | S26: 157 | T26: 131 | U26: 168 | V26: 166 | X26: City College of San Francisco | AB26: San Bernardino
A27: Sum of ResAdmOther | L27: Sum of facpt | M27: 225 | N27: 268 | O27: 309 | P27: 339 | Q27: 344 | R27: 315 | S27: 258 | T27: 280 | U27: 327 | V27: 377 | X27: CNI College (Career Networks Institute) | AB27: San Diego
A28: Sum of EnrNatAm | B28: 13 | C28: 6 | D28: 11 | E28: 9 | F28: 8 | G28: 7 | H28: 15 | I28: 3 | J28: 6 | K28: 4 | L28: Sum of facvacant | M28: 21 | N28: 14 | O28: 10 | P28: 11 | Q28: 20 | R28: 21 | S28: 11 | T28: 52 | U28: 35 | V28: 70 | X28: College of Marin | AB28: San Francisco
A29: Sum of EnrAsian | B29: 100 | C29: 123 | D29: 152 | E29: 199 | F29: 161 | G29: 214 | H29: 165 | I29: 158 | J29: 168 | K29: 146 | L29: Sum of sumfacftpt | M29: 349 | O29: 445 | P29: 482 | Q29: 492 | R29: 454 | T29: 411 | U29: 495 | V29: 543 | X29: College of San Mateo | AB29: San Joaquin
A30: Sum of EnrAfAm | B30: 64 | C30: 50 | D30: 51 | E30: 68 | F30: 65 | G30: 38 | H30: 45 | I30: 59 | J30: 45 | K30: 55 | L30: Sum of totalfac | M30: 349 | N30: 402 | O30: 445 | P30: 482 | Q30: 492 | R30: 454 | S30: 415 | T30: 427 | U30: 539 | V30: 522 | X30: College of the Canyons | AB30: San Luis Obispo
A31: Sum of EnrFilipino | B31: 246 | C31: 240 | D31: 234 | E31: 214 | F31: 232 | G31: 137 | H31: 102 | I31: 140 | J31: 112 | K31: 196 | L31: Average of AttritFinNeed | M31: 2.583333333 | N31: 2.75 | O31: 2.909090909 | P31: 2.923076923 | Q31: 2.769230769 | R31: 4 | S31: 3.333333333 | T31: 2.666666667 | U31: 2.833333333 | V31: 3.363636364 | X31: College of the Desert | AB31: San Mateo
A32: Sum of EnrHisp | B32: 206 | C32: 211 | D32: 198 | E32: 250 | F32: 249 | G32: 158 | H32: 159 | I32: 242 | J32: 262 | K32: 247 | L32: Average of AttritFamilyWork | M32: 2 | N32: 2.333333333 | O32: 2.666666667 | P32: 2.230769231 | Q32: 1.692307692 | R32: 2.090909091 | S32: 2.083333333 | T32: 2.5 | U32: 1.923076923 | V32: 2 | X32: College of the Redwoods | AB32: Santa Barbara
A33: Sum of EnrWhite | B33: 483 | C33: 536 | D33: 553 | E33: 630 | F33: 665 | G33: 570 | H33: 487 | I33: 593 | J33: 615 | K33: 572 | L33: Average of AttritAcademic | M33: 1.5 | N33: 1.583333333 | O33: 1.636363636 | P33: 1.384615385 | Q33: 1.615384615 | R33: 1.5 | S33: 1.384615385 | T33: 1.636363636 | U33: 1.538461538 | V33: 1.727272727 | X33: College of the Sequoias | AB33: Santa Clara
A34: Sum of EnrOthRace | C34: 29 | D34: 22 | E34: 56 | F34: 62 | G34: 15 | H34: 23 | I34: 58 | J34: 110 | K34: 81 | L34: Average of AttritMajor | M34: 2.75 | N34: 4.333333333 | O34: 4.8 | P34: 3.846153846 | Q34: 3.384615385 | R34: 3.5 | S34: 4 | T34: 3.222222222 | U34: 3.1 | V34: 3.9 | X34: College of the Siskiyous | AB34: Santa Cruz
A35: Sum of Enrolled Female | B35: 1012 | C35: 986 | D35: 1066 | E35: 1177 | F35: 1198 | G35: 951 | H35: 797 | I35: 1049 | J35: 1113 | K35: 1096 | L35: Average of AttritTrsf | M35: 2.333333333 | N35: 4.333333333 | O35: 6.111111111 | P35: 4.538461538 | Q35: 4.153846154 | R35: 4.5 | S35: 4.125 | T35: 4.166666667 | U35: 4.5 | V35: 5.75 | X35: Concordia University Irvine | AB35: Shasta
A36: Sum of Enrolled Male | B36: 199 | C36: 242 | D36: 210 | E36: 298 | F36: 323 | G36: 246 | H36: 235 | I36: 254 | J36: 270 | K36: 258 | L36: Average of AttritClinFailure | M36: 2.083333333 | N36: 2.666666667 | O36: 3.076923077 | P36: 2.923076923 | Q36: 3.153846154 | R36: 3.4 | S36: 3.666666667 | T36: 3.5 | U36: 3.454545455 | V36: 4 | X36: Contra Costa College | AB36: Siskiyou
A37: Sum of Enrolled Unknown Gender | B37: 0 | C37: 13 | D37: 0 | E37: 9 | F37: 2 | G37: 26 | H37: 1 | I37: 0 | J37: 0 | K37: 0 | L37: Sum of RestrictAdm | X37: Copper Mountain College | AB37: Solano
A38: Sum of CompNatAm | B38: 7 | C38: 7 | D38: 9 | E38: 13 | F38: 7 | G38: 1 | H38: 1 | I38: 7 | J38: 10 | K38: 3 | L38: Sum of ResAdmFaculty | M38: 8 | N38: 7 | O38: 7 | P38: 8 | Q38: 7 | R38: 7 | S38: 7 | T38: 9 | U38: 10 | V38: 7 | X38: CSU Bakersfield | AB38: Sonoma
A39: Sum of CompAsian | B39: 51 | C39: 69 | D39: 112 | E39: 130 | F39: 94 | G39: 233 | H39: 153 | I39: 154 | J39: 177 | K39: 137 | L39: Sum of ResAdmSpace | M39: 6 | N39: 7 | O39: 5 | P39: 5 | Q39: 3 | R39: 5 | S39: 5 | T39: 6 | U39: 6 | V39: 5 | X39: CSU Channel Islands | AB39: Stanislaus
A40: Sum of CompAfAm | B40: 37 | C40: 41 | D40: 36 | E40: 45 | F40: 41 | G40: 55 | H40: 42 | I40: 32 | J40: 77 | K40: 57 | L40: Sum of ResAdmFund | M40: 5 | N40: 5 | O40: 8 | P40: 8 | Q40: 9 | R40: 7 | S40: 6 | T40: 6 | U40: 7 | V40: 4 | X40: CSU Chico | AB40: Tulare
A41: Sum of CompFilipino | B41: 150 | C41: 169 | D41: 194 | E41: 198 | F41: 193 | G41: 115 | H41: 86 | I41: 118 | J41: 71 | K41: 125 | L41: Sum of ResAdmClin | M41: 8 | N41: 10 | O41: 10 | P41: 11 | Q41: 11 | R41: 12 | S41: 10 | T41: 13 | U41: 12 | V41: 10 | X41: CSU Dominguez Hills | AB41: Ventura
A42: Sum of CompHisp | B42: 142 | C42: 132 | D42: 196 | E42: 195 | F42: 174 | G42: 145 | H42: 166 | I42: 159 | J42: 166 | K42: 269 | L42: Sum of ResAdmQualApp | X42: CSU East Bay | AB42: Yuba
A43: Sum of CompWhite | B43: 359 | C43: 408 | D43: 457 | E43: 523 | F43: 517 | G43: 444 | H43: 525 | I43: 500 | J43: 572 | K43: 576 | L43: Sum of ResAdmEquip | X43: CSU Fresno
A44: Sum of CompOthRace | C44: 21 | D44: 36 | E44: 32 | F44: 18 | G44: 29 | H44: 22 | I44: 22 | J44: 59 | K44: 60 | L44: Sum of ResAdmOther | M44: 6 | N44: 2 | O44: 4 | P44: 2 | Q44: 3 | R44: 5 | X44: CSU Fullerton
A45: Sum of CompFemale | B45: 673 | C45: 727 | D45: 898 | E45: 1024 | F45: 939 | G45: 885 | H45: 863 | I45: 859 | J45: 941 | K45: 1006 | L45: Sum of Faculty Vacancy Rates | M45: 0.05675675676 | N45: 0.03365384615 | O45: 0.02197802198 | P45: 0.02231237323 | Q45: 0.0390625 | R45: 0.04421052632 | S45: 0.02582159624 | T45: 0.108559499 | U45: 0.06097560976 | V45: 0.1182432432 | X45: CSU Long Beach
A46: Sum of CompMale | B46: 115 | C46: 137 | D46: 164 | E46: 210 | F46: 166 | G46: 206 | H46: 184 | I46: 188 | J46: 240 | K46: 254 | L46: Sum of facretired | M46: 20 | N46: 12 | O46: 19 | P46: 62 | Q46: 36 | R46: 32 | S46: 43 | T46: 94 | U46: 68 | V46: 94 | X46: CSU Los Angeles
A47: Sum of Completions Gender Unknown | B47: 0 | C47: 0 | D47: 0 | E47: 9 | F47: 20 | G47: 2 | H47: 2 | I47: 0 | J47: 0 | K47: 0 | L47: Sum of facretirenextyr | M47: 3 | N47: 4 | O47: 9 | P47: 6 | Q47: 11 | R47: 12 | S47: 17 | T47: 11 | U47: 31 | V47: 21 | X47: CSU Northridge
A48: Sum of CompTotal | B48: 788 | C48: 864 | D48: 1062 | E48: 1243 | F48: 1125 | G48: 1093 | H48: 1049 | I48: 1047 | J48: 1181 | K48: 1250 | L48: Sum of facassoc | M48: 8 | N48: 9 | O48: 10 | P48: 12 | Q48: 7 | R48: 3 | S48: 2 | T48: 1 | U48: 17 | V48: 2 | X48: CSU Sacramento
A49: Sum of CohEnrTotal | B49: 820 | C49: 926 | D49: 1186 | E49: 1355 | F49: 1134 | G49: 1208 | H49: 956 | I49: 1182 | J49: 1285 | K49: 1209 | L49: Sum of facbach | M49: 63 | N49: 76 | O49: 97 | P49: 111 | Q49: 103 | R49: 81 | S49: 73 | T49: 75 | U49: 102 | V49: 157 | X49: CSU San Bernardino
A50: Sum of CohCompontime | B50: 649 | C50: 712 | D50: 914 | E50: 1015 | F50: 902 | G50: 989 | H50: 684 | I50: 955 | J50: 1063 | K50: 867 | L50: Sum of facmaster | M50: 235 | N50: 269 | O50: 276 | P50: 300 | Q50: 303 | R50: 284 | S50: 269 | T50: 254 | U50: 272 | V50: 275 | X50: CSU San Marcos
A51: Sum of CohStillEnr | B51: 64 | C51: 61 | D51: 100 | E51: 114 | F51: 53 | G51: 49 | H51: 104 | I51: 19 | J51: 38 | K51: 185 | L51: Sum of facdoctoral | M51: 43 | N51: 48 | O51: 62 | P51: 59 | Q51: 76 | R51: 64 | S51: 61 | T51: 79 | U51: 101 | V51: 109 | X51: CSU Stanislaus
A52: Sum of CohAttrit | B52: 107 | C52: 153 | D52: 172 | E52: 162 | F52: 110 | G52: 121 | H52: 140 | I52: 179 | J52: 106 | K52: 107 | L52: Sum of FacUnkRace | M52: 3 | N52: 0 | O52: 3 | P52: 4 | Q52: 16 | R52: 42 | S52: 7 | T52: 7 | U52: 3 | V52: 5 | X52: Cuesta College
A53: Sum of CensusTotal | B53: 2199 | C53: 2355 | D53: 2507 | E53: 2702 | F53: 2288 | G53: 2418 | H53: 2429 | I53: 2378 | J53: 2815 | K53: 2475 | L53: Sum of Main Campus | M53: 12 | N53: 12 | O53: 13 | P53: 13 | Q53: 13 | R53: 13 | S53: 13 | T53: 13 | U53: 13 | V53: 13 | X53: Cypress College
A54: Sum of CensusPreRN | B54: 223 | C54: 1535 | D54: 1431 | X54: De Anza College
A55: Sum of OfferAccel | B55: 5 | C55: 6 | D55: 6 | E55: 5 | F55: 6 | G55: 3 | H55: 3 | I55: 3 | X55: Dominican University of California
A56: Sum of OfferWknd | B56: 3 | C56: 3 | D56: 3 | E56: 2 | F56: 1 | G56: 1 | H56: 2 | I56: 2 | X56: East Los Angeles College
A57: Sum of OfferPT | C57: 2 | X57: El Camino College
A58: Sum of OfferExtCampus | C58: 2 | D58: 1 | E58: 1 | F58: 2 | G58: 2 | H58: 1 | X58: El Camino College - Compton Education Center
A59: Sum of AD Qual Apps | B59: 1433 | C59: 1377 | D59: 1677 | E59: 1448 | F59: 1240 | G59: 1467 | H59: 1238 | I59: 1380 | J59: 1128 | K59: 1360 | X59: Everest College
A60: Sum of BSN Qual Apps | B60: 1104 | C60: 901 | D60: 1011 | E60: 1203 | F60: 745 | G60: 1188 | H60: 1088 | I60: 820 | J60: 1004 | K60: 930 | X60: Evergreen Valley College
A61: Sum of ELM Qual Apps | B61: 100 | C61: 100 | D61: 114 | E61: 100 | F61: 132 | G61: 232 | H61: 229 | I61: 301 | J61: 132 | K61: 100 | X61: Fresno City College
A62: Sum of NCLEX Taken | B62: 812 | C62: 878 | D62: 884 | E62: 1097 | F62: 1223 | G62: 1193 | H62: 1154 | I62: 1047 | J62: 1062 | K62: 1143 | X62: Gavilan College
A63: Sum of NCLEX Passed | B63: 724.9972 | C63: 733.998 | D63: 769 | E63: 957 | F63: 1049 | G63: 1071 | H63: 1036 | I63: 912.9968 | J63: 972 | K63: 1028 | X63: Glendale Community College
A64: Sum of NCLEX Pass Rates | B64: 0.8928536946 | C64: 0.8359886105 | D64: 0.8699095023 | E64: 0.872379216 | F64: 0.8577269011 | G64: 0.897736798 | H64: 0.8977469671 | I64: 0.8720122254 | J64: 0.9152542373 | K64: 0.8993875766 | X64: Golden West Community College
A65: Sum of AD NCLEX Pass Rates | B65: 0.8698994175 | C65: 0.8040245421 | D65: 0.8451730419 | E65: 0.8860103627 | F65: 0.8430232558 | G65: 0.9239373602 | H65: 0.88 | I65: 0.8255608511 | J65: 0.8752941176 | K65: 0.8583877996 | X65: Grossmont College
A66: Sum of BSN NCLEX Pass Rates | B66: 0.9302313953 | C66: 0.8864388013 | D66: 0.9093851133 | E66: 0.8607843137 | F66: 0.8736 | G66: 0.8945736434 | H66: 0.9147909968 | I66: 0.9278626186 | J66: 0.9434276206 | K66: 0.9269005848 | X66: Hartnell College
A67: Sum of ELM NCLEX Pass Rates | B67: 0.9487 | C67: 0.9333 | D67: 0.9230769231 | E67: 0.625 | F67: 0.8292682927 | G67: 0.801980198 | H67: 0.84375 | I67: 0.719992 | J67: 0.9166666667 | X67: Holy Names University
A68: Sum of ProjEnrNextYr | B68: 1219 | C68: 1182 | D68: 1665 | E68: 1768 | F68: 1237 | G68: 1271 | H68: 1276 | I68: 1276 | J68: 1350 | K68: 1405 | X68: Humboldt State University
A69: Sum of ProjEnr2Yr | B69: 1289 | C69: 1155 | D69: 1631 | E69: 1778 | F69: 1243 | G69: 1276 | H69: 1259 | I69: 1322 | J69: 1345 | K69: 1405 | X69: Imperial Valley College
A70: Sum of AD Census | B70: 1104 | C70: 1208 | D70: 1063 | E70: 1027 | F70: 1021 | G70: 1049 | H70: 949 | I70: 982 | J70: 964 | K70: 823 | X70: ITT Technical Institute
A71: Sum of BSN Census | B71: 1052 | C71: 1062 | D71: 1301 | E71: 1469 | F71: 1084 | G71: 1158 | H71: 1296 | I71: 1159 | J71: 1756 | K71: 1540 | X71: L.A. City College
A72: Sum of ELM Census | B72: 43 | C72: 85 | D72: 143 | E72: 206 | F72: 183 | G72: 211 | H72: 184 | I72: 237 | J72: 95 | K72: 112 | X72: L.A. County College of Nursing and Allied Health
A73: Sum of Enr1825 | X73: L.A. Harbor College
A74: Sum of Enr2635 | X74: L.A. Pierce College
A75: Sum of Enr3645 | X75: L.A. Southwest College
A76: Sum of Enr4655 | X76: L.A. Trade-Tech College
A77: Sum of Enr56p | X77: L.A. Valley College
A78: Sum of enrothage | X78: Loma Linda University
A79: Sum of enr25 | B79: 522 | C79: 527 | D79: 564 | E79: 551 | F79: 599 | G79: 381 | H79: 486 | I79: 594 | J79: 830 | K79: 593 | X79: Long Beach City College
A80: Sum of enr30 | B80: 282 | C80: 276 | D80: 327 | E80: 382 | F80: 424 | G80: 343 | H80: 230 | I80: 315 | J80: 327 | K80: 302 | X80: Los Medanos College
A81: Sum of enr40 | B81: 241 | C81: 268 | D81: 242 | E81: 358 | F81: 337 | G81: 253 | H81: 228 | I81: 249 | J81: 203 | K81: 277 | X81: Mendocino College
A82: Sum of enr50 | B82: 131 | C82: 129 | D82: 90 | E82: 146 | F82: 113 | G82: 97 | H82: 68 | I82: 112 | J82: 52 | K82: 75 | X82: Merced College
A83: Sum of enr60 | B83: 24 | C83: 29 | D83: 26 | E83: 38 | F83: 43 | G83: 16 | H83: 20 | I83: 23 | J83: 25 | K83: 53 | X83: Merritt College
A84: Sum of enr60p | B84: 10 | C84: 0 | D84: 0 | E84: 1 | F84: 2 | G84: 1 | H84: 1 | I84: 1 | J84: 0 | K84: 1 | X84: Mira Costa College
A85: Sum of enrageunk | B85: 1 | C85: 12 | D85: 27 | E85: 8 | F85: 5 | G85: 20 | H85: 0 | I85: 0 | J85: 0 | K85: 53 | X85: Mission College
A86: Sum of Comp1825 | X86: Modesto Junior College
A87: Sum of Comp2635 | X87: Monterey Peninsula College
A88: Sum of Comp3645 | X88: Moorpark College
A89: Sum of Comp4655 | X89: Mount San Antonio College
A90: Sum of comp56p | X90: Mount San Jacinto College
A91: Sum of compothage | X91: Mount St. Mary's University
A92: Sum of comp25 | B92: 261 | C92: 314 | D92: 403 | E92: 502 | F92: 456 | G92: 321 | H92: 331 | I92: 361 | J92: 430 | K92: 494 | X92: Mount St. Mary's University AD
A93: Sum of comp30 | B93: 214 | C93: 227 | D93: 274 | E93: 346 | F93: 274 | G93: 302 | H93: 316 | I93: 313 | J93: 302 | K93: 357 | X93: Mount St. Mary's University BSN
A94: Sum of comp40 | B94: 223 | C94: 200 | D94: 245 | E94: 258 | F94: 258 | G94: 244 | H94: 295 | I94: 234 | J94: 294 | K94: 257 | X94: Napa Valley College
A95: Sum of comp50 | B95: 74 | C95: 100 | D95: 98 | E95: 112 | F95: 93 | G95: 111 | H95: 87 | I95: 84 | J95: 103 | K95: 71 | X95: National University
A96: Sum of comp60 | B96: 14 | C96: 22 | D96: 24 | E96: 21 | F96: 19 | G96: 21 | H96: 19 | I96: 30 | J96: 18 | K96: 27 | X96: Ohlone College
A97: Sum of comp60p | B97: 2 | C97: 1 | D97: 0 | E97: 1 | F97: 5 | G97: 0 | H97: 0 | I97: 1 | J97: 0 | K97: 1 | X97: Pacific Union College
A98: Sum of compageunk | B98: 0 | C98: 0 | D98: 18 | E98: 3 | F98: 20 | G98: 93 | H98: 1 | I98: 24 | J98: 34 | K98: 43 | X98: Palomar College
A99: Sum of AD Completions | B99: 503 | C99: 576 | D99: 573 | E99: 549 | F99: 468 | G99: 442 | H99: 493 | I99: 508 | J99: 500 | K99: 493 | X99: Pasadena City College
A100: Sum of BSN Completions | B100: 250 | C100: 288 | D100: 447 | E100: 641 | F100: 557 | G100: 477 | H100: 458 | I100: 441 | J100: 605 | K100: 715 | X100: Point Loma Nazarene University
A101: Sum of ELM Completions | B101: 35 | C101: 0 | D101: 42 | E101: 53 | F101: 100 | G101: 174 | H101: 98 | I101: 98 | J101: 76 | K101: 42 | X101: Porterville College
A102: Sum of CohChecksum | B102: 820 | C102: 926 | D102: 1186 | E102: 1291 | F102: 1065 | G102: 1159 | H102: 928 | I102: 1153 | J102: 1207 | K102: 1159 | X102: Reedley College
A103: Sum of CompUnkRace | B103: 22 | C103: 17 | D103: 22 | E103: 107 | F103: 81 | G103: 71 | H103: 54 | I103: 55 | J103: 49 | K103: 23 | X103: Rio Hondo College
A104: Sum of EnrUnkRace | B104: 33 | C104: 46 | D104: 55 | E104: 58 | F104: 81 | G104: 84 | H104: 35 | I104: 48 | J104: 59 | K104: 53 | X104: Riverside City College
A105: Sum of Main Campus | G105: 13 | H105: 13 | I105: 13 | J105: 13 | K105: 13 | X105: Sacramento City College
A106: Sum of AD Main Campus | G106: 7 | H106: 7 | I106: 7 | J106: 7 | K106: 7 | X106: Saddleback College
A107: Sum of BSN Main Campus | G107: 4 | H107: 5 | I107: 4 | J107: 4 | K107: 5 | X107: Samuel Merritt University
A108: Sum of ELM Main Campus | G108: 2 | H108: 1 | I108: 2 | J108: 2 | K108: 1 | X108: San Bernardino Valley College
A109: Sum of Public Main Campus | G109: 8 | H109: 8 | I109: 8 | J109: 8 | K109: 8 | X109: San Diego City College
A110: Average of simmedsurg_patient | J110: 243.6666667 | K110: 207.1818182 | X110: San Diego State University
A111: Average of simmedsurg_nonpatient | J111: 16.58333333 | K111: 37.8 | X111: San Francisco State University
A112: Average of simmedsurg_sim | J112: 26.625 | K112: 26 | X112: San Joaquin Delta College
A113: Average of simfundmtl_patient | J113: 91.70833333 | K113: 88.63636364 | X113: San Joaquin Valley College
A114: Average of simfundmtl_nonpatient | J114: 31.70833333 | K114: 45.09090909 | X114: Santa Ana College
A115: Average of simfundmtl_sim | J115: 6.666666667 | K115: 6.818181818 | X115: Santa Barbara City College
A116: Average of simob_patient | J116: 75.20833333 | K116: 66.54545455 | X116: Santa Monica College
A117: Average of simob_nonpatient | J117: 11.16666667 | K117: 12.81818182 | X117: Santa Rosa Junior College
A118: Average of simob_sim | J118: 7.458333333 | K118: 11.27272727 | X118: Shasta College
A119: Average of simpeds_patient | J119: 76.04166667 | K119: 67.72727273 | X119: Shepherd University
A120: Average of simpeds_nonpatient | J120: 11 | K120: 11.63636364 | X120: Sierra College
A121: Average of simpeds_sim | J121: 6.458333333 | K121: 9.454545455 | X121: Simpson University
A122: Average of simgeri_patient | J122: 110.0833333 | K122: 98.5 | X122: Solano Community College
A123: Average of simgeri_nonpatient | J123: 0 | K123: 7.727272727 | X123: Sonoma State University
A124: Average of simgeri_sim | J124: 3.833333333 | K124: 6.272727273 | X124: Southwestern College
A125: Average of simpsych_patient | J125: 77.58333333 | K125: 70.81818182 | X125: Stanbridge College
A126: Average of simpsych_nonpatient | J126: 9 | K126: 9.545454545 | X126: The Valley Foundation School of Nursing at San Jose State
A127: Average of simpsych_sim | J127: 6.833333333 | K127: 3.090909091 | X127: United States University
A128: Average of simlead_patient | J128: 79.41666667 | K128: 70 | X128: Unitek College
A129: Average of simlead_nonpatient | J129: 0.6666666667 | K129: 0 | X129: University of California Davis
A130: Average of simlead_sim | J130: 2.166666667 | K130: 0.5454545455 | X130: University of California Irvine
A131: Average of simoth_patient | J131: 41 | K131: 9 | X131: University of California Los Angeles
A132: Average of simoth_nonpatient | J132: 1.333333333 | K132: 0 | X132: University of California San Francisco
A133: Average of simoth_sim | J133: 1.166666667 | K133: 0.7272727273 | X133: University of Phoenix, Northern California Campus
A134: Average of Direct Patient Care | J134: 794.7083333 | K134: 678.4090909 | X134: University of San Diego, Hahn School of Nursing
A135: Average of Skills Labs/ Indirect | J135: 81.45833333 | K135: 121.1818182 | X135: University of San Francisco
A136: Average of Simulation | J136: 61.20833333 | K136: 64.18181818 | X136: University of Southern California
A137: Average of All Clinical Hours | J137: 937.375 | K137: 863.7727273 | X137: Ventura College
A138: Average of Fundementals | J138: 130.0833333 | K138: 140.5454545 | X138: Victor Valley College
A139: Average of MedSurg | J139: 286.875 | K139: 267.5454545 | X139: Weimar Institute
A140: Average of OB | J140: 93.83333333 | K140: 90.63636364 | X140: West Coast University
A141: Average of Peds | J141: 93.5 | K141: 88.81818182 | X141: West Coast University - Inland Empire
A142: Average of Geri | J142: 113.9166667 | K142: 112.5 | X142: West Coast University - LA County
A143: Average of Psych | J143: 93.41666667 | K143: 83.45454545 | X143: West Coast University - Orange County
A144: Average of Leadership | J144: 82.25 | K144: 70.54545455 | X144: West Hills College Lemoore
A145: Average of Other | J145: 43.5 | K145: 9.727272727 | X145: Western Governors University
X146: Western University of Health Sciences
A147: Regions | B147: 10 | C147: =INDEX($A$148:$A$157,$B$147) -> Southern Border | X147: Yuba College
A148: (All)
A149: Bay Area
A150: Central Coast
A151: Greater Sacramento
A152: Inland Empire
A153: LA Area
A154: Northern California
A155: Northern Sacramento Valley
A156: San Joaquin Valley
A157: Southern Border
A159: Degree Offered | B159: 1 | C159: =INDEX(A160:A163,B159) -> (All)
A160: (All)
A161: AD
A162: BSN
A163: ELM
A165: Public/Private | B165: 1 | C165: =INDEX(A166:A168,B165) -> (All)
A166: (All)
A167: Private
A168: Public

Sheet AllData2001-06 (hidden)
A1: Data by Nursing Program | B1: Column1 | C1: W | D1: Column3 | E1: Column4 | F1: Column5 | G1: Column6 | H1: Column7 | I1: Column8 | J1: Column9 | K1: Column10 | L1: Column11 | M1: Column12 | N1: Column13 | O1: Column14 | P1: Column15 | Q1: Column16 | R1: Column17 | S1: Column18 | T1: Column19 | U1: Column20 | V1: Column21 | W1: Column22 | X1: Column23 | Y1: Column24 | Z1: Column25 | AA1: Column26 | AB1: Column27 | AC1: Column28 | AD1: Column29 | AE1: Column30 | AF1: Column31 | AG1: Column32 | AH1: Column33 | AI1: Column34 | AJ1: Column35 | AK1: Column36 | AL1: Column37 | AM1: Column38 | AN1: Column39 | AO1: Column40 | AP1: Column41 | AQ1: Column42 | AR1: Column43 | AS1: Column44 | AT1: Column45 | AU1: Column46 | AV1: Column47 | AW1: Column48 | AX1: Column49 | AY1: Column50 | AZ1: Column51 | BA1: Column52 | BB1: Column53 | BC1: Column54 | BD1: Column55 | BE1: Column56 | BF1: Column57 | BG1: Column58 | BH1: Column59 | BI1: Column60 | BJ1: Column61 | BK1: Column62 | BL1: Column63 | BM1: Column64 | BN1: Column65 | BO1: Column66 | BP1: Column67 | BQ1: Column68 | BR1: Column69 | BS1: Column70 | BT1: Column71 | BU1: Column72 | BV1: Column73 | BW1: Column74 | BX1: Column75 | BY1: Column76 | BZ1: Column77 | CA1: Column78 | CB1: Column79 | CC1: Column80 | CD1: Column81 | CE1: Column82 | CF1: Column83 | CG1: Column84 | CH1: Column85 | CI1: Column86 | CJ1: Column87 | CK1: Column88 | CL1: Column89 | CM1: Column90 | CN1: Column91 | CO1: Column92 | CP1: Column93 | CQ1: Column94 | CR1: Column95 | CS1: Column96 | CT1: Column97 | CU1: Column98 | CV1: Column99 | CW1: Column100 | CX1: Column101 | CY1: Column102 | CZ1: Column103 | DA1: Column104 | DB1: Column105 | DC1: Column106 | DD1: Column107 | DE1: Column108 | DF1: Column109 | DG1: Column110 | DH1: Column111 | DI1: Column112 | DJ1: Column113 | DK1: Column114 | DL1: Column115 | DM1: Column116 | DN1: Column117 | DO1: Column118 | DP1: Column119 | DQ1: Column120 | DR1: Column121 | DS1: Column122 | DT1: Column123 | DU1: Column124 | DV1: Column125 | DW1: Column126 | DX1: Column127 | DY1: Column128 | DZ1: Column129 | EA1: Column130 | EB1: Column131 | EC1: Column132 | ED1: Column133 | EE1: Column134 | EF1: Column135 | EG1: Column136 | EH1: Column137 | EI1: Column138 | EJ1: Column139 | EK1: Column140 | EL1: Column141 | EM1: Column142 | EN1: Column143 | EO1: Column144 | EP1: Column145 | EQ1: Column146 | ER1: Column147 | ES1: Column148 | ET1: Column149 | EU1: Column150 | EV1: Column151 | EW1: Column152 | EX1: Column153 | EY1: Column154 | EZ1: Column155 | FA1: Column156 | FB1: Column157 | FC1: Column158 | FD1: Column159 | FE1: Column160 | FF1: Column161 | FG1: Column162 | FH1: Column163 | FI1: Column164 | FJ1: Column165 | FK1: Column166 | FL1: Column167 | FM1: Column168 | FN1: Column169 | FO1: Column170 | FP1: Column171 | FQ1: Column172 | FR1: Column173 | FS1: Column174 | FT1: Column175 | FU1: Column176 | FV1: Column177 | FW1: Column178 | FX1: Column179 | FY1: Column180 | FZ1: Column181 | GA1: Column182 | GB1: Column183 | GC1: Column184
A2: ID | B2: Year | C2: School | D2: Public/Private | E2: Degree Offered | F2: AD | G2: BSN | H2: ELM | I2: Public | J2: PubAD | K2: PubBSN | L2: PubELM | M2: County | N2: Region Code | O2: Region | P2: 5-County Bay Area | Q2: Qualified Applicants | R2: AD Qual Apps | S2: BSN Qual Apps | T2: ELM Qual Apps | U2: Slots Available | V2: SlotsFilled | W2: Slots not Filled | X2: RestrictAdm | Y2: ResAdmFaculty | Z2: ResAdmSpace | AA2: ResAdmFund | AB2: ResAdmClin | AC2: ResAdmQualApp | AD2: ResAdmEquip | AE2: ResAdmOther | AF2: EnrLastYrRace | AG2: EnrLastYrGender | AH2: ProjEnrChgNextYr | AI2: ProjEnrNextYr | AJ2: AltProjEnrNextYr | AK2: ProjEnrChg2Yr | AL2: ProjEnr2Yr | AM2: AltProjEnr2Yr | AN2: ComplLVN30 | AO2: ComplAdvPlc | AP2: ComplGen | AQ2: ComplReadmt | AR2: ComplTrsf | AS2: CompTotal | AT2: GenEnroll | AU2: APEnroll | AV2: TrsfEnroll | AW2: ReadmEnroll | AX2: 30UnitEnroll | AY2: CohEnrTotal | AZ2: CohCompontime | BA2: CohStillEnr | BB2: CompBehind | BC2: CohAttrit | BD2: CohChecksum | BE2: AttritFinNeed | BF2: AttritFamilyWork | BG2: AttritAcademic | BH2: AttritMajor | BI2: SumCompRace | BJ2: SumTotalRace | BK2: EnrAfAm | BL2: EnrNatAm | BM2: EnrFilipino | BN2: EnrAsian | BO2: EnrWhite | BP2: EnrHisp | BQ2: EnrUnkRace | BR2: CompAfAm | BS2: CompNatAm | BT2: CompFilipino | BU2: CompAsian | BV2: CompWhite | BW2: CompHisp | BX2: CompUnkRace | BY2: TotAfAm | BZ2: TotNatAm | CA2: TotFilipino | CB2: TotAsian | CC2: TotWhite | CD2: TotHisp | CE2: TotOthRace | CF2: SumCompGen | CG2: SumTotalGen | CH2: Enrolled Female | CI2: Enrolled Male | CJ2: Enrolled Unknown Gender | CK2: CompFemale | CL2: CompMale | CM2: Completions Gender Unknown | CN2: TotFemale | CO2: TotMale | CP2: SumEnrAge | CQ2: SumCompAge | CR2: SumTotalAge | CS2: enr25 | CT2: enr30 | CU2: enr40 | CV2: enr50 | CW2: enr60 | CX2: enr60p | CY2: enrageunk | CZ2: comp25 | DA2: comp30 | DB2: comp40 | DC2: comp50 | DD2: comp60 | DE2: comp60p | DF2: compageunk | DG2: Enr1825 | DH2: Comp1825 | DI2: Tot1825 | DJ2: Enr2635 | DK2: Comp2635 | DL2: Tot2635 | DM2: Enr3645 | DN2: Comp3645 | DO2: Tot3645 | DP2: Enr4655 | DQ2: Comp4655 | DR2: Tot4655 | DS2: Enr56p | DT2: comp56p | DU2: Tot56p | DV2: enrothage | DW2: compothage | DX2: totothage | DY2: CensusPreRN | DZ2: CensusGeneric | EA2: CensusLVN | EB2: Census30unit | EC2: CensusPT | ED2: CensusTotal | EE2: FacAmInd | EF2: FacAsian | EG2: FacAfAm | EH2: FacFilipino | EI2: FacHisp | EJ2: FacWhite | EK2: FacOthRace | EL2: FacFemale | EM2: FacMale | EN2: Fac30m | EO2: fac3039 | EP2: fac4049 | EQ2: fac5059 | ER2: fac60p | ES2: facothage | ET2: facft | EU2: facpt | EV2: facvacant | EW2: sumfacftpt | EX2: sumfacage | EY2: sumfacgen | EZ2: sumfacrace | FA2: OfferAccel | FB2: OfferWknd | FC2: OfferPT | FD2: OfferExtCampus | FE2: EmpAgree | FF2: EmpFund | FG2: EmpFundFac | FH2: EmpFundStud | FI2: NCLEX Taken | FJ2: NCLEX Passed | FK2: AD NCLEX Taken | FL2: BSN NCLEX Taken | FM2: ELM NCLEX Taken | FN2: AD NCLEX Passed | FO2: BSN NCLEX Passed | FP2: ELM NCLEX Passed | FQ2: AD Completions | FR2: BSN Completions | FS2: ELM Completions | FT2: CompOthRace | FU2: EnrOthRace | FV2: AD Census | FW2: BSN Census | FX2: ELM Census | FY2: Main Campus | FZ2: AD Main Campus | GA2: BSN Main Campus | GB2: ELM Main Campus | GC2: Public Main Campus | GD2: Column1 | GE2: SF | GF2: prgm | GG2: Column5 | GH2: Column4 | GI2: simfundmtl_patient | GJ2: simfundmtl_nonpatient | GK2: simfundmtl_sim | GL2: simmedsurg_patient | GM2: simmedsurg_nonpatient | GN2: simmedsurg_sim | GO2: simob_patient | GP2: simob_nonpatient | GQ2: simob_sim | GR2: simpeds_patient | GS2: simpeds_nonpatient | GT2: simpeds_sim | GU2: simpsych_patient | GV2: simpsych_nonpatient | GW2: simpsych_sim | GX2: simgeri_patient | GY2: simgeri_nonpatient | GZ2: simgeri_sim | HA2: simlead_patient | HB2: simlead_nonpatient | HC2: simlead_sim | HD2: simoth_patient | HE2: simoth_nonpatient | HF2: simoth_sim | HG2: Direct Patient Care | HH2: Skills Labs/ Indirect | HI2: Simulation | HJ2: All Clinical Hours | HK2: Fundementals | HL2: MedSurg | HM2: OB | HN2: Peds | HO2: Geri | HP2: Psych | HQ2: Leadership | HR2: Other
A3: 1 | B3: 2000-2001 | C3: Allan Hancock College | D3: =IF(I3=1,"Public","Private") -> Public | E3: =IF(F3=1,"AD",IF(G3=1,"BSN",IF(H3=1,"ELM",""))) -> AD | F3: =1-G3-H3 -> 1 | G3: 0 | H3: 0 | I3: 1 | J3: =F3*I3 -> 1 | K3: =I3*G3 -> 0 | L3: =H3*I3 -> 0 | M3: Santa Barbara | N3: 7 | O3: LA Area | P3: No | Q3: 0 | R3: =IF($E3="AD",$Q3,"") -> 0 | S3: =IF($E3="BSN",Q3,"") ->  | T3: =IF($E3="ELM",$Q3,"") ->  | U3: 0 | V3: 0 | W3: =U3-V3 -> 0 | AI3: 26 | AL3: 26 | AN3: 0 | AO3: 0 | AP3: 27 | AS3: 27 | AY3: 27 | AZ3: 25 | BA3: 0 | BB3: 0 | BC3: 2 | BD3: 27 | BI3: =BS3+BU3+BR3+BT3+BW3+BV3+BX3 -> 0 | BJ3: =BZ3+CB3+BY3+CA3+CD3+CC3+CE3 -> 0 | CF3: =CK3+CL3 -> 0 | CG3: =CN3+CO3 -> 0 | CP3: =DG3+DJ3+DM3+DP3+DS3+DV3 -> 0 | CQ3: =DH3+DK3+DN3+DQ3+DT3+DW3 -> 0 | CR3: =DI3+DL3+DO3+DR3+DU3+DX3 -> 0 | DZ3: 0 | EA3: 0 | EB3: 0 | ED3: =DZ3+EA3+EB3 -> 0 | EK3: 3 | ES3: 3 | ET3: 3 | EU3: 0 | EW3: =SUM(ET3:EU3) -> 3 | EX3: =SUM(EN3:ES3) -> 3 | EY3: =SUM(EL3:EM3) -> 0 | EZ3: =SUM(EE3:EK3) -> 3 | FI3: 22 | FJ3: 16 | FK3: =IF(FI3="","",IF(F3=1,FI3,"")) -> 22 | FL3: =IF($FI3="","",IF(G3=1,$FI3,"")) ->  | FM3: =IF($FI3="","",IF(H3=1,$FI3,"")) ->  | FN3: =IF($FJ3="","",IF(F3=1,$FJ3,"")) -> 16 | FO3: =IF($FJ3="","",IF(G3=1,$FJ3,"")) ->  | FP3: =IF($FJ3="","",IF(H3=1,$FJ3,"")) ->  | FQ3: =IF($AS3="","",IF(E3="AD",$AS3,"")) -> 27 | FR3: =IF($AS3="","",IF($E3="BSN",$AS3,"")) ->  | FS3: =IF($AS3="","",IF($E3="ELM",$AS3,"")) ->  | FV3: =IF(F3=1,ED3,"") -> 0 | FW3: =IF(G3=1,ED3,"") ->  | FX3: =IF(H3=1,ED3,"") ->  | GG3: =IF(Table4[[#This Row],[SF]]=Table4[[#This Row],[School]],1,0) -> 0 | GH3: =IF(Table4[[#This Row],[prgm]]=Table4[[#This Row],[Degree Offered]],1,0) -> 0
A4: 2 | B4: 2000-2001 | C4: American River College | D4: Public | E4: AD | F4: 1 | G4: 0 | H4: 0 | I4: 1 | J4: 1 | K4: 0 | L4: 0 | M4: Sacramento | N4: 3 | O4: Greater Sacramento | P4: No | Q4: 130 | R4: 130 | U4: 60 | V4: 60 | W4: 0 | X4: 0 | AF4: =BL4+BN4+BK4+BM4+BP4+BO4+BQ4 -> 60 | AG4: =CI4+CH4 -> 60 | AI4: 60 | AL4: 100 | AN4: 0 | AO4: 0 | AP4: 54 | AS4: 54 | AY4: 60 | AZ4: 54 | BA4: 4 | BB4: 0 | BC4: 2 | BD4: 60 | BI4: 54 | BJ4: 120 | BK4: 3 | BL4: 0 | BM4: 1 | BN4: 7 | BO4: 46 | BP4: 3 | BR4: 2 | BS4: 0 | BT4: 1 | BU4: 6 | BV4: 44 | BW4: 1 | BY4: 5 | BZ4: 1 | CA4: 2 | CB4: 2 | CC4: 108 | CD4: 2 | CF4: 54 | CG4: 54 | CH4: 53 | CI4: 7 | CK4: 49 | CL4: 5 | CN4: 49 | CO4: 5 | CP4: 60 | CQ4: 54 | CR4: 53 | DG4: 5 | DH4: 5 | DI4: 4 | DJ4: 25 | DK4: 22 | DL4: 22 | DM4: 15 | DN4: 12 | DO4: 12 | DP4: 15 | DQ4: 15 | DR4: 15 | DZ4: 114 | EA4: 0 | EB4: 0 | ED4: 114 | EE4: 0 | EF4: 0 | EG4: 0 | EH4: 1 | EI4: 0 | EJ4: 11 | EL4: 11 | EM4: 1 | EN4: 0 | EO4: 1 | EP4: 1 | EQ4: 7 | ER4: 3 | ES4: 0 | ET4: 12 | EU4: 2 | EW4: 14 | EX4: 12 | EY4: 12 | EZ4: 12 | FI4: 59 | FJ4: 53 | FK4: 59 | FN4: 53 | FQ4: 54 | FV4: 114 | GG4: =IF(Table4[[#This Row],[SF]]=Table4[[#This Row],[School]],1,0) -> 0 | GH4: =IF(Table4[[#This Row],[prgm]]=Table4[[#This Row],[Degree Offered]],1,0) -> 0
A5: 3 | B5: 2000-2001 | C5: Antelope Valley College | D5: Public | E5: AD | F5: 1 | G5: 0 | H5: 0 | I5: 1 | J5: 1 | K5: 0 | L5: 0 | M5: Los Angeles | N5: 8 | O5: LA Area | P5: No | Q5: 97 | R5: 97 | U5: 120 | V5: 87 | W5: 33 | AF5: 87 | AG5: 87 | AI5: 105 | AL5: 105 | AN5: 0 | AO5: 23 | AP5: 32 | AS5: 55 | AY5: 73 | AZ5: 31 | BA5: 14 | BB5: 0 | BC5: 28 | BD5: 73 | BI5: 55 | BJ5: 120 | BK5: 14 | BL5: 0 | BM5: 6 | BN5: 1 | BO5: 44 | BP5: 18 | BQ5: 4 | BR5: 5 | BS5: 0 | BT5: 1 | BU5: 3 | BV5: 37 | BW5: 8 | BX5: 1 | BY5: 12 | BZ5: 5 | CA5: 1 | CB5: 13 | CC5: 63 | CD5: 16 | CE5: 10 | CF5: 55 | CG5: 120 | CH5: 70 | CI5: 17 | CK5: 52 | CL5: 3 | CN5: 103 | CO5: 17 | CP5: 0 | CQ5: 0 | CR5: 120 | DI5: 43 | DL5: 42 | DO5: 28 | DR5: 6 | DU5: 0 | DX5: 1 | DZ5: 86 | EA5: 34 | EB5: 0 | ED5: 120 | EE5: 1 | EF5: 0 | EG5: 0 | EH5: 1 | EI5: 1 | EJ5: 7 | EK5: 0 | EL5: 10 | EM5: 0 | EN5: 0 | EO5: 0 | EP5: 5 | EQ5: 5 | ER5: 0 | ES5: 0 | ET5: 8 | EU5: 2 | EW5: 10 | EX5: 10 | EY5: 10 | EZ5: 10 | FI5: 53 | FJ5: 49 | FK5: 53 | FN5: 49 | FQ5: 55 | FV5: 120 | GG5: =IF(Table4[[#This Row],[SF]]=Table4[[#This Row],[School]],1,0) -> 0 | GH5: =IF(Table4[[#This Row],[prgm]]=Table4[[#This Row],[Degree Offered]],1,0) -> 0
A6: 4 | B6: 2000-2001 | C6: Azusa Pacific University | D6: Private | E6: BSN | F6: 0 | G6: 1 | H6: 0 | I6: 0 | J6: 0 | K6: 0 | L6: 0 | M6: Los Angeles | N6: 8 | O6: LA Area | P6: No | Q6: 82 | S6: 82 | U6: 80 | V6: 66 | W6: 14 | X6: 0 | AF6: 66 | AG6: 66 | AI6: 80 | AL6: 80 | AN6: 0 | AO6: 1 | AP6: 48 | AS6: 49 | AY6: 74 | AZ6: 55 | BA6: 0 | BB6: 0 | BC6: 19 | BD6: 74 | BI6: 49 | BJ6: 188 | BK6: 2 | BL6: 0 | BM6: 0 | BN6: 10 | BO6: 38 | BP6: 11 | BQ6: 5 | BR6: 3 | BS6: 0 | BT6: 0 | BU6: 9 | BV6: 30 | BW6: 7 | BX6: 0 | BY6: 4 | BZ6: 0 | CA6: 0 | CB6: 34 | CC6: 113 | CD6: 31 | CE6: 6 | CF6: 49 | CG6: 188 | CH6: 56 | CI6: 10 | CK6: 44 | CL6: 5 | CN6: 172 | CO6: 16 | CP6: 66 | CQ6: 49 | CR6: 188 | DG6: 59 | DH6: 36 | DI6: 164 | DJ6: 4 | DK6: 13 | DL6: 19 | DM6: 2 | DN6: 0 | DO6: 3 | DP6: 1 | DQ6: 0 | DR6: 2 | DS6: 0 | DT6: 0 | DU6: 0 | DZ6: 188 | EA6: 0 | EB6: 0 | ED6: 188 | EE6: 0 | EF6: 0 | EG6: 1 | EH6: 0 | EI6: 2 | EJ6: 33 | EK6: 0 | EL6: 36 | EN6: 0 | EO6: 5 | EP6: 13 | EQ6: 14 | ER6: 4 | ET6: 14 | EU6: 22 | EW6: 36 | EX6: 36 | EY6: 36 | EZ6: 36 | FI6: 47 | FJ6: 42 | FL6: 47 | FO6: 42 | FR6: 49 | FW6: 188 | GG6: =IF(Table4[[#This Row],[SF]]=Table4[[#This Row],[School]],1,0) -> 0 | GH6: =IF(Table4[[#This Row],[prgm]]=Table4[[#This Row],[Degree Offered]],1,0) -> 0
A7: 5 | B7: 2000-2001 | C7: Bakersfield College | D7: Public | E7: AD | F7: 1 | G7: 0 | H7: 0 | I7: 1 | J7: 1 | K7: 0 | L7: 0 | M7: Kern | N7: 5 | O7: LA Area | P7: No | Q7: 112 | R7: 112 | U7: 60 | V7: 60 | W7: 0 | X7: 0 | AF7: 109 | AG7: 109 | AI7: 80 | AL7: 70 | AN7: 3 | AO7: 11 | AP7: 43 | AS7: 57 | AY7: 77 | AZ7: 26 | BA7: 29 | BB7: 0 | BC7: 22 | BD7: 77 | BI7: 57 | BJ7: 142 | BK7: 11 | BL7: 2 | BM7: 2 | BN7: 2 | BO7: 53 | BP7: 34 | BQ7: 5 | BR7: 3 | BS7: 0 | BT7: 6 | BU7: 2 | BV7: 27 | BW7: 18 | BX7: 1 | BY7: 14 | BZ7: 2 | CA7: 5 | CB7: 2 | CC7: 69 | CD7: 41 | CE7: 9 | CF7: 57 | CG7: 142 | CH7: 93 | CI7: 16 | CK7: 53 | CL7: 4 | CN7: 124 | CO7: 18 | CP7: 109 | CQ7: 57 | CR7: 145 | DG7: 20 | DH7: 11 | DI7: 22 | DJ7: 42 | DK7: 26 | DL7: 63 | DM7: 39 | DN7: 16 | DO7: 47 | DP7: 8 | DQ7: 4 | DR7: 10 | DS7: 0 | DT7: 0 | DU7: 0 | DX7: 3 | DZ7: 118 | EA7: 24 | EB7: 3 | ED7: 145 | EE7: 0 | EF7: 0 | EG7: 1 | EH7: 1 | EI7: 1 | EJ7: 14 | EK7: 0 | EL7: 16 | EM7: 1 | EN7: 0 | EO7: 8 | EP7: 5 | EQ7: 4 | ER7: 0 | ES7: 0 | ET7: 9 | EU7: 8 | EW7: 17 | EX7: 17 | EY7: 17 | EZ7: 17 | FI7: 47 | FJ7: 41 | FK7: 47 | FN7: 41 | FQ7: 57 | FV7: 145 | GG7: =IF(Table4[[#This Row],[SF]]=Table4[[#This Row],[School]],1,0) -> 0 | GH7: =IF(Table4[[#This Row],[prgm]]=Table4[[#This Row],[Degree Offered]],1,0) -> 0
A8: 6 | B8: 2000-2001 | C8: Biola University | D8: Private | E8: BSN | F8: 0 | G8: 1 | H8: 0 | I8: 0 | J8: 0 | K8: 0 | L8: 0 | M8: Los Angeles | N8: 8 | O8: LA Area | P8: No | Q8: 38 | S8: 38 | U8: 30 | V8: 31 | W8: -1 | X8: 1 | Y8: 1 | Z8: 1 | AA8: 1 | AB8: 1 | AE8: 1 | AF8: 28 | AG8: 28 | AI8: 30 | AL8: 30 | AN8: 0 | AO8: 0 | AP8: 28 | AS8: 28 | AY8: 29 | AZ8: 26 | BA8: 2 | BB8: 0 | BC8: 1 | BD8: 29 | BI8: 28 | BJ8: 82 | BK8: 0 | BL8: 0 | BM8: 0 | BN8: 4 | BO8: 24 | BP8: 0 | BQ8: 0 | BR8: 0 | BS8: 0 | BT8: 2 | BU8: 0 | BV8: 23 | BW8: 3 | BX8: 0 | BY8: 2 | BZ8: 0 | CA8: 1 | CB8: 10 | CC8: 63 | CD8: 6 | CE8: 0 | CF8: 28 | CG8: 82 | CH8: 26 | CI8: 2 | CK8: 26 | CL8: 2 | CN8: 79 | CO8: 3 | CP8: 28 | CQ8: 28 | CR8: 82 | DG8: 27 | DH8: 24 | DI8: 78 | DJ8: 0 | DK8: 3 | DL8: 4 | DM8: 1 | DN8: 1 | DO8: 0 | DZ8: 82 | EA8: 0 | EB8: 0 | ED8: 82 | EE8: 0 | EF8: 2 | EG8: 0 | EH8: 0 | EI8: 0 | EJ8: 11 | EK8: 0 | EL8: 12 | EM8: 1 | EN8: 0 | EO8: 2 | EP8: 4 | EQ8: 5 | ER8: 2 | ES8: 0 | ET8: 7 | EU8: 6 | EW8: 13 | EX8: 13 | EY8: 13 | EZ8: 13 | FI8: 26 | FJ8: 21 | FL8: 26 | FO8: 21 | FR8: 28 | FW8: 82 | GG8: =IF(Table4[[#This Row],[SF]]=Table4[[#This Row],[School]],1,0) -> 0 | GH8: =IF(Table4[[#This Row],[prgm]]=Table4[[#This Row],[Degree Offered]],1,0) -> 0
A9: 61 | B9: 2000-2001 | C9: Brightwood College | D9: Private | E9: AD | F9: 1 | G9: 0 | H9: 0 | I9: 0 | J9: 0 | K9: 0 | L9: 0 | M9: San Diego | N9: 10 | O9: San Joaquin Valley | P9: No | Q9: 153 | R9: 153 | U9: 133 | V9: 127 | W9: 6 | X9: 1 | AE9: 1 | AF9: 127 | AG9: 127 | AI9: 80 | AL9: 80 | AN9: 0 | AO9: 21 | AP9: 119 | AS9: 140 | AY9: 178 | AZ9: 120 | BA9: 20 | BB9: 0 | BC9: 38 | BD9: 178 | BI9: 117 | BJ9: 55 | BK9: 6 | BL9: 0 | BM9: 28 | BN9: 14 | BO9: 59 | BP9: 19 | BQ9: 1 | BR9: 13 | BS9: 0 | BT9: 31 | BU9: 14 | BV9: 38 | BW9: 19 | BX9: 2 | BY9: 3 | BZ9: 0 | CA9: 12 | CB9: 4 | CC9: 26 | CD9: 7 | CE9: 3 | CF9: 140 | CG9: 55 | CH9: 100 | CI9: 27 | CK9: 112 | CL9: 28 | CN9: 43 | CO9: 12 | CP9: 127 | CQ9: 140 | CR9: 55 | DG9: 54 | DH9: 48 | DI9: 19 | DJ9: 46 | DK9: 74 | DL9: 27 | DM9: 22 | DN9: 14 | DO9: 7 | DP9: 5 | DQ9: 4 | DR9: 2 | DZ9: 40 | EA9: 15 | EB9: 0 | ED9: 55 | EE9: 0 | EF9: 0 | EG9: 3 | EH9: 1 | EI9: 1 | EJ9: 13 | EK9: 0 | EL9: 16 | EM9: 2 | EN9: 0 | EO9: 4 | EP9: 6 | EQ9: 6 | ER9: 2 | ET9: 10 | EU9: 8 | EW9: 18 | EX9: 18 | EY9: 18 | EZ9: 18 | FI9: 121 | FJ9: 86 | FK9: 121 | FN9: 86 | FQ9: 140 | FV9: 55 | GG9: =IF(Table4[[#This Row],[SF]]=Table4[[#This Row],[School]],1,0) -> 0 | GH9: =IF(Table4[[#This Row],[prgm]]=Table4[[#This Row],[Degree Offered]],1,0) -> 0
A10: 7 | B10: 2000-2001 | C10: Butte Community College | D10: Public | E10: AD | F10: 1 | G10: 0 | H10: 0 | I10: 1 | J10: 1 | K10: 0 | L10: 0 | M10: Butte | N10: 2 | O10: LA Area | P10: No | Q10: 28 | R10: 28 | U10: 24 | V10: 24 | W10: 0 | X10: 1 | AF10: 24 | AG10: 24 | AI10: 24 | AL10: 24 | AN10: 1 | AO10: 20 | AP10: 0 | AS10: 21 | AY10: 24 | AZ10: 21 | BA10: 0 | BB10: 0 | BC10: 3 | BD10: 24 | BI10: 21 | BJ10: 23 | BO10: 23 | BP10: 1 | BV10: 20 | BW10: 1 | CC10: 22 | CD10: 1 | CF10: 21 | CG10: 23 | CH10: 22 | CI10: 2 | CK10: 19 | CL10: 2 | CN10: 21 | CO10: 2 | CP10: 28 | CQ10: 25 | CR10: 27 | DG10: 4 | DH10: 4 | DI10: 4 | DJ10: 4 | DK10: 4 | DL10: 4 | DM10: 5 | DN10: 4 | DO10: 5 | DP10: 11 | DQ10: 10 | DR10: 11 | DS10: 4 | DT10: 3 | DU10: 3 | DZ10: 0 | EA10: 21 | EB10: 1 | ED10: 22 | EJ10: 4 | EK10: 1 | EL10: 4 | EP10: 1 | EQ10: 3 | ES10: 1 | ET10: 4 | EU10: 1 | EW10: 5 | EX10: 5 | EY10: 4 | EZ10: 5 | FI10: 21 | FJ10: 20 | FK10: 21 | FN10: 20 | FQ10: 21 | FV10: 22 | GG10: =IF(Table4[[#This Row],[SF]]=Table4[[#This Row],[School]],1,0) -> 0 | GH10: =IF(Table4[[#This Row],[prgm]]=Table4[[#This Row],[Degree Offered]],1,0) -> 0
A11: 8 | B11: 2000-2001 | C11: Cabrillo Community College | D11: Public | E11: AD | F11: 1 | G11: 0 | H11: 0 | I11: 1 | J11: 1 | K11: 0 | L11: 0 | M11: Santa Cruz | N11: 4 | O11: Southern Border | P11: No | Q11: 50 | R11: 50 | U11: 42 | V11: 42 | W11: 0 | X11: 1 | Y11: 1 | Z11: 1 | AA11: 1 | AF11: 41 | AG11: 40 | AI11: 42 | AL11: 42 | AN11: 0 | AO11: 0 | AP11: 39 | AS11: 39 | AY11: 40 | AZ11: 39 | BA11: 0 | BB11: 0 | BC11: 1 | BD11: 40 | BI11: 40 | BJ11: 77 | BK11: 1 | BL11: 1 | BM11: 0 | BN11: 0 | BO11: 29 | BP11: 9 | BQ11: 1 | BR11: 0 | BS11: 0 | BT11: 0 | BU11: 2 | BV11: 24 | BW11: 11 | BX11: 3 | BY11: 1 | BZ11: 2 | CA11: 0 | CB11: 0 | CC11: 53 | CD11: 19 | CE11: 2 | CF11: 40 | CG11: 75 | CH11: 36 | CI11: 4 | CK11: 38 | CL11: 2 | CN11: 67 | CO11: 8 | CP11: 40 | CQ11: 40 | CR11: 79 | DG11: 11 | DH11: 10 | DI11: 21 | DJ11: 18 | DK11: 21 | DL11: 36 | DM11: 7 | DN11: 7 | DO11: 14 | DP11: 4 | DQ11: 2 | DR11: 8 | DS11: 0 | DT11: 0 | DU11: 0 | DZ11: 40 | EA11: 0 | EB11: 0 | ED11: 40 | EE11: 0 | EF11: 0 | EG11: 0 | EH11: 0 | EI11: 0 | EJ11: 14 | EK11: 0 | EL11: 14 | EN11: 0 | EO11: 0 | EP11: 8 | EQ11: 2 | ER11: 1 | ES11: 3 | ET11: 9 | EU11: 5 | EW11: 14 | EX11: 14 | EY11: 14 | EZ11: 14 | FI11: 29 | FJ11: 26 | FK11: 29 | FN11: 26 | FQ11: 39 | FV11: 40 | GG11: =IF(Table4[[#This Row],[SF]]=Table4[[#This Row],[School]],1,0) -> 0 | GH11: =IF(Table4[[#This Row],[prgm]]=Table4[[#This Row],[Degree Offered]],1,0) -> 0
A12: 9 | B12: 2000-2001 | C12: Cerritos College | D12: Public | E12: AD | F12: 1 | G12: 0 | H12: 0 | I12: 1 | J12: 1 | K12: 0 | L12: 0 | M12: Los Angeles | N12: 8 | O12: Northern Sacramento Valley | P12: No | Q12: 126 | R12: 126 | U12: 100 | V12: 100 | W12: 0 | X12: 1 | Y12: 1 | Z12: 1 | AA12: 1 | AE12: 1 | AF12: 96 | AG12: 96 | AI12: 120 | AL12: 120 | AN12: 1 | AO12: 45 | AP12: 54 | AS12: 100 | AY12: 238 | AZ12: 157 | BA12: 61 | BB12: 0 | BC12: 20 | BD12: 238 | BI12: 98 | BJ12: 189 | BK12: 11 | BL12: 0 | BM12: 21 | BN12: 9 | BO12: 15 | BP12: 40 | BQ12: 0 | BR12: 9 | BS12: 0 | BT12: 14 | BU12: 15 | BV12: 25 | BW12: 35 | BX12: 0 | BY12: 13 | BZ12: 2 | CA12: 42 | CB12: 21 | CC12: 39 | CD12: 63 | CE12: 9 | CF12: 98 | CG12: 189 | CH12: 71 | CI12: 25 | CK12: 93 | CL12: 5 | CN12: 152 | CO12: 37 | CP12: 96 | CQ12: 98 | CR12: 189 | DG12: 32 | DH12: 29 | DI12: 63 | DJ12: 43 | DK12: 50 | DL12: 87 | DM12: 18 | DN12: 15 | DO12: 29 | DP12: 3 | DQ12: 4 | DR12: 5 | DS12: 0 | DT12: 0 | DU12: 0 | DV12: 0 | DW12: 0 | DX12: 5 | DZ12: 139 | EA12: 45 | EB12: 5 | ED12: 189 | EE12: 0 | EF12: 0 | EG12: 4 | EH12: 0 | EI12: 1 | EJ12: 24 | EK12: 0 | EL12: 28 | EM12: 1 | EN12: 3 | EO12: 4 | EP12: 9 | EQ12: 10 | ER12: 3 | ES12: 0 | ET12: 11 | EU12: 18 | EW12: 29 | EX12: 29 | EY12: 29 | EZ12: 29 | FI12: 92 | FJ12: 81 | FK12: 92 | FN12: 81 | FQ12: 100 | FV12: 189 | GG12: =IF(Table4[[#This Row],[SF]]=Table4[[#This Row],[School]],1,0) -> 0 | GH12: =IF(Table4[[#This Row],[prgm]]=Table4[[#This Row],[Degree Offered]],1,0) -> 0
A13: 10 | B13: 2000-2001 | C13: Chabot College | D13: Public | E13: AD | F13: 1 | G13: 0 | H13: 0 | I13: 1 | J13: 1 | K13: 0 | L13: 0 | M13: Alameda | N13: 4 | O13: Inland Empire | P13: Yes | Q13: 60 | R13: 60 | U13: 40 | V13: 31 | W13: 9 | X13: 0 | AF13: 30 | AG13: 30 | AI13: 40 | AL13: 40 | AN13: 1 | AO13: 4 | AP13: 20 | AS13: 25 | AY13: 41 | AZ13: 25 | BA13: 6 | BB13: 0 | BC13: 10 | BD13: 41 | BI13: 25 | BJ13: 68 | BK13: 8 | BL13: 0 | BM13: 5 | BN13: 6 | BO13: 9 | BP13: 1 | BQ13: 1 | BR13: 2 | BS13: 0 | BT13: 4 | BU13: 7 | BV13: 10 | BW13: 2 | BY13: 17 | BZ13: 0 | CA13: 11 | CB13: 7 | CC13: 29 | CD13: 3 | CE13: 1 | CF13: 25 | CG13: 68 | CH13: 27 | CI13: 3 | CK13: 20 | CL13: 5 | CN13: 60 | CO13: 8 | CP13: 30 | CQ13: 25 | CR13: 68 | DG13: 11 | DH13: 4 | DI13: 17 | DJ13: 11 | DK13: 12 | DL13: 26 | DM13: 6 | DN13: 6 | DO13: 20 | DP13: 1 | DQ13: 3 | DR13: 4 | DS13: 1 | DT13: 0 | DU13: 1 | DZ13: 59 | EA13: 9 | EB13: 0 | ED13: 68 | EE13: 0 | EF13: 0 | EG13: 1 | EH13: 0 | EI13: 0 | EJ13: 12 | EK13: 1 | EL13: 14 | EM13: 0 | EN13: 0 | EO13: 0 | EP13: 5 | EQ13: 3 | ER13: 6 | ET13: 7 | EU13: 7 | EW13: 14 | EX13: 14 | EY13: 14 | EZ13: 14 | FI13: 21 | FJ13: 14 | FK13: 21 | FN13: 14 | FQ13: 25 | FV13: 68 | GG13: =IF(Table4[[#This Row],[SF]]=Table4[[#This Row],[School]],1,0) -> 0 | GH13: =IF(Table4[[#This Row],[prgm]]=Table4[[#This Row],[Degree Offered]],1,0) -> 0
A14: 11 | B14: 2000-2001 | C14: Chaffey College | D14: Public | E14: AD | F14: 1 | G14: 0 | H14: 0 | I14: 1 | J14: 1 | K14: 0 | L14: 0 | M14: San Bernardino | N14: 9 | O14: San Joaquin Valley | P14: No | Q14: 69 | R14: 69 | U14: 60 | V14: 60 | W14: 0 | X14: 1 | Z14: 1 | AB14: 1 | AE14: 1 | AI14: 80 | AL14: 80 | AN14: 0 | AO14: 15 | AP14: 40 | AS14: 55 | AY14: 64 | AZ14: 55 | BA14: 6 | BB14: 0 | BC14: 3 | BD14: 64 | BI14: 0 | BJ14: 113 | BY14: 6 | BZ14: 1 | CA14: 13 | CB14: 6 | CC14: 51 | CD14: 32 | CE14: 4 | CF14: 0 | CG14: 113 | CN14: 99 | CO14: 14 | CP14: 0 | CQ14: 0 | CR14: 113 | DI14: 35 | DL14: 44 | DO14: 29 | DR14: 5 | DU14: 0 | DX14: 0 | DZ14: 109 | EA14: 4 | EB14: 0 | ED14: 113 | EE14: 0 | EF14: 0 | EG14: 2 | EH14: 0 | EI14: 0 | EJ14: 8 | EK14: 0 | EL14: 10 | EM14: 0 | EN14: 0 | EO14: 0 | EP14: 1 | EQ14: 7 | ER14: 2 | ES14: 0 | ET14: 10 | EU14: 5 | EW14: 15 | EX14: 10 | EY14: 10 | EZ14: 10 | FI14: 46 | FJ14: 41 | FK14: 46 | FN14: 41 | FQ14: 55 | FV14: 113 | GG14: =IF(Table4[[#This Row],[SF]]=Table4[[#This Row],[School]],1,0) -> 0 | GH14: =IF(Table4[[#This Row],[prgm]]=Table4[[#This Row],[Degree Offered]],1,0) -> 0
A15: 12 | B15: 2000-2001 | C15: City College of San Francisco | D15: Public | E15: AD | F15: 1 | G15: 0 | H15: 0 | I15: 1 | J15: 1 | K15: 0 | L15: 0 | M15: San Francisco | N15: 4 | O15: LA Area | P15: Yes | Q15: 160 | R15: 160 | U15: 100 | V15: 100 | W15: 0 | X15: 0 | AI15: 100 | AL15: 100 | AN15: 2 | AO15: 8 | AP15: 56 | AS15: 66 | AY15: 110 | AZ15: 66 | BA15: 0 | BB15: 0 | BC15: 44 | BD15: 110 | BI15: 0 | BJ15: 0 | CF15: 0 | CG15: 0 | CP15: 0 | CQ15: 0 | CR15: 0 | DZ15: 56 | EA15: 8 | EB15: 2 | ED15: 66 | EE15: 0 | EF15: 3 | EG15: 3 | EH15: 0 | EI15: 3 | EJ15: 15 | EL15: 22 | EM15: 2 | ES15: 24 | ET15: 13 | EU15: 11 | EW15: 24 | EX15: 24 | EY15: 24 | EZ15: 24 | FI15: 46 | FJ15: 40 | FK15: 46 | FN15: 40 | FQ15: 66 | FV15: 66 | GG15: =IF(Table4[[#This Row],[SF]]=Table4[[#This Row],[School]],1,0) -> 0 | GH15: =IF(Table4[[#This Row],[prgm]]=Table4[[#This Row],[Degree Offered]],1,0) -> 0
A16: 13 | B16: 2000-2001 | C16: College of Marin | D16: Public | E16: AD | F16: 1 | G16: 0 | H16: 0 | I16: 1 | J16: 1 | K16: 0 | L16: 0 | M16: Marin | N16: 4 | O16: Northern Sacramento Valley | P16: Yes | Q16: 54 | R16: 54 | U16: 45 | V16: 37 | W16: 8 | X16: 0 | AC16: 1 | AE16: 1 | AF16: =BL16+BN16+BK16+BM16+BP16+BO16+BQ16 -> 37 | AG16: =CI16+CH16 -> 37 | AI16: 45 | AL16: 45 | AN16: 1 | AO16: 3 | AP16: 30 | AS16: 34 | AY16: 45 | AZ16: 34 | BA16: 3 | BB16: 0 | BC16: 8 | BD16: 45 | BI16: 34 | BJ16: 90 | BK16: 2 | BL16: 0 | BM16: 4 | BN16: 3 | BO16: 24 | BP16: 2 | BQ16: 2 | BR16: 2 | BS16: 0 | BT16: 0 | BU16: 4 | BV16: 22 | BW16: 3 | BX16: 3 | BY16: 12 | BZ16: 1 | CA16: 5 | CB16: 8 | CC16: 52 | CD16: 7 | CE16: 5 | CF16: 34 | CG16: 90 | CH16: 30 | CI16: 7 | CK16: 33 | CL16: 1 | CN16: 75 | CO16: 15 | CP16: 37 | CQ16: 34 | CR16: 90 | DG16: 8 | DH16: 9 | DI16: 19 | DJ16: 15 | DK16: 18 | DL16: 38 | DM16: 11 | DN16: 7 | DO16: 24 | DP16: 3 | DQ16: 0 | DR16: 8 | DS16: 0 | DT16: 0 | DU16: 1 | DZ16: 75 | EA16: 12 | EB16: 3 | ED16: 90 | EE16: 0 | EF16: 1 | EG16: 1 | EH16: 0 | EI16: 0 | EJ16: 8 | EK16: 0 | EL16: 10 | EM16: 0 | EN16: 2 | EO16: 0 | EP16: 3 | EQ16: 3 | ER16: 2 | ES16: 0 | ET16: 6 | EU16: 4 | EW16: 10 | EX16: 10 | EY16: 10 | EZ16: 10 | FI16: 36 | FJ16: 29 | FK16: 36 | FN16: 29 | FQ16: 34 | FV16: 90 | GG16: =IF(Table4[[#This Row],[SF]]=Table4[[#This Row],[School]],1,0) -> 0 | GH16: =IF(Table4[[#This Row],[prgm]]=Table4[[#This Row],[Degree Offered]],1,0) -> 0
A17: 14 | B17: 2000-2001 | C17: College of San Mateo | D17: Public | E17: AD | F17: 1 | G17: 0 | H17: 0 | I17: 1 | J17: 1 | K17: 0 | L17: 0 | M17: San Mateo | N17: 4 | O17: LA Area | P17: Yes | Q17: 58 | R17: 58 | U17: 36 | V17: 36 | W17: 0 | X17: 1 | Y17: 1 | AA17: 1 | AF17: 36 | AG17: 36 | AI17: 48 | AL17: 36 | AN17: 1 | AO17: 8 | AP17: 25 | AS17: 34 | AY17: 44 | AZ17: 34 | BA17: 2 | BB17: 0 | BC17: 8 | BD17: 44 | BI17: 34 | BJ17: 96 | BK17: 3 | BL17: 0 | BM17: 8 | BN17: 4 | BO17: 15 | BP17: 6 | BQ17: 0 | BR17: 2 | BS17: 0 | BT17: 7 | BU17: 2 | BV17: 16 | BW17: 6 | BX17: 1 | BY17: 4 | BZ17: 0 | CA17: 29 | CB17: 9 | CC17: 41 | CD17: 13 | CE17: 0 | CF17: 34 | CG17: 96 | CH17: 31 | CI17: 5 | CK17: 31 | CL17: 3 | CN17: 87 | CO17: 9 | CP17: 36 | CQ17: 34 | CR17: 96 | DG17: 10 | DH17: 9 | DI17: 22 | DJ17: 16 | DK17: 16 | DL17: 43 | DM17: 4 | DN17: 5 | DO17: 21 | DP17: 6 | DQ17: 4 | DR17: 10 | DS17: 0 | DT17: 0 | DU17: 0 | DZ17: 54 | EA17: 36 | EB17: 6 | ED17: 96 | EH17: 1 | EJ17: 10 | EL17: 10 | EM17: 1 | EP17: 3 | EQ17: 6 | ER17: 2 | ET17: 6 | EU17: 5 | EW17: 11 | EX17: 11 | EY17: 11 | EZ17: 11 | FI17: 28 | FJ17: 20 | FK17: 28 | FN17: 20 | FQ17: 34 | FV17: 96 | GG17: =IF(Table4[[#This Row],[SF]]=Table4[[#This Row],[School]],1,0) -> 0 | GH17: =IF(Table4[[#This Row],[prgm]]=Table4[[#This Row],[Degree Offered]],1,0) -> 0
A18: 15 | B18: 2000-2001 | C18: College of the Canyons | D18: Public | E18: AD | F18: 1 | G18: 0 | H18: 0 | I18: 1 | J18: 1 | K18: 0 | L18: 0 | M18: Los Angeles | N18: 8 | O18: Bay Area | P18: No | Q18: 86 | R18: 86 | U18: 48 | V18: 48 | W18: 0 | X18: 0 | AF18: 48 | AG18: 48 | AI18: 48 | AL18: 48 | AN18: 1 | AO18: 22 | AP18: 39 | AS18: 62 | AY18: 72 | AZ18: 59 | BA18: 4 | BB18: 0 | BC18: 8 | BD18: 71 | BI18: 41 | BJ18: 75 | BK18: 1 | BL18: 3 | BN18: 3 | BO18: 33 | BP18: 5 | BQ18: 3 | BR18: 1 | BS18: 3 | BU18: 3 | BV18: 26 | BW18: 5 | BX18: 3 | BY18: 2 | CB18: 4 | CC18: 57 | CD18: 12 | CF18: 41 | CG18: 75 | CH18: 42 | CI18: 6 | CK18: 40 | CL18: 1 | CN18: 68 | CO18: 7 | CP18: 48 | CQ18: 41 | CR18: 75 | DG18: 17 | DH18: 15 | DI18: 31 | DJ18: 20 | DK18: 17 | DL18: 28 | DM18: 11 | DN18: 9 | DO18: 9 | DR18: 2 | DX18: 5 | DZ18: 67 | EA18: 8 | EB18: 0 | ED18: 75 | EH18: 1 | EI18: 1 | EJ18: 10 | EL18: 12 | EM18: 0 | EO18: 1 | EP18: 5 | EQ18: 4 | ER18: 2 | ET18: 8 | EU18: 4 | EW18: 12 | EX18: 12 | EY18: 12 | EZ18: 12 | FI18: 43 | FJ18: 37 | FK18: 43 | FN18: 37 | FQ18: 62 | FV18: 75 | GG18: =IF(Table4[[#This Row],[SF]]=Table4[[#This Row],[School]],1,0) -> 0 | GH18: =IF(Table4[[#This Row],[prgm]]=Table4[[#This Row],[Degree Offered]],1,0) -> 0
A19: 16 | B19: 2000-2001 | C19: College of the Desert | D19: Public | E19: AD | F19: 1 | G19: 0 | H19: 0 | I19: 1 | J19: 1 | K19: 0 | L19: 0 | M19: Riverside | N19: 9 | O19: San Joaquin Valley | P19: No | Q19: 165 | R19: 165 | U19: 63 | V19: 63 | W19: 0 | AF19: 63 | AG19: 63 | AI19: 80 | AL19: 80 | AN19: 3 | AO19: 11 | AP19: 36 | AS19: 50 | AY19: 90 | AZ19: 39 | BA19: 19 | BB19: 0 | BC19: 32 | BD19: 90 | BI19: 50 | BJ19: 121 | BK19: 3 | BL19: 2 | BN19: 4 | BO19: 30 | BP19: 18 | BQ19: 6 | BR19: 2 | BS19: 2 | BU19: 4 | BV19: 36 | BW19: 5 | BX19: 1 | BY19: 7 | BZ19: 2 | CB19: 6 | CC19: 64 | CD19: 36 | CE19: 6 | CF19: 50 | CG19: 121 | CH19: 55 | CI19: 8 | CK19: 36 | CL19: 14 | CN19: 104 | CO19: 17 | CP19: 63 | CQ19: 50 | CR19: 121 | DG19: 23 | DH19: 13 | DI19: 35 | DJ19: 24 | DK19: 18 | DL19: 53 | DM19: 15 | DN19: 17 | DO19: 25 | DP19: 1 | DQ19: 2 | DR19: 7 | DS19: 0 | DT19: 0 | DU19: 1 | DV19: 0 | DW19: 0 | DX19: 0 | DZ19: 100 | EA19: 15 | EB19: 6 | ED19: 121 | EI19: 1 | EJ19: 14 | EL19: 15 | EM19: 0 | EN19: 0 | EO19: 1 | EP19: 5 | EQ19: 6 | ER19: 3 | ES19: 0 | ET19: 7 | EU19: 8 | EW19: 15 | EX19: 15 | EY19: 15 | EZ19: 15 | FI19: 54 | FJ19: 48 | FK19: 54 | FN19: 48 | FQ19: 50 | FV19: 121 | GG19: =IF(Table4[[#This Row],[SF]]=Table4[[#This Row],[School]],1,0) -> 0 | GH19: =IF(Table4[[#This Row],[prgm]]=Table4[[#This Row],[Degree Offered]],1,0) -> 0
A20: 17 | B20: 2000-2001 | C20: College of the Redwoods | D20: Public | E20: AD | F20: 1 | G20: 0 | H20: 0 | I20: 1 | J20: 1 | K20: 0 | L20: 0 | M20: Humboldt | N20: 1 | O20: Inland Empire | P20: No | Q20: 30 | R20: 30 | U20: 36 | V20: 30 | W20: 6 | X20: 1 | Y20: 1 | Z20: 1 | AF20: 27 | AG20: 27 | AI20: 36 | AL20: 36 | AN20: 0 | AO20: 6 | AP20: 15 | AS20: 21 | AY20: 30 | AZ20: 21 | BA20: 1 | BB20: 0 | BC20: 9 | BD20: 31 | BI20: 21 | BJ20: 53 | BK20: 0 | BL20: 1 | BM20: 0 | BN20: 1 | BO20: 24 | BP20: 1 | BQ20: 0 | BR20: 1 | BS20: 1 | BT20: 1 | BU20: 0 | BV20: 16 | BW20: 2 | BX20: 0 | BY20: 0 | BZ20: 0 | CA20: 1 | CB20: 0 | CC20: 49 | CD20: 3 | CE20: 0 | CF20: 21 | CG20: 53 | CH20: 18 | CI20: 9 | CK20: 19 | CL20: 2 | CN20: 45 | CO20: 8 | CP20: 27 | CQ20: 21 | CR20: 53 | DG20: 4 | DH20: 1 | DI20: 12 | DJ20: 14 | DK20: 9 | DL20: 22 | DM20: 7 | DN20: 6 | DO20: 14 | DP20: 2 | DQ20: 3 | DR20: 4 | DT20: 2 | DU20: 1 | DZ20: 45 | EA20: 8 | EB20: 0 | ED20: 53 | EJ20: 11 | EL20: 8 | EM20: 3 | EO20: 4 | EP20: 4 | EQ20: 3 | ET20: 3 | EU20: 8 | EW20: 11 | EX20: 11 | EY20: 11 | EZ20: 11 | FI20: 40 | FJ20: 38 | FK20: 40 | FN20: 38 | FQ20: 21 | FV20: 53 | GG20: =IF(Table4[[#This Row],[SF]]=Table4[[#This Row],[School]],1,0) -> 0 | GH20: =IF(Table4[[#This Row],[prgm]]=Table4[[#This Row],[Degree Offered]],1,0) -> 0
A21: 18 | B21: 2000-2001 | C21: College of the Sequoias | D21: Public | E21: AD | F21: 1 | G21: 0 | H21: 0 | I21: 1 | J21: 1 | K21: 0 | L21: 0 | M21: Tulare | N21: 5 | O21: Inland Empire | P21: No | Q21: 75 | R21: 75 | U21: 60 | V21: 60 | W21: 0 | X21: 1 | Y21: 1 | Z21: 1 | AA21: 1 | AF21: 80 | AG21: 80 | AI21: 80 | AL21: 80 | AN21: 0 | AO21: 5 | AP21: 51 | AS21: 56 | AY21: 61 | AZ21: 47 | BA21: 7 | BB21: 0 | BC21: 7 | BD21: 61 | BI21: 56 | BJ21: 110 | BK21: 1 | BL21: 0 | BM21: 0 | BN21: 8 | BO21: 57 | BP21: 14 | BQ21: 0 | BR21: 0 | BS21: 2 | BT21: 0 | BU21: 1 | BV21: 42 | BW21: 11 | BX21: 0 | BY21: 2 | BZ21: 0 | CA21: 0 | CB21: 9 | CC21: 70 | CD21: 29 | CE21: 0 | CF21: 56 | CG21: 114 | CH21: 68 | CI21: 12 | CK21: 46 | CL21: 10 | CN21: 96 | CO21: 18 | CP21: 80 | CQ21: 56 | CR21: 113 | DG21: 29 | DH21: 16 | DI21: 44 | DJ21: 35 | DK21: 27 | DL21: 48 | DM21: 12 | DN21: 12 | DO21: 18 | DP21: 4 | DQ21: 1 | DR21: 3 | DS21: 0 | DT21: 0 | DU21: 0 | DV21: 0 | DW21: 0 | DX21: 0 | DZ21: 111 | EA21: 6 | EB21: 1 | ED21: 118 | EE21: 0 | EF21: 0 | EG21: 1 | EH21: 0 | EI21: 0 | EJ21: 17 | EK21: 0 | EL21: 16 | EM21: 2 | EN21: 0 | EO21: 3 | EP21: 8 | EQ21: 5 | ER21: 2 | ES21: 0 | ET21: 13 | EU21: 5 | EW21: 18 | EX21: 18 | EY21: 18 | EZ21: 18 | FI21: 53 | FJ21: 43 | FK21: 53 | FN21: 43 | FQ21: 56 | FV21: 118 | GG21: =IF(Table4[[#This Row],[SF]]=Table4[[#This Row],[School]],1,0) -> 0 | GH21: =IF(Table4[[#This Row],[prgm]]=Table4[[#This Row],[Degree Offered]],1,0) -> 0
A22: 20 | B22: 2000-2001 | C22: Contra Costa College | D22: Public | E22: AD | F22: 1 | G22: 0 | H22: 0 | I22: 1 | J22: 1 | K22: 0 | L22: 0 | M22: Contra Costa | N22: 4 | O22: LA Area | P22: No | Q22: 70 | R22: 70 | U22: 60 | V22: 51 | W22: 9 | X22: 1 | Y22: 1 | AC22: 1 | AE22: 1 | AF22: 57 | AG22: 57 | AI22: 43 | AL22: 50 | AN22: 0 | AO22: 3 | AP22: 30 | AS22: 33 | AY22: 51 | AZ22: 23 | BA22: 13 | BB22: 0 | BC22: 15 | BD22: 51 | BI22: 33 | BJ22: 100 | BK22: 12 | BL22: 0 | BM22: 13 | BN22: 13 | BO22: 12 | BP22: 7 | BR22: 9 | BS22: 0 | BT22: 5 | BU22: 3 | BV22: 15 | BW22: 1 | BY22: 17 | BZ22: 0 | CA22: 24 | CB22: 12 | CC22: 32 | CD22: 15 | CF22: 33 | CG22: 100 | CH22: 51 | CI22: 6 | CK22: 29 | CL22: 4 | CN22: 85 | CO22: 15 | CP22: 57 | CQ22: 33 | CR22: 100 | DG22: 24 | DH22: 8 | DI22: 32 | DJ22: 19 | DK22: 17 | DL22: 40 | DM22: 9 | DN22: 7 | DO22: 19 | DP22: 3 | DQ22: 1 | DR22: 5 | DS22: 2 | DT22: 0 | DU22: 3 | DV22: 0 | DW22: 0 | DX22: 1 | DZ22: 89 | EA22: 9 | EB22: 2 | ED22: 100 | EE22: 0 | EF22: 1 | EG22: 4 | EH22: 0 | EI22: 1 | EJ22: 10 | EK22: 0 | EL22: 14 | EM22: 2 | EN22: 0 | EO22: 1 | EP22: 3 | EQ22: 10 | ER22: 0 | ES22: 2 | ET22: 9 | EU22: 5 | EW22: 14 | EX22: 16 | EY22: 16 | EZ22: 16 | FI22: 29 | FJ22: 19 | FK22: 29 | FN22: 19 | FQ22: 33 | FV22: 100 | GG22: =IF(Table4[[#This Row],[SF]]=Table4[[#This Row],[School]],1,0) -> 0 | GH22: =IF(Table4[[#This Row],[prgm]]=Table4[[#This Row],[Degree Offered]],1,0) -> 0
A23: 22 | B23: 2000-2001 | C23: CSU Bakersfield | D23: Public | E23: BSN | F23: 0 | G23: 1 | H23: 0 | I23: 1 | J23: 0 | K23: 1 | L23: 0 | M23: Kern | N23: 5 | O23: LA Area | P23: No | Q23: 80 | S23: 80 | U23: 60 | V23: 40 | W23: 20 | X23: 1 | Y23: 1 | Z23: 1 | AA23: 1 | AF23: 42 | AG23: 52 | AI23: 72 | AL23: 72 | AN23: 0 | AO23: 0 | AP23: 29 | AS23: 29 | AY23: 52 | AZ23: 39 | BA23: 0 | BB23: 0 | BC23: 13 | BD23: 52 | BI23: 28 | BJ23: 110 | BK23: 3 | BL23: 4 | BM23: 2 | BN23: 3 | BO23: 18 | BP23: 12 | BR23: 2 | BT23: 4 | BU23: 4 | BV23: 15 | BW23: 3 | BY23: 4 | CB23: 22 | CC23: 59 | CD23: 25 | CF23: 29 | CG23: 114 | CH23: 48 | CI23: 4 | CK23: 27 | CL23: 2 | CN23: 104 | CO23: 10 | CP23: 52 | CQ23: 29 | CR23: 114 | DV23: 52 | DW23: 29 | DX23: 114 | DZ23: 113 | EA23: 1 | EB23: 0 | ED23: 114 | EE23: 0 | EF23: 0 | EG23: 1 | EH23: 0 | EI23: 0 | EJ23: 15 | EK23: 16 | EL23: 16 | EO23: 3 | EQ23: 10 | ER23: 3 | ES23: 16 | ET23: 12 | EU23: 4 | EW23: 16 | EX23: 32 | EY23: 16 | EZ23: 32 | FI23: 34 | FJ23: 27 | FL23: 34 | FO23: 27 | FR23: 29 | FW23: 114 | GG23: =IF(Table4[[#This Row],[SF]]=Table4[[#This Row],[School]],1,0) -> 0 | GH23: =IF(Table4[[#This Row],[prgm]]=Table4[[#This Row],[Degree Offered]],1,0) -> 0
A24: 23 | B24: 2000-2001 | C24: CSU Chico | D24: Public | E24: BSN | F24: 0 | G24: 1 | H24: 0 | I24: 1 | J24: 0 | K24: 1 | L24: 0 | M24: Butte | N24: 2 | O24: LA Area | P24: No | Q24: 120 | S24: 120 | U24: 80 | V24: 80 | W24: 0 | X24: 1 | Z24: 1 | AA24: 1 | AF24: 78 | AG24: 70 | AI24: 70 | AL24: 60 | AN24: 0 | AO24: 0 | AP24: 55 | AS24: 55 | AY24: 60 | AZ24: 55 | BA24: 1 | BB24: 0 | BC24: 4 | BD24: 60 | BI24: 55 | BJ24: 170 | BK24: 3 | BL24: 1 | BM24: 0 | BN24: 6 | BO24: 53 | BP24: 8 | BQ24: 7 | BR24: 1 | BS24: 1 | BT24: 0 | BU24: 4 | BV24: 42 | BW24: 3 | BX24: 4 | BY24: 5 | BZ24: 1 | CA24: 0 | CB24: 12 | CC24: 140 | CD24: 12 | CE24: 0 | CF24: 55 | CG24: 170 | CH24: 59 | CI24: 11 | CK24: 45 | CL24: 10 | CN24: 152 | CO24: 18 | CP24: 0 | CQ24: 0 | CR24: 0 | DZ24: 168 | EA24: 2 | EB24: 0 | ED24: 170 | EJ24: 25 | EL24: 24 | EM24: 1 | EN24: 0 | EO24: 0 | EP24: 8 | EQ24: 14 | ER24: 2 | ES24: 1 | ET24: 17 | EU24: 7 | EW24: 24 | EX24: 25 | EY24: 25 | EZ24: 25 | FI24: 56 | FJ24: 48 | FL24: 56 | FO24: 48 | FR24: 55 | FW24: 170 | GG24: =IF(Table4[[#This Row],[SF]]=Table4[[#This Row],[School]],1,0) -> 0 | GH24: =IF(Table4[[#This Row],[prgm]]=Table4[[#This Row],[Degree Offered]],1,0) -> 0
A25: 27 | B25: 2000-2001 | C25: CSU East Bay | D25: Public | E25: BSN | F25: 0 | G25: 1 | H25: 0 | I25: 1 | J25: 0 | K25: 1 | L25: 0 | M25: Alameda | N25: 4 | O25: Greater Sacramento | P25: Yes | Q25: 210 | S25: 210 | U25: 70 | V25: 69 | W25: 1 | X25: 0 | AF25: 69 | AG25: 69 | AL25: 80 | AN25: 0 | AO25: 10 | AP25: 41 | AS25: 51 | AY25: 66 | AZ25: 47 | BA25: 4 | BB25: 0 | BC25: 15 | BD25: 66 | BI25: 47 | BJ25: 170 | BK25: 4 | BL25: 0 | BM25: 9 | BN25: 10 | BO25: 35 | BP25: 11 | BR25: 6 | BT25: 11 | BU25: 8 | BV25: 18 | BW25: 4 | BY25: 17 | CA25: 23 | CB25: 25 | CC25: 82 | CD25: 23 | CF25: 47 | CG25: 170 | CH25: 53 | CI25: 16 | CK25: 40 | CL25: 7 | CN25: 144 | CO25: 26 | CP25: 69 | CQ25: 47 | CR25: 170 | DG25: 33 | DH25: 20 | DI25: 74 | DJ25: 23 | DK25: 24 | DL25: 66 | DM25: 10 | DN25: 3 | DO25: 24 | DP25: 2 | DR25: 6 | DS25: 1 | DZ25: 159 | EA25: 11 | EB25: 0 | ED25: 170 | EE25: 0 | EF25: 1 | EG25: 2 | EH25: 1 | EI25: 0 | EJ25: 16 | EL25: 20 | EO25: 5 | EP25: 5 | EQ25: 7 | ER25: 3 | ET25: 6 | EU25: 14 | EW25: 20 | EX25: 20 | EY25: 20 | EZ25: 20 | FI25: 39 | FJ25: 36 | FL25: 39 | FO25: 36 | FR25: 51 | FW25: 170 | GG25: =IF(Table4[[#This Row],[SF]]=Table4[[#This Row],[School]],1,0) -> 0 | GH25: =IF(Table4[[#This Row],[prgm]]=Table4[[#This Row],[Degree Offered]],1,0) -> 0
A26: 25 | B26: 2000-2001 | C26: CSU Fresno | D26: Public | E26: BSN | F26: 0 | G26: 1 | H26: 0 | I26: 1 | J26: 0 | K26: 1 | L26: 0 | M26: Fresno | N26: 5 | O26: LA Area | P26: No | Q26: 108 | S26: 108 | U26: 106 | V26: 106 | W26: 0 | X26: 1 | Y26: 1 | Z26: 1 | AA26: 1 | AF26: 106 | AG26: 106 | AI26: 110 | AL26: 110 | AO26: 4 | AP26: 50 | AS26: 54 | AY26: 66 | AZ26: 54 | BA26: 2 | BB26: 0 | BC26: 10 | BD26: 66 | BI26: 54 | BJ26: 261 | BK26: 7 | BL26: 1 | BM26: 3 | BN26: 21 | BO26: 38 | BP26: 18 | BQ26: 18 | BR26: 1 | BS26: 0 | BT26: 6 | BU26: 12 | BV26: 19 | BW26: 8 | BX26: 8 | BY26: 13 | BZ26: 4 | CA26: 1 | CB26: 55 | CC26: 108 | CD26: 50 | CE26: 30 | CF26: 54 | CG26: 261 | CH26: 94 | CI26: 12 | CK26: 47 | CL26: 7 | CN26: 223 | CO26: 38 | CP26: 106 | CQ26: 54 | CR26: 261 | DG26: 68 | DH26: 25 | DI26: 155 | DJ26: 24 | DK26: 21 | DL26: 60 | DM26: 7 | DN26: 5 | DO26: 34 | DP26: 4 | DQ26: 3 | DR26: 11 | DS26: 0 | DT26: 0 | DU26: 1 | DV26: 3 | DZ26: 0 | EA26: 11 | EB26: 0 | ED26: 11 | EE26: 0 | EF26: 1 | EG26: 2 | EH26: 0 | EI26: 0 | EJ26: 13 | EL26: 15 | EM26: 1 | ES26: 16 | ET26: 16 | EU26: 18 | EW26: 34 | EX26: 16 | EY26: 16 | EZ26: 16 | FI26: 45 | FJ26: 40 | FL26: 45 | FO26: 40 | FR26: 54 | FW26: 11 | GG26: =IF(Table4[[#This Row],[SF]]=Table4[[#This Row],[School]],1,0) -> 0 | GH26: =IF(Table4[[#This Row],[prgm]]=Table4[[#This Row],[Degree Offered]],1,0) -> 0
A27: 28 | B27: 2000-2001 | C27: CSU Long Beach | D27: Public | E27: BSN | F27: 0 | G27: 1 | H27: 0 | I27: 1 | J27: 0 | K27: 1 | L27: 0 | M27: Los Angeles | N27: 8 | O27: Inland Empire | P27: No | Q27: 130 | S27: 130 | U27: 72 | V27: 69 | W27: 3 | X27: 1 | Y27: 1 | Z27: 1 | AA27: 1 | AF27: 69 | AG27: 69 | AI27: 72 | AL27: 72 | AN27: 0 | AO27: 3 | AP27: 69 | AS27: 72 | AY27: 72 | AZ27: 67 | BA27: 5 | BB27: 0 | BC27: 0 | BD27: 72 | BI27: 72 | BJ27: 205 | BK27: 2 | BL27: 0 | BM27: 11 | BN27: 16 | BO27: 18 | BP27: 4 | BQ27: 18 | BR27: 0 | BS27: 0 | BT27: 12 | BU27: 7 | BV27: 32 | BW27: 10 | BX27: 11 | BY27: 8 | BZ27: 0 | CA27: 38 | CB27: 45 | CC27: 73 | CD27: 24 | CE27: 17 | CF27: 68 | CG27: 205 | CH27: 63 | CI27: 6 | CK27: 54 | CL27: 14 | CN27: 179 | CO27: 26 | CP27: 69 | CQ27: 68 | CR27: 205 | DG27: 47 | DH27: 23 | DI27: 138 | DJ27: 8 | DK27: 26 | DL27: 53 | DM27: 3 | DN27: 4 | DO27: 12 | DP27: 1 | DQ27: 0 | DR27: 2 | DS27: 0 | DT27: 0 | DU27: 0 | DV27: 10 | DW27: 15 | DX27: 0 | DZ27: 199 | EA27: 6 | EB27: 0 | ED27: 205 | EE27: 1 | EF27: 0 | EG27: 3 | EH27: 1 | EI27: 1 | EJ27: 20 | EK27: 2 | EL27: 27 | EM27: 1 | EN27: 0 | EO27: 1 | EP27: 9 | EQ27: 10 | ER27: 8 | ES27: 0 | ET27: 28 | EU27: 10 | EW27: 38 | EX27: 28 | EY27: 28 | EZ27: 28 | FI27: 70 | FJ27: 57 | FL27: 70 | FO27: 57 | FR27: 72 | FW27: 205 | GG27: =IF(Table4[[#This Row],[SF]]=Table4[[#This Row],[School]],1,0) -> 0 | GH27: =IF(Table4[[#This Row],[prgm]]=Table4[[#This Row],[Degree Offered]],1,0) -> 0
A28: 29 | B28: 2000-2001 | C28: CSU Los Angeles | D28: Public | E28: BSN | F28: 0 | G28: 1 | H28: 0 | I28: 1 | J28: 0 | K28: 1 | L28: 0 | M28: Los Angeles | N28: 8 | O28: Southern Border | P28: No | Q28: 152 | S28: 152 | U28: 70 | V28: 70 | W28: 0 | X28: 1 | Z28: 1 | AA28: 1 | AF28: 70 | AG28: 70 | AI28: 110 | AL28: 110 | AN28: 1 | AO28: 1 | AP28: 40 | AS28: 42 | AY28: 70 | AZ28: 55 | BA28: 2 | BB28: 0 | BC28: 13 | BD28: 70 | BI28: 42 | BJ28: 202 | BK28: 9 | BL28: 0 | BM28: 11 | BN28: 17 | BO28: 12 | BP28: 11 | BQ28: 10 | BR28: 4 | BS28: 0 | BT28: 5 | BU28: 12 | BV28: 9 | BW28: 8 | BX28: 4 | BY28: 25 | BZ28: 0 | CA28: 35 | CB28: 42 | CC28: 37 | CD28: 39 | CE28: 24 | CF28: 42 | CG28: 202 | CH28: 61 | CI28: 9 | CK28: 37 | CL28: 5 | CN28: 166 | CO28: 36 | CP28: 58 | CQ28: 42 | CR28: 202 | DG28: 36 | DH28: 18 | DI28: 104 | DJ28: 14 | DK28: 21 | DL28: 62 | DM28: 8 | DN28: 1 | DO28: 26 | DP28: 0 | DQ28: 2 | DR28: 8 | DS28: 0 | DT28: 0 | DU28: 2 | DV28: 0 | DW28: 0 | DX28: 0 | DZ28: 198 | EA28: 4 | EB28: 0 | ED28: 202 | EE28: 0 | EF28: 4 | EG28: 3 | EH28: 1 | EI28: 1 | EJ28: 33 | EK28: 0 | EL28: 41 | EM28: 1 | EN28: 0 | EO28: 3 | EP28: 10 | EQ28: 20 | ER28: 9 | ES28: 0 | ET28: 24 | EU28: 18 | EW28: 42 | EX28: 42 | EY28: 42 | EZ28: 42 | FI28: 44 | FJ28: 39 | FL28: 44 | FO28: 39 | FR28: 42 | FW28: 202 | GG28: =IF(Table4[[#This Row],[SF]]=Table4[[#This Row],[School]],1,0) -> 0 | GH28: =IF(Table4[[#This Row],[prgm]]=Table4[[#This Row],[Degree Offered]],1,0) -> 0
A29: 31 | B29: 2000-2001 | C29: CSU Sacramento | D29: Public | E29: BSN | F29: 0 | G29: 1 | H29: 0 | I29: 1 | J29: 0 | K29: 1 | L29: 0 | M29: Sacramento | N29: 3 | O29: San Joaquin Valley | P29: No | Q29: 133 | S29: 133 | U29: 90 | V29: 90 | W29: 0 | X29: 1 | Y29: 1 | Z29: 1 | AA29: 1 | AF29: 107 | AG29: 107 | AI29: 110 | AL29: 110 | AN29: 1 | AO29: 14 | AP29: 71 | AS29: 86 | AY29: 96 | AZ29: 77 | BA29: 9 | BB29: 0 | BC29: 10 | BD29: 96 | BI29: 85 | BJ29: 279 | BK29: 5 | BL29: 3 | BM29: 9 | BN29: 7 | BO29: 54 | BP29: 8 | BQ29: 21 | BR29: 4 | BS29: 1 | BT29: 10 | BU29: 11 | BV29: 46 | BW29: 6 | BX29: 7 | BY29: 10 | BZ29: 4 | CA29: 25 | CB29: 23 | CC29: 156 | CD29: 25 | CE29: 36 | CF29: 85 | CG29: 279 | CH29: 95 | CI29: 12 | CK29: 74 | CL29: 11 | CN29: 246 | CO29: 33 | CP29: 107 | CQ29: 85 | CR29: 279 | DV29: 107 | DW29: 85 | DX29: 279 | DZ29: 232 | EA29: 7 | EB29: 20 | ED29: 259 | EE29: 0 | EF29: 0 | EG29: 0 | EH29: 1 | EI29: 0 | EJ29: 49 | EK29: 0 | EL29: 50 | EM29: 0 | EN29: 1 | EO29: 4 | EP29: 20 | EQ29: 18 | ER29: 7 | ES29: 0 | ET29: 25 | EU29: 25 | EW29: 50 | EX29: 50 | EY29: 50 | EZ29: 50 | FI29: 104 | FJ29: 91 | FL29: 104 | FO29: 91 | FR29: 86 | FW29: 259 | GG29: =IF(Table4[[#This Row],[SF]]=Table4[[#This Row],[School]],1,0) -> 0 | GH29: =IF(Table4[[#This Row],[prgm]]=Table4[[#This Row],[Degree Offered]],1,0) -> 0
A30: 32 | B30: 2000-2001 | C30: CSU San Bernardino | D30: Public | E30: BSN | F30: 0 | G30: 1 | H30: 0 | I30: 1 | J30: 0 | K30: 1 | L30: 0 | M30: San Bernardino | N30: 9 | O30: Bay Area | P30: No | Q30: 63 | S30: 63 | U30: 99 | V30: 99 | W30: 0 | X30: 1 | Y30: 1 | AA30: 1 | AF30: 86 | AG30: 86 | AI30: 88 | AL30: 88 | AN30: 0 | AO30: 0 | AP30: 69 | AS30: 69 | AY30: 72 | AZ30: 59 | BA30: 4 | BB30: 0 | BC30: 9 | BD30: 72 | BI30: 72 | BJ30: 203 | BK30: 7 | BL30: 0 | BM30: 12 | BN30: 4 | BO30: 40 | BP30: 12 | BQ30: 11 | BR30: 2 | BS30: 0 | BT30: 9 | BU30: 16 | BV30: 25 | BW30: 15 | BX30: 5 | BY30: 15 | BZ30: 4 | CA30: 31 | CB30: 21 | CC30: 73 | CD30: 35 | CE30: 24 | CF30: 72 | CG30: 203 | CH30: 77 | CI30: 9 | CK30: 63 | CL30: 9 | CN30: 180 | CO30: 23 | CP30: 86 | CQ30: 72 | CR30: 203 | DG30: 51 | DH30: 23 | DI30: 124 | DJ30: 23 | DK30: 38 | DL30: 53 | DM30: 9 | DN30: 8 | DO30: 18 | DP30: 3 | DQ30: 3 | DR30: 8 | DS30: 0 | DT30: 0 | DU30: 0 | DV30: 0 | DW30: 0 | DX30: 0 | DZ30: 86 | EA30: 0 | EB30: 0 | ED30: 86 | EE30: 0 | EF30: 0 | EG30: 4 | EH30: 3 | EI30: 0 | EJ30: 18 | EK30: 0 | EL30: 23 | EM30: 2 | EN30: 0 | EO30: 1 | EP30: 9 | EQ30: 7 | ER30: 2 | ES30: 6 | ET30: 15 | EU30: 10 | EW30: 25 | EX30: 25 | EY30: 25 | EZ30: 25 | FI30: 51 | FJ30: 41 | FL30: 51 | FO30: 41 | FR30: 69 | FW30: 86 | GG30: =IF(Table4[[#This Row],[SF]]=Table4[[#This Row],[School]],1,0) -> 0 | GH30: =IF(Table4[[#This Row],[prgm]]=Table4[[#This Row],[Degree Offered]],1,0) -> 0
A31: 34 | B31: 2000-2001 | C31: Cuesta College | D31: Public | E31: AD | F31: 1 | G31: 0 | H31: 0 | I31: 1 | J31: 1 | K31: 0 | L31: 0 | M31: San Luis Obispo | N31: 7 | O31: Inland Empire | P31: No | Q31: 53 | R31: 53 | U31: 46 | V31: 39 | W31: 7 | X31: 1 | AC31: 1 | AE31: 1 | AF31: 37 | AG31: 37 | AI31: 39 | AL31: 46 | AN31: 0 | AO31: 0 | AP31: 34 | AS31: 34 | AY31: 39 | AZ31: 34 | BA31: 0 | BB31: 0 | BC31: 2 | BD31: 36 | BI31: 34 | BJ31: 77 | BL31: 1 | BM31: 2 | BO31: 29 | BP31: 5 | BT31: 2 | BV31: 28 | BW31: 2 | BX31: 2 | BZ31: 5 | CA31: 5 | CB31: 4 | CC31: 56 | CD31: 7 | CF31: 34 | CG31: 77 | CH31: 36 | CI31: 1 | CK31: 30 | CL31: 4 | CN31: 70 | CO31: 7 | CP31: 38 | CQ31: 34 | CR31: 77 | DG31: 15 | DH31: 10 | DI31: 22 | DJ31: 9 | DK31: 14 | DL31: 27 | DM31: 11 | DN31: 7 | DO31: 19 | DP31: 1 | DQ31: 3 | DR31: 6 | DS31: 1 | DV31: 1 | DX31: 3 | DZ31: 78 | EA31: 6 | EB31: 0 | ED31: 84 | EJ31: 12 | EL31: 12 | EN31: 0 | EO31: 3 | EP31: 8 | EQ31: 1 | ET31: 6 | EU31: 6 | EW31: 12 | EX31: 12 | EY31: 12 | EZ31: 12 | FI31: 34 | FJ31: 27 | FK31: 34 | FN31: 27 | FQ31: 34 | FV31: 84 | GG31: =IF(Table4[[#This Row],[SF]]=Table4[[#This Row],[School]],1,0) -> 0 | GH31: =IF(Table4[[#This Row],[prgm]]=Table4[[#This Row],[Degree Offered]],1,0) -> 0
A32: 35 | B32: 2000-2001 | C32: Cypress College | D32: Public | E32: AD | F32: 1 | G32: 0 | H32: 0 | I32: 1 | J32: 1 | K32: 0 | L32: 0 | M32: Orange | N32: 9 | O32: Inland Empire | P32: No | Q32: 231 | R32: 231 | U32: 80 | V32: 78 | W32: 2 | X32: 1 | Y32: 1 | Z32: 1 | AA32: 1 | AB32: 1 | AE32: 1 | AI32: 80 | AL32: 80 | AN32: 0 | AO32: 11 | AP32: 56 | AS32: 67 | AY32: 138 | AZ32: 67 | BA32: 47 | BB32: 0 | BC32: 24 | BD32: 138 | BI32: 0 | BJ32: 138 | BY32: 7 | BZ32: 0 | CA32: 19 | CB32: 19 | CC32: 57 | CD32: 28 | CE32: 8 | CF32: 0 | CG32: 138 | CN32: 120 | CO32: 18 | CP32: 0 | CQ32: 0 | CR32: 138 | DI32: 40 | DL32: 69 | DO32: 25 | DR32: 4 | DU32: 0 | DZ32: 114 | EA32: 24 | EB32: 0 | ED32: 138 | EF32: 1 | EJ32: 14 | EL32: 15 | EN32: 0 | EO32: 2 | EP32: 5 | EQ32: 7 | ET32: 13 | EU32: 2 | EW32: 15 | EX32: 14 | EY32: 15 | EZ32: 15 | FI32: 60 | FJ32: 57 | FK32: 60 | FN32: 57 | FQ32: 67 | FV32: 138 | GG32: =IF(Table4[[#This Row],[SF]]=Table4[[#This Row],[School]],1,0) -> 0 | GH32: =IF(Table4[[#This Row],[prgm]]=Table4[[#This Row],[Degree Offered]],1,0) -> 0
A33: 36 | B33: 2000-2001 | C33: De Anza College | D33: Public | E33: AD | F33: 1 | G33: 0 | H33: 0 | I33: 1 | J33: 1 | K33: 0 | L33: 0 | M33: Santa Clara | N33: 4 | O33: Greater Sacramento | P33: Yes | Q33: 109 | R33: 109 | U33: 80 | V33: 72 | W33: 8 | X33: 0 | AF33: =BL33+BN33+BK33+BM33+BP33+BO33+BQ33 -> 65 | AG33: =CI33+CH33 -> 65 | AI33: 82 | AL33: 82 | AN33: 0 | AO33: 10 | AP33: 44 | AS33: 54 | AY33: 160 | AZ33: 54 | BA33: 99 | BB33: 0 | BC33: 7 | BD33: 160 | BI33: 54 | BJ33: 110 | BK33: 4 | BL33: 1 | BM33: 6 | BN33: 10 | BO33: 35 | BP33: 8 | BQ33: 1 | BR33: 3 | BS33: 0 | BT33: 6 | BU33: 6 | BV33: 35 | BW33: 2 | BX33: 2 | BY33: 4 | BZ33: 1 | CA33: 13 | CB33: 15 | CC33: 60 | CD33: 13 | CE33: 4 | CF33: 54 | CG33: 110 | CH33: 62 | CI33: 3 | CK33: 47 | CL33: 7 | CN33: 102 | CO33: 8 | CP33: 65 | CQ33: 54 | CR33: 110 | DG33: 14 | DH33: 3 | DI33: 26 | DJ33: 30 | DK33: 24 | DL33: 57 | DM33: 13 | DN33: 20 | DO33: 17 | DP33: 7 | DQ33: 7 | DR33: 9 | DS33: 1 | DT33: 0 | DU33: 1 | DV33: 0 | DW33: 0 | DX33: 0 | DZ33: 102 | EA33: 8 | EB33: 0 | ED33: 110 | EE33: 0 | EF33: 1 | EG33: 0 | EH33: 0 | EI33: 1 | EJ33: 15 | EL33: 17 | EM33: 0 | EN33: 0 | EO33: 2 | EP33: 7 | EQ33: 6 | ER33: 2 | ET33: 9 | EU33: 8 | EW33: 17 | EX33: 17 | EY33: 17 | EZ33: 17 | FI33: 51 | FJ33: 41 | FK33: 51 | FN33: 41 | FQ33: 54 | FV33: 110 | GG33: =IF(Table4[[#This Row],[SF]]=Table4[[#This Row],[School]],1,0) -> 0 | GH33: =IF(Table4[[#This Row],[prgm]]=Table4[[#This Row],[Degree Offered]],1,0) -> 0
A34: 37 | B34: 2000-2001 | C34: Dominican University of California | D34: Private | E34: BSN | F34: 0 | G34: 1 | H34: 0 | I34: 0 | J34: 0 | K34: 0 | L34: 0 | M34: Marin | N34: 4 | O34: LA Area | P34: Yes | Q34: 75 | S34: 75 | U34: 30 | V34: 24 | W34: 6 | X34: 0 | AF34: =BL34+BN34+BK34+BM34+BP34+BO34+BQ34 -> 40 | AG34: 40 | AI34: 40 | AL34: 40 | AN34: 1 | AO34: 6 | AP34: 33 | AS34: 40 | AY34: 54 | AZ34: 38 | BA34: 5 | BB34: 0 | BC34: 11 | BD34: 54 | BI34: 40 | BJ34: 157 | BK34: 5 | BL34: 0 | BN34: 10 | BO34: 18 | BP34: 5 | BQ34: 2 | BR34: 4 | BS34: 0 | BU34: 10 | BV34: 20 | BW34: 3 | BX34: 3 | BY34: 14 | BZ34: 1 | CB34: 50 | CC34: 59 | CD34: 18 | CE34: 15 | CF34: 40 | CG34: 157 | CH34: 36 | CI34: 4 | CK34: 36 | CL34: 4 | CN34: 137 | CO34: 20 | CP34: 40 | CQ34: 40 | CR34: 157 | DG34: 31 | DH34: 13 | DI34: 107 | DJ34: 8 | DK34: 19 | DL34: 35 | DM34: 1 | DN34: 5 | DO34: 12 | DP34: 0 | DQ34: 3 | DR34: 0 | DS34: 0 | DT34: 0 | DU34: 0 | DV34: 0 | DW34: 0 | DX34: 3 | DZ34: 136 | EA34: 18 | EB34: 3 | ED34: 157 | EE34: 1 | EF34: 0 | EG34: 1 | EH34: 2 | EI34: 0 | EJ34: 22 | EK34: 2 | EL34: 24 | EM34: 4 | EN34: 1 | EO34: 6 | EP34: 8 | EQ34: 11 | ER34: 2 | ET34: 10 | EU34: 18 | EW34: 28 | EX34: 28 | EY34: 28 | EZ34: 28 | FI34: 44 | FJ34: 28 | FL34: 44 | FO34: 28 | FR34: 40 | FW34: 157 | GG34: =IF(Table4[[#This Row],[SF]]=Table4[[#This Row],[School]],1,0) -> 0 | GH34: =IF(Table4[[#This Row],[prgm]]=Table4[[#This Row],[Degree Offered]],1,0) -> 0
A35: 38 | B35: 2000-2001 | C35: East Los Angeles College | D35: Public | E35: AD | F35: 1 | G35: 0 | H35: 0 | I35: 1 | J35: 1 | K35: 0 | L35: 0 | M35: Los Angeles | N35: 8 | O35: Bay Area | P35: No | Q35: 119 | R35: 119 | U35: 48 | V35: 48 | W35: 0 | X35: 1 | Y35: 1 | Z35: 1 | AF35: =BL35+BN35+BK35+BM35+BP35+BO35+BQ35 -> 104 | AG35: 80 | AI35: 60 | AL35: 60 | AN35: 0 | AO35: 8 | AP35: 64 | AS35: 72 | AY35: 126 | AZ35: 36 | BA35: 57 | BB35: 0 | BC35: 12 | BD35: 105 | BI35: 84 | BJ35: 126 | BK35: 7 | BL35: 0 | BM35: 14 | BN35: 17 | BO35: 2 | BP35: 64 | BR35: 4 | BS35: 0 | BT35: 10 | BU35: 11 | BV35: 1 | BW35: 58 | BY35: 6 | BZ35: 0 | CA35: 14 | CB35: 27 | CC35: 2 | CD35: 77 | CF35: 46 | CG35: 126 | CH35: 74 | CI35: 6 | CK35: 43 | CL35: 3 | CN35: 117 | CO35: 9 | CP35: 61 | CQ35: 72 | CR35: 126 | DG35: 15 | DH35: 26 | DI35: 30 | DJ35: 33 | DK35: 40 | DL35: 87 | DM35: 13 | DN35: 6 | DO35: 7 | DP35: 0 | DQ35: 0 | DR35: 2 | DZ35: 114 | EA35: 12 | EB35: 0 | ED35: 126 | EE35: 0 | EF35: 1 | EG35: 3 | EH35: 1 | EI35: 3 | EJ35: 1 | EL35: 9 | EM35: 0 | EN35: 2 | EO35: 5 | EP35: 11 | EQ35: 0 | ER35: 0 | ET35: 9 | EU35: 9 | EW35: 18 | EX35: 18 | EY35: 9 | EZ35: 9 | FI35: 58 | FJ35: 45 | FK35: 58 | FN35: 45 | FQ35: 72 | FV35: 126 | GG35: =IF(Table4[[#This Row],[SF]]=Table4[[#This Row],[School]],1,0) -> 0 | GH35: =IF(Table4[[#This Row],[prgm]]=Table4[[#This Row],[Degree Offered]],1,0) -> 0
A36: 39 | B36: 2000-2001 | C36: El Camino College | D36: Public | E36: AD | F36: 1 | G36: 0 | H36: 0 | I36: 1 | J36: 1 | K36: 0 | L36: 0 | M36: Los Angeles | N36: 8 | O36: Inland Empire | P36: No | Q36: 112 | R36: 112 | U36: 96 | V36: 100 | W36: -4 | X36: 1 | Y36: 1 | AA36: 1 | AB36: 1 | AE36: 1 | AF36: =BL36+BN36+BK36+BM36+BP36+BO36+BQ36 -> 95 | AG36: 95 | AI36: 94 | AL36: 96 | AN36: 0 | AO36: 5 | AP36: 66 | AS36: 71 | AY36: 95 | AZ36: 44 | BA36: 27 | BB36: 0 | BC36: 24 | BD36: 95 | BI36: 71 | BJ36: 178 | BK36: 12 | BL36: 0 | BM36: 14 | BN36: 7 | BO36: 37 | BP36: 24 | BQ36: 1 | BR36: 13 | BS36: 1 | BT36: 8 | BU36: 10 | BV36: 24 | BW36: 15 | BX36: 0 | BY36: 34 | BZ36: 1 | CA36: 34 | CB36: 9 | CC36: 52 | CD36: 44 | CE36: 4 | CF36: 71 | CG36: 178 | CH36: 83 | CI36: 12 | CK36: 62 | CL36: 9 | CN36: 154 | CO36: 24 | CP36: 95 | CQ36: 71 | CR36: 178 | DG36: 37 | DH36: 11 | DI36: 54 | DJ36: 34 | DK36: 35 | DL36: 87 | DM36: 16 | DN36: 23 | DO36: 27 | DP36: 6 | DQ36: 0 | DR36: 10 | DS36: 2 | DT36: 2 | DU36: 0 | DZ36: 165 | EA36: 13 | EB36: 0 | ED36: 178 | EE36: 0 | EF36: 3 | EG36: 0 | EH36: 1 | EI36: 1 | EJ36: 13 | EK36: 2 | EL36: 19 | EM36: 1 | EN36: 0 | EO36: 3 | EP36: 6 | EQ36: 6 | ER36: 5 | ES36: 0 | ET36: 12 | EU36: 8 | EW36: 20 | EX36: 20 | EY36: 20 | EZ36: 20 | FI36: 65 | FJ36: 55 | FK36: 65 | FN36: 55 | FQ36: 71 | FV36: 178 | GG36: =IF(Table4[[#This Row],[SF]]=Table4[[#This Row],[School]],1,0) -> 0 | GH36: =IF(Table4[[#This Row],[prgm]]=Table4[[#This Row],[Degree Offered]],1,0) -> 0
A37: 19 | B37: 2000-2001 | C37: El Camino College - Compton Education Center | D37: Public | E37: AD | F37: 1 | G37: 0 | H37: 0 | I37: 1 | J37: 1 | K37: 0 | L37: 0 | M37: Los Angeles | N37: 8 | O37: Greater Sacramento | P37: No | Q37: 25 | R37: 25 | U37: 30 | V37: 16 | W37: 14 | X37: 1 | Y37: 1 | AF37: =BL37+BN37+BK37+BM37+BP37+BO37+BQ37 -> 17 | AG37: 16 | AI37: 20 | AL37: 25 | AN37: 0 | AO37: 11 | AP37: 8 | AS37: 19 | AY37: 23 | AZ37: 19 | BA37: 0 | BB37: 0 | BC37: 4 | BD37: 23 | BI37: 19 | BJ37: 31 | BK37: 13 | BL37: 0 | BM37: 0 | BN37: 1 | BO37: 0 | BP37: 3 | BR37: 14 | BS37: 0 | BT37: 0 | BU37: 1 | BV37: 0 | BW37: 4 | BY37: 19 | BZ37: 0 | CA37: 0 | CB37: 1 | CC37: 0 | CD37: 11 | CF37: 19 | CG37: 30 | CH37: 14 | CI37: 2 | CK37: 16 | CL37: 3 | CN37: 27 | CO37: 3 | CP37: 16 | CQ37: 19 | CR37: 49 | DG37: 7 | DH37: 6 | DI37: 22 | DJ37: 3 | DK37: 8 | DL37: 19 | DM37: 6 | DN37: 3 | DO37: 6 | DP37: 0 | DQ37: 2 | DR37: 2 | DS37: 0 | DT37: 0 | DU37: 0 | DZ37: 25 | EA37: 5 | EB37: 0 | ED37: 30 | EE37: 0 | EF37: 0 | EG37: 6 | EH37: 0 | EI37: 0 | EJ37: 0 | EL37: 6 | EM37: 0 | EN37: 0 | EO37: 0 | EP37: 2 | EQ37: 4 | ER37: 0 | ET37: 6 | EU37: 0 | EW37: 6 | EX37: 6 | EY37: 6 | EZ37: 6 | FI37: 7 | FJ37: 2 | FK37: 7 | FN37: 2 | FQ37: 19 | FV37: 30 | GG37: =IF(Table4[[#This Row],[SF]]=Table4[[#This Row],[School]],1,0) -> 0 | GH37: =IF(Table4[[#This Row],[prgm]]=Table4[[#This Row],[Degree Offered]],1,0) -> 0
A38: 40 | B38: 2000-2001 | C38: Evergreen Valley College | D38: Public | E38: AD | F38: 1 | G38: 0 | H38: 0 | I38: 1 | J38: 1 | K38: 0 | L38: 0 | M38: Santa Clara | N38: 4 | O38: LA Area | P38: Yes | Q38: 136 | R38: 136 | U38: 60 | V38: 60 | W38: 0 | X38: 1 | Y38: 1 | AA38: 1 | AG38: 57 | AI38: 59 | AL38: 60 | AN38: 1 | AO38: 12 | AP38: 28 | AS38: 41 | AY38: 65 | AZ38: 32 | BA38: 12 | BB38: 0 | BC38: 11 | BD38: 55 | BI38: 0 | BJ38: 94 | BY38: 9 | BZ38: 2 | CA38: 14 | CB38: 10 | CC38: 24 | CD38: 23 | CE38: 12 | CF38: 41 | CG38: 94 | CH38: 54 | CI38: 3 | CK38: 39 | CL38: 2 | CN38: 85 | CO38: 9 | CP38: 0 | CQ38: 0 | CR38: 94 | DI38: 29 | DL38: 33 | DO38: 17 | DR38: 0 | DU38: 0 | DX38: 15 | DZ38: 93 | EA38: 1 | EB38: 0 | ED38: 94 | EE38: 0 | EF38: 1 | EG38: 0 | EH38: 0 | EI38: 4 | EJ38: 10 | EK38: 0 | EL38: 15 | EN38: 0 | EO38: 4 | EP38: 5 | EQ38: 5 | ER38: 1 | ES38: 0 | ET38: 6 | EU38: 9 | EW38: 15 | EX38: 15 | EY38: 15 | EZ38: 15 | FI38: 30 | FJ38: 24 | FK38: 30 | FN38: 24 | FQ38: 41 | FV38: 94 | GG38: =IF(Table4[[#This Row],[SF]]=Table4[[#This Row],[School]],1,0) -> 0 | GH38: =IF(Table4[[#This Row],[prgm]]=Table4[[#This Row],[Degree Offered]],1,0) -> 0
A39: 41 | B39: 2000-2001 | C39: Fresno City College | D39: Public | E39: AD | F39: 1 | G39: 0 | H39: 0 | I39: 1 | J39: 1 | K39: 0 | L39: 0 | M39: Fresno | N39: 5 | O39: LA Area | P39: No | Q39: 148 | R39: 148 | U39: 93 | V39: 93 | W39: 0 | AF39: =BL39+BN39+BK39+BM39+BP39+BO39+BQ39 -> 145 | AG39: 145 | AI39: 112 | AL39: 116 | AN39: 6 | AO39: 40 | AP39: 80 | AS39: 126 | AY39: 145 | AZ39: 120 | BA39: 22 | BB39: 0 | BC39: 3 | BD39: 145 | BI39: 127 | BJ39: 252 | BK39: 8 | BL39: 2 | BM39: 6 | BN39: 23 | BO39: 65 | BP39: 33 | BQ39: 8 | BR39: 7 | BS39: 2 | BT39: 2 | BU39: 20 | BV39: 57 | BW39: 29 | BX39: 10 | BY39: 14 | BZ39: 4 | CA39: 4 | CB39: 39 | CC39: 112 | CD39: 58 | CE39: 21 | CF39: 126 | CG39: 251 | CH39: 123 | CI39: 22 | CK39: 107 | CL39: 19 | CN39: 213 | CO39: 38 | CP39: 145 | CQ39: 127 | CR39: 252 | DG39: 21 | DH39: 20 | DI39: 44 | DJ39: 62 | DK39: 35 | DL39: 58 | DM39: 38 | DN39: 30 | DO39: 54 | DP39: 23 | DQ39: 21 | DR39: 45 | DS39: 1 | DT39: 21 | DU39: 51 | DV39: 0 | DW39: 0 | DX39: 0 | DZ39: 201 | EA39: 38 | EB39: 13 | ED39: 252 | EL39: 25 | EM39: 5 | EN39: 0 | EO39: 2 | EP39: 16 | EQ39: 5 | ER39: 2 | ES39: 5 | ET39: 11 | EU39: 19 | EW39: 30 | EX39: 30 | EY39: 30 | EZ39: 0 | FI39: 125 | FJ39: 100 | FK39: 125 | FN39: 100 | FQ39: 126 | FV39: 252 | GG39: =IF(Table4[[#This Row],[SF]]=Table4[[#This Row],[School]],1,0) -> 0 | GH39: =IF(Table4[[#This Row],[prgm]]=Table4[[#This Row],[Degree Offered]],1,0) -> 0
A40: 42 | B40: 2000-2001 | C40: Gavilan College | D40: Public | E40: AD | F40: 1 | G40: 0 | H40: 0 | I40: 1 | J40: 1 | K40: 0 | L40: 0 | M40: Santa Clara | N40: 4 | O40: Bay Area | P40: Yes | Q40: 16 | R40: 16 | U40: 20 | V40: 16 | W40: 4 | X40: 0 | AI40: 20 | AL40: 20 | AN40: 0 | AO40: 15 | AP40: 0 | AS40: 15 | AY40: 16 | AZ40: 15 | BA40: 1 | BB40: 0 | BC40: 0 | BD40: 16 | BI40: 15 | BJ40: 10 | BX40: 15 | CE40: 10 | CF40: 15 | CG40: 10 | CK40: 14 | CL40: 1 | CN40: 8 | CO40: 2 | CP40: 0 | CQ40: 15 | CR40: 10 | DW40: 15 | DX40: 10 | DZ40: 0 | EA40: 10 | EB40: 0 | ED40: 10 | EE40: 1 | EI40: 2 | EJ40: 4 | EL40: 7 | ES40: 7 | ET40: 1 | EU40: 6 | EW40: 7 | EX40: 7 | EY40: 7 | EZ40: 7 | FI40: 10 | FJ40: 8 | FK40: 10 | FN40: 8 | FQ40: 15 | FV40: 10 | GG40: =IF(Table4[[#This Row],[SF]]=Table4[[#This Row],[School]],1,0) -> 0 | GH40: =IF(Table4[[#This Row],[prgm]]=Table4[[#This Row],[Degree Offered]],1,0) -> 0
A41: 43 | B41: 2000-2001 | C41: Glendale Community College | D41: Public | E41: AD | F41: 1 | G41: 0 | H41: 0 | I41: 1 | J41: 1 | K41: 0 | L41: 0 | M41: Los Angeles | N41: 8 | O41: Bay Area | P41: No | Q41: 142 | R41: 142 | U41: 48 | V41: 47 | W41: 1 | X41: 1 | Z41: 1 | AA41: 1 | AF41: =BL41+BN41+BK41+BM41+BP41+BO41+BQ41 -> 47 | AG41: =CI41+CH41 -> 47 | AI41: 36 | AL41: 36 | AN41: 0 | AO41: 17 | AP41: 23 | AS41: 40 | AY41: 53 | AZ41: 38 | BA41: 3 | BB41: 0 | BC41: 12 | BD41: 53 | BI41: 47 | BJ41: 119 | BK41: 1 | BL41: 1 | BM41: 10 | BN41: 7 | BO41: 12 | BP41: 11 | BQ41: 5 | BR41: 2 | BS41: 0 | BT41: 11 | BU41: 3 | BV41: 18 | BW41: 10 | BX41: 3 | BY41: 6 | BZ41: 1 | CA41: 30 | CB41: 15 | CC41: 29 | CD41: 26 | CE41: 12 | CF41: 47 | CG41: 119 | CH41: 37 | CI41: 10 | CK41: 39 | CL41: 8 | CN41: 104 | CO41: 15 | CP41: 47 | CQ41: 47 | CR41: 119 | DG41: 15 | DH41: 16 | DI41: 46 | DJ41: 17 | DK41: 22 | DL41: 41 | DM41: 9 | DN41: 5 | DO41: 22 | DP41: 0 | DQ41: 2 | DR41: 4 | DS41: 0 | DT41: 0 | DU41: 0 | DV41: 6 | DW41: 2 | DX41: 6 | DZ41: 97 | EA41: 22 | EB41: 0 | ED41: 119 | EE41: 0 | EF41: 0 | EG41: 0 | EH41: 2 | EI41: 1 | EJ41: 10 | EK41: 0 | EL41: 10 | EM41: 3 | EN41: 0 | EO41: 1 | EP41: 1 | EQ41: 2 | ER41: 3 | ES41: 6 | ET41: 8 | EU41: 5 | EW41: 13 | EX41: 13 | EY41: 13 | EZ41: 13 | FI41: 42 | FJ41: 38 | FK41: 42 | FN41: 38 | FQ41: 40 | FV41: 119 | GG41: =IF(Table4[[#This Row],[SF]]=Table4[[#This Row],[School]],1,0) -> 0 | GH41: =IF(Table4[[#This Row],[prgm]]=Table4[[#This Row],[Degree Offered]],1,0) -> 0
A42: 44 | B42: 2000-2001 | C42: Golden West Community College | D42: Public | E42: AD | F42: 1 | G42: 0 | H42: 0 | I42: 1 | J42: 1 | K42: 0 | L42: 0 | M42: Orange | N42: 9 | O42: Bay Area | P42: No | Q42: 277 | R42: 277 | U42: 110 | V42: 108 | W42: 2 | X42: 1 | Y42: 1 | Z42: 1 | AA42: 1 | AB42: 1 | AE42: 1 | AF42: 107 | AG42: 107 | AI42: 110 | AL42: 110 | AN42: 3 | AO42: 13 | AP42: 57 | AS42: 73 | AY42: 106 | AZ42: 46 | BA42: 9 | BB42: 0 | BC42: 53 | BD42: 108 | BI42: 69 | BJ42: 187 | BK42: 4 | BL42: 0 | BM42: 4 | BN42: 31 | BO42: 59 | BP42: 8 | BQ42: 1 | BR42: 1 | BS42: 0 | BT42: 7 | BU42: 11 | BV42: 43 | BW42: 5 | BX42: 2 | BY42: 2 | BZ42: 0 | CA42: 8 | CB42: 52 | CC42: 106 | CD42: 17 | CE42: 2 | CF42: 69 | CG42: 177 | CH42: 97 | CI42: 10 | CK42: 56 | CL42: 13 | CN42: 162 | CO42: 15 | CP42: 107 | CQ42: 69 | CR42: 187 | DG42: 39 | DH42: 21 | DI42: 66 | DJ42: 49 | DK42: 36 | DL42: 84 | DM42: 19 | DN42: 10 | DO42: 32 | DP42: 0 | DQ42: 2 | DR42: 5 | DS42: 0 | DT42: 0 | DU42: 0 | DZ42: 173 | EA42: 13 | EB42: 1 | ED42: 187 | EE42: 0 | EF42: 2 | EG42: 0 | EH42: 0 | EI42: 1 | EJ42: 20 | EL42: 23 | EM42: 0 | ES42: 23 | ET42: 21 | EU42: 2 | EW42: 23 | EX42: 23 | EY42: 23 | EZ42: 23 | FI42: 75 | FJ42: 67 | FK42: 75 | FN42: 67 | FQ42: 73 | FV42: 187 | GG42: =IF(Table4[[#This Row],[SF]]=Table4[[#This Row],[School]],1,0) -> 0 | GH42: =IF(Table4[[#This Row],[prgm]]=Table4[[#This Row],[Degree Offered]],1,0) -> 0
A43: 45 | B43: 2000-2001 | C43: Grossmont College | D43: Public | E43: AD | F43: 1 | G43: 0 | H43: 0 | I43: 1 | J43: 1 | K43: 0 | L43: 0 | M43: San Diego | N43: 10 | O43: LA Area | P43: No | Q43: 200 | R43: 200 | U43: 93 | V43: 93 | W43: 0 | X43: 1 | Y43: 1 | Z43: 1 | AA43: 1 | AB43: 1 | AE43: 1 | AF43: 99 | AG43: 99 | AI43: 101 | AL43: 113 | AN43: 0 | AO43: 34 | AP43: 46 | AS43: 80 | AY43: 99 | AZ43: 80 | BA43: 0 | BB43: 0 | BC43: 19 | BD43: 99 | BI43: 175 | BJ43: 162 | BK43: 6 | BL43: 1 | BM43: 24 | BN43: 3 | BO43: 56 | BP43: 7 | BQ43: 2 | BR43: 30 | BS43: 0 | BT43: 14 | BU43: 2 | BV43: 48 | BW43: 80 | BX43: 1 | BY43: 8 | BZ43: 6 | CA43: 29 | CB43: 8 | CC43: 92 | CD43: 17 | CE43: 2 | CF43: 80 | CG43: 162 | CH43: 84 | CI43: 15 | CK43: 70 | CL43: 10 | CN43: 147 | CO43: 15 | CP43: 99 | CQ43: 80 | CR43: 162 | DG43: 27 | DH43: 10 | DI43: 39 | DJ43: 48 | DK43: 32 | DL43: 80 | DM43: 19 | DN43: 29 | DO43: 33 | DP43: 5 | DQ43: 9 | DR43: 10 | DZ43: 117 | EA43: 42 | EB43: 3 | ED43: 162 | EE43: 0 | EF43: 1 | EG43: 1 | EH43: 0 | EI43: 0 | EJ43: 16 | EK43: 1 | EL43: 18 | EM43: 1 | EN43: 0 | EO43: 6 | EP43: 7 | EQ43: 4 | ER43: 2 | ES43: 0 | ET43: 10 | EU43: 9 | EW43: 19 | EX43: 19 | EY43: 19 | EZ43: 19 | FI43: 74 | FJ43: 61 | FK43: 74 | FN43: 61 | FQ43: 80 | FV43: 162 | GG43: =IF(Table4[[#This Row],[SF]]=Table4[[#This Row],[School]],1,0) -> 0 | GH43: =IF(Table4[[#This Row],[prgm]]=Table4[[#This Row],[Degree Offered]],1,0) -> 0
A44: 46 | B44: 2000-2001 | C44: Hartnell College | D44: Public | E44: AD | F44: 1 | G44: 0 | H44: 0 | I44: 1 | J44: 1 | K44: 0 | L44: 0 | M44: Monterey | N44: 7 | O44: Inland Empire | P44: No | Q44: 64 | R44: 64 | U44: 36 | V44: 36 | W44: 0 | X44: 1 | Y44: 1 | Z44: 1 | AA44: 1 | AF44: 32 | AG44: 32 | AI44: 36 | AL44: 36 | AN44: 0 | AO44: 6 | AP44: 36 | AS44: 42 | AY44: 42 | AZ44: 41 | BA44: 1 | BB44: 0 | BC44: 0 | BD44: 42 | BI44: 42 | BJ44: 69 | BK44: 1 | BL44: 0 | BM44: 6 | BN44: 0 | BO44: 11 | BP44: 14 | BQ44: 0 | BR44: 2 | BS44: 0 | BT44: 11 | BU44: 0 | BV44: 11 | BW44: 16 | BX44: 2 | BY44: 2 | BZ44: 1 | CA44: 10 | CB44: 0 | CC44: 24 | CD44: 30 | CE44: 2 | CF44: 42 | CG44: 69 | CH44: 27 | CI44: 5 | CK44: 39 | CL44: 3 | CN44: 60 | CO44: 9 | CP44: 32 | CQ44: 42 | CR44: 69 | DG44: 17 | DH44: 18 | DI44: 28 | DJ44: 10 | DK44: 17 | DL44: 27 | DM44: 5 | DN44: 7 | DO44: 10 | DR44: 4 | DZ44: 62 | EA44: 7 | EB44: 0 | ED44: 69 | EE44: 0 | EF44: 1 | EG44: 1 | EH44: 0 | EI44: 2 | EJ44: 10 | EL44: 11 | EM44: 3 | EO44: 4 | EP44: 6 | EQ44: 2 | ER44: 2 | ET44: 6 | EU44: 8 | EW44: 14 | EX44: 14 | EY44: 14 | EZ44: 14 | FI44: 34 | FJ44: 24 | FK44: 34 | FN44: 24 | FQ44: 42 | FV44: 69 | GG44: =IF(Table4[[#This Row],[SF]]=Table4[[#This Row],[School]],1,0) -> 0 | GH44: =IF(Table4[[#This Row],[prgm]]=Table4[[#This Row],[Degree Offered]],1,0) -> 0
A45: 48 | B45: 2000-2001 | C45: Humboldt State University | D45: Public | E45: BSN | F45: 0 | G45: 1 | H45: 0 | I45: 1 | J45: 0 | K45: 1 | L45: 0 | M45: Humboldt | N45: 1 | O45: Northern California | P45: No | Q45: 69 | S45: 69 | U45: 40 | V45: 40 | W45: 0 | X45: 1 | Y45: 1 | Z45: 1 | AA45: 1 | AF45: 43 | AG45: 43 | AI45: 40 | AL45: 40 | AN45: 1 | AO45: 0 | AP45: 33 | AS45: 34 | AY45: 107 | AZ45: 99 | BA45: 4 | BB45: 0 | BC45: 4 | BD45: 107 | BI45: 34 | BJ45: 107 | BK45: 0 | BL45: 0 | BM45: 0 | BN45: 3 | BO45: 35 | BP45: 5 | BR45: 1 | BS45: 1 | BT45: 0 | BU45: 2 | BV45: 26 | BW45: 4 | BY45: 1 | BZ45: 1 | CA45: 1 | CB45: 6 | CC45: 86 | CD45: 12 | CF45: 34 | CG45: 107 | CH45: 38 | CI45: 5 | CK45: 28 | CL45: 6 | CN45: 93 | CO45: 14 | CP45: 43 | CQ45: 34 | CR45: 107 | DG45: 30 | DH45: 22 | DI45: 73 | DJ45: 8 | DK45: 9 | DL45: 24 | DM45: 3 | DN45: 2 | DO45: 7 | DP45: 2 | DQ45: 1 | DR45: 3 | DS45: 0 | DT45: 0 | DU45: 0 | DZ45: 106 | EA45: 0 | EB45: 1 | ED45: 107 | EE45: 0 | EF45: 0 | EG45: 0 | EH45: 0 | EI45: 0 | EJ45: 18 | EL45: 16 | EM45: 2 | EN45: 0 | EO45: 0 | EP45: 8 | EQ45: 9 | ER45: 1 | ES45: 0 | ET45: 11 | EU45: 7 | EW45: 18 | EX45: 18 | EY45: 18 | EZ45: 18 | FI45: 26 | FJ45: 25 | FL45: 26 | FO45: 25 | FR45: 34 | FW45: 107 | GG45: =IF(Table4[[#This Row],[SF]]=Table4[[#This Row],[School]],1,0) -> 0 | GH45: =IF(Table4[[#This Row],[prgm]]=Table4[[#This Row],[Degree Offered]],1,0) -> 0
A46: 49 | B46: 2000-2001 | C46: Imperial Valley College | D46: Public | E46: AD | F46: 1 | G46: 0 | H46: 0 | I46: 1 | J46: 1 | K46: 0 | L46: 0 | M46: Imperial | N46: 10 | O46: San Joaquin Valley | P46: No | Q46: 80 | R46: 80 | U46: 40 | V46: 40 | W46: 0 | AF46: 47 | AG46: 48 | AI46: 40 | AL46: 40 | AN46: 0 | AO46: 5 | AP46: 30 | AS46: 35 | AY46: 168 | AZ46: 135 | BA46: 23 | BB46: 0 | BC46: 10 | BD46: 168 | BI46: 35 | BJ46: 73 | BM46: 3 | BN46: 1 | BO46: 8 | BP46: 35 | BT46: 2 | BU46: 1 | BV46: 7 | BW46: 25 | CA46: 2 | CB46: 1 | CC46: 20 | CD46: 50 | CF46: 35 | CG46: 74 | CH46: 38 | CI46: 10 | CK46: 27 | CL46: 8 | CN46: 61 | CO46: 13 | CP46: 48 | CQ46: 35 | CR46: 74 | DG46: 16 | DH46: 11 | DI46: 32 | DJ46: 16 | DK46: 13 | DL46: 32 | DM46: 9 | DN46: 7 | DO46: 10 | DP46: 5 | DQ46: 3 | DS46: 2 | DT46: 1 | DZ46: 70 | EA46: 4 | EB46: 0 | ED46: 74 | EF46: 1 | EG46: 8 | EH46: 4 | EI46: 1 | EL46: 10 | EM46: 4 | EN46: 0 | EO46: 1 | EP46: 8 | EQ46: 4 | ER46: 1 | ET46: 6 | EU46: 7 | EW46: 13 | EX46: 14 | EY46: 14 | EZ46: 14 | FI46: 34 | FJ46: 28 | FK46: 34 | FN46: 28 | FQ46: 35 | FV46: 74 | GG46: =IF(Table4[[#This Row],[SF]]=Table4[[#This Row],[School]],1,0) -> 0 | GH46: =IF(Table4[[#This Row],[prgm]]=Table4[[#This Row],[Degree Offered]],1,0) -> 0
A47: 54 | B47: 2000-2001 | C47: L.A. County College of Nursing and Allied Health | D47: Public | E47: AD | F47: 1 | G47: 0 | H47: 0 | I47: 1 | J47: 1 | K47: 0 | L47: 0 | M47: Los Angeles | N47: 8 | O47: Northern California | P47: No | Q47: 132 | R47: 132 | U47: 150 | V47: 106 | W47: 44 | X47: 1 | Y47: 1 | Z47: 1 | AA47: 1 | AF47: 106 | AG47: 106 | AI47: 100 | AL47: 120 | AN47: 0 | AO47: 16 | AP47: 65 | AS47: 81 | AY47: 104 | AZ47: 77 | BA47: 15 | BB47: 0 | BC47: 12 | BD47: 104 | BI47: 81 | BJ47: 189 | BK47: 13 | BL47: 1 | BM47: 12 | BN47: 6 | BO47: 39 | BP47: 31 | BQ47: 4 | BR47: 10 | BS47: 0 | BT47: 10 | BU47: 5 | BV47: 22 | BW47: 29 | BX47: 5 | BY47: 21 | BZ47: 1 | CA47: 21 | CB47: 11 | CC47: 62 | CD47: 62 | CE47: 11 | CF47: 81 | CG47: 189 | CH47: 82 | CI47: 24 | CK47: 62 | CL47: 19 | CN47: 159 | CO47: 30 | CP47: 106 | CQ47: 81 | CR47: 189 | DG47: 45 | DH47: 18 | DI47: 70 | DJ47: 46 | DK47: 46 | DL47: 91 | DM47: 14 | DN47: 15 | DO47: 25 | DP47: 0 | DQ47: 1 | DR47: 2 | DS47: 1 | DT47: 1 | DU47: 1 | DV47: 0 | DW47: 0 | DX47: 0 | DZ47: 168 | EA47: 17 | EB47: 4 | ED47: 189 | EE47: 1 | EF47: 4 | EG47: 6 | EH47: 3 | EI47: 3 | EJ47: 7 | EK47: 0 | EL47: 20 | EM47: 4 | EN47: 1 | EO47: 8 | EP47: 3 | EQ47: 7 | ER47: 5 | ET47: 24 | EU47: 0 | EW47: 24 | EX47: 24 | EY47: 24 | EZ47: 24 | FI47: 70 | FJ47: 46 | FK47: 70 | FN47: 46 | FQ47: 81 | FV47: 189 | GG47: =IF(Table4[[#This Row],[SF]]=Table4[[#This Row],[School]],1,0) -> 0 | GH47: =IF(Table4[[#This Row],[prgm]]=Table4[[#This Row],[Degree Offered]],1,0) -> 0
A48: 55 | B48: 2000-2001 | C48: L.A. Harbor College | D48: Public | E48: AD | F48: 1 | G48: 0 | H48: 0 | I48: 1 | J48: 1 | K48: 0 | L48: 0 | M48: Los Angeles | N48: 8 | O48: Inland Empire | P48: No | Q48: 110 | R48: 110 | U48: 96 | V48: 96 | W48: 0 | X48: 1 | Y48: 1 | Z48: 1 | AA48: 1 | AE48: 1 | AF48: 201 | AG48: 201 | AI48: 96 | AL48: 96 | AN48: 2 | AO48: 4 | AP48: 38 | AS48: 44 | AY48: 89 | AZ48: 17 | BA48: 24 | BB48: 0 | BC48: 33 | BD48: 74 | BI48: 44 | BJ48: 154 | BK48: 21 | BL48: 0 | BM48: 44 | BN48: 7 | BO48: 62 | BP48: 67 | BQ48: 0 | BR48: 3 | BS48: 0 | BT48: 8 | BU48: 1 | BV48: 14 | BW48: 17 | BX48: 1 | BY48: 15 | BZ48: 1 | CA48: 36 | CB48: 9 | CC48: 41 | CD48: 49 | CE48: 3 | CF48: 44 | CG48: 154 | CH48: 179 | CI48: 22 | CK48: 42 | CL48: 2 | CN48: 133 | CO48: 21 | CP48: 201 | CQ48: 44 | CR48: 154 | DG48: 94 | DH48: 13 | DI48: 61 | DJ48: 70 | DK48: 17 | DL48: 65 | DM48: 31 | DN48: 12 | DO48: 24 | DP48: 6 | DQ48: 2 | DR48: 4 | DZ48: 135 | EA48: 19 | EB48: 0 | ED48: 154 | EE48: 1 | EF48: 1 | EG48: 3 | EH48: 1 | EI48: 2 | EJ48: 11 | EL48: 19 | EO48: 1 | EP48: 3 | EQ48: 10 | ER48: 5 | ET48: 12 | EU48: 7 | EW48: 19 | EX48: 19 | EY48: 19 | EZ48: 19 | FI48: 48 | FJ48: 44 | FK48: 48 | FN48: 44 | FQ48: 44 | FV48: 154 | GG48: =IF(Table4[[#This Row],[SF]]=Table4[[#This Row],[School]],1,0) -> 0 | GH48: =IF(Table4[[#This Row],[prgm]]=Table4[[#This Row],[Degree Offered]],1,0) -> 0
A49: 56 | B49: 2000-2001 | C49: L.A. Pierce College | D49: Public | E49: AD | F49: 1 | G49: 0 | H49: 0 | I49: 1 | J49: 1 | K49: 0 | L49: 0 | M49: Los Angeles | N49: 8 | O49: Bay Area | P49: No | Q49: 126 | R49: 126 | U49: 88 | V49: 88 | W49: 0 | X49: 1 | Y49: 1 | AF49: 75 | AG49: 75 | AI49: 88 | AL49: 88 | AN49: 1 | AO49: 5 | AP49: 52 | AS49: 58 | AY49: 105 | AZ49: 84 | BA49: 11 | BB49: 0 | BC49: 10 | BD49: 105 | BI49: 67 | BJ49: 151 | BK49: 3 | BL49: 1 | BM49: 15 | BN49: 11 | BO49: 25 | BP49: 20 | BR49: 3 | BS49: 1 | BT49: 12 | BU49: 8 | BV49: 20 | BW49: 23 | BY49: 3 | BZ49: 1 | CA49: 29 | CB49: 12 | CC49: 58 | CD49: 38 | CE49: 10 | CF49: 75 | CG49: 150 | CH49: 60 | CI49: 15 | CK49: 72 | CL49: 3 | CN49: 147 | CO49: 3 | CP49: 75 | CQ49: 75 | CR49: 150 | DG49: 25 | DH49: 29 | DI49: 56 | DJ49: 37 | DK49: 39 | DL49: 65 | DM49: 10 | DN49: 5 | DO49: 25 | DP49: 3 | DQ49: 2 | DR49: 4 | DZ49: 139 | EA49: 10 | EB49: 1 | ED49: 150 | EF49: 1 | EG49: 2 | EI49: 1 | EJ49: 12 | EL49: 15 | EM49: 1 | EN49: 0 | EO49: 1 | EP49: 7 | EQ49: 5 | ER49: 3 | ET49: 8 | EU49: 8 | EW49: 16 | EX49: 16 | EY49: 16 | EZ49: 16 | FI49: 60 | FJ49: 37 | FK49: 60 | FN49: 37 | FQ49: 58 | FV49: 150 | GG49: =IF(Table4[[#This Row],[SF]]=Table4[[#This Row],[School]],1,0) -> 0 | GH49: =IF(Table4[[#This Row],[prgm]]=Table4[[#This Row],[Degree Offered]],1,0) -> 0
A50: 57 | B50: 2000-2001 | C50: L.A. Southwest College | D50: Public | E50: AD | F50: 1 | G50: 0 | H50: 0 | I50: 1 | J50: 1 | K50: 0 | L50: 0 | M50: Los Angeles | N50: 8 | O50: Inland Empire | P50: No | Q50: 87 | R50: 87 | U50: 88 | V50: 85 | W50: 3 | X50: 0 | AF50: 79 | AG50: 85 | AI50: 88 | AL50: 88 | AN50: 0 | AO50: 8 | AP50: 62 | AS50: 70 | AY50: 180 | AZ50: 40 | BA50: 110 | BB50: 0 | BC50: 30 | BD50: 180 | BI50: 40 | BJ50: 180 | BK50: 67 | BL50: 0 | BM50: 2 | BN50: 0 | BO50: 0 | BP50: 10 | BQ50: 0 | BR50: 32 | BS50: 0 | BT50: 2 | BU50: 0 | BV50: 0 | BW50: 6 | BX50: 0 | BY50: 163 | BZ50: 0 | CA50: 4 | CB50: 3 | CC50: 0 | CD50: 10 | CE50: 0 | CF50: 40 | CG50: 180 | CH50: 75 | CI50: 10 | CK50: 32 | CL50: 8 | CN50: 161 | CO50: 19 | CP50: 85 | CQ50: 40 | CR50: 180 | DG50: 16 | DH50: 1 | DI50: 18 | DJ50: 45 | DK50: 30 | DL50: 105 | DM50: 21 | DN50: 7 | DO50: 49 | DP50: 3 | DQ50: 2 | DR50: 8 | DS50: 0 | DT50: 0 | DU50: 0 | DV50: 0 | DW50: 0 | DX50: 0 | DZ50: 167 | EA50: 12 | EB50: 1 | ED50: 180 | EE50: 0 | EF50: 0 | EG50: 18 | EH50: 1 | EI50: 0 | EJ50: 4 | EK50: 0 | EL50: 23 | EM50: 0 | ES50: 23 | ET50: 11 | EU50: 12 | EW50: 23 | EX50: 23 | EY50: 23 | EZ50: 23 | FI50: 49 | FJ50: 23 | FK50: 49 | FN50: 23 | FQ50: 70 | FV50: 180 | GG50: =IF(Table4[[#This Row],[SF]]=Table4[[#This Row],[School]],1,0) -> 0 | GH50: =IF(Table4[[#This Row],[prgm]]=Table4[[#This Row],[Degree Offered]],1,0) -> 0
A51: 58 | B51: 2000-2001 | C51: L.A. Trade-Tech College | D51: Public | E51: AD | F51: 1 | G51: 0 | H51: 0 | I51: 1 | J51: 1 | K51: 0 | L51: 0 | M51: Los Angeles | N51: 8 | O51: Central Coast | P51: No | Q51: 60 | R51: 60 | U51: 12 | V51: 8 | W51: 4 | X51: 1 | Y51: 1 | AE51: 1 | AF51: 60 | AG51: 60 | AI51: 72 | AL51: 72 | AN51: 0 | AO51: 31 | AP51: 10 | AS51: 41 | AY51: 233 | AZ51: 10 | BA51: 180 | BB51: 0 | BC51: 43 | BD51: 233 | BI51: 41 | BJ51: 121 | BK51: 34 | BM51: 5 | BN51: 1 | BO51: 4 | BP51: 16 | BR51: 26 | BT51: 1 | BV51: 6 | BW51: 8 | BY51: 60 | CA51: 18 | CB51: 1 | CC51: 12 | CD51: 30 | CF51: 41 | CG51: 121 | CH51: 50 | CI51: 10 | CK51: 32 | CL51: 9 | CN51: 104 | CO51: 17 | CP51: 60 | CQ51: 41 | CR51: 121 | DG51: 9 | DH51: 2 | DI51: 44 | DJ51: 29 | DK51: 14 | DL51: 40 | DM51: 18 | DN51: 13 | DO51: 21 | DP51: 2 | DQ51: 12 | DR51: 15 | DS51: 2 | DU51: 1 | DZ51: 23 | EA51: 98 | EB51: 0 | ED51: 121 | EE51: 0 | EF51: 1 | EG51: 6 | EH51: 1 | EI51: 1 | EJ51: 2 | EK51: 0 | EL51: 11 | EO51: 1 | EP51: 5 | EQ51: 5 | ET51: 6 | EU51: 5 | EW51: 11 | EX51: 11 | EY51: 11 | EZ51: 11 | FI51: 33 | FJ51: 22 | FK51: 33 | FN51: 22 | FQ51: 41 | FV51: 121 | GG51: =IF(Table4[[#This Row],[SF]]=Table4[[#This Row],[School]],1,0) -> 0 | GH51: =IF(Table4[[#This Row],[prgm]]=Table4[[#This Row],[Degree Offered]],1,0) -> 0
A52: 59 | B52: 2000-2001 | C52: L.A. Valley College | D52: Public | E52: AD | F52: 1 | G52: 0 | H52: 0 | I52: 1 | J52: 1 | K52: 0 | L52: 0 | M52: Los Angeles | N52: 8 | O52: Inland Empire | P52: No | Q52: 133 | R52: 133 | U52: 72 | V52: 72 | W52: 0 | X52: 1 | Y52: 1 | Z52: 1 | AF52: 72 | AG52: 72 | AI52: 84 | AL52: 96 | AN52: 0 | AO52: 40 | AP52: 50 | AS52: 90 | AY52: 119 | AZ52: 76 | BA52: 24 | BB52: 0 | BC52: 19 | BD52: 119 | BI52: 90 | BJ52: 170 | BK52: 7 | BL52: 0 | BM52: 12 | BN52: 5 | BO52: 26 | BP52: 19 | BQ52: 3 | BR52: 12 | BS52: 0 | BT52: 23 | BU52: 7 | BV52: 26 | BW52: 22 | BX52: 0 | BY52: 24 | BZ52: 0 | CA52: 38 | CB52: 7 | CC52: 63 | CD52: 38 | CE52: 0 | CF52: 90 | CG52: 170 | CH52: 61 | CI52: 11 | CK52: 77 | CL52: 13 | CN52: 137 | CO52: 33 | CP52: 72 | CQ52: 90 | CR52: 170 | DG52: 18 | DH52: 11 | DI52: 35 | DJ52: 31 | DK52: 43 | DL52: 83 | DM52: 17 | DN52: 28 | DO52: 36 | DP52: 3 | DQ52: 7 | DR52: 12 | DS52: 0 | DT52: 1 | DU52: 1 | DV52: 3 | DW52: 0 | DX52: 3 | DZ52: 129 | EA52: 38 | EB52: 3 | ED52: 170 | EE52: 0 | EF52: 0 | EG52: 3 | EH52: 1 | EI52: 3 | EJ52: 10 | EK52: 0 | EL52: 16 | EM52: 1 | EN52: 0 | EO52: 3 | EP52: 4 | EQ52: 5 | ER52: 5 | ES52: 0 | ET52: 12 | EU52: 5 | EW52: 17 | EX52: 17 | EY52: 17 | EZ52: 17 | FI52: 89 | FJ52: 61 | FK52: 89 | FN52: 61 | FQ52: 90 | FV52: 170 | GG52: =IF(Table4[[#This Row],[SF]]=Table4[[#This Row],[School]],1,0) -> 0 | GH52: =IF(Table4[[#This Row],[prgm]]=Table4[[#This Row],[Degree Offered]],1,0) -> 0
A53: 51 | B53: 2000-2001 | C53: Loma Linda University | D53: Private | E53: BSN | F53: 0 | G53: 1 | H53: 0 | I53: 0 | J53: 0 | K53: 0 | L53: 0 | M53: San Bernardino | N53: 9 | O53: Bay Area | P53: No | Q53: 156 | S53: 156 | U53: 117 | V53: 115 | W53: 2 | X53: 0 | AF53: 92 | AG53: 92 | AI53: 128 | AL53: 128 | AN53: 0 | AO53: 8 | AP53: 42 | AS53: 50 | AY53: 83 | AZ53: 59 | BA53: 14 | BB53: 0 | BC53: 10 | BD53: 83 | BI53: 83 | BJ53: 293 | BK53: 15 | BN53: 34 | BO53: 28 | BP53: 15 | BR53: 4 | BU53: 34 | BV53: 25 | BW53: 20 | BY53: 30 | BZ53: 2 | CB53: 101 | CC53: 113 | CD53: 47 | CF53: 83 | CG53: 293 | CH53: 67 | CI53: 25 | CK53: 70 | CL53: 13 | CN53: 233 | CO53: 60 | CP53: 92 | CQ53: 83 | CR53: 293 | DG53: 51 | DH53: 28 | DI53: 177 | DJ53: 27 | DK53: 50 | DL53: 89 | DM53: 11 | DN53: 4 | DO53: 22 | DP53: 3 | DQ53: 1 | DR53: 5 | DZ53: 274 | EA53: 19 | EB53: 0 | ED53: 293 | EE53: 0 | EF53: 7 | EG53: 1 | EH53: 0 | EI53: 2 | EJ53: 31 | EK53: 0 | EL53: 38 | EM53: 3 | EN53: 0 | EO53: 6 | EP53: 12 | EQ53: 14 | ER53: 9 | ES53: 0 | ET53: 29 | EU53: 10 | EW53: 39 | EX53: 41 | EY53: 41 | EZ53: 41 | FI53: 5 | FJ53: 4 | FL53: 5 | FO53: 4 | FR53: 50 | FW53: 293 | GG53: =IF(Table4[[#This Row],[SF]]=Table4[[#This Row],[School]],1,0) -> 0 | GH53: =IF(Table4[[#This Row],[prgm]]=Table4[[#This Row],[Degree Offered]],1,0) -> 0
A54: 52 | B54: 2000-2001 | C54: Long Beach City College | D54: Public | E54: AD | F54: 1 | G54: 0 | H54: 0 | I54: 1 | J54: 1 | K54: 0 | L54: 0 | M54: Los Angeles | N54: 8 | O54: Bay Area | P54: No | Q54: 100 | R54: 100 | U54: 128 | V54: 128 | W54: 0 | X54: 0 | AF54: 106 | AG54: 114 | AI54: 128 | AL54: 128 | AN54: 0 | AO54: 30 | AP54: 57 | AS54: 87 | AY54: 174 | AZ54: 66 | BA54: 69 | BB54: 0 | BC54: 39 | BD54: 174 | BI54: 87 | BJ54: 231 | BK54: 6 | BL54: 1 | BM54: 24 | BN54: 12 | BO54: 38 | BP54: 25 | BR54: 13 | BS54: 5 | BT54: 19 | BU54: 11 | BV54: 1 | BW54: 38 | BY54: 27 | BZ54: 2 | CA54: 47 | CB54: 21 | CC54: 73 | CD54: 53 | CE54: 8 | CF54: 88 | CG54: 231 | CH54: 98 | CI54: 16 | CK54: 76 | CL54: 12 | CN54: 206 | CO54: 25 | CP54: 114 | CQ54: 88 | CR54: 231 | DG54: 61 | DH54: 28 | DI54: 93 | DJ54: 44 | DK54: 44 | DL54: 104 | DM54: 6 | DN54: 15 | DO54: 29 | DP54: 3 | DQ54: 1 | DR54: 5 | DZ54: 195 | EA54: 36 | EB54: 0 | ED54: 231 | EE54: 0 | EF54: 0 | EG54: 2 | EH54: 1 | EI54: 1 | EJ54: 16 | EL54: 19 | EM54: 1 | EN54: 0 | EO54: 2 | EP54: 7 | EQ54: 8 | ER54: 3 | ET54: 16 | EU54: 4 | EW54: 20 | EX54: 20 | EY54: 20 | EZ54: 20 | FI54: 87 | FJ54: 76 | FK54: 87 | FN54: 76 | FQ54: 87 | FV54: 231 | GG54: =IF(Table4[[#This Row],[SF]]=Table4[[#This Row],[School]],1,0) -> 0 | GH54: =IF(Table4[[#This Row],[prgm]]=Table4[[#This Row],[Degree Offered]],1,0) -> 0
A55: 60 | B55: 2000-2001 | C55: Los Medanos College | D55: Public | E55: AD | F55: 1 | G55: 0 | H55: 0 | I55: 1 | J55: 1 | K55: 0 | L55: 0 | M55: Contra Costa | N55: 4 | O55: LA Area | P55: No | Q55: 65 | R55: 65 | U55: 33 | V55: 33 | W55: 0 | X55: 1 | Z55: 1 | AA55: 1 | AF55: 33 | AG55: 33 | AI55: 40 | AL55: 40 | AO55: 22 | AP55: 30 | AS55: 52 | AY55: 56 | AZ55: 52 | BA55: 0 | BB55: 0 | BC55: 4 | BD55: 56 | BI55: 52 | BJ55: 93 | BK55: 2 | BM55: 2 | BN55: 4 | BO55: 21 | BP55: 4 | BT55: 9 | BU55: 5 | BV55: 30 | BW55: 7 | BX55: 1 | BY55: 9 | BZ55: 1 | CA55: 15 | CB55: 5 | CC55: 47 | CD55: 16 | CF55: 52 | CG55: 93 | CH55: 28 | CI55: 5 | CK55: 46 | CL55: 6 | CN55: 79 | CO55: 14 | CP55: 33 | CQ55: 52 | CR55: 93 | DG55: 8 | DH55: 18 | DI55: 23 | DJ55: 14 | DK55: 25 | DL55: 38 | DM55: 11 | DN55: 5 | DO55: 28 | DQ55: 4 | DR55: 4 | DZ55: 72 | EA55: 21 | ED55: 93 | EF55: 2 | EG55: 1 | EJ55: 8 | EL55: 10 | EM55: 1 | EO55: 3 | EP55: 2 | EQ55: 6 | ET55: 7 | EU55: 4 | EW55: 11 | EX55: 11 | EY55: 11 | EZ55: 11 | FI55: 48 | FJ55: 41 | FK55: 48 | FN55: 41 | FQ55: 52 | FV55: 93 | GG55: =IF(Table4[[#This Row],[SF]]=Table4[[#This Row],[School]],1,0) -> 0 | GH55: =IF(Table4[[#This Row],[prgm]]=Table4[[#This Row],[Degree Offered]],1,0) -> 0
A56: 63 | B56: 2000-2001 | C56: Merced College | D56: Public | E56: AD | F56: 1 | G56: 0 | H56: 0 | I56: 1 | J56: 1 | K56: 0 | L56: 0 | M56: Merced | N56: 5 | O56: LA Area | P56: No | Q56: 56 | R56: 56 | U56: 36 | V56: 36 | W56: 0 | X56: 1 | AA56: 1 | AF56: 36 | AG56: 36 | AI56: 36 | AL56: 48 | AN56: 0 | AO56: 2 | AP56: 16 | AS56: 18 | AY56: 32 | AZ56: 18 | BA56: 3 | BB56: 0 | BC56: 11 | BD56: 32 | BI56: 18 | BJ56: 70 | BK56: 0 | BL56: 0 | BM56: 5 | BN56: 4 | BO56: 21 | BP56: 6 | BQ56: 0 | BR56: 1 | BS56: 0 | BT56: 0 | BU56: 1 | BV56: 13 | BW56: 3 | BX56: 0 | BY56: 0 | BZ56: 0 | CA56: 3 | CB56: 7 | CC56: 43 | CD56: 11 | CE56: 6 | CF56: 18 | CG56: 70 | CH56: 33 | CI56: 3 | CK56: 16 | CL56: 2 | CN56: 64 | CO56: 6 | CP56: 36 | CQ56: 18 | CR56: 70 | DG56: 10 | DH56: 8 | DI56: 26 | DJ56: 17 | DK56: 6 | DL56: 28 | DM56: 3 | DN56: 4 | DO56: 9 | DP56: 3 | DQ56: 0 | DR56: 6 | DS56: 0 | DT56: 0 | DU56: 1 | DV56: 3 | DW56: 0 | DX56: 0 | DZ56: 68 | EA56: 2 | EB56: 0 | ED56: 70 | EE56: 0 | EF56: 0 | EG56: 1 | EH56: 1 | EI56: 0 | EJ56: 11 | EK56: 0 | EL56: 12 | EM56: 1 | EN56: 0 | EO56: 3 | EP56: 8 | EQ56: 1 | ER56: 1 | ES56: 0 | ET56: 7 | EU56: 6 | EW56: 13 | EX56: 13 | EY56: 13 | EZ56: 13 | FI56: 19 | FJ56: 14 | FK56: 19 | FN56: 14 | FQ56: 18 | FV56: 70 | GG56: =IF(Table4[[#This Row],[SF]]=Table4[[#This Row],[School]],1,0) -> 0 | GH56: =IF(Table4[[#This Row],[prgm]]=Table4[[#This Row],[Degree Offered]],1,0) -> 0
A57: 64 | B57: 2000-2001 | C57: Merritt College | D57: Public | E57: AD | F57: 1 | G57: 0 | H57: 0 | I57: 1 | J57: 1 | K57: 0 | L57: 0 | M57: Alameda | N57: 4 | O57: LA Area | P57: Yes | Q57: 66 | R57: 66 | U57: 40 | V57: 32 | W57: 8 | X57: 1 | Y57: 1 | Z57: 1 | AA57: 1 | AF57: 25 | AG57: 25 | AI57: 40 | AL57: 40 | AN57: 1 | AO57: 2 | AP57: 7 | AS57: 10 | AY57: 33 | AZ57: 7 | BA57: 6 | BB57: 0 | BC57: 20 | BD57: 33 | BI57: 10 | BJ57: 56 | BK57: 8 | BL57: 0 | BM57: 1 | BN57: 8 | BO57: 6 | BP57: 2 | BR57: 1 | BS57: 1 | BT57: 0 | BU57: 1 | BV57: 6 | BW57: 1 | BY57: 18 | BZ57: 0 | CA57: 1 | CB57: 15 | CC57: 18 | CD57: 4 | CF57: 10 | CG57: 56 | CH57: 20 | CI57: 5 | CK57: 9 | CL57: 1 | CN57: 46 | CO57: 10 | CP57: 25 | CQ57: 10 | CR57: 56 | DG57: 7 | DH57: 1 | DI57: 11 | DJ57: 13 | DK57: 7 | DL57: 30 | DM57: 4 | DO57: 11 | DP57: 1 | DQ57: 2 | DR57: 4 | DZ57: 46 | EA57: 10 | EB57: 0 | ED57: 56 | EF57: 3 | EG57: 2 | EH57: 2 | EJ57: 6 | EL57: 13 | EM57: 0 | EO57: 1 | EP57: 6 | EQ57: 6 | ET57: 7 | EU57: 6 | EW57: 13 | EX57: 13 | EY57: 13 | EZ57: 13 | FI57: 29 | FJ57: 18 | FK57: 29 | FN57: 18 | FQ57: 10 | FV57: 56 | GG57: =IF(Table4[[#This Row],[SF]]=Table4[[#This Row],[School]],1,0) -> 0 | GH57: =IF(Table4[[#This Row],[prgm]]=Table4[[#This Row],[Degree Offered]],1,0) -> 0
A58: 65 | B58: 2000-2001 | C58: Modesto Junior College | D58: Public | E58: AD | F58: 1 | G58: 0 | H58: 0 | I58: 1 | J58: 1 | K58: 0 | L58: 0 | M58: Stanislaus | N58: 5 | O58: Bay Area | P58: No | Q58: 24 | R58: 24 | U58: 90 | V58: 90 | W58: 0 | X58: 0 | AF58: 100 | AG58: 100 | AI58: 108 | AL58: 108 | AN58: 0 | AO58: 21 | AP58: 63 | AS58: 84 | AY58: 82 | AZ58: 78 | BA58: 2 | BB58: 0 | BC58: 2 | BD58: 82 | BI58: 75 | BJ58: 165 | BK58: 2 | BL58: 0 | BM58: 2 | BN58: 6 | BO58: 60 | BP58: 28 | BQ58: 2 | BR58: 0 | BS58: 0 | BT58: 2 | BU58: 12 | BV58: 47 | BW58: 12 | BX58: 2 | BY58: 2 | CA58: 4 | CB58: 12 | CC58: 107 | CD58: 40 | CE58: 0 | CF58: 75 | CG58: 175 | CH58: 88 | CI58: 12 | CK58: 67 | CL58: 8 | CN58: 155 | CO58: 20 | CP58: 100 | CQ58: 75 | CR58: 175 | DG58: 28 | DH58: 24 | DI58: 52 | DJ58: 39 | DK58: 31 | DL58: 70 | DM58: 27 | DN58: 19 | DO58: 46 | DP58: 6 | DQ58: 1 | DR58: 7 | DS58: 0 | DT58: 0 | DU58: 0 | DV58: 0 | DW58: 0 | DX58: 0 | DZ58: 147 | EA58: 38 | EB58: 0 | ED58: 185 | EE58: 2 | EF58: 1 | EG58: 0 | EH58: 4 | EI58: 17 | EJ58: 1 | EK58: 0 | EL58: 22 | EM58: 2 | EN58: 0 | EO58: 5 | EP58: 10 | EQ58: 9 | ER58: 0 | ES58: 0 | ET58: 14 | EU58: 10 | EW58: 24 | EX58: 24 | EY58: 24 | EZ58: 25 | FI58: 79 | FJ58: 71 | FK58: 79 | FN58: 71 | FQ58: 84 | FV58: 185 | GG58: =IF(Table4[[#This Row],[SF]]=Table4[[#This Row],[School]],1,0) -> 0 | GH58: =IF(Table4[[#This Row],[prgm]]=Table4[[#This Row],[Degree Offered]],1,0) -> 0
A59: 66 | B59: 2000-2001 | C59: Monterey Peninsula College | D59: Public | E59: AD | F59: 1 | G59: 0 | H59: 0 | I59: 1 | J59: 1 | K59: 0 | L59: 0 | M59: Monterey | N59: 7 | O59: San Joaquin Valley | P59: No | Q59: 115 | R59: 115 | U59: 50 | V59: 49 | W59: 1 | X59: 1 | Y59: 1 | Z59: 1 | AF59: 45 | AG59: 45 | AI59: 50 | AL59: 50 | AN59: 0 | AO59: 7 | AP59: 27 | AS59: 34 | AY59: 48 | AZ59: 34 | BA59: 5 | BB59: 0 | BC59: 9 | BD59: 48 | BI59: 34 | BJ59: 79 | BK59: 1 | BL59: 0 | BN59: 8 | BO59: 29 | BP59: 6 | BQ59: 1 | BR59: 2 | BS59: 0 | BU59: 2 | BV59: 23 | BW59: 7 | BX59: 0 | BY59: 3 | BZ59: 0 | CB59: 10 | CC59: 52 | CD59: 13 | CE59: 1 | CF59: 34 | CG59: 79 | CH59: 34 | CI59: 11 | CK59: 30 | CL59: 4 | CN59: 64 | CO59: 15 | CP59: 46 | CQ59: 34 | CR59: 80 | DG59: 9 | DH59: 3 | DI59: 12 | DJ59: 23 | DK59: 15 | DL59: 38 | DM59: 9 | DN59: 11 | DO59: 20 | DP59: 4 | DQ59: 5 | DR59: 9 | DS59: 0 | DT59: 0 | DU59: 0 | DV59: 1 | DW59: 0 | DX59: 1 | DZ59: 82 | EA59: 11 | EB59: 0 | ED59: 93 | EE59: 0 | EF59: 0 | EG59: 0 | EH59: 1 | EI59: 0 | EJ59: 13 | EK59: 0 | EL59: 14 | EM59: 0 | EN59: 0 | EO59: 3 | EP59: 8 | EQ59: 3 | ER59: 0 | ES59: 0 | ET59: 7 | EU59: 7 | EW59: 14 | EX59: 14 | EY59: 14 | EZ59: 14 | FI59: 37 | FJ59: 30 | FK59: 37 | FN59: 30 | FQ59: 34 | FV59: 93 | GG59: =IF(Table4[[#This Row],[SF]]=Table4[[#This Row],[School]],1,0) -> 0 | GH59: =IF(Table4[[#This Row],[prgm]]=Table4[[#This Row],[Degree Offered]],1,0) -> 0
A60: 67 | B60: 2000-2001 | C60: Moorpark College | D60: Public | E60: AD | F60: 1 | G60: 0 | H60: 0 | I60: 1 | J60: 1 | K60: 0 | L60: 0 | M60: Ventura | N60: 8 | O60: Bay Area | P60: No | Q60: 115 | R60: 115 | U60: 66 | V60: 66 | W60: 0 | X60: 1 | Y60: 1 | Z60: 1 | AA60: 1 | AB60: 1 | AE60: 1 | AF60: 33 | AG60: 32 | AI60: 66 | AL60: 66 | AN60: 0 | AO60: 5 | AP60: 51 | AS60: 56 | AY60: 63 | AZ60: 50 | BA60: 4 | BB60: 0 | BC60: 9 | BD60: 63 | BI60: 0 | BJ60: 0 | BK60: 1 | BL60: 2 | BM60: 5 | BN60: 3 | BO60: 10 | BP60: 4 | BQ60: 8 | CF60: 0 | CG60: 0 | CH60: 27 | CI60: 5 | CP60: 32 | CQ60: 0 | CR60: 0 | DG60: 14 | DJ60: 7 | DM60: 3 | DP60: 1 | DS60: 1 | DV60: 6 | DZ60: 110 | EA60: 12 | EB60: 0 | ED60: 122 | EF60: 1 | EH60: 1 | EJ60: 12 | EK60: 1 | EL60: 15 | EO60: 3 | EP60: 6 | EQ60: 5 | ER60: 1 | ET60: 8 | EU60: 7 | EW60: 15 | EX60: 15 | EY60: 15 | EZ60: 15 | FI60: 49 | FJ60: 47 | FK60: 49 | FN60: 47 | FQ60: 56 | FV60: 122 | GG60: =IF(Table4[[#This Row],[SF]]=Table4[[#This Row],[School]],1,0) -> 0 | GH60: =IF(Table4[[#This Row],[prgm]]=Table4[[#This Row],[Degree Offered]],1,0) -> 0
A61: 69 | B61: 2000-2001 | C61: Mount San Antonio College | D61: Public | E61: AD | F61: 1 | G61: 0 | H61: 0 | I61: 1 | J61: 1 | K61: 0 | L61: 0 | M61: Los Angeles | N61: 8 | O61: LA Area | P61: No | Q61: 72 | R61: 72 | U61: 72 | V61: 72 | W61: 0 | X61: 1 | Y61: 1 | Z61: 1 | AA61: 1 | AF61: 113 | AG61: 113 | AI61: 84 | AL61: 84 | AN61: 1 | AO61: 7 | AP61: 33 | AS61: 41 | AY61: 41 | AZ61: 26 | BA61: 0 | BB61: 0 | BC61: 0 | BD61: 26 | BI61: 41 | BJ61: 113 | BK61: 6 | BL61: 1 | BM61: 23 | BN61: 8 | BO61: 36 | BP61: 30 | BQ61: 9 | BR61: 1 | BS61: 0 | BT61: 5 | BU61: 4 | BV61: 15 | BW61: 14 | BX61: 2 | BY61: 6 | BZ61: 1 | CA61: 23 | CB61: 8 | CC61: 36 | CD61: 30 | CE61: 9 | CF61: 41 | CG61: 113 | CH61: 92 | CI61: 21 | CK61: 36 | CL61: 5 | CN61: 92 | CO61: 21 | CP61: 113 | CQ61: 41 | CR61: 113 | DG61: 59 | DH61: 9 | DI61: 59 | DJ61: 42 | DK61: 25 | DL61: 42 | DM61: 10 | DN61: 6 | DO61: 10 | DP61: 2 | DQ61: 1 | DR61: 2 | DZ61: 105 | EA61: 7 | EB61: 1 | ED61: 113 | EE61: 0 | EF61: 0 | EG61: 6 | EI61: 1 | EJ61: 7 | EL61: 10 | EM61: 4 | EO61: 1 | EP61: 3 | EQ61: 8 | ER61: 2 | ET61: 8 | EU61: 6 | EW61: 14 | EX61: 14 | EY61: 14 | EZ61: 14 | FI61: 50 | FJ61: 41 | FK61: 50 | FN61: 41 | FQ61: 41 | FV61: 113 | GG61: =IF(Table4[[#This Row],[SF]]=Table4[[#This Row],[School]],1,0) -> 0 | GH61: =IF(Table4[[#This Row],[prgm]]=Table4[[#This Row],[Degree Offered]],1,0) -> 0
A62: 70 | B62: 2000-2001 | C62: Mount San Jacinto College | D62: Public | E62: AD | F62: 1 | G62: 0 | H62: 0 | I62: 1 | J62: 1 | K62: 0 | L62: 0 | M62: Riverside | N62: 9 | O62: Inland Empire | P62: No | Q62: 39 | R62: 39 | U62: 36 | V62: 36 | W62: 0 | X62: 0 | AF62: 31 | AG62: 31 | AI62: 36 | AL62: 36 | AN62: 0 | AO62: 21 | AP62: 6 | AS62: 27 | AY62: 73 | AZ62: 27 | BA62: 36 | BB62: 0 | BC62: 10 | BD62: 73 | BI62: 28 | BJ62: 56 | BK62: 0 | BL62: 0 | BM62: 0 | BN62: 0 | BO62: 27 | BP62: 2 | BQ62: 2 | BR62: 0 | BS62: 0 | BT62: 0 | BU62: 2 | BV62: 20 | BW62: 5 | BX62: 1 | BY62: 3 | BZ62: 0 | CA62: 0 | CB62: 2 | CC62: 44 | CD62: 6 | CE62: 1 | CF62: 26 | CG62: 56 | CH62: 26 | CI62: 5 | CK62: 24 | CL62: 2 | CN62: 49 | CO62: 7 | CP62: 31 | CQ62: 27 | CR62: 56 | DG62: 9 | DH62: 6 | DI62: 19 | DJ62: 13 | DK62: 11 | DL62: 17 | DM62: 9 | DN62: 10 | DO62: 20 | DZ62: 52 | EA62: 11 | EB62: 0 | ED62: 63 | EE62: 0 | EF62: 0 | EG62: 2 | EH62: 0 | EI62: 0 | EJ62: 10 | EK62: 0 | EL62: 11 | EM62: 1 | EN62: 0 | EO62: 4 | EP62: 7 | EQ62: 0 | ER62: 1 | ES62: 0 | ET62: 6 | EU62: 8 | EW62: 14 | EX62: 12 | EY62: 12 | EZ62: 12 | FI62: 17 | FJ62: 11 | FK62: 17 | FN62: 11 | FQ62: 27 | FV62: 63 | GG62: =IF(Table4[[#This Row],[SF]]=Table4[[#This Row],[School]],1,0) -> 0 | GH62: =IF(Table4[[#This Row],[prgm]]=Table4[[#This Row],[Degree Offered]],1,0) -> 0
A63: 68 | B63: 2000-2001 | C63: Mount St. Mary's University AD | D63: Private | E63: AD | F63: 1 | G63: 0 | H63: 0 | I63: 0 | J63: 0 | K63: 0 | L63: 0 | M63: Los Angeles | N63: 8 | O63: Southern Border | P63: No | Q63: 127 | R63: 127 | U63: 100 | V63: 83 | W63: 17 | X63: 0 | AF63: 83 | AG63: 82 | AI63: 75 | AL63: 80 | AN63: 0 | AO63: 14 | AP63: 60 | AS63: 74 | AY63: 77 | AZ63: 55 | BA63: 14 | BB63: 0 | BC63: 8 | BD63: 77 | BI63: 74 | BJ63: 139 | BK63: 22 | BL63: 0 | BM63: 15 | BN63: 1 | BO63: 12 | BP63: 28 | BQ63: 5 | BR63: 10 | BS63: 0 | BT63: 12 | BU63: 5 | BV63: 18 | BW63: 24 | BX63: 5 | BY63: 36 | BZ63: 1 | CA63: 23 | CB63: 7 | CC63: 28 | CD63: 40 | CE63: 4 | CF63: 74 | CG63: 139 | CH63: 73 | CI63: 9 | CK63: 64 | CL63: 10 | CN63: 118 | CO63: 21 | CP63: 82 | CQ63: 74 | CR63: 139 | DG63: 23 | DH63: 12 | DI63: 37 | DJ63: 41 | DK63: 40 | DL63: 74 | DM63: 15 | DN63: 19 | DO63: 19 | DP63: 3 | DQ63: 2 | DR63: 9 | DS63: 0 | DT63: 1 | DU63: 0 | DZ63: 123 | EA63: 16 | EB63: 0 | ED63: 139 | EE63: 0 | EF63: 3 | EG63: 6 | EH63: 3 | EI63: 1 | EJ63: 10 | EK63: 1 | EL63: 24 | EN63: 1 | EO63: 3 | EP63: 8 | EQ63: 9 | ER63: 3 | ET63: 9 | EU63: 15 | EW63: 24 | EX63: 24 | EY63: 24 | EZ63: 24 | FI63: 73 | FJ63: 60 | FK63: 73 | FN63: 60 | FQ63: 74 | FV63: 139 | GG63: =IF(Table4[[#This Row],[SF]]=Table4[[#This Row],[School]],1,0) -> 0 | GH63: =IF(Table4[[#This Row],[prgm]]=Table4[[#This Row],[Degree Offered]],1,0) -> 0
A64: 68 | B64: 2000-2001 | C64: Mount St. Mary's University BSN | D64: Private | E64: BSN | F64: 0 | G64: 1 | H64: 0 | I64: 0 | J64: 0 | K64: 0 | L64: 0 | M64: Los Angeles | N64: 8 | O64: Central Coast | P64: No | Q64: 180 | S64: 180 | U64: 104 | V64: 83 | W64: 21 | X64: 0 | AF64: 82 | AG64: 82 | AI64: 62 | AL64: 80 | AN64: 0 | AO64: 0 | AP64: 90 | AS64: 90 | AY64: 97 | AZ64: 90 | BA64: 5 | BB64: 0 | BC64: 2 | BD64: 97 | BI64: 90 | BJ64: 184 | BK64: 11 | BL64: 0 | BM64: 3 | BN64: 12 | BO64: 37 | BP64: 18 | BQ64: 1 | BR64: 9 | BS64: 1 | BT64: 20 | BU64: 7 | BV64: 38 | BW64: 15 | BY64: 7 | BZ64: 0 | CA64: 28 | CB64: 14 | CC64: 65 | CD64: 64 | CE64: 6 | CF64: 90 | CG64: 184 | CH64: 79 | CI64: 3 | CK64: 85 | CL64: 5 | CN64: 179 | CO64: 5 | CP64: 82 | CQ64: 90 | CR64: 184 | DV64: 82 | DW64: 90 | DX64: 184 | DZ64: 184 | EA64: 0 | EB64: 0 | ED64: 184 | EE64: 0 | EF64: 4 | EG64: 1 | EH64: 0 | EI64: 0 | EJ64: 24 | EK64: 0 | EL64: 28 | EM64: 1 | EN64: 1 | EO64: 2 | EP64: 10 | EQ64: 12 | ER64: 14 | ES64: 0 | ET64: 13 | EU64: 16 | EW64: 29 | EX64: 39 | EY64: 29 | EZ64: 29 | FI64: 79 | FJ64: 60 | FL64: 79 | FO64: 60 | FR64: 90 | FW64: 184 | GG64: =IF(Table4[[#This Row],[SF]]=Table4[[#This Row],[School]],1,0) -> 0 | GH64: =IF(Table4[[#This Row],[prgm]]=Table4[[#This Row],[Degree Offered]],1,0) -> 0
A65: 71 | B65: 2000-2001 | C65: Napa Valley College | D65: Public | E65: AD | F65: 1 | G65: 0 | H65: 0 | I65: 1 | J65: 1 | K65: 0 | L65: 0 | M65: Napa | N65: 4 | O65: Bay Area | P65: No | Q65: 110 | R65: 110 | U65: 48 | V65: 49 | W65: -1 | X65: 1 | Y65: 1 | Z65: 1 | AA65: 1 | AB65: 1 | AE65: 1 | AF65: 49 | AG65: 49 | AI65: 48 | AL65: 48 | AN65: 0 | AO65: 9 | AP65: 37 | AS65: 46 | AY65: 55 | AZ65: 45 | BA65: 4 | BB65: 0 | BC65: 6 | BD65: 55 | BI65: 46 | BJ65: 106 | BK65: 2 | BL65: 0 | BM65: 19 | BN65: 6 | BO65: 14 | BP65: 6 | BQ65: 2 | BR65: 4 | BS65: 0 | BT65: 10 | BU65: 3 | BV65: 26 | BW65: 2 | BX65: 1 | BY65: 8 | BZ65: 0 | CA65: 36 | CB65: 9 | CC65: 38 | CD65: 8 | CE65: 7 | CF65: 46 | CG65: 106 | CH65: 40 | CI65: 9 | CK65: 40 | CL65: 6 | CN65: 88 | CO65: 18 | CP65: 49 | CQ65: 46 | CR65: 106 | DG65: 23 | DH65: 9 | DI65: 41 | DJ65: 15 | DK65: 16 | DL65: 35 | DM65: 8 | DN65: 15 | DO65: 18 | DP65: 2 | DQ65: 6 | DR65: 7 | DS65: 1 | DT65: 0 | DU65: 5 | DZ65: 95 | EA65: 11 | EB65: 0 | ED65: 106 | EL65: 7 | EM65: 1 | EN65: 0 | EO65: 1 | EP65: 3 | EQ65: 4 | ER65: 1 | ET65: 9 | EU65: 1 | EW65: 10 | EX65: 9 | EY65: 8 | EZ65: 0 | FI65: 42 | FJ65: 25 | FK65: 42 | FN65: 25 | FQ65: 46 | FV65: 106 | GG65: =IF(Table4[[#This Row],[SF]]=Table4[[#This Row],[School]],1,0) -> 0 | GH65: =IF(Table4[[#This Row],[prgm]]=Table4[[#This Row],[Degree Offered]],1,0) -> 0
A66: 73 | B66: 2000-2001 | C66: Ohlone College | D66: Public | E66: AD | F66: 1 | G66: 0 | H66: 0 | I66: 1 | J66: 1 | K66: 0 | L66: 0 | M66: Alameda | N66: 4 | O66: Southern Border | P66: Yes | Q66: 76 | R66: 76 | U66: 44 | V66: 44 | W66: 0 | X66: 0 | AF66: 44 | AG66: 44 | AI66: 44 | AL66: 66 | AN66: 0 | AO66: 4 | AP66: 34 | AS66: 38 | AY66: 44 | AZ66: 34 | BA66: 3 | BB66: 0 | BC66: 7 | BD66: 44 | BI66: 0 | BJ66: 44 | BK66: 2 | BL66: 0 | BM66: 9 | BN66: 5 | BO66: 15 | BP66: 8 | BQ66: 5 | BS66: 0 | BY66: 2 | BZ66: 0 | CA66: 9 | CB66: 5 | CC66: 15 | CD66: 8 | CE66: 5 | CF66: 34 | CG66: 44 | CH66: 40 | CI66: 4 | CK66: 32 | CL66: 2 | CN66: 40 | CO66: 4 | CP66: 44 | CQ66: 0 | CR66: 44 | DG66: 21 | DI66: 21 | DJ66: 14 | DL66: 14 | DM66: 4 | DO66: 4 | DP66: 2 | DR66: 2 | DS66: 0 | DU66: 0 | DV66: 3 | DX66: 3 | DZ66: 44 | EA66: 0 | EB66: 0 | ED66: 44 | EL66: 10 | EM66: 0 | EN66: 0 | EO66: 0 | EP66: 7 | EQ66: 3 | ER66: 0 | ES66: 0 | ET66: 8 | EU66: 2 | EW66: 10 | EX66: 10 | EY66: 10 | EZ66: 0 | FI66: 36 | FJ66: 31 | FK66: 36 | FN66: 31 | FQ66: 38 | FV66: 44 | GG66: =IF(Table4[[#This Row],[SF]]=Table4[[#This Row],[School]],1,0) -> 0 | GH66: =IF(Table4[[#This Row],[prgm]]=Table4[[#This Row],[Degree Offered]],1,0) -> 0
A67: 74 | B67: 2000-2001 | C67: Pacific Union College | D67: =IF(I67=1,"Public","Private") -> Private | E67: =IF(F67=1,"AD",IF(G67=1,"BSN",IF(H67=1,"ELM",""))) -> AD | F67: =1-G67-H67 -> 1 | G67: 0 | H67: 0 | I67: 0 | J67: =F67*I67 -> 0 | K67: =I67*G67 -> 0 | L67: =H67*I67 -> 0 | M67: Napa | N67: 4 | O67: LA Area | P67: No | Q67: 59 | R67: =IF($E67="AD",$Q67,"") -> 59 | S67: =IF($E67="BSN",Q67,"") ->  | T67: =IF($E67="ELM",$Q67,"") ->  | U67: 60 | V67: 44 | W67: =U67-V67 -> 16 | X67: 1 | Y67: 1 | Z67: 1 | AA67: 1 | AC67: 1 | AE67: 1 | AF67: 44 | AG67: 44 | AI67: 60 | AL67: 60 | AN67: 0 | AO67: 32 | AP67: 41 | AS67: 73 | AY67: 87 | AZ67: 66 | BA67: 5 | BB67: 0 | BC67: 16 | BD67: 87 | BI67: =BS67+BU67+BR67+BT67+BW67+BV67+BX67 -> 66 | BJ67: =BZ67+CB67+BY67+CA67+CD67+CC67+CE67 -> 147 | BK67: 3 | BM67: 6 | BN67: 1 | BO67: 25 | BP67: 6 | BQ67: 3 | BR67: 3 | BS67: 2 | BT67: 5 | BU67: 4 | BV67: 40 | BW67: 12 | BY67: 13 | BZ67: 2 | CA67: 17 | CB67: 5 | CC67: 80 | CD67: 29 | CE67: 1 | CF67: =CK67+CL67 -> 66 | CG67: =CN67+CO67 -> 147 | CH67: 35 | CI67: 9 | CK67: 58 | CL67: 8 | CN67: 118 | CO67: 29 | CP67: =DG67+DJ67+DM67+DP67+DS67+DV67 -> 44 | CQ67: =DH67+DK67+DN67+DQ67+DT67+DW67 -> 66 | CR67: =DI67+DL67+DO67+DR67+DU67+DX67 -> 147 | DG67: 32 | DH67: 31 | DI67: 80 | DJ67: 7 | DK67: 19 | DL67: 37 | DM67: 4 | DN67: 11 | DO67: 23 | DP67: 1 | DQ67: 5 | DR67: 7 | DZ67: 98 | EA67: 49 | EB67: 0 | ED67: =DZ67+EA67+EB67 -> 147 | EG67: 1 | EJ67: 19 | EL67: 18 | EM67: 2 | EN67: 1 | EO67: 4 | EP67: 4 | EQ67: 9 | ER67: 2 | ET67: 13 | EU67: 7 | EW67: =SUM(ET67:EU67) -> 20 | EX67: =SUM(EN67:ES67) -> 20 | EY67: =SUM(EL67:EM67) -> 20 | EZ67: =SUM(EE67:EK67) -> 20 | FI67: 84 | FJ67: 70 | FK67: =IF(FI67="","",IF(F67=1,FI67,"")) -> 84 | FL67: =IF($FI67="","",IF(G67=1,$FI67,"")) ->  | FM67: =IF($FI67="","",IF(H67=1,$FI67,"")) ->  | FN67: =IF($FJ67="","",IF(F67=1,$FJ67,"")) -> 70 | FO67: =IF($FJ67="","",IF(G67=1,$FJ67,"")) ->  | FP67: =IF($FJ67="","",IF(H67=1,$FJ67,"")) ->  | FQ67: =IF($AS67="","",IF(E67="AD",$AS67,"")) -> 73 | FR67: =IF($AS67="","",IF($E67="BSN",$AS67,"")) ->  | FS67: =IF($AS67="","",IF($E67="ELM",$AS67,"")) ->  | FV67: =IF(F67=1,ED67,"") -> 147 | FW67: =IF(G67=1,ED67,"") ->  | FX67: =IF(H67=1,ED67,"") ->  | GG67: =IF(Table4[[#This Row],[SF]]=Table4[[#This Row],[School]],1,0) -> 0 | GH67: =IF(Table4[[#This Row],[prgm]]=Table4[[#This Row],[Degree Offered]],1,0) -> 0
A68: 75 | B68: 2000-2001 | C68: Palomar College | D68: Public | E68: AD | F68: 1 | G68: 0 | H68: 0 | I68: 1 | J68: 1 | K68: 0 | L68: 0 | M68: San Diego | N68: 10 | O68: LA Area | P68: No | Q68: 70 | R68: 70 | U68: 60 | V68: 60 | W68: 0 | X68: 1 | Y68: 1 | Z68: 1 | AA68: 1 | AB68: 1 | AE68: 1 | AF68: 54 | AG68: 54 | AI68: 66 | AL68: 72 | AN68: 1 | AO68: 7 | AP68: 46 | AS68: 54 | AY68: 92 | AZ68: 42 | BA68: 23 | BB68: 0 | BC68: 27 | BD68: 92 | BI68: 54 | BJ68: 115 | BK68: 1 | BL68: 1 | BM68: 3 | BN68: 4 | BO68: 37 | BP68: 8 | BQ68: 0 | BR68: 1 | BS68: 0 | BT68: 4 | BU68: 4 | BV68: 32 | BW68: 8 | BX68: 5 | BY68: 3 | BZ68: 1 | CA68: 6 | CB68: 6 | CC68: 83 | CD68: 16 | CE68: 0 | CF68: 54 | CG68: 115 | CH68: 48 | CI68: 6 | CK68: 50 | CL68: 4 | CN68: 104 | CO68: 11 | CP68: 54 | CQ68: 54 | CR68: 115 | DG68: 12 | DH68: 15 | DI68: 21 | DJ68: 26 | DK68: 30 | DL68: 55 | DM68: 13 | DN68: 8 | DO68: 33 | DP68: 3 | DQ68: 1 | DR68: 6 | DS68: 0 | DT68: 0 | DU68: 0 | DV68: 0 | DW68: 0 | DX68: 0 | DZ68: 88 | EA68: 24 | EB68: 3 | ED68: 115 | EJ68: 18 | EL68: 16 | EM68: 2 | EO68: 4 | EP68: 4 | EQ68: 8 | ER68: 2 | ET68: 10 | EU68: 8 | EW68: 18 | EX68: 18 | EY68: 18 | EZ68: 18 | FI68: 41 | FJ68: 38 | FK68: 41 | FN68: 38 | FQ68: 54 | FV68: 115 | GG68: =IF(Table4[[#This Row],[SF]]=Table4[[#This Row],[School]],1,0) -> 0 | GH68: =IF(Table4[[#This Row],[prgm]]=Table4[[#This Row],[Degree Offered]],1,0) -> 0
A69: 76 | B69: 2000-2001 | C69: Pasadena City College | D69: Public | E69: AD | F69: 1 | G69: 0 | H69: 0 | I69: 1 | J69: 1 | K69: 0 | L69: 0 | M69: Los Angeles | N69: 8 | O69: LA Area | P69: No | R69: 0 | W69: 0 | X69: 1 | Y69: 1 | Z69: 1 | AA69: 1 | AB69: 1 | AE69: 1 | AF69: 104 | AG69: 104 | AI69: 100 | AL69: 100 | AN69: 1 | AO69: 43 | AP69: 52 | AS69: 96 | AY69: 278 | AZ69: 61 | BA69: 30 | BB69: 0 | BC69: 187 | BD69: 278 | BI69: 96 | BJ69: 203 | BK69: 6 | BL69: 2 | BM69: 27 | BN69: 17 | BO69: 22 | BP69: 26 | BQ69: 4 | BR69: 6 | BS69: 2 | BT69: 31 | BU69: 8 | BV69: 23 | BW69: 24 | BX69: 2 | BY69: 14 | BZ69: 4 | CA69: 49 | CB69: 31 | CC69: 44 | CD69: 48 | CE69: 13 | CF69: 96 | CG69: 203 | CH69: 92 | CI69: 12 | CK69: 81 | CL69: 15 | CN69: 172 | CO69: 31 | CP69: 104 | CQ69: 96 | CR69: 202 | DG69: 55 | DH69: 35 | DI69: 96 | DJ69: 33 | DK69: 42 | DL69: 70 | DM69: 10 | DN69: 16 | DO69: 24 | DP69: 5 | DQ69: 3 | DR69: 11 | DS69: 1 | DT69: 0 | DU69: 1 | DZ69: 145 | EA69: 58 | EB69: 0 | ED69: 203 | EE69: 0 | EF69: 5 | EG69: 2 | EH69: 2 | EI69: 2 | EJ69: 11 | EK69: 0 | EL69: 21 | EM69: 1 | EN69: 0 | EO69: 4 | EP69: 11 | EQ69: 5 | ER69: 2 | ES69: 0 | ET69: 17 | EU69: 5 | EW69: 22 | EX69: 22 | EY69: 22 | EZ69: 22 | FI69: 80 | FJ69: 66 | FK69: 80 | FN69: 66 | FQ69: 96 | FV69: 203 | GG69: =IF(Table4[[#This Row],[SF]]=Table4[[#This Row],[School]],1,0) -> 0 | GH69: =IF(Table4[[#This Row],[prgm]]=Table4[[#This Row],[Degree Offered]],1,0) -> 0
A70: 77 | B70: 2000-2001 | C70: Point Loma Nazarene University | D70: Private | E70: BSN | F70: 0 | G70: 1 | H70: 0 | I70: 0 | J70: 0 | K70: 0 | L70: 0 | M70: San Diego | N70: 10 | O70: LA Area | P70: No | Q70: 50 | S70: 50 | U70: 45 | V70: 45 | W70: 0 | X70: 1 | Y70: 1 | AA70: 1 | AE70: 1 | AF70: 46 | AG70: 44 | AI70: 45 | AL70: 45 | AN70: 0 | AO70: 2 | AP70: 36 | AS70: 38 | AY70: 43 | AZ70: 38 | BA70: 1 | BB70: 0 | BC70: 4 | BD70: 43 | BI70: 38 | BJ70: 0 | BK70: 0 | BL70: 0 | BM70: 8 | BN70: 0 | BO70: 34 | BP70: 4 | BR70: 0 | BS70: 0 | BT70: 6 | BU70: 1 | BV70: 29 | BW70: 2 | CF70: 38 | CG70: 0 | CH70: 35 | CI70: 9 | CK70: 34 | CL70: 4 | CP70: 44 | CQ70: 38 | CR70: 131 | DG70: 37 | DH70: 22 | DI70: 104 | DJ70: 4 | DK70: 13 | DL70: 17 | DM70: 3 | DN70: 2 | DO70: 10 | DP70: 0 | DQ70: 1 | DR70: 0 | DS70: 0 | DT70: 0 | DU70: 0 | DV70: 0 | DW70: 0 | DX70: 0 | DZ70: 125 | EA70: 6 | EB70: 0 | ED70: 131 | EE70: 0 | EF70: 2 | EG70: 1 | EH70: 1 | EI70: 1 | EJ70: 13 | EK70: 0 | EL70: 18 | EN70: 1 | EO70: 5 | EP70: 6 | EQ70: 3 | ER70: 3 | ES70: 0 | ET70: 10 | EU70: 8 | EW70: 18 | EX70: 18 | EY70: 18 | EZ70: 18 | FI70: 28 | FJ70: 24 | FL70: 28 | FO70: 24 | FR70: 38 | FW70: 131 | GG70: =IF(Table4[[#This Row],[SF]]=Table4[[#This Row],[School]],1,0) -> 0 | GH70: =IF(Table4[[#This Row],[prgm]]=Table4[[#This Row],[Degree Offered]],1,0) -> 0
A71: 78 | B71: 2000-2001 | C71: Rio Hondo College | D71: Public | E71: AD | F71: 1 | G71: 0 | H71: 0 | I71: 1 | J71: 1 | K71: 0 | L71: 0 | M71: Los Angeles | N71: 8 | O71: LA Area | P71: No | Q71: 125 | R71: 125 | U71: 60 | V71: 60 | W71: 0 | X71: 1 | AB71: 1 | AE71: 1 | AF71: 56 | AG71: 60 | AI71: 60 | AL71: 72 | AN71: 2 | AO71: 5 | AP71: 27 | AS71: 34 | AY71: 45 | AZ71: 35 | BA71: 3 | BB71: 0 | BC71: 7 | BD71: 45 | BI71: 35 | BJ71: 116 | BK71: 5 | BL71: 0 | BM71: 3 | BN71: 6 | BO71: 13 | BP71: 29 | BQ71: 0 | BR71: 1 | BS71: 0 | BT71: 3 | BU71: 5 | BV71: 9 | BW71: 17 | BX71: 0 | BY71: 8 | BZ71: 0 | CA71: 5 | CB71: 10 | CC71: 32 | CD71: 61 | CE71: 0 | CF71: 35 | CG71: 116 | CH71: 45 | CI71: 15 | CK71: 29 | CL71: 6 | CN71: 91 | CO71: 25 | CP71: 56 | CQ71: 35 | CR71: 116 | DV71: 56 | DW71: 35 | DX71: 116 | DZ71: 95 | EA71: 18 | EB71: 3 | ED71: 116 | EE71: 1 | EF71: 1 | EI71: 1 | EJ71: 11 | EL71: 14 | ES71: 14 | ET71: 9 | EU71: 5 | EW71: 14 | EX71: 14 | EY71: 14 | EZ71: 14 | FI71: 45 | FJ71: 37 | FK71: 45 | FN71: 37 | FQ71: 34 | FV71: 116 | GG71: =IF(Table4[[#This Row],[SF]]=Table4[[#This Row],[School]],1,0) -> 0 | GH71: =IF(Table4[[#This Row],[prgm]]=Table4[[#This Row],[Degree Offered]],1,0) -> 0
A72: 79 | B72: 2000-2001 | C72: Riverside City College | D72: Public | E72: AD | F72: 1 | G72: 0 | H72: 0 | I72: 1 | J72: 1 | K72: 0 | L72: 0 | M72: Riverside | N72: 9 | O72: LA Area | P72: No | Q72: 155 | R72: 155 | U72: 88 | V72: 84 | W72: 4 | X72: 1 | Y72: 1 | Z72: 1 | AA72: 1 | AF72: 87 | AG72: 87 | AI72: 100 | AL72: 100 | AN72: 5 | AO72: 21 | AP72: 84 | AS72: 110 | AY72: 139 | AZ72: 110 | BA72: 17 | BB72: 0 | BC72: 12 | BD72: 139 | BI72: 111 | BJ72: 210 | BK72: 9 | BL72: 1 | BM72: 2 | BN72: 5 | BO72: 44 | BP72: 19 | BQ72: 7 | BR72: 7 | BS72: 1 | BT72: 7 | BU72: 8 | BV72: 54 | BW72: 19 | BX72: 15 | BY72: 28 | BZ72: 1 | CA72: 12 | CB72: 16 | CC72: 87 | CD72: 45 | CE72: 21 | CF72: 110 | CG72: 209 | CH72: 78 | CI72: 9 | CK72: 100 | CL72: 10 | CN72: 179 | CO72: 30 | CP72: 88 | CQ72: 110 | CR72: 209 | DG72: 29 | DH72: 29 | DI72: 70 | DJ72: 24 | DK72: 48 | DL72: 88 | DM72: 28 | DN72: 23 | DO72: 42 | DP72: 6 | DQ72: 9 | DR72: 9 | DS72: 1 | DT72: 1 | DU72: 0 | DZ72: 147 | EA72: 60 | EB72: 2 | ED72: 209 | EE72: 0 | EF72: 1 | EG72: 1 | EH72: 1 | EI72: 1 | EJ72: 26 | EK72: 0 | EL72: 28 | EM72: 2 | EN72: 1 | EO72: 1 | EP72: 19 | EQ72: 4 | ER72: 4 | ET72: 15 | EU72: 14 | EW72: 29 | EX72: 29 | EY72: 30 | EZ72: 30 | FI72: 100 | FJ72: 84 | FK72: 100 | FN72: 84 | FQ72: 110 | FV72: 209 | GG72: =IF(Table4[[#This Row],[SF]]=Table4[[#This Row],[School]],1,0) -> 0 | GH72: =IF(Table4[[#This Row],[prgm]]=Table4[[#This Row],[Degree Offered]],1,0) -> 0
A73: 80 | B73: 2000-2001 | C73: Sacramento City College | D73: Public | E73: AD | F73: 1 | G73: 0 | H73: 0 | I73: 1 | J73: 1 | K73: 0 | L73: 0 | M73: Sacramento | N73: 3 | O73: LA Area | P73: No | Q73: 55 | R73: 55 | U73: 60 | V73: 55 | W73: 5 | X73: 1 | Y73: 1 | Z73: 1 | AB73: 1 | AE73: 1 | AF73: =BL73+BN73+BK73+BM73+BP73+BO73+BQ73 -> 61 | AG73: =CI73+CH73 -> 61 | AI73: 60 | AL73: 60 | AN73: 0 | AO73: 7 | AP73: 28 | AS73: 35 | AY73: 61 | AZ73: 37 | BA73: 2 | BB73: 0 | BC73: 22 | BD73: 61 | BI73: 35 | BJ73: 103 | BK73: 12 | BL73: 0 | BM73: 4 | BN73: 9 | BO73: 25 | BP73: 10 | BQ73: 1 | BR73: 5 | BS73: 0 | BT73: 1 | BU73: 2 | BV73: 20 | BW73: 5 | BX73: 2 | BY73: 15 | BZ73: 0 | CA73: 11 | CB73: 11 | CC73: 42 | CD73: 15 | CE73: 9 | CF73: 35 | CG73: 103 | CH73: 50 | CI73: 11 | CK73: 27 | CL73: 8 | CN73: 86 | CO73: 17 | CP73: 61 | CQ73: 35 | CR73: 103 | DG73: 16 | DH73: 7 | DI73: 24 | DJ73: 25 | DK73: 18 | DL73: 44 | DM73: 17 | DN73: 9 | DO73: 30 | DP73: 3 | DQ73: 1 | DR73: 5 | DS73: 0 | DT73: 0 | DU73: 0 | DZ73: 92 | EA73: 11 | EB73: 0 | ED73: 103 | EE73: 0 | EF73: 1 | EG73: 2 | EH73: 0 | EI73: 0 | EJ73: 8 | EK73: 0 | EL73: 11 | EN73: 0 | EO73: 4 | EP73: 3 | EQ73: 3 | ER73: 1 | ES73: 0 | ET73: 11 | EU73: 0 | EW73: 11 | EX73: 11 | EY73: 11 | EZ73: 11 | FI73: 38 | FJ73: 35 | FK73: 38 | FN73: 35 | FQ73: 35 | FV73: 103 | GG73: =IF(Table4[[#This Row],[SF]]=Table4[[#This Row],[School]],1,0) -> 0 | GH73: =IF(Table4[[#This Row],[prgm]]=Table4[[#This Row],[Degree Offered]],1,0) -> 0
A74: 81 | B74: 2000-2001 | C74: Saddleback College | D74: Public | E74: AD | F74: 1 | G74: 0 | H74: 0 | I74: 1 | J74: 1 | K74: 0 | L74: 0 | M74: Orange | N74: 9 | O74: Inland Empire | P74: No | Q74: 130 | R74: 130 | U74: 99 | V74: 99 | W74: 0 | X74: 1 | Y74: 1 | Z74: 1 | AA74: 1 | AF74: 93 | AG74: 93 | AI74: 99 | AL74: 88 | AN74: 1 | AO74: 8 | AP74: 74 | AS74: 83 | AY74: 93 | AZ74: 83 | BA74: 0 | BB74: 0 | BC74: 10 | BD74: 93 | BI74: 83 | BJ74: 160 | BK74: 0 | BL74: 0 | BM74: 9 | BN74: 6 | BO74: 56 | BP74: 16 | BQ74: 6 | BR74: 1 | BS74: 0 | BT74: 4 | BU74: 4 | BV74: 56 | BW74: 13 | BX74: 5 | BY74: 11 | BZ74: 0 | CA74: 2 | CB74: 18 | CC74: 81 | CD74: 30 | CE74: 18 | CF74: 83 | CG74: 160 | CH74: 78 | CI74: 15 | CK74: 77 | CL74: 6 | CN74: 144 | CO74: 16 | CP74: 93 | CQ74: 83 | CR74: 150 | DG74: 36 | DH74: 10 | DI74: 33 | DJ74: 29 | DK74: 35 | DL74: 63 | DM74: 20 | DN74: 20 | DO74: 32 | DP74: 8 | DQ74: 17 | DR74: 21 | DS74: 0 | DT74: 1 | DU74: 1 | DZ74: 151 | EA74: 9 | EB74: 0 | ED74: 160 | EF74: 1 | EJ74: 18 | EK74: 1 | EL74: 19 | EM74: 1 | EO74: 1 | EP74: 11 | EQ74: 8 | ET74: 14 | EU74: 6 | EW74: 20 | EX74: 20 | EY74: 20 | EZ74: 20 | FI74: 75 | FJ74: 67 | FK74: 75 | FN74: 67 | FQ74: 83 | FV74: 160 | GG74: =IF(Table4[[#This Row],[SF]]=Table4[[#This Row],[School]],1,0) -> 0 | GH74: =IF(Table4[[#This Row],[prgm]]=Table4[[#This Row],[Degree Offered]],1,0) -> 0
A75: 82 | B75: 2000-2001 | C75: Samuel Merritt University | D75: Private | E75: BSN | F75: 0 | G75: 1 | H75: 0 | I75: 0 | J75: 0 | K75: 0 | L75: 0 | M75: Alameda | N75: 4 | O75: LA Area | P75: Yes | Q75: 126 | S75: 126 | U75: 100 | V75: 90 | W75: 10 | X75: 1 | Y75: 1 | Z75: 1 | AA75: 1 | AF75: 89 | AG75: 89 | AI75: 100 | AL75: 100 | AN75: 0 | AO75: 0 | AP75: 67 | AS75: 67 | AY75: 89 | AZ75: 68 | BA75: 9 | BB75: 0 | BC75: 12 | BD75: 89 | BI75: 67 | BJ75: 244 | BK75: 21 | BL75: 0 | BM75: 8 | BN75: 11 | BO75: 31 | BP75: 10 | BQ75: 8 | BR75: 3 | BS75: 1 | BT75: 5 | BU75: 12 | BV75: 36 | BW75: 6 | BX75: 4 | BY75: 39 | BZ75: 2 | CA75: 17 | CB75: 41 | CC75: 89 | CD75: 39 | CE75: 17 | CF75: 67 | CG75: 244 | CH75: 86 | CI75: 3 | CK75: 64 | CL75: 3 | CN75: 226 | CO75: 18 | CP75: 89 | CQ75: 67 | CR75: 244 | DG75: 44 | DH75: 36 | DI75: 143 | DJ75: 37 | DK75: 23 | DL75: 84 | DM75: 3 | DN75: 5 | DO75: 13 | DP75: 3 | DQ75: 3 | DR75: 3 | DS75: 1 | DT75: 0 | DU75: 1 | DV75: 1 | DW75: 0 | DX75: 0 | DZ75: 244 | EA75: 0 | EB75: 0 | ED75: 244 | EE75: 0 | EF75: 3 | EG75: 3 | EH75: 0 | EI75: 2 | EJ75: 50 | EK75: 0 | EL75: 51 | EM75: 7 | EN75: 0 | EO75: 5 | EP75: 26 | EQ75: 22 | ER75: 5 | ES75: 0 | ET75: 28 | EU75: 30 | EW75: 58 | EX75: 58 | EY75: 58 | EZ75: 58 | FI75: 95 | FJ75: 69 | FL75: 95 | FO75: 69 | FR75: 67 | FW75: 244 | GG75: =IF(Table4[[#This Row],[SF]]=Table4[[#This Row],[School]],1,0) -> 0 | GH75: =IF(Table4[[#This Row],[prgm]]=Table4[[#This Row],[Degree Offered]],1,0) -> 0
A76: 82 | B76: 2000-2001 | C76: Samuel Merritt University | D76: Private | E76: ELM | F76: 0 | G76: 0 | H76: 1 | I76: 0 | J76: 0 | K76: 0 | L76: 0 | M76: Alameda | N76: 4 | O76: Bay Area | P76: Yes | Q76: 53 | T76: 53 | U76: 37 | V76: 37 | W76: 0 | X76: 1 | Y76: 1 | Z76: 1 | AA76: 1 | AF76: 37 | AG76: 37 | AI76: 36 | AL76: 40 | AN76: 0 | AO76: 0 | AP76: 19 | AS76: 19 | AY76: 30 | AZ76: 10 | BA76: 16 | BB76: 0 | BC76: 4 | BD76: 30 | BI76: 19 | BJ76: 98 | BK76: 2 | BL76: 0 | BM76: 1 | BN76: 6 | BO76: 20 | BP76: 3 | BQ76: 5 | BR76: 2 | BS76: 0 | BT76: 0 | BU76: 5 | BV76: 11 | BW76: 1 | BX76: 0 | BY76: 6 | BZ76: 0 | CA76: 4 | CB76: 20 | CC76: 45 | CD76: 11 | CE76: 12 | CF76: 19 | CG76: 98 | CH76: 30 | CI76: 7 | CK76: 19 | CL76: 0 | CN76: 89 | CO76: 9 | CP76: 37 | CQ76: 19 | CR76: 98 | DG76: 8 | DH76: 0 | DI76: 29 | DJ76: 22 | DK76: 15 | DL76: 55 | DM76: 6 | DN76: 4 | DO76: 12 | DP76: 1 | DQ76: 0 | DR76: 2 | DZ76: 98 | EA76: 0 | EB76: 0 | ED76: 98 | EW76: 0 | EX76: 0 | EY76: 0 | EZ76: 0 | FS76: 19 | FX76: 98 | GG76: =IF(Table4[[#This Row],[SF]]=Table4[[#This Row],[School]],1,0) -> 0 | GH76: =IF(Table4[[#This Row],[prgm]]=Table4[[#This Row],[Degree Offered]],1,0) -> 0
A77: 83 | B77: 2000-2001 | C77: San Bernardino Valley College | D77: Public | E77: AD | F77: 1 | G77: 0 | H77: 0 | I77: 1 | J77: 1 | K77: 0 | L77: 0 | M77: San Bernardino | N77: 9 | O77: Northern California | P77: No | Q77: 210 | R77: 210 | U77: 110 | V77: 94 | W77: 16 | X77: 1 | Y77: 1 | AE77: 1 | AF77: 153 | AG77: 153 | AI77: 100 | AL77: 130 | AN77: 1 | AO77: 14 | AP77: 51 | AS77: 66 | AY77: 127 | AZ77: 66 | BA77: 15 | BB77: 0 | BC77: 46 | BD77: 127 | BI77: 66 | BJ77: 195 | BK77: 22 | BL77: 1 | BM77: 15 | BN77: 17 | BO77: 51 | BP77: 39 | BQ77: 8 | BR77: 12 | BS77: 0 | BT77: 6 | BU77: 4 | BV77: 30 | BW77: 14 | BX77: 0 | BY77: 23 | BZ77: 2 | CA77: 21 | CB77: 13 | CC77: 81 | CD77: 55 | CE77: 0 | CF77: 66 | CG77: 195 | CH77: 129 | CI77: 24 | CK77: 59 | CL77: 7 | CN77: 158 | CO77: 37 | CP77: 153 | CQ77: 66 | CR77: 195 | DG77: 42 | DH77: 20 | DI77: 54 | DJ77: 54 | DK77: 32 | DL77: 78 | DM77: 39 | DN77: 10 | DO77: 44 | DP77: 13 | DQ77: 3 | DR77: 18 | DS77: 1 | DT77: 0 | DU77: 1 | DV77: 4 | DW77: 1 | DX77: 0 | DZ77: 174 | EA77: 21 | EB77: 0 | ED77: 195 | EE77: 0 | EF77: 2 | EG77: 4 | EH77: 2 | EI77: 3 | EJ77: 19 | EL77: 29 | EM77: 1 | EN77: 0 | EO77: 3 | EP77: 16 | EQ77: 10 | ER77: 1 | ET77: 13 | EU77: 17 | EW77: 30 | EX77: 30 | EY77: 30 | EZ77: 30 | FI77: 76 | FJ77: 65 | FK77: 76 | FN77: 65 | FQ77: 66 | FV77: 195 | GG77: =IF(Table4[[#This Row],[SF]]=Table4[[#This Row],[School]],1,0) -> 0 | GH77: =IF(Table4[[#This Row],[prgm]]=Table4[[#This Row],[Degree Offered]],1,0) -> 0
A78: 84 | B78: 2000-2001 | C78: San Diego City College | D78: Public | E78: AD | F78: 1 | G78: 0 | H78: 0 | I78: 1 | J78: 1 | K78: 0 | L78: 0 | M78: San Diego | N78: 10 | O78: San Joaquin Valley | P78: No | Q78: 52 | R78: 52 | U78: 60 | V78: 52 | W78: 8 | X78: 0 | AC78: 1 | AE78: 1 | AF78: 59 | AG78: 59 | AI78: 55 | AL78: 55 | AN78: 0 | AO78: 5 | AP78: 41 | AS78: 46 | AY78: 61 | AZ78: 46 | BA78: 0 | BB78: 0 | BC78: 15 | BD78: 61 | BI78: 46 | BJ78: 103 | BK78: 7 | BL78: 0 | BM78: 10 | BN78: 7 | BO78: 22 | BP78: 9 | BQ78: 4 | BR78: 9 | BS78: 0 | BT78: 8 | BU78: 2 | BV78: 18 | BW78: 4 | BX78: 5 | BY78: 9 | BZ78: 0 | CA78: 22 | CB78: 7 | CC78: 34 | CD78: 24 | CE78: 7 | CF78: 46 | CG78: 103 | CH78: 47 | CI78: 12 | CK78: 39 | CL78: 7 | CN78: 79 | CO78: 24 | CP78: 59 | CQ78: 46 | CR78: 103 | DG78: 9 | DH78: 6 | DI78: 20 | DJ78: 32 | DK78: 27 | DL78: 54 | DM78: 16 | DN78: 12 | DO78: 25 | DP78: 1 | DQ78: 1 | DR78: 3 | DS78: 1 | DU78: 1 | DZ78: 96 | EA78: 6 | EB78: 1 | ED78: 103 | EE78: 1 | EG78: 2 | EI78: 1 | EJ78: 10 | EL78: 13 | EM78: 1 | EO78: 2 | EP78: 6 | EQ78: 5 | ER78: 1 | ET78: 10 | EU78: 4 | EW78: 14 | EX78: 14 | EY78: 14 | EZ78: 14 | FI78: 49 | FJ78: 35 | FK78: 49 | FN78: 35 | FQ78: 46 | FV78: 103 | GG78: =IF(Table4[[#This Row],[SF]]=Table4[[#This Row],[School]],1,0) -> 0 | GH78: =IF(Table4[[#This Row],[prgm]]=Table4[[#This Row],[Degree Offered]],1,0) -> 0
A79: 85 | B79: 2000-2001 | C79: San Diego State University | D79: Public | E79: BSN | F79: 0 | G79: 1 | H79: 0 | I79: 1 | J79: 0 | K79: 1 | L79: 0 | M79: San Diego | N79: 10 | O79: Bay Area | P79: No | Q79: 199 | S79: 199 | U79: 180 | V79: 180 | W79: 0 | X79: 1 | Y79: 1 | Z79: 1 | AA79: 1 | AF79: 180 | AG79: 180 | AI79: 160 | AL79: 100 | AN79: 0 | AO79: 0 | AP79: 95 | AS79: 95 | AY79: 380 | AZ79: 362 | BA79: 12 | BB79: 0 | BC79: 6 | BD79: 380 | BI79: 95 | BJ79: 380 | BK79: 6 | BL79: 1 | BM79: 37 | BN79: 19 | BO79: 76 | BP79: 23 | BQ79: 18 | BR79: 0 | BS79: 0 | BT79: 9 | BU79: 7 | BV79: 67 | BW79: 8 | BX79: 4 | BY79: 15 | BZ79: 4 | CA79: 105 | CB79: 22 | CC79: 157 | CD79: 47 | CE79: 30 | CF79: 95 | CG79: 380 | CH79: 160 | CI79: 20 | CK79: 83 | CL79: 12 | CN79: 344 | CO79: 36 | CP79: 180 | CQ79: 95 | CR79: 0 | DG79: 128 | DH79: 68 | DJ79: 35 | DK79: 20 | DM79: 3 | DN79: 4 | DP79: 4 | DQ79: 0 | DS79: 0 | DT79: 0 | DV79: 10 | DW79: 3 | DZ79: 371 | EA79: 9 | EB79: 0 | ED79: 380 | EE79: 0 | EF79: 2 | EG79: 1 | EH79: 0 | EI79: 1 | EJ79: 53 | EK79: 0 | EL79: 56 | EM79: 1 | EN79: 0 | EO79: 3 | EP79: 15 | EQ79: 19 | ER79: 8 | ES79: 9 | ET79: 25 | EU79: 29 | EW79: 54 | EX79: 54 | EY79: 57 | EZ79: 57 | FI79: 73 | FJ79: 67 | FL79: 73 | FO79: 67 | FR79: 95 | FW79: 380 | GG79: =IF(Table4[[#This Row],[SF]]=Table4[[#This Row],[School]],1,0) -> 0 | GH79: =IF(Table4[[#This Row],[prgm]]=Table4[[#This Row],[Degree Offered]],1,0) -> 0
A80: 86 | B80: 2000-2001 | C80: San Francisco State University | D80: Public | E80: BSN | F80: 0 | G80: 1 | H80: 0 | I80: 1 | J80: 0 | K80: 1 | L80: 0 | M80: San Francisco | N80: 4 | O80: Southern Border | P80: Yes | Q80: 144 | S80: 144 | U80: 144 | V80: 90 | W80: 54 | X80: 1 | Y80: 1 | Z80: 1 | AF80: 95 | AG80: 93 | AI80: 90 | AL80: 110 | AN80: 0 | AO80: 16 | AP80: 57 | AS80: 73 | AY80: 297 | AZ80: 290 | BA80: 3 | BB80: 0 | BC80: 4 | BD80: 297 | BI80: 64 | BJ80: 297 | BK80: 5 | BL80: 1 | BM80: 15 | BN80: 18 | BO80: 28 | BP80: 14 | BQ80: 14 | BR80: 6 | BS80: 0 | BT80: 10 | BU80: 11 | BV80: 16 | BW80: 4 | BX80: 17 | BY80: 15 | BZ80: 4 | CA80: 51 | CB80: 65 | CC80: 75 | CD80: 39 | CE80: 48 | CF80: 64 | CG80: 297 | CH80: 74 | CI80: 19 | CK80: 58 | CL80: 6 | CN80: 239 | CO80: 58 | CP80: 93 | CQ80: 64 | CR80: 297 | DV80: 93 | DW80: 64 | DX80: 297 | DZ80: 265 | EA80: 65 | EB80: 0 | ED80: 330 | EE80: 0 | EF80: 3 | EG80: 2 | EH80: 0 | EI80: 2 | EJ80: 21 | EK80: 2 | EL80: 26 | EM80: 4 | ES80: 30 | ET80: 12 | EU80: 11 | EW80: 23 | EX80: 30 | EY80: 30 | EZ80: 30 | FI80: 97 | FJ80: 82 | FL80: 97 | FO80: 82 | FR80: 73 | FW80: 330 | GG80: =IF(Table4[[#This Row],[SF]]=Table4[[#This Row],[School]],1,0) -> 0 | GH80: =IF(Table4[[#This Row],[prgm]]=Table4[[#This Row],[Degree Offered]],1,0) -> 0
A81: 86 | B81: 2000-2001 | C81: San Francisco State University | D81: Public | E81: ELM | F81: 0 | G81: 0 | H81: 1 | I81: 1 | J81: 0 | K81: 0 | L81: 1 | M81: San Francisco | N81: 4 | O81: Bay Area | P81: Yes | Q81: 170 | T81: 170 | U81: 50 | V81: 38 | W81: 12 | X81: 1 | AA81: 1 | AF81: 33 | AG81: 33 | AI81: 50 | AL81: 40 | AN81: 0 | AO81: 0 | AP81: 28 | AS81: 28 | AY81: 38 | AZ81: 28 | BA81: 10 | BB81: 0 | BC81: 0 | BD81: 38 | BI81: 24 | BJ81: 144 | BK81: 0 | BL81: 0 | BM81: 0 | BN81: 9 | BO81: 13 | BP81: 5 | BQ81: 6 | BR81: 3 | BS81: 0 | BT81: 1 | BU81: 4 | BV81: 14 | BW81: 2 | BY81: 6 | BZ81: 0 | CA81: 0 | CB81: 38 | CC81: 65 | CD81: 11 | CE81: 24 | CF81: 24 | CG81: 144 | CH81: 30 | CI81: 3 | CK81: 20 | CL81: 4 | CN81: 127 | CO81: 17 | CP81: 33 | CQ81: 24 | CR81: 144 | DV81: 33 | DW81: 24 | DX81: 144 | DZ81: 33 | EA81: 0 | EB81: 0 | ED81: 33 | EW81: 0 | EX81: 0 | EY81: 0 | EZ81: 0 | FS81: 28 | FX81: 33 | GG81: =IF(Table4[[#This Row],[SF]]=Table4[[#This Row],[School]],1,0) -> 0 | GH81: =IF(Table4[[#This Row],[prgm]]=Table4[[#This Row],[Degree Offered]],1,0) -> 0
A82: 87 | B82: 2000-2001 | C82: San Joaquin Delta College | D82: Public | E82: AD | F82: 1 | G82: 0 | H82: 0 | I82: 1 | J82: 1 | K82: 0 | L82: 0 | M82: San Joaquin | N82: 5 | O82: San Joaquin Valley | P82: No | Q82: 328 | R82: 328 | U82: 110 | V82: 110 | W82: 0 | X82: 1 | AB82: 1 | AE82: 1 | AF82: 110 | AG82: 110 | AI82: 120 | AL82: 120 | AN82: 0 | AO82: 48 | AP82: 33 | AS82: 81 | AY82: 128 | AZ82: 81 | BA82: 13 | BB82: 0 | BC82: 34 | BD82: 128 | BI82: 81 | BJ82: 195 | BK82: 7 | BL82: 1 | BM82: 21 | BN82: 13 | BO82: 48 | BP82: 19 | BQ82: 1 | BR82: 4 | BS82: 1 | BT82: 11 | BU82: 14 | BV82: 39 | BW82: 12 | BY82: 5 | BZ82: 4 | CA82: 38 | CB82: 23 | CC82: 86 | CD82: 36 | CE82: 3 | CF82: 81 | CG82: 201 | CH82: 95 | CI82: 15 | CK82: 72 | CL82: 9 | CN82: 174 | CO82: 27 | CP82: 110 | CQ82: 81 | CR82: 201 | DG82: 42 | DH82: 21 | DI82: 73 | DJ82: 47 | DK82: 41 | DL82: 81 | DM82: 16 | DN82: 16 | DO82: 37 | DP82: 5 | DQ82: 3 | DR82: 10 | DZ82: 176 | EA82: 35 | EB82: 0 | ED82: 211 | EE82: 0 | EF82: 1 | EG82: 3 | EH82: 4 | EI82: 1 | EJ82: 11 | EK82: 1 | EL82: 18 | EM82: 3 | EN82: 0 | EO82: 1 | EP82: 9 | EQ82: 9 | ER82: 2 | ET82: 13 | EU82: 8 | EW82: 21 | EX82: 21 | EY82: 21 | EZ82: 21 | FI82: 70 | FJ82: 53 | FK82: 70 | FN82: 53 | FQ82: 81 | FV82: 211 | GG82: =IF(Table4[[#This Row],[SF]]=Table4[[#This Row],[School]],1,0) -> 0 | GH82: =IF(Table4[[#This Row],[prgm]]=Table4[[#This Row],[Degree Offered]],1,0) -> 0
A83: 89 | B83: 2000-2001 | C83: Santa Ana College | D83: Public | E83: AD | F83: 1 | G83: 0 | H83: 0 | I83: 1 | J83: 1 | K83: 0 | L83: 0 | M83: Orange | N83: 9 | O83: Central Coast | P83: No | Q83: 61 | R83: 61 | U83: 36 | V83: 36 | W83: 0 | X83: 1 | Y83: 1 | AA83: 1 | AF83: 132 | AG83: 132 | AI83: 72 | AL83: 92 | AN83: 0 | AO83: 10 | AP83: 45 | AS83: 55 | AY83: 68 | AZ83: 56 | BA83: 5 | BB83: 0 | BC83: 7 | BD83: 68 | BI83: 56 | BJ83: 139 | BK83: 21 | BL83: 2 | BM83: 13 | BN83: 3 | BO83: 51 | BP83: 35 | BQ83: 7 | BR83: 1 | BS83: 0 | BT83: 8 | BU83: 12 | BV83: 20 | BW83: 15 | BX83: 0 | BY83: 4 | BZ83: 2 | CA83: 14 | CB83: 24 | CC83: 56 | CD83: 39 | CE83: 0 | CF83: 56 | CG83: 139 | CH83: 105 | CI83: 27 | CK83: 50 | CL83: 6 | CN83: 114 | CO83: 25 | CP83: 132 | CQ83: 56 | CR83: 139 | DG83: 45 | DH83: 13 | DI83: 47 | DJ83: 63 | DK83: 25 | DL83: 66 | DM83: 19 | DN83: 14 | DO83: 21 | DP83: 5 | DQ83: 3 | DR83: 5 | DS83: 0 | DT83: 1 | DU83: 0 | DZ83: 124 | EA83: 15 | EB83: 0 | ED83: 139 | EF83: 1 | EJ83: 13 | EL83: 12 | EM83: 2 | EO83: 2 | EP83: 11 | EQ83: 1 | ET83: 12 | EU83: 2 | EW83: 14 | EX83: 14 | EY83: 14 | EZ83: 14 | FI83: 72 | FJ83: 57 | FK83: 72 | FN83: 57 | FQ83: 55 | FV83: 139 | GG83: =IF(Table4[[#This Row],[SF]]=Table4[[#This Row],[School]],1,0) -> 0 | GH83: =IF(Table4[[#This Row],[prgm]]=Table4[[#This Row],[Degree Offered]],1,0) -> 0
A84: 90 | B84: 2000-2001 | C84: Santa Barbara City College | D84: Public | E84: AD | F84: 1 | G84: 0 | H84: 0 | I84: 1 | J84: 1 | K84: 0 | L84: 0 | M84: Santa Barbara | N84: 7 | O84: LA Area | P84: No | R84: 0 | U84: 40 | V84: 40 | W84: 0 | X84: 1 | Y84: 1 | Z84: 1 | AF84: 61 | AG84: 61 | AI84: 70 | AL84: 90 | AN84: 0 | AO84: 8 | AP84: 21 | AS84: 29 | AY84: 61 | AZ84: 34 | BA84: 2 | BB84: 0 | BC84: 25 | BD84: 61 | BI84: 29 | BJ84: 107 | BK84: 0 | BL84: 2 | BM84: 4 | BN84: 2 | BO84: 37 | BP84: 16 | BQ84: 0 | BR84: 1 | BS84: 1 | BT84: 2 | BU84: 1 | BV84: 18 | BW84: 6 | BX84: 0 | BY84: 1 | BZ84: 2 | CA84: 6 | CB84: 1 | CC84: 72 | CD84: 25 | CE84: 0 | CF84: 29 | CG84: 107 | CH84: 55 | CI84: 6 | CK84: 24 | CL84: 5 | CN84: 97 | CO84: 10 | CP84: 61 | CQ84: 29 | CR84: 107 | DG84: 22 | DH84: 5 | DI84: 42 | DJ84: 24 | DK84: 17 | DL84: 40 | DM84: 14 | DN84: 6 | DO84: 21 | DP84: 0 | DQ84: 1 | DR84: 4 | DS84: 1 | DT84: 0 | DU84: 0 | DV84: 0 | DW84: 0 | DX84: 0 | DZ84: 99 | EA84: 8 | EB84: 0 | ED84: 107 | EE84: 1 | EF84: 1 | EJ84: 8 | EL84: 10 | EM84: 0 | EN84: 0 | EO84: 3 | EP84: 4 | EQ84: 1 | ER84: 2 | ET84: 10 | EU84: 5 | EW84: 15 | EX84: 10 | EY84: 10 | EZ84: 10 | FI84: 35 | FJ84: 32 | FK84: 35 | FN84: 32 | FQ84: 29 | FV84: 107 | GG84: =IF(Table4[[#This Row],[SF]]=Table4[[#This Row],[School]],1,0) -> 0 | GH84: =IF(Table4[[#This Row],[prgm]]=Table4[[#This Row],[Degree Offered]],1,0) -> 0
A85: 91 | B85: 2000-2001 | C85: Santa Monica College | D85: Public | E85: AD | F85: 1 | G85: 0 | H85: 0 | I85: 1 | J85: 1 | K85: 0 | L85: 0 | M85: Los Angeles | N85: 8 | O85: LA Area | P85: No | Q85: 120 | R85: 120 | U85: 60 | V85: 59 | W85: 1 | X85: 0 | AF85: 65 | AG85: 59 | AI85: 70 | AL85: 80 | AN85: 1 | AO85: 21 | AP85: 26 | AS85: 48 | AY85: 86 | AZ85: 25 | BA85: 13 | BB85: 0 | BC85: 48 | BD85: 86 | BI85: 55 | BJ85: 122 | BK85: 13 | BL85: 0 | BM85: 6 | BN85: 12 | BO85: 6 | BP85: 6 | BQ85: 22 | BR85: 4 | BS85: 0 | BT85: 9 | BU85: 5 | BV85: 7 | BW85: 7 | BX85: 23 | BY85: 20 | BZ85: 2 | CA85: 10 | CB85: 18 | CC85: 18 | CD85: 10 | CE85: 44 | CF85: 48 | CG85: 112 | CH85: 49 | CI85: 10 | CK85: 41 | CL85: 7 | CN85: 96 | CO85: 16 | CP85: 59 | CQ85: 48 | CR85: 112 | DG85: 19 | DH85: 9 | DI85: 28 | DJ85: 26 | DK85: 20 | DL85: 55 | DM85: 13 | DN85: 18 | DO85: 19 | DP85: 1 | DQ85: 1 | DR85: 9 | DS85: 0 | DT85: 0 | DU85: 1 | DZ85: 94 | EA85: 18 | EB85: 0 | ED85: 112 | EG85: 3 | EJ85: 13 | EL85: 15 | EM85: 1 | EN85: 0 | EO85: 3 | EP85: 4 | EQ85: 6 | ER85: 3 | ET85: 9 | EU85: 7 | EW85: 16 | EX85: 16 | EY85: 16 | EZ85: 16 | FI85: 48 | FJ85: 43 | FK85: 48 | FN85: 43 | FQ85: 48 | FV85: 112 | GG85: =IF(Table4[[#This Row],[SF]]=Table4[[#This Row],[School]],1,0) -> 0 | GH85: =IF(Table4[[#This Row],[prgm]]=Table4[[#This Row],[Degree Offered]],1,0) -> 0
A86: 92 | B86: 2000-2001 | C86: Santa Rosa Junior College | D86: Public | E86: AD | F86: 1 | G86: 0 | H86: 0 | I86: 1 | J86: 1 | K86: 0 | L86: 0 | M86: Sonoma | N86: 4 | O86: Inland Empire | P86: No | Q86: 74 | R86: 74 | U86: 60 | V86: 56 | W86: 4 | X86: 0 | AF86: 59 | AG86: 59 | AI86: 59 | AL86: 60 | AN86: 0 | AO86: 9 | AP86: 46 | AS86: 55 | AY86: 66 | AZ86: 56 | BA86: 2 | BB86: 0 | BC86: 8 | BD86: 66 | BI86: 56 | BJ86: 116 | BK86: 1 | BL86: 0 | BM86: 1 | BN86: 3 | BO86: 53 | BP86: 1 | BQ86: 0 | BR86: 1 | BS86: 0 | BT86: 0 | BU86: 1 | BV86: 52 | BW86: 2 | BX86: 0 | BY86: 8 | BZ86: 0 | CA86: 1 | CB86: 4 | CC86: 99 | CD86: 3 | CE86: 1 | CF86: 56 | CG86: 116 | CH86: 52 | CI86: 7 | CK86: 45 | CL86: 11 | CN86: 105 | CO86: 11 | CP86: 59 | CQ86: 56 | CR86: 116 | DG86: 15 | DH86: 10 | DI86: 23 | DJ86: 27 | DK86: 23 | DL86: 56 | DM86: 11 | DN86: 16 | DO86: 20 | DP86: 6 | DQ86: 6 | DR86: 16 | DS86: 0 | DT86: 1 | DU86: 1 | DZ86: 164 | EA86: 9 | EB86: 0 | ED86: 173 | EE86: 0 | EF86: 1 | EG86: 0 | EH86: 0 | EI86: 0 | EJ86: 16 | EK86: 0 | EL86: 15 | EM86: 2 | EN86: 0 | EO86: 1 | EP86: 8 | EQ86: 7 | ER86: 1 | ES86: 17 | ET86: 7 | EU86: 10 | EW86: 17 | EX86: 34 | EY86: 17 | EZ86: 17 | FI86: 50 | FJ86: 46 | FK86: 50 | FN86: 46 | FQ86: 55 | FV86: 173 | GG86: =IF(Table4[[#This Row],[SF]]=Table4[[#This Row],[School]],1,0) -> 0 | GH86: =IF(Table4[[#This Row],[prgm]]=Table4[[#This Row],[Degree Offered]],1,0) -> 0
A87: 93 | B87: 2000-2001 | C87: Shasta College | D87: Public | E87: AD | F87: 1 | G87: 0 | H87: 0 | I87: 1 | J87: 1 | K87: 0 | L87: 0 | M87: Shasta | N87: 2 | O87: LA Area | P87: No | Q87: 120 | R87: 120 | U87: 40 | V87: 40 | W87: 0 | X87: 1 | Y87: 1 | Z87: 1 | AA87: 1 | AB87: 1 | AE87: 1 | AF87: 40 | AG87: 40 | AI87: 40 | AL87: 40 | AN87: 1 | AO87: 9 | AP87: 50 | AS87: 60 | AY87: 40 | AZ87: 34 | BA87: 0 | BB87: 0 | BC87: 6 | BD87: 40 | BI87: 60 | BJ87: 65 | BK87: 0 | BL87: 0 | BM87: 0 | BN87: 0 | BO87: 38 | BP87: 1 | BQ87: 1 | BR87: 0 | BS87: 0 | BT87: 0 | BU87: 0 | BV87: 58 | BW87: 1 | BX87: 1 | BY87: 0 | BZ87: 2 | CA87: 0 | CB87: 0 | CC87: 58 | CD87: 2 | CE87: 3 | CF87: 60 | CG87: 65 | CH87: 33 | CI87: 7 | CK87: 52 | CL87: 8 | CN87: 55 | CO87: 10 | CP87: 40 | CQ87: 60 | CR87: 65 | DG87: 15 | DH87: 12 | DI87: 21 | DJ87: 6 | DK87: 26 | DL87: 19 | DM87: 13 | DN87: 19 | DO87: 20 | DP87: 6 | DQ87: 3 | DR87: 5 | DS87: 0 | DT87: 0 | DU87: 0 | DZ87: 52 | EA87: 13 | EB87: 0 | ED87: 65 | EG87: 1 | EJ87: 9 | EL87: 8 | EM87: 2 | EN87: 0 | EO87: 4 | EP87: 4 | EQ87: 2 | ER87: 0 | ET87: 9 | EU87: 1 | EW87: 10 | EX87: 10 | EY87: 10 | EZ87: 10 | FI87: 47 | FJ87: 39 | FK87: 47 | FN87: 39 | FQ87: 60 | FV87: 65 | GG87: =IF(Table4[[#This Row],[SF]]=Table4[[#This Row],[School]],1,0) -> 0 | GH87: =IF(Table4[[#This Row],[prgm]]=Table4[[#This Row],[Degree Offered]],1,0) -> 0
A88: 94 | B88: 2000-2001 | C88: Sierra College | D88: Public | E88: AD | F88: 1 | G88: 0 | H88: 0 | I88: 1 | J88: 1 | K88: 0 | L88: 0 | M88: Placer | N88: 3 | O88: LA Area | P88: No | Q88: 56 | R88: 56 | U88: 33 | V88: 33 | W88: 0 | X88: 1 | Y88: 1 | AA88: 1 | AB88: 1 | AE88: 1 | AF88: 32 | AG88: 32 | AI88: 33 | AL88: 33 | AN88: 0 | AO88: 11 | AP88: 22 | AS88: 33 | AY88: 38 | AZ88: 29 | BA88: 4 | BB88: 0 | BC88: 5 | BD88: 38 | BI88: 33 | BJ88: 90 | BK88: 2 | BM88: 1 | BO88: 24 | BP88: 1 | BQ88: 4 | BV88: 31 | BW88: 2 | BY88: 3 | CA88: 2 | CB88: 3 | CC88: 73 | CD88: 5 | CE88: 4 | CF88: 33 | CG88: 90 | CH88: 31 | CI88: 1 | CK88: 32 | CL88: 1 | CN88: 86 | CO88: 4 | CP88: 32 | CQ88: 33 | CR88: 90 | DG88: 8 | DH88: 4 | DI88: 8 | DJ88: 14 | DK88: 12 | DL88: 37 | DM88: 8 | DN88: 12 | DO88: 38 | DP88: 2 | DQ88: 4 | DR88: 7 | DS88: 0 | DT88: 1 | DU88: 0 | DZ88: 62 | EA88: 28 | EB88: 0 | ED88: 90 | EJ88: 11 | EL88: 10 | EM88: 1 | EN88: 0 | EO88: 3 | EP88: 5 | EQ88: 2 | ER88: 1 | ET88: 4 | EU88: 7 | EW88: 11 | EX88: 11 | EY88: 11 | EZ88: 11 | FI88: 33 | FJ88: 31 | FK88: 33 | FN88: 31 | FQ88: 33 | FV88: 90 | GG88: =IF(Table4[[#This Row],[SF]]=Table4[[#This Row],[School]],1,0) -> 0 | GH88: =IF(Table4[[#This Row],[prgm]]=Table4[[#This Row],[Degree Offered]],1,0) -> 0
A89: 95 | B89: 2000-2001 | C89: Solano Community College | D89: Public | E89: AD | F89: 1 | G89: 0 | H89: 0 | I89: 1 | J89: 1 | K89: 0 | L89: 0 | M89: Solano | N89: 4 | O89: Bay Area | P89: No | Q89: 65 | R89: 65 | U89: 48 | V89: 42 | W89: 6 | X89: 1 | Z89: 1 | AB89: 1 | AE89: 1 | AF89: 39 | AG89: 39 | AI89: 48 | AL89: 48 | AN89: 0 | AO89: 0 | AP89: 27 | AS89: 27 | AY89: 74 | AZ89: 27 | BA89: 2 | BB89: 0 | BC89: 45 | BD89: 74 | BI89: 27 | BJ89: 66 | BK89: 6 | BL89: 0 | BM89: 7 | BN89: 0 | BO89: 18 | BP89: 7 | BQ89: 1 | BR89: 2 | BS89: 0 | BT89: 11 | BU89: 0 | BV89: 10 | BW89: 4 | BX89: 0 | BY89: 8 | BZ89: 0 | CA89: 12 | CB89: 4 | CC89: 32 | CD89: 8 | CE89: 2 | CF89: 27 | CG89: 66 | CH89: 33 | CI89: 6 | CK89: 23 | CL89: 4 | CN89: 54 | CO89: 12 | CP89: 39 | CQ89: 27 | CR89: 65 | DG89: 7 | DH89: 3 | DI89: 18 | DJ89: 18 | DK89: 12 | DL89: 29 | DM89: 10 | DN89: 12 | DO89: 10 | DP89: 4 | DQ89: 0 | DR89: 8 | DS89: 0 | DT89: 0 | DU89: 0 | DV89: 0 | DW89: 0 | DX89: 0 | DZ89: 66 | EA89: 0 | EB89: 0 | ED89: 66 | EG89: 2 | EJ89: 8 | EL89: 10 | EN89: 0 | EO89: 0 | EP89: 7 | EQ89: 3 | ER89: 0 | ET89: 8 | EU89: 2 | EW89: 10 | EX89: 10 | EY89: 10 | EZ89: 10 | FI89: 34 | FJ89: 30 | FK89: 34 | FN89: 30 | FQ89: 27 | FV89: 66 | GG89: =IF(Table4[[#This Row],[SF]]=Table4[[#This Row],[School]],1,0) -> 0 | GH89: =IF(Table4[[#This Row],[prgm]]=Table4[[#This Row],[Degree Offered]],1,0) -> 0
A90: 96 | B90: 2000-2001 | C90: Sonoma State University | D90: Public | E90: BSN | F90: 0 | G90: 1 | H90: 0 | I90: 1 | J90: 0 | K90: 1 | L90: 0 | M90: Sonoma | N90: 4 | O90: Southern Border | P90: No | Q90: 43 | S90: 43 | U90: 36 | V90: 31 | W90: 5 | X90: 1 | Y90: 1 | Z90: 1 | AA90: 1 | AB90: 1 | AE90: 1 | AF90: 31 | AG90: 31 | AI90: 36 | AL90: 36 | AN90: 0 | AO90: 1 | AP90: 23 | AS90: 24 | AY90: 27 | AZ90: 24 | BA90: 2 | BB90: 0 | BC90: 1 | BD90: 27 | BI90: 24 | BJ90: 90 | BK90: 0 | BL90: 0 | BM90: 1 | BN90: 2 | BO90: 21 | BP90: 4 | BQ90: 3 | BR90: 1 | BS90: 0 | BT90: 1 | BU90: 1 | BV90: 16 | BW90: 3 | BX90: 2 | BY90: 1 | BZ90: 1 | CA90: 3 | CB90: 6 | CC90: 62 | CD90: 8 | CE90: 9 | CF90: 24 | CG90: 90 | CH90: 30 | CI90: 1 | CK90: 22 | CL90: 2 | CN90: 86 | CO90: 4 | CP90: 31 | CQ90: 24 | CR90: 90 | DG90: 25 | DH90: 9 | DI90: 61 | DJ90: 4 | DK90: 9 | DL90: 15 | DM90: 2 | DN90: 4 | DO90: 7 | DQ90: 2 | DR90: 7 | DZ90: 90 | EA90: 6 | EB90: 1 | ED90: 97 | EE90: 1 | EJ90: 16 | EL90: 14 | EM90: 3 | EP90: 8 | EQ90: 8 | ER90: 1 | ET90: 7 | EU90: 10 | EW90: 17 | EX90: 17 | EY90: 17 | EZ90: 17 | FI90: 31 | FJ90: 24 | FL90: 31 | FO90: 24 | FR90: 24 | FW90: 97 | GG90: =IF(Table4[[#This Row],[SF]]=Table4[[#This Row],[School]],1,0) -> 0 | GH90: =IF(Table4[[#This Row],[prgm]]=Table4[[#This Row],[Degree Offered]],1,0) -> 0
A91: 97 | B91: 2000-2001 | C91: Southwestern College | D91: Public | E91: AD | F91: 1 | G91: 0 | H91: 0 | I91: 1 | J91: 1 | K91: 0 | L91: 0 | M91: San Diego | N91: 10 | O91: Bay Area | P91: No | Q91: 65 | R91: 65 | U91: 30 | V91: 30 | W91: 0 | X91: 1 | Z91: 1 | AA91: 1 | AB91: 1 | AE91: 1 | AF91: 30 | AG91: 30 | AI91: 30 | AL91: 30 | AN91: 0 | AO91: 5 | AP91: 21 | AS91: 26 | AY91: 40 | AZ91: 26 | BA91: 7 | BB91: 0 | BC91: 7 | BD91: 40 | BI91: 26 | BJ91: 70 | BK91: 0 | BL91: 0 | BM91: 14 | BN91: 4 | BO91: 5 | BP91: 7 | BQ91: 0 | BR91: 4 | BS91: 0 | BT91: 12 | BU91: 0 | BV91: 4 | BW91: 6 | BX91: 0 | BY91: 2 | BZ91: 0 | CA91: 28 | CB91: 8 | CC91: 13 | CD91: 19 | CE91: 0 | CF91: 26 | CG91: 70 | CH91: 26 | CI91: 4 | CK91: 24 | CL91: 2 | CN91: 56 | CO91: 14 | CP91: 30 | CQ91: 26 | CR91: 70 | DG91: 14 | DH91: 9 | DI91: 26 | DJ91: 9 | DK91: 13 | DL91: 23 | DM91: 5 | DN91: 4 | DO91: 15 | DP91: 2 | DQ91: 0 | DR91: 6 | DZ91: 56 | EA91: 14 | EB91: 0 | ED91: 70 | EE91: 0 | EF91: 0 | EG91: 2 | EH91: 2 | EI91: 0 | EJ91: 4 | EL91: 7 | EM91: 1 | EN91: 0 | EO91: 2 | EP91: 3 | EQ91: 3 | ER91: 0 | ET91: 6 | EU91: 4 | EW91: 10 | EX91: 8 | EY91: 8 | EZ91: 8 | FI91: 35 | FJ91: 20 | FK91: 35 | FN91: 20 | FQ91: 26 | FV91: 70 | GG91: =IF(Table4[[#This Row],[SF]]=Table4[[#This Row],[School]],1,0) -> 0 | GH91: =IF(Table4[[#This Row],[prgm]]=Table4[[#This Row],[Degree Offered]],1,0) -> 0
A92: 88 | B92: 2000-2001 | C92: The Valley Foundation School of Nursing at San Jose State | D92: Public | E92: BSN | F92: 0 | G92: 1 | H92: 0 | I92: 1 | J92: 0 | K92: 1 | L92: 0 | M92: Santa Clara | N92: 4 | O92: Bay Area | P92: Yes | Q92: 160 | S92: 160 | U92: 190 | V92: 133 | W92: 57 | X92: 1 | Y92: 1 | Z92: 1 | AA92: 1 | AF92: 133 | AG92: 133 | AI92: 160 | AL92: 160 | AN92: 0 | AO92: 5 | AP92: 67 | AS92: 72 | AY92: 100 | AZ92: 48 | BA92: 17 | BB92: 0 | BC92: 35 | BD92: 100 | BI92: 72 | BJ92: 366 | BK92: 8 | BL92: 1 | BM92: 44 | BN92: 18 | BO92: 24 | BP92: 17 | BQ92: 21 | BR92: 3 | BS92: 0 | BT92: 12 | BU92: 19 | BV92: 22 | BW92: 6 | BX92: 10 | BY92: 12 | BZ92: 3 | CA92: 68 | CB92: 53 | CC92: 59 | CD92: 36 | CE92: 135 | CF92: 72 | CG92: 366 | CH92: 125 | CI92: 8 | CK92: 67 | CL92: 5 | CN92: 338 | CO92: 28 | CP92: 133 | CQ92: 72 | CR92: 366 | DG92: 89 | DH92: 15 | DI92: 150 | DJ92: 27 | DK92: 43 | DL92: 88 | DM92: 10 | DN92: 9 | DO92: 20 | DP92: 0 | DQ92: 4 | DR92: 6 | DS92: 0 | DT92: 0 | DU92: 0 | DV92: 7 | DW92: 1 | DX92: 102 | DZ92: 342 | EA92: 24 | EB92: 0 | ED92: 366 | EE92: 0 | EF92: 3 | EG92: 2 | EH92: 1 | EI92: 0 | EJ92: 30 | EK92: 0 | EL92: 35 | EM92: 1 | EN92: 0 | EO92: 1 | EP92: 8 | EQ92: 14 | ER92: 13 | ES92: 0 | ET92: 22 | EU92: 14 | EW92: 36 | EX92: 36 | EY92: 36 | EZ92: 36 | FI92: 79 | FJ92: 61 | FL92: 79 | FO92: 61 | FR92: 72 | FW92: 366 | GG92: =IF(Table4[[#This Row],[SF]]=Table4[[#This Row],[School]],1,0) -> 0 | GH92: =IF(Table4[[#This Row],[prgm]]=Table4[[#This Row],[Degree Offered]],1,0) -> 0
A93: 99 | B93: 2000-2001 | C93: University of California San Francisco | D93: Public | E93: ELM | F93: 0 | G93: 0 | H93: 1 | I93: 1 | J93: 0 | K93: 0 | L93: 1 | M93: San Francisco | N93: 4 | O93: Southern Border | P93: Yes | Q93: 187 | T93: 187 | U93: 60 | V93: 60 | W93: 0 | X93: 1 | Y93: 1 | Z93: 1 | AA93: 1 | AF93: 59 | AG93: 59 | AI93: 60 | AL93: 60 | AN93: 0 | AO93: 0 | AP93: 55 | AS93: 55 | AY93: 58 | AZ93: 55 | BA93: 1 | BB93: 0 | BC93: 2 | BD93: 58 | BI93: 55 | BJ93: 59 | BK93: 1 | BL93: 0 | BM93: 6 | BN93: 4 | BO93: 42 | BP93: 6 | BQ93: 0 | BR93: 1 | BS93: 0 | BT93: 3 | BU93: 8 | BV93: 39 | BW93: 4 | BX93: 0 | BY93: 1 | BZ93: 0 | CA93: 6 | CB93: 4 | CC93: 42 | CD93: 6 | CE93: 0 | CF93: 55 | CG93: 59 | CH93: 54 | CI93: 5 | CK93: 50 | CL93: 5 | CN93: 54 | CO93: 5 | CP93: 59 | CQ93: 55 | CR93: 59 | DG93: 22 | DH93: 13 | DI93: 22 | DJ93: 32 | DK93: 39 | DL93: 32 | DM93: 2 | DN93: 2 | DO93: 2 | DP93: 3 | DQ93: 1 | DR93: 3 | DS93: 0 | DT93: 0 | DU93: 0 | DV93: 0 | DW93: 0 | DX93: 0 | DZ93: 59 | EA93: 0 | EB93: 0 | ED93: 59 | EE93: 0 | EF93: 1 | EG93: 0 | EH93: 1 | EI93: 1 | EJ93: 36 | EK93: 0 | EL93: 36 | EM93: 3 | EN93: 1 | EO93: 16 | EP93: 13 | EQ93: 9 | ER93: 0 | ES93: 0 | ET93: 8 | EU93: 31 | EW93: 39 | EX93: 39 | EY93: 39 | EZ93: 39 | FI93: 30 | FJ93: 28 | FM93: 30 | FP93: 28 | FS93: 55 | FX93: 59 | GG93: =IF(Table4[[#This Row],[SF]]=Table4[[#This Row],[School]],1,0) -> 0 | GH93: =IF(Table4[[#This Row],[prgm]]=Table4[[#This Row],[Degree Offered]],1,0) -> 0
A94: 101 | B94: 2000-2001 | C94: University of San Francisco | D94: Private | E94: BSN | F94: 0 | G94: 1 | H94: 0 | I94: 0 | J94: 0 | K94: 0 | L94: 0 | M94: San Francisco | N94: 4 | O94: LA Area | P94: Yes | Q94: 233 | S94: 233 | U94: 120 | V94: 94 | W94: 26 | X94: 0 | AF94: 94 | AG94: 94 | AI94: 96 | AL94: 101 | AN94: 0 | AO94: 0 | AP94: 64 | AS94: 64 | AY94: 305 | AZ94: 234 | BA94: 44 | BB94: 0 | BC94: 27 | BD94: 305 | BI94: 64 | BJ94: 296 | BK94: 2 | BL94: 1 | BM94: 6 | BN94: 40 | BO94: 38 | BP94: 6 | BQ94: 1 | BR94: 1 | BS94: 1 | BT94: 6 | BU94: 18 | BV94: 27 | BW94: 10 | BX94: 1 | BY94: 5 | BZ94: 3 | CA94: 10 | CB94: 143 | CC94: 97 | CD94: 36 | CE94: 2 | CF94: 64 | CG94: 296 | CH94: 85 | CI94: 9 | CK94: 59 | CL94: 5 | CN94: 271 | CO94: 25 | CP94: 94 | CQ94: 64 | CR94: 296 | DG94: 73 | DH94: 46 | DI94: 265 | DJ94: 18 | DK94: 14 | DL94: 23 | DM94: 3 | DN94: 3 | DO94: 6 | DQ94: 1 | DR94: 2 | DZ94: 291 | EA94: 5 | EB94: 0 | ED94: 296 | EE94: 1 | EF94: 1 | EG94: 1 | EH94: 1 | EJ94: 33 | EL94: 34 | EM94: 3 | EN94: 1 | EO94: 6 | EP94: 11 | EQ94: 11 | ER94: 8 | ET94: 22 | EU94: 15 | EW94: 37 | EX94: 37 | EY94: 37 | EZ94: 37 | FI94: 94 | FJ94: 74 | FL94: 94 | FO94: 74 | FR94: 64 | FW94: 296 | GG94: =IF(Table4[[#This Row],[SF]]=Table4[[#This Row],[School]],1,0) -> 0 | GH94: =IF(Table4[[#This Row],[prgm]]=Table4[[#This Row],[Degree Offered]],1,0) -> 0
A95: 101 | B95: 2000-2001 | C95: University of San Francisco | D95: Private | E95: ELM | F95: 0 | G95: 0 | H95: 1 | I95: 0 | J95: 0 | K95: 0 | L95: 0 | M95: San Francisco | N95: 4 | O95: Southern Border | P95: Yes | Q95: 52 | T95: 52 | U95: 30 | V95: 25 | W95: 5 | X95: 0 | AF95: 25 | AG95: 25 | AI95: 25 | AL95: 25 | AS95: 0 | AY95: 57 | AZ95: 53 | BA95: 4 | BB95: 0 | BC95: 0 | BD95: 57 | BI95: 0 | BJ95: 57 | BK95: 1 | BL95: 0 | BM95: 2 | BN95: 7 | BO95: 12 | BP95: 2 | BQ95: 1 | BR95: 0 | BS95: 0 | BT95: 0 | BU95: 0 | BV95: 0 | BW95: 0 | BX95: 0 | BY95: 4 | BZ95: 0 | CA95: 2 | CB95: 13 | CC95: 36 | CD95: 2 | CE95: 0 | CF95: 0 | CG95: 60 | CH95: 23 | CI95: 2 | CK95: 0 | CL95: 0 | CN95: 57 | CO95: 3 | CP95: 25 | CQ95: 0 | CR95: 57 | DG95: 11 | DH95: 0 | DI95: 22 | DJ95: 14 | DK95: 0 | DL95: 31 | DM95: 0 | DN95: 0 | DO95: 3 | DP95: 0 | DQ95: 0 | DR95: 1 | DS95: 0 | DT95: 0 | DU95: 0 | DV95: 0 | DW95: 0 | DX95: 0 | ED95: 0 | EW95: 0 | EX95: 0 | EY95: 0 | EZ95: 0 | FS95: 0 | FX95: 0 | GG95: =IF(Table4[[#This Row],[SF]]=Table4[[#This Row],[School]],1,0) -> 0 | GH95: =IF(Table4[[#This Row],[prgm]]=Table4[[#This Row],[Degree Offered]],1,0) -> 0
A96: 104 | B96: 2000-2001 | C96: University of Southern California | D96: Private | E96: BSN | F96: 0 | G96: 1 | H96: 0 | I96: 0 | J96: 0 | K96: 0 | L96: 0 | M96: Los Angeles | N96: 8 | O96: San Joaquin Valley | P96: No | Q96: 84 | S96: 84 | U96: 90 | V96: 87 | W96: 3 | X96: 1 | Y96: 1 | Z96: 1 | AB96: 1 | AE96: 1 | AF96: 87 | AG96: 87 | AI96: 50 | AL96: 0 | AN96: 0 | AO96: 0 | AP96: 95 | AS96: 95 | AY96: 125 | AZ96: 95 | BA96: 27 | BB96: 0 | BC96: 3 | BD96: 125 | BI96: 95 | BJ96: 163 | BK96: 4 | BL96: 0 | BM96: 0 | BN96: 9 | BO96: 40 | BP96: 21 | BQ96: 13 | BR96: 4 | BS96: 1 | BT96: 0 | BU96: 16 | BV96: 37 | BW96: 25 | BX96: 12 | BY96: 17 | BZ96: 0 | CA96: 0 | CB96: 21 | CC96: 59 | CD96: 42 | CE96: 24 | CF96: 95 | CG96: 163 | CH96: 76 | CI96: 11 | CK96: 78 | CL96: 17 | CN96: 149 | CO96: 14 | CP96: 87 | CQ96: 95 | CR96: 163 | DV96: 87 | DW96: 95 | DX96: 163 | DZ96: 77 | EA96: 86 | EB96: 0 | ED96: 163 | EE96: 0 | EF96: 0 | EG96: 3 | EH96: 0 | EI96: 3 | EJ96: 16 | EK96: 0 | EL96: 21 | EM96: 1 | EN96: 0 | EO96: 1 | EP96: 5 | EQ96: 13 | ER96: 3 | ET96: 17 | EU96: 5 | EW96: 22 | EX96: 22 | EY96: 22 | EZ96: 22 | FI96: 97 | FJ96: 74 | FL96: 97 | FO96: 74 | FR96: 95 | FW96: 163 | GG96: =IF(Table4[[#This Row],[SF]]=Table4[[#This Row],[School]],1,0) -> 0 | GH96: =IF(Table4[[#This Row],[prgm]]=Table4[[#This Row],[Degree Offered]],1,0) -> 0
A97: 102 | B97: 2000-2001 | C97: Ventura College | D97: Public | E97: AD | F97: 1 | G97: 0 | H97: 0 | I97: 1 | J97: 1 | K97: 0 | L97: 0 | M97: Ventura | N97: 8 | O97: San Joaquin Valley | P97: No | Q97: 197 | R97: 197 | U97: 96 | V97: 96 | W97: 0 | X97: 1 | Z97: 1 | AB97: 1 | AE97: 1 | AF97: 77 | AG97: 77 | AI97: 96 | AL97: 96 | AN97: 2 | AO97: 19 | AP97: 45 | AS97: 66 | AY97: 96 | AZ97: 66 | BA97: 16 | BB97: 0 | BC97: 14 | BD97: 96 | BI97: 66 | BJ97: 144 | BK97: 3 | BM97: 9 | BN97: 1 | BO97: 39 | BP97: 21 | BQ97: 4 | BR97: 3 | BT97: 8 | BU97: 3 | BV97: 40 | BW97: 11 | BX97: 1 | BY97: 5 | CA97: 24 | CB97: 5 | CC97: 69 | CD97: 37 | CE97: 4 | CF97: 66 | CG97: 144 | CH97: 67 | CI97: 10 | CK97: 58 | CL97: 8 | CN97: 124 | CO97: 20 | CP97: 77 | CQ97: 66 | CR97: 144 | DV97: 77 | DW97: 66 | DX97: 144 | DZ97: 120 | EA97: 19 | EB97: 4 | ED97: 143 | EE97: 0 | EF97: 0 | EG97: 0 | EH97: 0 | EI97: 0 | EJ97: 19 | EK97: 0 | EL97: 19 | EM97: 0 | EN97: 0 | EO97: 0 | EP97: 8 | EQ97: 11 | ER97: 0 | ES97: 0 | ET97: 10 | EU97: 9 | EW97: 19 | EX97: 19 | EY97: 19 | EZ97: 19 | FI97: 69 | FJ97: 61 | FK97: 69 | FN97: 61 | FQ97: 66 | FV97: 143 | GG97: =IF(Table4[[#This Row],[SF]]=Table4[[#This Row],[School]],1,0) -> 0 | GH97: =IF(Table4[[#This Row],[prgm]]=Table4[[#This Row],[Degree Offered]],1,0) -> 0
A98: 103 | B98: 2000-2001 | C98: Victor Valley College | D98: Public | E98: AD | F98: 1 | G98: 0 | H98: 0 | I98: 1 | J98: 1 | K98: 0 | L98: 0 | M98: San Bernardino | N98: 9 | O98: LA Area | P98: No | Q98: 74 | R98: 74 | U98: 74 | V98: 71 | W98: 3 | X98: 1 | Y98: 1 | Z98: 1 | AA98: 1 | AE98: 1 | AF98: 71 | AG98: 71 | AI98: 77 | AL98: 76 | AN98: 0 | AO98: 5 | AP98: 28 | AS98: 33 | AY98: 44 | AZ98: 32 | BA98: 7 | BB98: 0 | BC98: 5 | BD98: 44 | BI98: 33 | BJ98: 142 | BK98: 9 | BL98: 2 | BM98: 5 | BN98: 1 | BO98: 32 | BP98: 21 | BQ98: 1 | BR98: 0 | BS98: 0 | BT98: 1 | BU98: 1 | BV98: 25 | BW98: 6 | BX98: 0 | BY98: 15 | BZ98: 5 | CA98: 8 | CB98: 2 | CC98: 75 | CD98: 34 | CE98: 3 | CF98: 33 | CG98: 142 | CH98: 64 | CI98: 7 | CK98: 25 | CL98: 8 | CN98: 127 | CO98: 15 | CP98: 71 | CQ98: 33 | CR98: 142 | DG98: 29 | DH98: 6 | DI98: 51 | DJ98: 23 | DK98: 14 | DL98: 51 | DM98: 16 | DN98: 12 | DO98: 29 | DP98: 3 | DQ98: 1 | DR98: 11 | DS98: 0 | DT98: 0 | DU98: 0 | DV98: 0 | DW98: 0 | DX98: 0 | DZ98: 115 | EA98: 27 | EB98: 0 | ED98: 142 | EE98: 0 | EF98: 0 | EG98: 1 | EH98: 3 | EI98: 5 | EJ98: 15 | EK98: 0 | EL98: 20 | EM98: 4 | EN98: 0 | EO98: 10 | EP98: 10 | EQ98: 3 | ER98: 1 | ES98: 0 | ET98: 8 | EU98: 16 | EW98: 24 | EX98: 24 | EY98: 24 | EZ98: 24 | FI98: 25 | FJ98: 15 | FK98: 25 | FN98: 15 | FQ98: 33 | FV98: 142 | GG98: =IF(Table4[[#This Row],[SF]]=Table4[[#This Row],[School]],1,0) -> 0 | GH98: =IF(Table4[[#This Row],[prgm]]=Table4[[#This Row],[Degree Offered]],1,0) -> 0
A99: 106 | B99: 2000-2001 | C99: Yuba College | D99: Public | E99: AD | F99: 1 | G99: 0 | H99: 0 | I99: 1 | J99: 1 | K99: 0 | L99: 0 | M99: Yuba | N99: 3 | O99: Inland Empire | P99: No | Q99: 60 | R99: 60 | U99: 40 | V99: 40 | W99: 0 | X99: 1 | Y99: 1 | Z99: 1 | AA99: 1 | AF99: 30 | AG99: 30 | AI99: 60 | AL99: 60 | AN99: 0 | AO99: 14 | AP99: 26 | AS99: 40 | AY99: 61 | AZ99: 40 | BA99: 3 | BB99: 0 | BC99: 18 | BD99: 61 | BI99: 40 | BJ99: 70 | BK99: 2 | BL99: 1 | BM99: 1 | BN99: 5 | BO99: 18 | BP99: 3 | BQ99: 0 | BR99: 2 | BS99: 3 | BT99: 0 | BU99: 2 | BV99: 30 | BW99: 3 | BX99: 0 | BY99: 3 | BZ99: 2 | CA99: 2 | CB99: 9 | CC99: 45 | CD99: 8 | CE99: 1 | CF99: 40 | CG99: 70 | CH99: 27 | CI99: 3 | CK99: 38 | CL99: 2 | CN99: 64 | CO99: 6 | CP99: 30 | CQ99: 40 | CR99: 70 | DG99: 6 | DH99: 10 | DI99: 14 | DJ99: 14 | DK99: 20 | DL99: 35 | DM99: 9 | DN99: 8 | DO99: 16 | DP99: 1 | DQ99: 2 | DR99: 5 | DS99: 0 | DU99: 0 | DZ99: 52 | EA99: 18 | EB99: 0 | ED99: 70 | EE99: 2 | EJ99: 10 | EL99: 11 | EM99: 1 | EN99: 1 | EO99: 1 | EP99: 4 | EQ99: 6 | ER99: 0 | ET99: 10 | EU99: 1 | EW99: 11 | EX99: 12 | EY99: 12 | EZ99: 12 | FI99: 22 | FJ99: 19 | FK99: 22 | FN99: 19 | FQ99: 40 | FV99: 70 | GG99: =IF(Table4[[#This Row],[SF]]=Table4[[#This Row],[School]],1,0) -> 0 | GH99: =IF(Table4[[#This Row],[prgm]]=Table4[[#This Row],[Degree Offered]],1,0) -> 0
A100: 1 | B100: 2001-2002 | C100: Allan Hancock College | D100: Public | E100: AD | F100: 1 | G100: 0 | H100: 0 | I100: 1 | J100: 1 | K100: 0 | L100: 0 | M100: Santa Barbara | N100: 7 | O100: Greater Sacramento | P100: No | Q100: 20 | R100: 20 | U100: 26 | V100: 20 | W100: 6 | X100: 1 | AC100: 1 | AI100: 26 | AL100: 30 | AN100: 0 | AO100: 0 | AP100: 0 | AS100: 20 | AY100: 21 | AZ100: 20 | BA100: 0 | BB100: 0 | BC100: 1 | BD100: 21 | BI100: 20 | BJ100: 20 | BR100: 1 | BT100: 3 | BV100: 12 | BW100: 4 | BY100: 1 | CA100: 3 | CC100: 12 | CD100: 4 | CF100: 20 | CG100: 20 | CK100: 19 | CL100: 1 | CN100: 19 | CO100: 1 | CP100: 0 | CQ100: 0 | CR100: 20 | DI100: 1 | DL100: 16 | DO100: 3 | DZ100: 0 | EA100: 20 | EB100: 0 | ED100: 20 | EJ100: 4 | EL100: 3 | EM100: 1 | EP100: 3 | ER100: 1 | ET100: 4 | EU100: 0 | EW100: 4 | EX100: 4 | EY100: 4 | EZ100: 4 | FI100: 3 | FJ100: 3 | FK100: 3 | FN100: 3 | FQ100: 20 | FV100: 20 | GG100: =IF(Table4[[#This Row],[SF]]=Table4[[#This Row],[School]],1,0) -> 0 | GH100: =IF(Table4[[#This Row],[prgm]]=Table4[[#This Row],[Degree Offered]],1,0) -> 0
A101: 2 | B101: 2001-2002 | C101: American River College | D101: Public | E101: AD | F101: 1 | G101: 0 | H101: 0 | I101: 1 | J101: 1 | K101: 0 | L101: 0 | M101: Sacramento | N101: 3 | O101: Inland Empire | P101: No | Q101: 227 | R101: 227 | U101: 60 | V101: 60 | W101: 0 | X101: 0 | AF101: =BL101+BN101+BK101+BM101+BP101+BO101+BQ101 -> 60 | AG101: =CI101+CH101 -> 60 | AI101: 80 | AL101: 100 | AN101: 0 | AO101: 0 | AP101: 55 | AS101: 55 | AY101: 60 | AZ101: 55 | BA101: 3 | BB101: 0 | BC101: 2 | BD101: 60 | BE101: 3 | BF101: 2 | BG101: 1 | BI101: 55 | BJ101: 120 | BK101: 3 | BL101: 1 | BM101: 2 | BN101: 4 | BO101: 47 | BP101: 3 | BR101: 2 | BS101: 1 | BT101: 1 | BU101: 3 | BV101: 46 | BW101: 2 | BY101: 2 | BZ101: 0 | CA101: 1 | CB101: 6 | CC101: 110 | CD101: 1 | CF101: 55 | CG101: 56 | CH101: 55 | CI101: 5 | CK101: 51 | CL101: 4 | CN101: 51 | CO101: 5 | CP101: 60 | CQ101: 55 | CR101: 55 | DG101: 5 | DH101: 6 | DI101: 6 | DJ101: 25 | DK101: 22 | DL101: 22 | DM101: 15 | DN101: 12 | DO101: 12 | DP101: 15 | DQ101: 15 | DR101: 15 | DZ101: 115 | EA101: 0 | EB101: 0 | EC101: 0 | ED101: 115 | EE101: 0 | EF101: 0 | EG101: 0 | EH101: 1 | EI101: 0 | EJ101: 11 | EK101: 0 | EL101: 11 | EM101: 1 | EN101: 0 | EO101: 0 | EP101: 2 | EQ101: 7 | ER101: 3 | ES101: 0 | ET101: 12 | EU101: 1 | EV101: 1 | EW101: 13 | EX101: 12 | EY101: 12 | EZ101: 12 | FE101: 0 | FF101: 0 | FI101: 51 | FJ101: 44 | FK101: 51 | FN101: 44 | FQ101: 55 | FV101: 115 | GG101: =IF(Table4[[#This Row],[SF]]=Table4[[#This Row],[School]],1,0) -> 0 | GH101: =IF(Table4[[#This Row],[prgm]]=Table4[[#This Row],[Degree Offered]],1,0) -> 0
A102: 3 | B102: 2001-2002 | C102: Antelope Valley College | D102: Public | E102: AD | F102: 1 | G102: 0 | H102: 0 | I102: 1 | J102: 1 | K102: 0 | L102: 0 | M102: Los Angeles | N102: 8 | O102: Bay Area | P102: No | Q102: 121 | R102: 121 | U102: 120 | V102: 90 | W102: 30 | X102: 1 | Y102: 1 | Z102: 1 | AA102: 1 | AF102: 90 | AG102: 90 | AI102: 129 | AL102: 140 | AN102: 2 | AO102: 1 | AP102: 33 | AS102: 36 | AY102: 79 | AZ102: 27 | BA102: 15 | BB102: 0 | BC102: 37 | BD102: 79 | BE102: 3 | BF102: 2 | BG102: 1 | BI102: 36 | BJ102: 179 | BK102: 8 | BL102: 1 | BM102: 12 | BN102: 5 | BO102: 43 | BP102: 19 | BQ102: 2 | BR102: 7 | BS102: 0 | BT102: 3 | BU102: 1 | BV102: 22 | BW102: 3 | BX102: 0 | BY102: 18 | BZ102: 2 | CA102: 21 | CB102: 9 | CC102: 89 | CD102: 33 | CE102: 7 | CF102: 36 | CG102: 179 | CH102: 77 | CI102: 13 | CK102: 31 | CL102: 5 | CN102: 159 | CO102: 20 | CP102: 90 | CQ102: 36 | CR102: 179 | DG102: 33 | DH102: 2 | DI102: 49 | DJ102: 40 | DK102: 14 | DL102: 71 | DM102: 15 | DN102: 14 | DO102: 49 | DP102: 2 | DQ102: 2 | DR102: 7 | DS102: 0 | DT102: 0 | DU102: 3 | DV102: 0 | DW102: 4 | DX102: 0 | DZ102: 160 | EA102: 19 | EB102: 0 | ED102: 179 | EE102: 2 | EF102: 0 | EG102: 1 | EH102: 2 | EI102: 1 | EJ102: 14 | EK102: 1 | EL102: 20 | EM102: 1 | EN102: 0 | EO102: 2 | EP102: 9 | EQ102: 9 | ER102: 1 | ES102: 0 | ET102: 9 | EU102: 12 | EV102: 0 | EW102: 21 | EX102: 21 | EY102: 21 | EZ102: 21 | FE102: 0 | FF102: 1 | FH102: 1 | FI102: 41 | FJ102: 35 | FK102: 41 | FN102: 35 | FQ102: 36 | FV102: 179 | GG102: =IF(Table4[[#This Row],[SF]]=Table4[[#This Row],[School]],1,0) -> 0 | GH102: =IF(Table4[[#This Row],[prgm]]=Table4[[#This Row],[Degree Offered]],1,0) -> 0
A103: 4 | B103: 2001-2002 | C103: Azusa Pacific University | D103: Private | E103: BSN | F103: 0 | G103: 1 | H103: 0 | I103: 0 | J103: 0 | K103: 0 | L103: 0 | M103: Los Angeles | N103: 8 | O103: Bay Area | P103: No | Q103: 89 | S103: 89 | U103: 100 | V103: 78 | W103: 22 | X103: 0 | AF103: 76 | AG103: 87 | AI103: 100 | AL103: 100 | AN103: 0 | AO103: 1 | AP103: 54 | AS103: 55 | AY103: 75 | AZ103: 54 | BA103: 3 | BB103: 0 | BC103: 18 | BD103: 75 | BI103: 54 | BJ103: 197 | BL103: 1 | BO103: 56 | BP103: 14 | BQ103: 5 | BR103: 2 | BU103: 13 | BV103: 27 | BW103: 10 | BX103: 2 | BY103: 2 | CB103: 29 | CC103: 129 | CD103: 26 | CE103: 11 | CF103: 54 | CG103: 197 | CH103: 82 | CI103: 5 | CK103: 53 | CL103: 1 | CN103: 176 | CO103: 21 | CP103: 87 | CQ103: 54 | CR103: 197 | DG103: 80 | DH103: 38 | DI103: 185 | DJ103: 6 | DK103: 15 | DL103: 9 | DM103: 1 | DN103: 1 | DO103: 2 | DR103: 1 | DZ103: 195 | EA103: 2 | EB103: 0 | ED103: 197 | EE103: 0 | EF103: 0 | EG103: 2 | EH103: 0 | EI103: 1 | EJ103: 34 | EL103: 37 | EM103: 0 | EN103: 0 | EO103: 4 | EP103: 14 | EQ103: 14 | ER103: 5 | ES103: 0 | ET103: 15 | EU103: 22 | EW103: 37 | EX103: 37 | EY103: 37 | EZ103: 37 | FI103: 48 | FJ103: 39 | FL103: 48 | FO103: 39 | FR103: 55 | FW103: 197 | GG103: =IF(Table4[[#This Row],[SF]]=Table4[[#This Row],[School]],1,0) -> 0 | GH103: =IF(Table4[[#This Row],[prgm]]=Table4[[#This Row],[Degree Offered]],1,0) -> 0
A104: 5 | B104: 2001-2002 | C104: Bakersfield College | D104: Public | E104: AD | F104: 1 | G104: 0 | H104: 0 | I104: 1 | J104: 1 | K104: 0 | L104: 0 | M104: Kern | N104: 5 | O104: Inland Empire | P104: No | Q104: 96 | R104: 96 | U104: 70 | V104: 76 | W104: -6 | X104: 0 | AF104: 76 | AG104: 76 | AI104: 80 | AL104: 60 | AN104: 3 | AO104: 12 | AP104: 64 | AS104: 79 | AY104: 107 | AZ104: 61 | BA104: 19 | BB104: 0 | BC104: 27 | BD104: 107 | BE104: 2 | BF104: 3 | BG104: 1 | BI104: 67 | BJ104: 143 | BK104: 7 | BL104: 0 | BM104: 7 | BN104: 2 | BO104: 38 | BP104: 19 | BQ104: 3 | BR104: 2 | BS104: 1 | BT104: 6 | BU104: 0 | BV104: 33 | BW104: 21 | BX104: 4 | BY104: 9 | BZ104: 1 | CA104: 13 | CB104: 2 | CC104: 71 | CD104: 40 | CE104: 7 | CF104: 67 | CG104: 143 | CH104: 66 | CI104: 10 | CK104: 58 | CL104: 9 | CN104: 124 | CO104: 19 | CP104: 76 | CQ104: 67 | CR104: 143 | DG104: 32 | DH104: 28 | DI104: 60 | DJ104: 25 | DK104: 22 | DL104: 47 | DM104: 16 | DN104: 14 | DO104: 30 | DP104: 2 | DQ104: 2 | DR104: 4 | DS104: 0 | DT104: 1 | DU104: 1 | DV104: 1 | DW104: 0 | DX104: 1 | DZ104: 103 | EA104: 43 | EB104: 1 | ED104: 147 | EG104: 1 | EI104: 1 | EJ104: 16 | EL104: 17 | EM104: 1 | EN104: 0 | EO104: 6 | EP104: 3 | EQ104: 8 | ER104: 1 | ET104: 10 | EU104: 8 | EV104: 0 | EW104: 18 | EX104: 18 | EY104: 18 | EZ104: 18 | FE104: 1 | FF104: 1 | FH104: 1 | FI104: 77 | FJ104: 68 | FK104: 77 | FN104: 68 | FQ104: 79 | FV104: 147 | GG104: =IF(Table4[[#This Row],[SF]]=Table4[[#This Row],[School]],1,0) -> 0 | GH104: =IF(Table4[[#This Row],[prgm]]=Table4[[#This Row],[Degree Offered]],1,0) -> 0
A105: 6 | B105: 2001-2002 | C105: Biola University | D105: Private | E105: BSN | F105: 0 | G105: 1 | H105: 0 | I105: 0 | J105: 0 | K105: 0 | L105: 0 | M105: Los Angeles | N105: 8 | O105: Southern Border | P105: No | Q105: 31 | S105: 31 | U105: 30 | V105: 29 | W105: 1 | X105: 1 | Y105: 1 | Z105: 1 | AA105: 1 | AB105: 1 | AF105: 31 | AG105: 31 | AI105: 30 | AL105: 30 | AN105: 0 | AO105: 0 | AP105: 27 | AS105: 27 | AY105: 31 | AZ105: 26 | BA105: 0 | BB105: 0 | BC105: 5 | BD105: 31 | BE105: 1 | BF105: 2 | BG105: 2 | BI105: 27 | BJ105: 82 | BK105: 1 | BL105: 0 | BM105: 1 | BN105: 4 | BO105: 22 | BP105: 3 | BR105: 1 | BS105: 0 | BT105: 0 | BU105: 2 | BV105: 21 | BW105: 3 | BY105: 1 | BZ105: 0 | CA105: 1 | CB105: 10 | CC105: 64 | CD105: 5 | CE105: 1 | CF105: 27 | CG105: 82 | CH105: 30 | CI105: 1 | CK105: 27 | CL105: 0 | CN105: 80 | CO105: 2 | CP105: 31 | CQ105: 27 | CR105: 82 | DG105: 30 | DH105: 24 | DI105: 72 | DJ105: 1 | DK105: 3 | DL105: 10 | DM105: 0 | DN105: 0 | DO105: 0 | DP105: 0 | DQ105: 0 | DR105: 0 | DS105: 0 | DT105: 0 | DU105: 0 | DV105: 0 | DW105: 0 | DX105: 0 | DZ105: 82 | EA105: 0 | EB105: 0 | ED105: 82 | EE105: 0 | EF105: 1 | EG105: 0 | EH105: 0 | EI105: 0 | EJ105: 12 | EK105: 1 | EL105: 13 | EM105: 1 | EN105: 1 | EO105: 1 | EP105: 3 | EQ105: 5 | ER105: 3 | ET105: 7 | EU105: 7 | EV105: 2 | EW105: 14 | EX105: 13 | EY105: 14 | EZ105: 14 | FE105: 0 | FF105: 0 | FI105: 20 | FJ105: 18 | FL105: 20 | FO105: 18 | FR105: 27 | FW105: 82 | GG105: =IF(Table4[[#This Row],[SF]]=Table4[[#This Row],[School]],1,0) -> 0 | GH105: =IF(Table4[[#This Row],[prgm]]=Table4[[#This Row],[Degree Offered]],1,0) -> 0
A106: 61 | B106: 2001-2002 | C106: Brightwood College | D106: Private | E106: AD | F106: 1 | G106: 0 | H106: 0 | I106: 0 | J106: 0 | K106: 0 | L106: 0 | M106: San Diego | N106: 10 | O106: Southern Border | P106: No | Q106: 62 | R106: 62 | U106: 80 | V106: 62 | W106: 18 | X106: 0 | AF106: 62 | AG106: 62 | AI106: 80 | AL106: 80 | AN106: 0 | AO106: 14 | AP106: 79 | AS106: 93 | AZ106: 0 | BA106: 0 | BB106: 0 | BC106: 0 | BI106: 93 | BJ106: 61 | BK106: 3 | BL106: 0 | BM106: 10 | BN106: 4 | BO106: 35 | BP106: 10 | BQ106: 0 | BR106: 4 | BS106: 0 | BT106: 21 | BU106: 4 | BV106: 50 | BW106: 14 | BX106: 0 | BY106: 3 | BZ106: 0 | CA106: 10 | CB106: 6 | CC106: 31 | CD106: 11 | CE106: 0 | CF106: 93 | CG106: 61 | CH106: 56 | CI106: 6 | CK106: 70 | CL106: 23 | CN106: 56 | CO106: 5 | CP106: 62 | CQ106: 93 | CR106: 61 | DG106: 18 | DH106: 27 | DI106: 17 | DJ106: 29 | DK106: 50 | DL106: 31 | DM106: 15 | DN106: 13 | DO106: 12 | DP106: 0 | DQ106: 3 | DR106: 1 | DS106: 0 | DT106: 0 | DU106: 0 | DV106: 0 | DW106: 0 | DX106: 0 | DZ106: 40 | EA106: 20 | EB106: 1 | ED106: 61 | EE106: 0 | EF106: 1 | EG106: 1 | EH106: 0 | EI106: 1 | EJ106: 10 | EK106: 0 | EL106: 12 | EM106: 1 | EN106: 0 | EO106: 2 | EP106: 4 | EQ106: 6 | ER106: 1 | ES106: 0 | ET106: 10 | EU106: 3 | EW106: 13 | EX106: 13 | EY106: 13 | EZ106: 13 | FI106: 94 | FJ106: 70 | FK106: 94 | FN106: 70 | FQ106: 93 | FV106: 61 | GG106: =IF(Table4[[#This Row],[SF]]=Table4[[#This Row],[School]],1,0) -> 0 | GH106: =IF(Table4[[#This Row],[prgm]]=Table4[[#This Row],[Degree Offered]],1,0) -> 0
A107: 7 | B107: 2001-2002 | C107: Butte Community College | D107: Public | E107: AD | F107: 1 | G107: 0 | H107: 0 | I107: 1 | J107: 1 | K107: 0 | L107: 0 | M107: Butte | N107: 2 | O107: Bay Area | P107: No | Q107: 40 | R107: 40 | U107: 40 | V107: 40 | W107: 0 | X107: 1 | AF107: 40 | AG107: 40 | AI107: 30 | AL107: 24 | AN107: 3 | AO107: 20 | AP107: 0 | AS107: 23 | AY107: 25 | AZ107: 20 | BA107: 0 | BB107: 0 | BC107: 5 | BD107: 25 | BI107: 23 | BJ107: 41 | BL107: 3 | BN107: 1 | BO107: 35 | BQ107: 1 | BR107: 1 | BS107: 3 | BV107: 18 | BX107: 1 | BZ107: 3 | CB107: 3 | CC107: 35 | CF107: 20 | CG107: 40 | CH107: 35 | CI107: 5 | CK107: 17 | CL107: 3 | CN107: 35 | CO107: 5 | CP107: 40 | CQ107: 20 | CR107: 0 | DG107: 5 | DH107: 4 | DJ107: 11 | DK107: 7 | DM107: 17 | DN107: 5 | DP107: 7 | DQ107: 4 | DS107: 0 | DT107: 0 | DZ107: 0 | EA107: 37 | EB107: 3 | ED107: 40 | EE107: 0 | EF107: 0 | EG107: 0 | EH107: 0 | EI107: 0 | EJ107: 7 | EK107: 0 | EL107: 5 | EM107: 2 | EP107: 4 | EQ107: 3 | ET107: 4 | EU107: 3 | EW107: 7 | EX107: 7 | EY107: 7 | EZ107: 7 | FI107: 21 | FJ107: 20 | FK107: 21 | FN107: 20 | FQ107: 23 | FV107: 40 | GG107: =IF(Table4[[#This Row],[SF]]=Table4[[#This Row],[School]],1,0) -> 0 | GH107: =IF(Table4[[#This Row],[prgm]]=Table4[[#This Row],[Degree Offered]],1,0) -> 0
A108: 8 | B108: 2001-2002 | C108: Cabrillo Community College | D108: Public | E108: AD | F108: 1 | G108: 0 | H108: 0 | I108: 1 | J108: 1 | K108: 0 | L108: 0 | M108: Santa Cruz | N108: 4 | O108: Bay Area | P108: No | Q108: 43 | R108: 43 | U108: 42 | V108: 42 | W108: 0 | X108: 1 | Y108: 0 | AA108: 1 | AF108: 43 | AG108: 43 | AI108: 52 | AL108: 42 | AN108: 0 | AO108: 0 | AP108: 36 | AS108: 36 | AY108: 42 | AZ108: 36 | BA108: 0 | BB108: 0 | BC108: 6 | BD108: 42 | BI108: 35 | BJ108: 168 | BK108: 1 | BL108: 0 | BM108: 0 | BN108: 3 | BO108: 34 | BP108: 5 | BQ108: 0 | BR108: 1 | BS108: 1 | BT108: 0 | BU108: 0 | BV108: 22 | BW108: 10 | BX108: 1 | BY108: 0 | BZ108: 1 | CA108: 0 | CB108: 8 | CC108: 63 | CD108: 12 | CE108: 84 | CF108: 35 | CG108: 84 | CH108: 37 | CI108: 6 | CK108: 32 | CL108: 3 | CN108: 72 | CO108: 12 | CP108: 40 | CQ108: 35 | CR108: 84 | DG108: 6 | DH108: 5 | DI108: 26 | DJ108: 22 | DK108: 19 | DL108: 37 | DM108: 7 | DN108: 7 | DO108: 14 | DP108: 5 | DQ108: 4 | DR108: 6 | DS108: 0 | DT108: 0 | DU108: 1 | DZ108: 35 | EA108: 0 | EB108: 0 | ED108: 35 | EF108: 1 | EJ108: 16 | EL108: 16 | EM108: 1 | EN108: 0 | EO108: 0 | EP108: 12 | EQ108: 3 | ER108: 2 | ES108: 0 | ET108: 11 | EU108: 6 | EW108: 17 | EX108: 17 | EY108: 17 | EZ108: 17 | FI108: 40 | FJ108: 35 | FK108: 40 | FN108: 35 | FQ108: 36 | FV108: 35 | GG108: =IF(Table4[[#This Row],[SF]]=Table4[[#This Row],[School]],1,0) -> 0 | GH108: =IF(Table4[[#This Row],[prgm]]=Table4[[#This Row],[Degree Offered]],1,0) -> 0
A109: 9 | B109: 2001-2002 | C109: Cerritos College | D109: Public | E109: AD | F109: 1 | G109: 0 | H109: 0 | I109: 1 | J109: 1 | K109: 0 | L109: 0 | M109: Los Angeles | N109: 8 | O109: San Joaquin Valley | P109: No | Q109: 165 | R109: 165 | U109: 110 | V109: 110 | W109: 0 | X109: 1 | Y109: 1 | Z109: 1 | AA109: 1 | AB109: 1 | AF109: 143 | AG109: 143 | AI109: 120 | AL109: 120 | AN109: 4 | AO109: 45 | AP109: 44 | AS109: 93 | AY109: 246 | AZ109: 166 | BA109: 69 | BB109: 0 | BC109: 11 | BD109: 246 | BI109: 93 | BJ109: 173 | BK109: 12 | BL109: 1 | BM109: 30 | BN109: 18 | BO109: 25 | BP109: 54 | BQ109: 3 | BR109: 6 | BS109: 2 | BT109: 19 | BU109: 10 | BV109: 20 | BW109: 31 | BX109: 5 | BY109: 19 | BZ109: 2 | CA109: 42 | CB109: 25 | CC109: 24 | CD109: 58 | CE109: 3 | CF109: 93 | CG109: 173 | CH109: 118 | CI109: 25 | CK109: 73 | CL109: 20 | CN109: 146 | CO109: 27 | CP109: 143 | CQ109: 93 | CR109: 173 | DG109: 61 | DH109: 21 | DI109: 61 | DJ109: 65 | DK109: 44 | DL109: 72 | DM109: 13 | DN109: 21 | DO109: 33 | DP109: 4 | DQ109: 4 | DR109: 6 | DS109: 0 | DT109: 0 | DU109: 1 | DV109: 0 | DW109: 3 | DX109: 0 | DZ109: 142 | EA109: 31 | EB109: 0 | ED109: 173 | EE109: 0 | EF109: 0 | EG109: 3 | EH109: 2 | EI109: 1 | EJ109: 24 | EK109: 0 | EL109: 30 | EM109: 0 | EN109: 2 | EO109: 4 | EP109: 8 | EQ109: 9 | ER109: 7 | ES109: 0 | ET109: 11 | EU109: 19 | EV109: 2 | EW109: 30 | EX109: 30 | EY109: 30 | EZ109: 30 | FE109: 1 | FF109: 1 | FG109: 1 | FH109: 1 | FI109: 99 | FJ109: 81 | FK109: 99 | FN109: 81 | FQ109: 93 | FV109: 173 | GG109: =IF(Table4[[#This Row],[SF]]=Table4[[#This Row],[School]],1,0) -> 0 | GH109: =IF(Table4[[#This Row],[prgm]]=Table4[[#This Row],[Degree Offered]],1,0) -> 0
A110: 10 | B110: 2001-2002 | C110: Chabot College | D110: Public | E110: AD | F110: 1 | G110: 0 | H110: 0 | I110: 1 | J110: 1 | K110: 0 | L110: 0 | M110: Alameda | N110: 4 | O110: San Joaquin Valley | P110: Yes | Q110: 69 | R110: 69 | U110: 40 | V110: 38 | W110: 2 | X110: 0 | AF110: 35 | AG110: 35 | AI110: 40 | AL110: 40 | AN110: 0 | AO110: 7 | AP110: 28 | AS110: 35 | AY110: 35 | AZ110: 25 | BA110: 0 | BB110: 0 | BC110: 10 | BD110: 35 | BE110: 3 | BF110: 2 | BG110: 1 | BI110: 35 | BJ110: 65 | BK110: 7 | BL110: 0 | BM110: 3 | BN110: 5 | BO110: 13 | BP110: 5 | BQ110: 2 | BR110: 9 | BS110: 0 | BT110: 3 | BU110: 1 | BV110: 18 | BW110: 4 | BX110: 0 | BY110: 13 | BZ110: 1 | CA110: 8 | CB110: 11 | CC110: 23 | CD110: 5 | CE110: 4 | CF110: 35 | CG110: 65 | CH110: 27 | CI110: 8 | CK110: 31 | CL110: 4 | CN110: 55 | CO110: 10 | CP110: 35 | CQ110: 35 | CR110: 65 | DG110: 7 | DH110: 3 | DI110: 16 | DJ110: 18 | DK110: 16 | DL110: 29 | DM110: 9 | DN110: 11 | DO110: 16 | DP110: 1 | DQ110: 5 | DR110: 4 | DS110: 0 | DT110: 0 | DU110: 0 | DV110: 0 | DW110: 0 | DX110: 0 | DZ110: 55 | EA110: 8 | EB110: 2 | EC110: 0 | ED110: 65 | EE110: 0 | EF110: 2 | EG110: 1 | EH110: 0 | EI110: 0 | EJ110: 11 | EK110: 0 | EL110: 12 | EM110: 2 | EN110: 0 | EO110: 0 | EP110: 7 | EQ110: 1 | ER110: 6 | ES110: 0 | ET110: 7 | EU110: 7 | EV110: 0 | EW110: 14 | EX110: 14 | EY110: 14 | EZ110: 14 | FE110: 0 | FF110: 0 | FI110: 26 | FJ110: 23 | FK110: 26 | FN110: 23 | FQ110: 35 | FV110: 65 | GG110: =IF(Table4[[#This Row],[SF]]=Table4[[#This Row],[School]],1,0) -> 0 | GH110: =IF(Table4[[#This Row],[prgm]]=Table4[[#This Row],[Degree Offered]],1,0) -> 0
A111: 11 | B111: 2001-2002 | C111: Chaffey College | D111: Public | E111: AD | F111: 1 | G111: 0 | H111: 0 | I111: 1 | J111: 1 | K111: 0 | L111: 0 | M111: San Bernardino | N111: 9 | O111: Inland Empire | P111: No | Q111: 120 | R111: 120 | U111: 80 | V111: 80 | W111: 0 | X111: 1 | Z111: 1 | AA111: 1 | AB111: 1 | AG111: 70 | AI111: 80 | AL111: 80 | AN111: 0 | AO111: 16 | AP111: 25 | AS111: 41 | AZ111: 0 | BA111: 0 | BB111: 0 | BC111: 0 | BE111: 3 | BF111: 2 | BG111: 1 | BI111: 0 | BJ111: 139 | BR111: 0 | BS111: 0 | BT111: 0 | BU111: 0 | BV111: 0 | BW111: 0 | BX111: 0 | BY111: 4 | BZ111: 2 | CA111: 15 | CB111: 6 | CC111: 73 | CD111: 34 | CE111: 5 | CF111: 41 | CG111: 134 | CH111: 63 | CI111: 7 | CK111: 37 | CL111: 4 | CN111: 123 | CO111: 11 | CP111: 0 | CQ111: 0 | CR111: 134 | DI111: 51 | DL111: 46 | DO111: 24 | DR111: 4 | DU111: 1 | DX111: 8 | DZ111: 124 | EA111: 10 | EB111: 0 | ED111: 134 | EE111: 0 | EF111: 0 | EG111: 2 | EH111: 0 | EI111: 0 | EJ111: 16 | EK111: 0 | EL111: 18 | EM111: 0 | EN111: 0 | EO111: 0 | EP111: 3 | EQ111: 12 | ER111: 3 | ET111: 11 | EU111: 7 | EV111: 0 | EW111: 18 | EX111: 18 | EY111: 18 | EZ111: 18 | FE111: 0 | FF111: 1 | FG111: 1 | FH111: 1 | FI111: 48 | FJ111: 44 | FK111: 48 | FN111: 44 | FQ111: 41 | FV111: 134 | GG111: =IF(Table4[[#This Row],[SF]]=Table4[[#This Row],[School]],1,0) -> 0 | GH111: =IF(Table4[[#This Row],[prgm]]=Table4[[#This Row],[Degree Offered]],1,0) -> 0
A112: 12 | B112: 2001-2002 | C112: City College of San Francisco | D112: Public | E112: AD | F112: 1 | G112: 0 | H112: 0 | I112: 1 | J112: 1 | K112: 0 | L112: 0 | M112: San Francisco | N112: 4 | O112: Central Coast | P112: Yes | Q112: 160 | R112: 160 | U112: 100 | V112: 100 | W112: 0 | X112: 0 | AI112: 100 | AL112: 100 | AN112: 1 | AO112: 5 | AP112: 58 | AS112: 64 | AZ112: 0 | BA112: 0 | BB112: 0 | BC112: 0 | BI112: 0 | BJ112: 0 | CF112: 0 | CG112: 0 | CP112: 0 | CQ112: 0 | CR112: 0 | DZ112: 58 | EA112: 5 | EB112: 1 | EC112: 0 | ED112: 64 | EE112: 0 | EF112: 3 | EG112: 1 | EH112: 2 | EI112: 4 | EJ112: 16 | EK112: 0 | EL112: 24 | EM112: 2 | EN112: 0 | EO112: 3 | EP112: 9 | EQ112: 11 | ER112: 3 | ES112: 0 | ET112: 13 | EU112: 13 | EV112: 1 | EW112: 26 | EX112: 26 | EY112: 26 | EZ112: 26 | FE112: 0 | FF112: 0 | FI112: 62 | FJ112: 50 | FK112: 62 | FN112: 50 | FQ112: 64 | FV112: 64 | GG112: =IF(Table4[[#This Row],[SF]]=Table4[[#This Row],[School]],1,0) -> 0 | GH112: =IF(Table4[[#This Row],[prgm]]=Table4[[#This Row],[Degree Offered]],1,0) -> 0
A113: 13 | B113: 2001-2002 | C113: College of Marin | D113: Public | E113: AD | F113: 1 | G113: 0 | H113: 0 | I113: 1 | J113: 1 | K113: 0 | L113: 0 | M113: Marin | N113: 4 | O113: LA Area | P113: Yes | Q113: 50 | R113: 50 | U113: 45 | V113: 44 | W113: 1 | X113: 0 | AF113: =BL113+BN113+BK113+BM113+BP113+BO113+BQ113 -> 44 | AG113: =CI113+CH113 -> 44 | AI113: 36 | AL113: 36 | AN113: 1 | AO113: 11 | AP113: 31 | AS113: 43 | AY113: 51 | AZ113: 43 | BA113: 1 | BB113: 0 | BC113: 7 | BD113: 51 | BE113: 3 | BF113: 2 | BG113: 1 | BI113: 43 | BJ113: 94 | BK113: 8 | BL113: 0 | BM113: 3 | BN113: 3 | BO113: 22 | BP113: 6 | BQ113: 2 | BR113: 4 | BS113: 1 | BT113: 2 | BU113: 4 | BV113: 28 | BW113: 1 | BX113: 3 | BY113: 25 | BZ113: 0 | CA113: 6 | CB113: 7 | CC113: 42 | CD113: 10 | CE113: 4 | CF113: 43 | CG113: 84 | CH113: 39 | CI113: 5 | CK113: 39 | CL113: 4 | CN113: 72 | CO113: 12 | CP113: 44 | CQ113: 43 | CR113: 84 | DG113: 8 | DH113: 11 | DI113: 16 | DJ113: 20 | DK113: 16 | DL113: 35 | DM113: 11 | DN113: 12 | DO113: 22 | DP113: 4 | DQ113: 4 | DR113: 10 | DS113: 1 | DT113: 0 | DU113: 1 | DZ113: 72 | EA113: 11 | EB113: 1 | EC113: 0 | ED113: 84 | EH113: 1 | EJ113: 7 | EL113: 8 | EM113: 0 | EP113: 4 | EQ113: 2 | ER113: 2 | ET113: 8 | EU113: 0 | EV113: 0 | EW113: 8 | EX113: 8 | EY113: 8 | EZ113: 8 | FE113: 0 | FF113: 0 | FI113: 34 | FJ113: 28 | FK113: 34 | FN113: 28 | FQ113: 43 | FV113: 84 | GG113: =IF(Table4[[#This Row],[SF]]=Table4[[#This Row],[School]],1,0) -> 0 | GH113: =IF(Table4[[#This Row],[prgm]]=Table4[[#This Row],[Degree Offered]],1,0) -> 0
A114: 14 | B114: 2001-2002 | C114: College of San Mateo | D114: Public | E114: AD | F114: 1 | G114: 0 | H114: 0 | I114: 1 | J114: 1 | K114: 0 | L114: 0 | M114: San Mateo | N114: 4 | O114: Bay Area | P114: Yes | Q114: 63 | R114: 63 | U114: 48 | V114: 48 | W114: 0 | X114: 1 | Y114: 0 | Z114: 1 | AF114: 48 | AG114: 48 | AI114: 48 | AL114: 48 | AN114: 1 | AO114: 19 | AP114: 18 | AS114: 38 | AY114: 56 | AZ114: 38 | BA114: 8 | BB114: 0 | BC114: 10 | BD114: 56 | BE114: 3 | BF114: 1 | BG114: 2 | BI114: 38 | BJ114: 96 | BK114: 1 | BL114: 0 | BM114: 12 | BN114: 6 | BO114: 22 | BP114: 7 | BQ114: 0 | BR114: 1 | BS114: 0 | BT114: 14 | BU114: 0 | BV114: 18 | BW114: 5 | BX114: 0 | BY114: 2 | BZ114: 0 | CA114: 30 | CB114: 8 | CC114: 47 | CD114: 9 | CE114: 0 | CF114: 38 | CG114: 96 | CH114: 43 | CI114: 5 | CK114: 34 | CL114: 4 | CN114: 84 | CO114: 12 | CP114: 48 | CQ114: 38 | CR114: 96 | DG114: 15 | DH114: 6 | DI114: 18 | DJ114: 19 | DK114: 20 | DL114: 45 | DM114: 12 | DN114: 6 | DO114: 24 | DP114: 2 | DQ114: 6 | DR114: 9 | DS114: 0 | DT114: 0 | DU114: 0 | DV114: 0 | DW114: 0 | DX114: 0 | DZ114: 82 | EA114: 7 | EB114: 7 | EC114: 0 | ED114: 96 | EE114: 1 | EF114: 0 | EG114: 1 | EH114: 1 | EI114: 0 | EJ114: 8 | EK114: 0 | EL114: 10 | EM114: 1 | EN114: 0 | EO114: 0 | EP114: 2 | EQ114: 8 | ER114: 1 | ES114: 0 | ET114: 7 | EU114: 4 | EV114: 0 | EW114: 11 | EX114: 11 | EY114: 11 | EZ114: 11 | FE114: 1 | FF114: 1 | FG114: 1 | FH114: 0 | FI114: 39 | FJ114: 35 | FK114: 39 | FN114: 35 | FQ114: 38 | FV114: 96 | GG114: =IF(Table4[[#This Row],[SF]]=Table4[[#This Row],[School]],1,0) -> 0 | GH114: =IF(Table4[[#This Row],[prgm]]=Table4[[#This Row],[Degree Offered]],1,0) -> 0
A115: 15 | B115: 2001-2002 | C115: College of the Canyons | D115: Public | E115: AD | F115: 1 | G115: 0 | H115: 0 | I115: 1 | J115: 1 | K115: 0 | L115: 0 | M115: Los Angeles | N115: 8 | O115: Northern Sacramento Valley | P115: No | Q115: 352 | R115: 352 | U115: 48 | V115: 48 | W115: 0 | X115: 0 | AF115: 48 | AG115: 48 | AI115: 96 | AL115: 72 | AN115: 0 | AO115: 7 | AP115: 38 | AS115: 45 | AY115: 55 | AZ115: 38 | BA115: 2 | BB115: 0 | BC115: 15 | BD115: 55 | BF115: 2 | BI115: 43 | BJ115: 130 | BK115: 3 | BL115: 0 | BM115: 0 | BN115: 1 | BO115: 32 | BP115: 12 | BQ115: 0 | BR115: 2 | BS115: 0 | BT115: 0 | BU115: 1 | BV115: 30 | BW115: 10 | BX115: 0 | BY115: 5 | BZ115: 0 | CA115: 0 | CB115: 11 | CC115: 80 | CD115: 32 | CE115: 2 | CF115: 43 | CG115: 130 | CH115: 44 | CI115: 4 | CK115: 39 | CL115: 4 | CN115: 120 | CO115: 10 | CP115: 48 | CQ115: 43 | CR115: 130 | DG115: 22 | DH115: 14 | DI115: 47 | DJ115: 13 | DK115: 13 | DL115: 47 | DM115: 9 | DN115: 7 | DO115: 24 | DP115: 4 | DQ115: 1 | DR115: 6 | DS115: 0 | DT115: 0 | DU115: 0 | DW115: 8 | DX115: 6 | DZ115: 113 | EA115: 16 | EB115: 1 | ED115: 130 | EJ115: 19 | EL115: 19 | EM115: 0 | ES115: 19 | ET115: 9 | EU115: 10 | EV115: 0 | EW115: 19 | EX115: 19 | EY115: 19 | EZ115: 19 | FE115: 1 | FF115: 1 | FG115: 1 | FH115: 1 | FI115: 54 | FJ115: 46 | FK115: 54 | FN115: 46 | FQ115: 45 | FV115: 130 | GG115: =IF(Table4[[#This Row],[SF]]=Table4[[#This Row],[School]],1,0) -> 0 | GH115: =IF(Table4[[#This Row],[prgm]]=Table4[[#This Row],[Degree Offered]],1,0) -> 0
A116: 16 | B116: 2001-2002 | C116: College of the Desert | D116: Public | E116: AD | F116: 1 | G116: 0 | H116: 0 | I116: 1 | J116: 1 | K116: 0 | L116: 0 | M116: Riverside | N116: 9 | O116: LA Area | P116: No | Q116: 138 | R116: 138 | U116: 80 | V116: 76 | W116: 4 | X116: 1 | Y116: 1 | Z116: 1 | AA116: 1 | AF116: 76 | AG116: 76 | AI116: 80 | AL116: 80 | AN116: 4 | AO116: 11 | AP116: 35 | AS116: 50 | AY116: 82 | AZ116: 43 | BA116: 21 | BB116: 0 | BC116: 18 | BD116: 82 | BE116: 3 | BF116: 2 | BG116: 1 | BI116: 50 | BJ116: 137 | BK116: 2 | BL116: 0 | BM116: 2 | BN116: 3 | BO116: 39 | BP116: 27 | BQ116: 3 | BR116: 5 | BS116: 1 | BT116: 2 | BU116: 1 | BV116: 24 | BW116: 17 | BX116: 0 | BY116: 2 | BZ116: 2 | CA116: 14 | CB116: 5 | CC116: 72 | CD116: 41 | CE116: 1 | CF116: 50 | CG116: 137 | CH116: 59 | CI116: 17 | CK116: 45 | CL116: 5 | CN116: 117 | CO116: 20 | CP116: 76 | CQ116: 50 | CR116: 137 | DG116: 30 | DH116: 15 | DI116: 46 | DJ116: 16 | DK116: 16 | DL116: 29 | DM116: 17 | DN116: 12 | DO116: 38 | DP116: 8 | DQ116: 4 | DR116: 22 | DS116: 5 | DT116: 3 | DU116: 2 | DV116: 0 | DW116: 0 | DX116: 0 | DZ116: 106 | EA116: 27 | EB116: 4 | ED116: 137 | EJ116: 16 | EL116: 16 | EO116: 1 | EP116: 5 | EQ116: 7 | ER116: 3 | ET116: 7 | EU116: 9 | EV116: 0 | EW116: 16 | EX116: 16 | EY116: 16 | EZ116: 16 | FE116: 1 | FF116: 1 | FG116: 1 | FH116: 1 | FI116: 41 | FJ116: 37 | FK116: 41 | FN116: 37 | FQ116: 50 | FV116: 137 | GG116: =IF(Table4[[#This Row],[SF]]=Table4[[#This Row],[School]],1,0) -> 0 | GH116: =IF(Table4[[#This Row],[prgm]]=Table4[[#This Row],[Degree Offered]],1,0) -> 0
A117: 17 | B117: 2001-2002 | C117: College of the Redwoods | D117: Public | E117: AD | F117: 1 | G117: 0 | H117: 0 | I117: 1 | J117: 1 | K117: 0 | L117: 0 | M117: Humboldt | N117: 1 | O117: Greater Sacramento | P117: No | Q117: 39 | R117: 39 | U117: 40 | V117: 33 | W117: 7 | X117: 1 | Y117: 1 | Z117: 1 | AF117: 27 | AG117: 27 | AI117: 40 | AL117: 40 | AN117: 1 | AO117: 6 | AP117: 21 | AS117: 28 | AY117: 38 | AZ117: 28 | BA117: 0 | BB117: 0 | BC117: 10 | BD117: 38 | BE117: 3 | BF117: 2 | BG117: 1 | BI117: 28 | BJ117: 57 | BM117: 1 | BO117: 24 | BQ117: 2 | BT117: 1 | BV117: 26 | BX117: 1 | BZ117: 1 | CB117: 1 | CC117: 43 | CD117: 8 | CE117: 4 | CF117: 28 | CG117: 57 | CH117: 25 | CI117: 2 | CK117: 22 | CL117: 6 | CN117: 49 | CO117: 8 | CP117: 27 | CQ117: 28 | CR117: 57 | DG117: 7 | DH117: 3 | DI117: 8 | DJ117: 13 | DK117: 10 | DL117: 32 | DM117: 6 | DN117: 11 | DO117: 8 | DP117: 1 | DQ117: 3 | DR117: 9 | DT117: 1 | DU117: 0 | DZ117: 48 | EA117: 10 | EB117: 0 | EC117: 0 | ED117: 58 | EE117: 1 | EF117: 0 | EG117: 0 | EH117: 0 | EI117: 0 | EJ117: 11 | EK117: 1 | EL117: 13 | EM117: 0 | EN117: 0 | EO117: 2 | EP117: 5 | EQ117: 6 | ET117: 3 | EU117: 10 | EV117: 1 | EW117: 13 | EX117: 13 | EY117: 13 | EZ117: 13 | FE117: 0 | FF117: 0 | FI117: 24 | FJ117: 16 | FK117: 24 | FN117: 16 | FQ117: 28 | FV117: 58 | GG117: =IF(Table4[[#This Row],[SF]]=Table4[[#This Row],[School]],1,0) -> 0 | GH117: =IF(Table4[[#This Row],[prgm]]=Table4[[#This Row],[Degree Offered]],1,0) -> 0
A118: 18 | B118: 2001-2002 | C118: College of the Sequoias | D118: Public | E118: AD | F118: 1 | G118: 0 | H118: 0 | I118: 1 | J118: 1 | K118: 0 | L118: 0 | M118: Tulare | N118: 5 | O118: Northern Sacramento Valley | P118: No | Q118: 110 | R118: 110 | U118: 80 | V118: 80 | W118: 0 | X118: 1 | Y118: 1 | Z118: 1 | AA118: 1 | AF118: 63 | AG118: 63 | AI118: 60 | AL118: 80 | AN118: 1 | AO118: 6 | AP118: 43 | AS118: 50 | AY118: 50 | AZ118: 48 | BA118: 1 | BB118: 0 | BC118: 1 | BD118: 50 | BG118: 1 | BI118: 51 | BJ118: 137 | BK118: 2 | BL118: 0 | BM118: 2 | BN118: 2 | BO118: 38 | BP118: 16 | BQ118: 3 | BR118: 0 | BS118: 0 | BT118: 2 | BU118: 3 | BV118: 32 | BW118: 13 | BX118: 1 | BY118: 3 | BZ118: 0 | CA118: 4 | CB118: 4 | CC118: 86 | CD118: 32 | CE118: 8 | CF118: 51 | CG118: 136 | CH118: 53 | CI118: 10 | CK118: 43 | CL118: 8 | CN118: 116 | CO118: 20 | CP118: 63 | CQ118: 51 | CR118: 137 | DG118: 25 | DH118: 19 | DI118: 39 | DJ118: 25 | DK118: 23 | DL118: 56 | DM118: 9 | DN118: 9 | DO118: 33 | DP118: 3 | DQ118: 0 | DR118: 9 | DS118: 0 | DT118: 0 | DU118: 0 | DV118: 1 | DW118: 0 | DX118: 0 | DZ118: 117 | EA118: 21 | EB118: 0 | EC118: 0 | ED118: 138 | EE118: 0 | EF118: 0 | EG118: 0 | EH118: 0 | EI118: 1 | EJ118: 5 | EK118: 0 | EL118: 13 | EM118: 3 | EO118: 3 | EP118: 4 | EQ118: 7 | ER118: 2 | ET118: 11 | EU118: 5 | EV118: 2 | EW118: 16 | EX118: 16 | EY118: 16 | EZ118: 6 | FE118: 1 | FF118: 0 | FI118: 48 | FJ118: 41 | FK118: 48 | FN118: 41 | FQ118: 50 | FV118: 138 | GG118: =IF(Table4[[#This Row],[SF]]=Table4[[#This Row],[School]],1,0) -> 0 | GH118: =IF(Table4[[#This Row],[prgm]]=Table4[[#This Row],[Degree Offered]],1,0) -> 0
A119: 20 | B119: 2001-2002 | C119: Contra Costa College | D119: Public | E119: AD | F119: 1 | G119: 0 | H119: 0 | I119: 1 | J119: 1 | K119: 0 | L119: 0 | M119: Contra Costa | N119: 4 | O119: Bay Area | P119: No | Q119: 62 | R119: 62 | U119: 65 | V119: 43 | W119: 22 | X119: 0 | AF119: 45 | AG119: 45 | AI119: 56 | AL119: 60 | AN119: 0 | AO119: 4 | AP119: 33 | AS119: 37 | AY119: 51 | AZ119: 37 | BA119: 4 | BB119: 0 | BC119: 10 | BD119: 51 | BE119: 3 | BF119: 2 | BG119: 1 | BI119: 37 | BJ119: 82 | BK119: 12 | BL119: 0 | BM119: 13 | BN119: 1 | BO119: 7 | BP119: 10 | BQ119: 2 | BR119: 3 | BS119: 0 | BT119: 9 | BU119: 2 | BV119: 15 | BW119: 5 | BX119: 3 | BY119: 15 | BZ119: 0 | CA119: 22 | CB119: 3 | CC119: 22 | CD119: 15 | CE119: 5 | CF119: 37 | CG119: 82 | CH119: 36 | CI119: 9 | CK119: 33 | CL119: 4 | CN119: 69 | CO119: 13 | CP119: 45 | CQ119: 37 | CR119: 82 | DG119: 11 | DH119: 7 | DI119: 18 | DJ119: 20 | DK119: 18 | DL119: 38 | DM119: 8 | DN119: 9 | DO119: 17 | DP119: 5 | DQ119: 2 | DR119: 7 | DS119: 1 | DT119: 1 | DU119: 2 | DV119: 0 | DW119: 0 | DX119: 0 | DZ119: 42 | EA119: 0 | EB119: 1 | EC119: 0 | ED119: 43 | EE119: 0 | EF119: 1 | EG119: 3 | EH119: 0 | EI119: 1 | EJ119: 9 | EK119: 0 | EL119: 13 | EM119: 1 | EN119: 0 | EO119: 0 | EP119: 5 | EQ119: 9 | ER119: 0 | ES119: 0 | ET119: 9 | EU119: 2 | EV119: 0 | EW119: 11 | EX119: 14 | EY119: 14 | EZ119: 14 | FE119: 0 | FF119: 1 | FH119: 1 | FI119: 38 | FJ119: 35 | FK119: 38 | FN119: 35 | FQ119: 37 | FV119: 43 | GG119: =IF(Table4[[#This Row],[SF]]=Table4[[#This Row],[School]],1,0) -> 0 | GH119: =IF(Table4[[#This Row],[prgm]]=Table4[[#This Row],[Degree Offered]],1,0) -> 0
A120: 22 | B120: 2001-2002 | C120: CSU Bakersfield | D120: Public | E120: BSN | F120: 0 | G120: 1 | H120: 0 | I120: 1 | J120: 0 | K120: 1 | L120: 0 | M120: Kern | N120: 5 | O120: Bay Area | P120: No | Q120: 60 | S120: 60 | U120: 72 | V120: 60 | W120: 12 | X120: 1 | AA120: 1 | AF120: 38 | AG120: 38 | AI120: 72 | AL120: 72 | AN120: 0 | AO120: 4 | AP120: 24 | AS120: 28 | AY120: 53 | AZ120: 28 | BA120: 10 | BB120: 0 | BC120: 15 | BD120: 53 | BE120: 3 | BF120: 2 | BG120: 1 | BI120: 28 | BJ120: 123 | BK120: 1 | BL120: 0 | BM120: 1 | BN120: 5 | BO120: 18 | BP120: 7 | BQ120: 6 | BR120: 0 | BS120: 0 | BT120: 0 | BU120: 4 | BV120: 20 | BW120: 4 | BX120: 0 | BY120: 7 | BZ120: 3 | CA120: 15 | CB120: 4 | CC120: 61 | CD120: 31 | CE120: 2 | CF120: 28 | CG120: 123 | CH120: 35 | CI120: 3 | CK120: 27 | CL120: 1 | CN120: 111 | CO120: 12 | CP120: 38 | CQ120: 28 | CR120: 123 | DV120: 38 | DW120: 28 | DX120: 123 | DZ120: 121 | EA120: 1 | EB120: 1 | ED120: 123 | EG120: 1 | EI120: 16 | EL120: 17 | EM120: 0 | ES120: 17 | ET120: 9 | EU120: 8 | EV120: 3 | EW120: 17 | EX120: 17 | EY120: 17 | EZ120: 17 | FE120: 1 | FF120: 1 | FH120: 1 | FI120: 29 | FJ120: 26 | FL120: 29 | FO120: 26 | FR120: 28 | FW120: 123 | GG120: =IF(Table4[[#This Row],[SF]]=Table4[[#This Row],[School]],1,0) -> 0 | GH120: =IF(Table4[[#This Row],[prgm]]=Table4[[#This Row],[Degree Offered]],1,0) -> 0
A121: 23 | B121: 2001-2002 | C121: CSU Chico | D121: Public | E121: BSN | F121: 0 | G121: 1 | H121: 0 | I121: 1 | J121: 0 | K121: 1 | L121: 0 | M121: Butte | N121: 2 | O121: Southern Border | P121: No | S121: 0 | U121: 60 | V121: 60 | W121: 0 | X121: 1 | Y121: 1 | AA121: 1 | AF121: 70 | AG121: 70 | AI121: 60 | AL121: 60 | AN121: 0 | AO121: 2 | AP121: 52 | AS121: 54 | AY121: 62 | AZ121: 54 | BA121: 6 | BB121: 0 | BC121: 2 | BD121: 62 | BF121: 1 | BG121: 2 | BI121: 54 | BJ121: 167 | BK121: 1 | BN121: 5 | BO121: 51 | BP121: 6 | BQ121: 7 | BU121: 3 | BV121: 48 | BW121: 2 | BX121: 1 | BY121: 3 | BZ121: 5 | CA121: 0 | CB121: 10 | CC121: 124 | CD121: 13 | CE121: 12 | CF121: 54 | CG121: 167 | CH121: 65 | CI121: 5 | CK121: 51 | CL121: 3 | CN121: 151 | CO121: 16 | CP121: 70 | CQ121: 54 | CR121: 167 | DV121: 70 | DW121: 54 | DX121: 167 | DZ121: 162 | EA121: 5 | EB121: 0 | EC121: 3 | ED121: 167 | EJ121: 28 | EL121: 22 | EM121: 1 | EN121: 0 | EO121: 0 | EP121: 3 | EQ121: 18 | ER121: 2 | ET121: 12 | EU121: 11 | EV121: 1 | EW121: 23 | EX121: 23 | EY121: 23 | EZ121: 28 | FF121: 1 | FG121: 1 | FH121: 1 | FI121: 55 | FJ121: 49 | FL121: 55 | FO121: 49 | FR121: 54 | FW121: 167 | GG121: =IF(Table4[[#This Row],[SF]]=Table4[[#This Row],[School]],1,0) -> 0 | GH121: =IF(Table4[[#This Row],[prgm]]=Table4[[#This Row],[Degree Offered]],1,0) -> 0
A122: 27 | B122: 2001-2002 | C122: CSU East Bay | D122: Public | E122: BSN | F122: 0 | G122: 1 | H122: 0 | I122: 1 | J122: 0 | K122: 1 | L122: 0 | M122: Alameda | N122: 4 | O122: Bay Area | P122: Yes | Q122: 127 | S122: 127 | U122: 88 | V122: 88 | W122: 0 | X122: 1 | Y122: 1 | Z122: 1 | AA122: 1 | AF122: 88 | AG122: 88 | AL122: 70 | AN122: 0 | AO122: 13 | AP122: 64 | AS122: 77 | AY122: 64 | AZ122: 44 | BA122: 3 | BB122: 0 | BC122: 17 | BD122: 64 | BE122: 3 | BF122: 2 | BG122: 1 | BI122: 51 | BJ122: 189 | BK122: 8 | BL122: 1 | BM122: 18 | BN122: 14 | BO122: 34 | BP122: 9 | BQ122: 4 | BR122: 4 | BS122: 0 | BT122: 8 | BU122: 6 | BV122: 21 | BW122: 4 | BX122: 8 | BY122: 9 | BZ122: 1 | CA122: 31 | CB122: 28 | CC122: 84 | CD122: 23 | CE122: 13 | CF122: 51 | CG122: 189 | CH122: 80 | CI122: 8 | CK122: 47 | CL122: 4 | CN122: 162 | CO122: 27 | CP122: 88 | CQ122: 51 | CR122: 189 | DG122: 49 | DH122: 16 | DI122: 60 | DJ122: 25 | DK122: 27 | DL122: 63 | DM122: 14 | DN122: 8 | DO122: 62 | DP122: 0 | DQ122: 0 | DR122: 4 | DS122: 0 | DT122: 0 | DU122: 0 | DV122: 0 | DW122: 0 | DX122: 0 | DZ122: 88 | EA122: 0 | EB122: 0 | EC122: 0 | ED122: 88 | EE122: 0 | EF122: 1 | EG122: 1 | EH122: 1 | EI122: 0 | EJ122: 12 | EK122: 0 | EL122: 15 | EM122: 0 | EN122: 0 | EO122: 2 | EP122: 5 | EQ122: 5 | ER122: 3 | ES122: 0 | ET122: 7 | EU122: 8 | EV122: 2 | EW122: 15 | EX122: 15 | EY122: 15 | EZ122: 15 | FE122: 1 | FF122: 1 | FG122: 1 | FI122: 48 | FJ122: 41 | FL122: 48 | FO122: 41 | FR122: 77 | FW122: 88 | GG122: =IF(Table4[[#This Row],[SF]]=Table4[[#This Row],[School]],1,0) -> 0 | GH122: =IF(Table4[[#This Row],[prgm]]=Table4[[#This Row],[Degree Offered]],1,0) -> 0
A123: 25 | B123: 2001-2002 | C123: CSU Fresno | D123: Public | E123: BSN | F123: 0 | G123: 1 | H123: 0 | I123: 1 | J123: 0 | K123: 1 | L123: 0 | M123: Fresno | N123: 5 | O123: Inland Empire | P123: No | Q123: 128 | S123: 128 | U123: 110 | V123: 110 | W123: 0 | X123: 1 | Y123: 1 | Z123: 1 | AA123: 1 | AF123: 110 | AG123: 107 | AI123: 110 | AL123: 110 | AN123: 0 | AO123: 20 | AP123: 54 | AS123: 74 | AZ123: 0 | BA123: 0 | BB123: 0 | BC123: 0 | BI123: 53 | BJ123: 298 | BK123: 3 | BL123: 1 | BM123: 3 | BN123: 13 | BO123: 42 | BP123: 22 | BQ123: 26 | BR123: 3 | BS123: 0 | BT123: 4 | BU123: 7 | BV123: 21 | BW123: 8 | BX123: 10 | BY123: 11 | BZ123: 5 | CA123: 12 | CB123: 45 | CC123: 142 | CD123: 54 | CE123: 29 | CF123: 54 | CG123: 293 | CH123: 94 | CI123: 13 | CK123: 46 | CL123: 8 | CN123: 255 | CO123: 38 | CP123: 0 | CQ123: 54 | CR123: 243 | DH123: 23 | DI123: 122 | DK123: 20 | DL123: 46 | DN123: 7 | DO123: 32 | DQ123: 4 | DR123: 9 | DT123: 0 | DU123: 0 | DX123: 34 | DZ123: 0 | EB123: 0 | ED123: 0 | EE123: 0 | EF123: 2 | EG123: 3 | EH123: 0 | EI123: 1 | EJ123: 29 | EK123: 0 | EL123: 31 | EM123: 4 | ES123: 35 | ET123: 22 | EU123: 13 | EV123: 2 | EW123: 35 | EX123: 35 | EY123: 35 | EZ123: 35 | FE123: 1 | FF123: 1 | FI123: 48 | FJ123: 43 | FL123: 48 | FO123: 43 | FR123: 74 | FW123: 0 | GG123: =IF(Table4[[#This Row],[SF]]=Table4[[#This Row],[School]],1,0) -> 0 | GH123: =IF(Table4[[#This Row],[prgm]]=Table4[[#This Row],[Degree Offered]],1,0) -> 0
